Workbook

Sheet Results-Total
B2: BPA Appliance Standards Impact Analysis
U3: Summary
U4: Standard Effective Year | V4: 2007 (Medium-Voltage Dry-Type) 2010 (Low-Voltage Dry-Type & Liquid Immersed) 2016 (All Dry and Liquid Immersed)
U5: Cumulative Savings (MWa, through 2034) | V5: =V89-W89 -> 4051.677766
U6: 6th Plan One-time Adjustment (MWa) | V6: =X89 -> 0
U7: Claimable Non Programmatic Savings (aMW) Due to Standard | V7: =SUM(AC64:AC68) -> 34.47400297
U14: Notes
U15: 1. This tab combines the results from all Commercial and Industrial Electricity Sales.
U16: 2. Individual sector-level aggregated total stock Unit Energy Consumption are available in the "UEC Rollup" tab.
U17: 3. Distribution transformers were not captured in the 6P forecast. Therefore there is no one-time adjustment.
D57: Unit Energy Consumption (kWh/year) | I57: Stock and Shipments | N57: First Year Energy Consumption | R57: Total Energy Consumption (kWh) | V57: Total Energy Consumption (aMW) | Z57: Savings (aMW)
B58: Year | C58: Council's Pre-case Shipment UEC | D58: Model Pre-case Shipment UEC | E58: Model Post-case Shipment UEC | F58: Model Weighted Pre-case Stock UEC | G58: Model Weighted Post-case UEC | H58: Council's Shipments | I58: Model Base Case Shipments | J58: Model Standards Shipments | K58: Model Base Case Stock | L58: Model Standards Case Stock | M58: Pre-case Shipments * UEC (5P/6P) | N58: Model Shipments * Pre-Case UEC | O58: Model Shipments * Post-Case UEC | R58: Pre-case Consumption (Stock UEC *Stock) | S58: Post-case Consumption (Stock UEC*Stock) | V58: =R58 -> Pre-case Consumption (Stock UEC *Stock) | W58: =S58 -> Post-case Consumption (Stock UEC*Stock) | X58: One-time Adjustment | AA58: PNW Cumulative Savings | AB58: DOE Carbon Savings Proxy | AC58: Annual Savings Due to Standard Before Program Adjustments | AD58: Program Savings | AE58: Annual Non-programmatic Savings Due to Standard
B59: 2005 | C59: NA | D59: =HLOOKUP($B59, 'UEC Rollup'!$E$136:$AH$140, 5, FALSE) -> 117981.6115 | E59: =HLOOKUP($B59, 'UEC Rollup'!$E$179:$AH$183, 5, FALSE) -> 117981.6115 | F59: =HLOOKUP($B59, 'UEC Rollup'!$E$157:$AH$161, 5, FALSE) -> 128301.6441 | G59: =HLOOKUP($B59, 'UEC Rollup'!$E$200:$AH$204, 5, FALSE) -> 128301.6441 | H59: NA | I59: =HLOOKUP($B59, 'UEC Rollup'!$E$129:$AH$133, 5, FALSE) -> 4114.716762 | J59: =HLOOKUP($B59, 'UEC Rollup'!$E$172:$AH$176, 5, FALSE) -> 4114.716762 | K59: =HLOOKUP($B59, 'UEC Rollup'!$E$150:$AH$154, 5, FALSE) -> 127726.514 | L59: =HLOOKUP($B59, 'UEC Rollup'!$E$193:$AH$197, 5, FALSE) -> 127726.514 | M59: NA | N59: =D59*I59 -> 485460914.6 | O59: =E59*J59 -> 485460914.6 | R59: =F59*K59 -> 1.638752174e+10 | S59: =G59*K59 -> 1.638752174e+10 | U59: 2005 | V59: =INDEX($C$59:$S$88,MATCH($U59,$B$59:$B$88,0),MATCH($V$58,$C$58:$S$58,0))/1000/8760 -> 1870.72166 | W59: =INDEX($C$59:$S$88,MATCH($U59,$B$59:$B$88,0),MATCH($W$58,$C$58:$S$58,0))/1000/8760 -> 1870.72166 | Z59: 2005 | AA59: =V59-W59 -> 0 | AC59: =(N59-O59)/1000/8760 -> 0
B60: =B59+1 -> 2006 | C60: NA | D60: =HLOOKUP($B60, 'UEC Rollup'!$E$136:$AH$140, 5, FALSE) -> 117981.6115 | E60: =HLOOKUP($B60, 'UEC Rollup'!$E$179:$AH$183, 5, FALSE) -> 117981.6115 | F60: =HLOOKUP($B60, 'UEC Rollup'!$E$157:$AH$161, 5, FALSE) -> 128375.5629 | G60: =HLOOKUP($B60, 'UEC Rollup'!$E$200:$AH$204, 5, FALSE) -> 128375.5629 | H60: NA | I60: =HLOOKUP($B60, 'UEC Rollup'!$E$129:$AH$133, 5, FALSE) -> 4129.969782 | J60: =HLOOKUP($B60, 'UEC Rollup'!$E$172:$AH$176, 5, FALSE) -> 4129.969782 | K60: =HLOOKUP($B60, 'UEC Rollup'!$E$150:$AH$154, 5, FALSE) -> 128828.0614 | L60: =HLOOKUP($B60, 'UEC Rollup'!$E$193:$AH$197, 5, FALSE) -> 128828.0614 | M60: NA | N60: 487260490.5 | O60: 487260490.5 | R60: 1.653837491e+10 | S60: 1.653837491e+10 | U60: =U59+1 -> 2006 | V60: 1887.942341 | W60: 1887.942341 | Z60: =Z59+1 -> 2006 | AA60: =V60-W60 -> 0 | AB60: =AA60+AB59 -> 0 | AC60: =(N60-O60)/1000/8760 -> 0
B61: 2007 | C61: NA | D61: =HLOOKUP($B61, 'UEC Rollup'!$E$136:$AH$140, 5, FALSE) -> 117981.6115 | E61: =HLOOKUP($B61, 'UEC Rollup'!$E$179:$AH$183, 5, FALSE) -> 111646.1096 | F61: =HLOOKUP($B61, 'UEC Rollup'!$E$157:$AH$161, 5, FALSE) -> 129517.8552 | G61: =HLOOKUP($B61, 'UEC Rollup'!$E$200:$AH$204, 5, FALSE) -> 129219.1012 | H61: NA | I61: =HLOOKUP($B61, 'UEC Rollup'!$E$129:$AH$133, 5, FALSE) -> 5472.436862 | J61: =HLOOKUP($B61, 'UEC Rollup'!$E$172:$AH$176, 5, FALSE) -> 5449.279553 | K61: =HLOOKUP($B61, 'UEC Rollup'!$E$150:$AH$154, 5, FALSE) -> 129837.3721 | L61: =HLOOKUP($B61, 'UEC Rollup'!$E$193:$AH$197, 5, FALSE) -> 129837.3721 | M61: NA | N61: 645646920 | O61: 608390862.2 | R61: 1.681625796e+10 | S61: 1.677746852e+10 | U61: =U60+1 -> 2007 | V61: 1919.66415 | W61: 1915.236133 | Z61: =Z60+1 -> 2007 | AA61: 4.428017446 | AB61: =AA61+AB60 -> 4.428017446 | AC61: =(N61-O61)/1000/8760 -> 4.252974644
B62: 2008 | C62: NA | D62: =HLOOKUP($B62, 'UEC Rollup'!$E$136:$AH$140, 5, FALSE) -> 117981.6115 | E62: =HLOOKUP($B62, 'UEC Rollup'!$E$179:$AH$183, 5, FALSE) -> 111646.1096 | F62: =HLOOKUP($B62, 'UEC Rollup'!$E$157:$AH$161, 5, FALSE) -> 129224.4206 | G62: =HLOOKUP($B62, 'UEC Rollup'!$E$200:$AH$204, 5, FALSE) -> 128694.0018 | H62: NA | I62: =HLOOKUP($B62, 'UEC Rollup'!$E$129:$AH$133, 5, FALSE) -> 5064.853531 | J62: =HLOOKUP($B62, 'UEC Rollup'!$E$172:$AH$176, 5, FALSE) -> 5042.428086 | K62: =HLOOKUP($B62, 'UEC Rollup'!$E$150:$AH$154, 5, FALSE) -> 132085.292 | L62: =HLOOKUP($B62, 'UEC Rollup'!$E$193:$AH$197, 5, FALSE) -> 132062.1347 | M62: NA | N62: 597559581.7 | O62: 562967478.7 | R62: 1.706864532e+10 | S62: 1.69985848e+10 | U62: 2008 | V62: 1948.475494 | W62: 1940.477717 | Z62: 2008 | AA62: 7.997776322 | AB62: =AA62+AB61 -> 12.42579377 | AC62: =(N62-O62)/1000/8760 -> 3.948870211
B63: 2009 | C63: NA | D63: =HLOOKUP($B63, 'UEC Rollup'!$E$136:$AH$140, 5, FALSE) -> 117981.6115 | E63: =HLOOKUP($B63, 'UEC Rollup'!$E$179:$AH$183, 5, FALSE) -> 111646.1096 | F63: =HLOOKUP($B63, 'UEC Rollup'!$E$157:$AH$161, 5, FALSE) -> 127817.6008 | G63: =HLOOKUP($B63, 'UEC Rollup'!$E$200:$AH$204, 5, FALSE) -> 127139.8006 | H63: NA | I63: =HLOOKUP($B63, 'UEC Rollup'!$E$129:$AH$133, 5, FALSE) -> 3323.699235 | J63: =HLOOKUP($B63, 'UEC Rollup'!$E$172:$AH$176, 5, FALSE) -> 3307.691498 | K63: =HLOOKUP($B63, 'UEC Rollup'!$E$150:$AH$154, 5, FALSE) -> 133816.734 | L63: =HLOOKUP($B63, 'UEC Rollup'!$E$193:$AH$197, 5, FALSE) -> 133771.267 | M63: NA | N63: 392135392 | O63: 369290887.4 | R63: 1.710413388e+10 | S63: 1.701343287e+10 | U63: 2009 | V63: 1952.526699 | W63: 1942.172702 | Z63: 2009 | AA63: 10.35399705 | AB63: =AA63+AB62 -> 22.77979082 | AC63: 2.607820163
B64: 2010 | C64: NA | D64: =HLOOKUP($B64, 'UEC Rollup'!$E$136:$AH$140, 5, FALSE) -> 117981.6115 | E64: =HLOOKUP($B64, 'UEC Rollup'!$E$179:$AH$183, 5, FALSE) -> 100384.6211 | F64: =HLOOKUP($B64, 'UEC Rollup'!$E$157:$AH$161, 5, FALSE) -> 128039.7938 | G64: =HLOOKUP($B64, 'UEC Rollup'!$E$200:$AH$204, 5, FALSE) -> 126887.0355 | H64: NA | I64: =HLOOKUP($B64, 'UEC Rollup'!$E$129:$AH$133, 5, FALSE) -> 3454.512516 | J64: =HLOOKUP($B64, 'UEC Rollup'!$E$172:$AH$176, 5, FALSE) -> 3430.742586 | K64: =HLOOKUP($B64, 'UEC Rollup'!$E$150:$AH$154, 5, FALSE) -> 133704.4228 | L64: =HLOOKUP($B64, 'UEC Rollup'!$E$193:$AH$197, 5, FALSE) -> 133643.1756 | M64: NA | N64: 407568953.7 | O64: 344393794.7 | R64: 1.711948673e+10 | S64: 1.696535785e+10 | U64: 2010 | V64: 1954.279307 | W64: 1936.684686 | Z64: 2010 | AA64: 17.59462094 | AB64: =AA64+AB63 -> 40.37441176 | AC64: 7.211776142
B65: 2011 | C65: NA | D65: =HLOOKUP($B65, 'UEC Rollup'!$E$136:$AH$140, 5, FALSE) -> 117981.6115 | E65: =HLOOKUP($B65, 'UEC Rollup'!$E$179:$AH$183, 5, FALSE) -> 100384.6211 | F65: =HLOOKUP($B65, 'UEC Rollup'!$E$157:$AH$161, 5, FALSE) -> 128111.8951 | G65: =HLOOKUP($B65, 'UEC Rollup'!$E$200:$AH$204, 5, FALSE) -> 126499.0543 | H65: NA | I65: =HLOOKUP($B65, 'UEC Rollup'!$E$129:$AH$133, 5, FALSE) -> 3369.849091 | J65: =HLOOKUP($B65, 'UEC Rollup'!$E$172:$AH$176, 5, FALSE) -> 3346.291285 | K65: =HLOOKUP($B65, 'UEC Rollup'!$E$150:$AH$154, 5, FALSE) -> 133628.2915 | L65: =HLOOKUP($B65, 'UEC Rollup'!$E$193:$AH$197, 5, FALSE) -> 133543.581 | M65: NA | N65: 397580226.4 | O65: 335916182.9 | R65: 1.711937365e+10 | S65: 1.690385251e+10 | U65: 2011 | V65: 1954.266399 | W65: 1929.663528 | Z65: 2011 | AA65: 24.60287086 | AB65: =AA65+AB64 -> 64.97728263 | AC65: 7.03927437
B66: 2012 | C66: NA | D66: =HLOOKUP($B66, 'UEC Rollup'!$E$136:$AH$140, 5, FALSE) -> 117981.6115 | E66: =HLOOKUP($B66, 'UEC Rollup'!$E$179:$AH$183, 5, FALSE) -> 100384.6211 | F66: =HLOOKUP($B66, 'UEC Rollup'!$E$157:$AH$161, 5, FALSE) -> 128101.0333 | G66: =HLOOKUP($B66, 'UEC Rollup'!$E$200:$AH$204, 5, FALSE) -> 126045.3034 | H66: NA | I66: =HLOOKUP($B66, 'UEC Rollup'!$E$129:$AH$133, 5, FALSE) -> 3244.01112 | J66: =HLOOKUP($B66, 'UEC Rollup'!$E$172:$AH$176, 5, FALSE) -> 3221.311839 | K66: =HLOOKUP($B66, 'UEC Rollup'!$E$150:$AH$154, 5, FALSE) -> 133376.3023 | L66: =HLOOKUP($B66, 'UEC Rollup'!$E$193:$AH$197, 5, FALSE) -> 133268.4592 | M66: NA | N66: 382733659.8 | O66: 323370168.5 | R66: 1.708564214e+10 | S66: 1.681145648e+10 | U66: 2012 | V66: 1950.415769 | W66: 1919.116037 | Z66: 2012 | AA66: 31.29973277 | AB66: 96.27701539 | AC66: 6.776654256
B67: 2013 | C67: NA | D67: =HLOOKUP($B67, 'UEC Rollup'!$E$136:$AH$140, 5, FALSE) -> 117981.6115 | E67: =HLOOKUP($B67, 'UEC Rollup'!$E$179:$AH$183, 5, FALSE) -> 100384.6211 | F67: =HLOOKUP($B67, 'UEC Rollup'!$E$157:$AH$161, 5, FALSE) -> 128191.1022 | G67: =HLOOKUP($B67, 'UEC Rollup'!$E$200:$AH$204, 5, FALSE) -> 125690.7162 | H67: NA | I67: =HLOOKUP($B67, 'UEC Rollup'!$E$129:$AH$133, 5, FALSE) -> 3204.605028 | J67: =HLOOKUP($B67, 'UEC Rollup'!$E$172:$AH$176, 5, FALSE) -> 3182.045779 | K67: =HLOOKUP($B67, 'UEC Rollup'!$E$150:$AH$154, 5, FALSE) -> 132913.7476 | L67: =HLOOKUP($B67, 'UEC Rollup'!$E$193:$AH$197, 5, FALSE) -> 132783.7487 | M67: NA | N67: 378084465.5 | O67: 319428460 | R67: 1.703835981e+10 | S67: 1.670602413e+10 | U67: 2013 | V67: 1945.018243 | W67: 1907.08038 | Z67: 2013 | AA67: 37.93786211 | AB67: 134.2148775 | AC67: 6.695891039
B68: 2014 | C68: NA | D68: =HLOOKUP($B68, 'UEC Rollup'!$E$136:$AH$140, 5, FALSE) -> 117981.6115 | E68: =HLOOKUP($B68, 'UEC Rollup'!$E$179:$AH$183, 5, FALSE) -> 100384.6211 | F68: =HLOOKUP($B68, 'UEC Rollup'!$E$157:$AH$161, 5, FALSE) -> 128326.6498 | G68: =HLOOKUP($B68, 'UEC Rollup'!$E$200:$AH$204, 5, FALSE) -> 125373.5876 | H68: NA | I68: =HLOOKUP($B68, 'UEC Rollup'!$E$129:$AH$133, 5, FALSE) -> 3230.582407 | J68: =HLOOKUP($B68, 'UEC Rollup'!$E$172:$AH$176, 5, FALSE) -> 3207.819566 | K68: =HLOOKUP($B68, 'UEC Rollup'!$E$150:$AH$154, 5, FALSE) -> 132334.2877 | L68: =HLOOKUP($B68, 'UEC Rollup'!$E$193:$AH$197, 5, FALSE) -> 132182.3882 | M68: NA | N68: 381149318.6 | O68: 322015751.8 | R68: 1.698201579e+10 | S68: 1.659122442e+10 | U68: 2014 | V68: 1938.586277 | W68: 1893.97539 | Z68: 2014 | AA68: 44.6108873 | AB68: 178.8257648 | AC68: 6.750407167
B69: 2015 | C69: NA | D69: =HLOOKUP($B69, 'UEC Rollup'!$E$136:$AH$140, 5, FALSE) -> 117981.6115 | E69: =HLOOKUP($B69, 'UEC Rollup'!$E$179:$AH$183, 5, FALSE) -> 100384.6211 | F69: =HLOOKUP($B69, 'UEC Rollup'!$E$157:$AH$161, 5, FALSE) -> 128421.256 | G69: =HLOOKUP($B69, 'UEC Rollup'!$E$200:$AH$204, 5, FALSE) -> 125013.7767 | H69: NA | I69: =HLOOKUP($B69, 'UEC Rollup'!$E$129:$AH$133, 5, FALSE) -> 3217.159077 | J69: =HLOOKUP($B69, 'UEC Rollup'!$E$172:$AH$176, 5, FALSE) -> 3194.443109 | K69: =HLOOKUP($B69, 'UEC Rollup'!$E$150:$AH$154, 5, FALSE) -> 131708.9897 | L69: =HLOOKUP($B69, 'UEC Rollup'!$E$193:$AH$197, 5, FALSE) -> 131535.1032 | M69: NA | N69: 379565612.4 | O69: 320672961.2 | R69: 1.691423387e+10 | S69: 1.646543823e+10 | U69: 2015 | V69: 1930.848616 | W69: 1879.616236 | Z69: 2015 | AA69: 51.23237956 | AB69: 230.0581444 | AC69: 6.722905385
B70: 2016 | C70: NA | D70: =HLOOKUP($B70, 'UEC Rollup'!$E$136:$AH$140, 5, FALSE) -> 117981.6115 | E70: =HLOOKUP($B70, 'UEC Rollup'!$E$179:$AH$183, 5, FALSE) -> 78188.41968 | F70: =HLOOKUP($B70, 'UEC Rollup'!$E$157:$AH$161, 5, FALSE) -> 128540.0101 | G70: =HLOOKUP($B70, 'UEC Rollup'!$E$200:$AH$204, 5, FALSE) -> 124077.9407 | H70: NA | I70: =HLOOKUP($B70, 'UEC Rollup'!$E$129:$AH$133, 5, FALSE) -> 3238.379866 | J70: =HLOOKUP($B70, 'UEC Rollup'!$E$172:$AH$176, 5, FALSE) -> 3215.505957 | K70: =HLOOKUP($B70, 'UEC Rollup'!$E$150:$AH$154, 5, FALSE) -> 131004.7744 | L70: =HLOOKUP($B70, 'UEC Rollup'!$E$193:$AH$197, 5, FALSE) -> 130809.0696 | M70: NA | N70: 382069275.4 | O70: 251415329.3 | R70: 1.683935503e+10 | S70: 1.625480263e+10 | U70: 2016 | V70: 1922.300802 | W70: 1855.571077 | Z70: 2016 | AA70: 66.72972524 | AB70: 296.7878696 | AC70: 14.91483403
B71: 2017 | C71: NA | D71: =HLOOKUP($B71, 'UEC Rollup'!$E$136:$AH$140, 5, FALSE) -> 117981.6115 | E71: =HLOOKUP($B71, 'UEC Rollup'!$E$179:$AH$183, 5, FALSE) -> 78188.41968 | F71: =HLOOKUP($B71, 'UEC Rollup'!$E$157:$AH$161, 5, FALSE) -> 128650.3477 | G71: =HLOOKUP($B71, 'UEC Rollup'!$E$200:$AH$204, 5, FALSE) -> 123118.0299 | H71: NA | I71: =HLOOKUP($B71, 'UEC Rollup'!$E$129:$AH$133, 5, FALSE) -> 3256.274978 | J71: =HLOOKUP($B71, 'UEC Rollup'!$E$172:$AH$176, 5, FALSE) -> 3233.255824 | K71: =HLOOKUP($B71, 'UEC Rollup'!$E$150:$AH$154, 5, FALSE) -> 130260.7364 | L71: =HLOOKUP($B71, 'UEC Rollup'!$E$193:$AH$197, 5, FALSE) -> 130043.182 | M71: NA | N71: 384180569.5 | O71: 252803163.3 | R71: 1.675808903e+10 | S71: 1.603744524e+10 | U71: 2017 | V71: 1913.023862 | W71: 1830.758589 | Z71: 2017 | AA71: 82.26527297 | AB71: 379.0531426 | AC71: 14.9974208
B72: 2018 | C72: NA | D72: =HLOOKUP($B72, 'UEC Rollup'!$E$136:$AH$140, 5, FALSE) -> 117981.6115 | E72: =HLOOKUP($B72, 'UEC Rollup'!$E$179:$AH$183, 5, FALSE) -> 78188.41968 | F72: =HLOOKUP($B72, 'UEC Rollup'!$E$157:$AH$161, 5, FALSE) -> 128736.4173 | G72: =HLOOKUP($B72, 'UEC Rollup'!$E$200:$AH$204, 5, FALSE) -> 122126.6134 | H72: NA | I72: =HLOOKUP($B72, 'UEC Rollup'!$E$129:$AH$133, 5, FALSE) -> 3257.187982 | J72: =HLOOKUP($B72, 'UEC Rollup'!$E$172:$AH$176, 5, FALSE) -> 3234.153442 | K72: =HLOOKUP($B72, 'UEC Rollup'!$E$150:$AH$154, 5, FALSE) -> 129481.3088 | L72: =HLOOKUP($B72, 'UEC Rollup'!$E$193:$AH$197, 5, FALSE) -> 129241.8936 | M72: NA | N72: 384288287.2 | O72: 252873346.7 | R72: 1.66689598e+10 | S72: 1.581311374e+10 | U72: 2018 | V72: 1902.849292 | W72: 1805.149971 | Z72: 2018 | AA72: 97.69932173 | AB72: 476.7524643 | AC72: 15.00170554
B73: 2019 | C73: NA | D73: =HLOOKUP($B73, 'UEC Rollup'!$E$136:$AH$140, 5, FALSE) -> 117981.6115 | E73: =HLOOKUP($B73, 'UEC Rollup'!$E$179:$AH$183, 5, FALSE) -> 78188.41968 | F73: =HLOOKUP($B73, 'UEC Rollup'!$E$157:$AH$161, 5, FALSE) -> 128797.6741 | G73: =HLOOKUP($B73, 'UEC Rollup'!$E$200:$AH$204, 5, FALSE) -> 121108.2981 | H73: NA | I73: =HLOOKUP($B73, 'UEC Rollup'!$E$129:$AH$133, 5, FALSE) -> 3238.910938 | J73: =HLOOKUP($B73, 'UEC Rollup'!$E$172:$AH$176, 5, FALSE) -> 3216.001249 | K73: =HLOOKUP($B73, 'UEC Rollup'!$E$150:$AH$154, 5, FALSE) -> 128659.3543 | L73: =HLOOKUP($B73, 'UEC Rollup'!$E$193:$AH$197, 5, FALSE) -> 128398.2059 | M73: NA | N73: 382131932.1 | O73: 251454055.4 | R73: 1.657102559e+10 | S73: 1.558171543e+10 | U73: 2019 | V73: 1891.669587 | W73: 1778.734639 | Z73: 2019 | AA73: 112.9349487 | AB73: 589.687413 | AC73: 14.91756584
B74: 2020 | C74: NA | D74: =HLOOKUP($B74, 'UEC Rollup'!$E$136:$AH$140, 5, FALSE) -> 117981.6115 | E74: =HLOOKUP($B74, 'UEC Rollup'!$E$179:$AH$183, 5, FALSE) -> 78188.41968 | F74: =HLOOKUP($B74, 'UEC Rollup'!$E$157:$AH$161, 5, FALSE) -> 128828.3435 | G74: =HLOOKUP($B74, 'UEC Rollup'!$E$200:$AH$204, 5, FALSE) -> 120064.251 | H74: NA | I74: =HLOOKUP($B74, 'UEC Rollup'!$E$129:$AH$133, 5, FALSE) -> 3193.129371 | J74: =HLOOKUP($B74, 'UEC Rollup'!$E$172:$AH$176, 5, FALSE) -> 3170.534786 | K74: =HLOOKUP($B74, 'UEC Rollup'!$E$150:$AH$154, 5, FALSE) -> 127781.827 | L74: =HLOOKUP($B74, 'UEC Rollup'!$E$193:$AH$197, 5, FALSE) -> 127499.2237 | M74: NA | N74: 376730549 | O74: 247899104.5 | R74: 1.64619211e+10 | S74: 1.534202935e+10 | U74: 2020 | V74: 1879.214738 | W74: 1751.373214 | Z74: 2020 | AA74: 127.8415241 | AB74: 717.5289371 | AC74: 14.70678591
B75: 2021 | C75: NA | D75: =HLOOKUP($B75, 'UEC Rollup'!$E$136:$AH$140, 5, FALSE) -> 117981.6115 | E75: =HLOOKUP($B75, 'UEC Rollup'!$E$179:$AH$183, 5, FALSE) -> 78188.41968 | F75: =HLOOKUP($B75, 'UEC Rollup'!$E$157:$AH$161, 5, FALSE) -> 128908.5304 | G75: =HLOOKUP($B75, 'UEC Rollup'!$E$200:$AH$204, 5, FALSE) -> 119053.6671 | H75: NA | I75: =HLOOKUP($B75, 'UEC Rollup'!$E$129:$AH$133, 5, FALSE) -> 3200.35577 | J75: =HLOOKUP($B75, 'UEC Rollup'!$E$172:$AH$176, 5, FALSE) -> 3177.705463 | K75: =HLOOKUP($B75, 'UEC Rollup'!$E$150:$AH$154, 5, FALSE) -> 126827.8188 | L75: =HLOOKUP($B75, 'UEC Rollup'!$E$193:$AH$197, 5, FALSE) -> 126524.2407 | M75: NA | N75: 377583131.2 | O75: 248459768.3 | R75: 1.634918774e+10 | S75: 1.509931692e+10 | U75: 2021 | V75: 1866.345632 | W75: 1723.666315 | Z75: 2021 | AA75: 142.6793174 | AB75: 860.2082545 | AC75: 14.74010992
B76: 2022 | C76: NA | D76: =HLOOKUP($B76, 'UEC Rollup'!$E$136:$AH$140, 5, FALSE) -> 117981.6115 | E76: =HLOOKUP($B76, 'UEC Rollup'!$E$179:$AH$183, 5, FALSE) -> 78188.41968 | F76: =HLOOKUP($B76, 'UEC Rollup'!$E$157:$AH$161, 5, FALSE) -> 129000.0808 | G76: =HLOOKUP($B76, 'UEC Rollup'!$E$200:$AH$204, 5, FALSE) -> 118035.9435 | H76: NA | I76: =HLOOKUP($B76, 'UEC Rollup'!$E$129:$AH$133, 5, FALSE) -> 3227.307275 | J76: =HLOOKUP($B76, 'UEC Rollup'!$E$172:$AH$176, 5, FALSE) -> 3204.479404 | K76: =HLOOKUP($B76, 'UEC Rollup'!$E$150:$AH$154, 5, FALSE) -> 125853.5818 | L76: =HLOOKUP($B76, 'UEC Rollup'!$E$193:$AH$197, 5, FALSE) -> 125529.1512 | M76: NA | N76: 380762913.3 | O76: 250553180.5 | R76: 1.623512222e+10 | S76: 1.485524627e+10 | U76: 2022 | V76: 1853.324455 | W76: 1695.804369 | Z76: 2022 | AA76: 157.520086 | AB76: 1017.728341 | AC76: 14.86412474
B77: =B76+1 -> 2023 | C77: NA | D77: =HLOOKUP($B77, 'UEC Rollup'!$E$136:$AH$140, 5, FALSE) -> 117981.6115 | E77: =HLOOKUP($B77, 'UEC Rollup'!$E$179:$AH$183, 5, FALSE) -> 78188.41968 | F77: =HLOOKUP($B77, 'UEC Rollup'!$E$157:$AH$161, 5, FALSE) -> 129086.5977 | G77: =HLOOKUP($B77, 'UEC Rollup'!$E$200:$AH$204, 5, FALSE) -> 116995.7802 | H77: NA | I77: =HLOOKUP($B77, 'UEC Rollup'!$E$129:$AH$133, 5, FALSE) -> 3256.354667 | J77: =HLOOKUP($B77, 'UEC Rollup'!$E$172:$AH$176, 5, FALSE) -> 3233.333095 | K77: =HLOOKUP($B77, 'UEC Rollup'!$E$150:$AH$154, 5, FALSE) -> 124884.657 | L77: =HLOOKUP($B77, 'UEC Rollup'!$E$193:$AH$197, 5, FALSE) -> 124539.3914 | M77: NA | N77: 384189971.3 | O77: 252809205 | R77: 1.612093547e+10 | S77: 1.461097787e+10 | U77: 2023 | V77: 1840.289437 | W77: 1667.919848 | Z77: 2023 | AA77: 172.3695886 | AB77: 1190.097929 | AC77: 14.99780437
B78: 2024 | C78: NA | D78: =HLOOKUP($B78, 'UEC Rollup'!$E$136:$AH$140, 5, FALSE) -> 117981.6115 | E78: =HLOOKUP($B78, 'UEC Rollup'!$E$179:$AH$183, 5, FALSE) -> 78188.41968 | F78: =HLOOKUP($B78, 'UEC Rollup'!$E$157:$AH$161, 5, FALSE) -> 129163.6498 | G78: =HLOOKUP($B78, 'UEC Rollup'!$E$200:$AH$204, 5, FALSE) -> 115931.2334 | H78: NA | I78: =HLOOKUP($B78, 'UEC Rollup'!$E$129:$AH$133, 5, FALSE) -> 3284.48851 | J78: =HLOOKUP($B78, 'UEC Rollup'!$E$172:$AH$176, 5, FALSE) -> 3261.289978 | K78: =HLOOKUP($B78, 'UEC Rollup'!$E$150:$AH$154, 5, FALSE) -> 123922.6379 | L78: =HLOOKUP($B78, 'UEC Rollup'!$E$193:$AH$197, 5, FALSE) -> 123556.6635 | M78: NA | N78: 387509247.5 | O78: 254995109.5 | R78: 1.600630021e+10 | S78: 1.436650426e+10 | U78: 2024 | V78: 1827.20322 | W78: 1640.011902 | Z78: 2024 | AA78: 187.1913182 | AB78: 1377.289247 | AC78: 15.1271847
B79: 2025 | C79: NA | D79: =HLOOKUP($B79, 'UEC Rollup'!$E$136:$AH$140, 5, FALSE) -> 117981.6115 | E79: =HLOOKUP($B79, 'UEC Rollup'!$E$179:$AH$183, 5, FALSE) -> 78188.41968 | F79: =HLOOKUP($B79, 'UEC Rollup'!$E$157:$AH$161, 5, FALSE) -> 129231.2101 | G79: =HLOOKUP($B79, 'UEC Rollup'!$E$200:$AH$204, 5, FALSE) -> 114843.7684 | H79: NA | I79: =HLOOKUP($B79, 'UEC Rollup'!$E$129:$AH$133, 5, FALSE) -> 3308.399364 | J79: =HLOOKUP($B79, 'UEC Rollup'!$E$172:$AH$176, 5, FALSE) -> 3285.039157 | K79: =HLOOKUP($B79, 'UEC Rollup'!$E$150:$AH$154, 5, FALSE) -> 122973.8708 | L79: =HLOOKUP($B79, 'UEC Rollup'!$E$193:$AH$197, 5, FALSE) -> 122587.3468 | M79: NA | N79: 390330288.6 | O79: 256852020.3 | R79: 1.589206213e+10 | S79: 1.412278274e+10 | U79: 2025 | V79: 1814.162344 | W79: 1612.18981 | Z79: 2025 | AA79: 201.9725336 | AB79: 1579.261781 | AC79: 15.23724524
B80: =B79+1 -> 2026 | C80: NA | D80: =HLOOKUP($B80, 'UEC Rollup'!$E$136:$AH$140, 5, FALSE) -> 117981.6115 | E80: =HLOOKUP($B80, 'UEC Rollup'!$E$179:$AH$183, 5, FALSE) -> 78188.41968 | F80: =HLOOKUP($B80, 'UEC Rollup'!$E$157:$AH$161, 5, FALSE) -> 129289.2633 | G80: =HLOOKUP($B80, 'UEC Rollup'!$E$200:$AH$204, 5, FALSE) -> 113735.7246 | H80: NA | I80: =HLOOKUP($B80, 'UEC Rollup'!$E$129:$AH$133, 5, FALSE) -> 3331.216899 | J80: =HLOOKUP($B80, 'UEC Rollup'!$E$172:$AH$176, 5, FALSE) -> 3307.712758 | K80: =HLOOKUP($B80, 'UEC Rollup'!$E$150:$AH$154, 5, FALSE) -> 122047.0557 | L80: =HLOOKUP($B80, 'UEC Rollup'!$E$193:$AH$197, 5, FALSE) -> 121640.1497 | M80: NA | N80: 393022338.1 | O80: 258624833.3 | R80: 1.577937392e+10 | S80: 1.388111032e+10 | U80: 2026 | V80: 1801.298393 | W80: 1584.601635 | Z80: 2026 | AA80: 216.696758 | AB80: 1795.958539 | AC80: 15.34218091
B81: 2027 | C81: NA | D81: =HLOOKUP($B81, 'UEC Rollup'!$E$136:$AH$140, 5, FALSE) -> 117981.6115 | E81: =HLOOKUP($B81, 'UEC Rollup'!$E$179:$AH$183, 5, FALSE) -> 78188.41968 | F81: =HLOOKUP($B81, 'UEC Rollup'!$E$157:$AH$161, 5, FALSE) -> 129346.206 | G81: =HLOOKUP($B81, 'UEC Rollup'!$E$200:$AH$204, 5, FALSE) -> 112616.3644 | H81: NA | I81: =HLOOKUP($B81, 'UEC Rollup'!$E$129:$AH$133, 5, FALSE) -> 3359.954683 | J81: =HLOOKUP($B81, 'UEC Rollup'!$E$172:$AH$176, 5, FALSE) -> 3336.266854 | K81: =HLOOKUP($B81, 'UEC Rollup'!$E$150:$AH$154, 5, FALSE) -> 121145.0621 | L81: =HLOOKUP($B81, 'UEC Rollup'!$E$193:$AH$197, 5, FALSE) -> 120718.0191 | M81: NA | N81: 396412868.2 | O81: 260857432.9 | R81: 1.566965415e+10 | S81: 1.364291646e+10 | U81: 2027 | V81: 1788.773305 | W81: 1557.410554 | Z81: 2027 | AA81: 231.3627502 | AB81: 2027.321289 | AC81: 15.47436475
B82: 2028 | C82: NA | D82: =HLOOKUP($B82, 'UEC Rollup'!$E$136:$AH$140, 5, FALSE) -> 117981.6115 | E82: =HLOOKUP($B82, 'UEC Rollup'!$E$179:$AH$183, 5, FALSE) -> 78188.41968 | F82: =HLOOKUP($B82, 'UEC Rollup'!$E$157:$AH$161, 5, FALSE) -> 129404.4641 | G82: =HLOOKUP($B82, 'UEC Rollup'!$E$200:$AH$204, 5, FALSE) -> 111487.9123 | H82: NA | I82: =HLOOKUP($B82, 'UEC Rollup'!$E$129:$AH$133, 5, FALSE) -> 3398.346507 | J82: =HLOOKUP($B82, 'UEC Rollup'!$E$172:$AH$176, 5, FALSE) -> 3374.416864 | K82: =HLOOKUP($B82, 'UEC Rollup'!$E$150:$AH$154, 5, FALSE) -> 120278.4093 | L82: =HLOOKUP($B82, 'UEC Rollup'!$E$193:$AH$197, 5, FALSE) -> 119831.4598 | M82: NA | N82: 400942397.5 | O82: 263840321.9 | R82: 1.55645631e+10 | S82: 1.340958876e+10 | U82: 2028 | V82: 1776.77661 | W82: 1530.774972 | Z82: 2028 | AA82: 246.0016378 | AB82: 2273.322927 | AC82: 15.65092187
B83: 2029 | C83: NA | D83: =HLOOKUP($B83, 'UEC Rollup'!$E$136:$AH$140, 5, FALSE) -> 117981.6115 | E83: =HLOOKUP($B83, 'UEC Rollup'!$E$179:$AH$183, 5, FALSE) -> 78188.41968 | F83: =HLOOKUP($B83, 'UEC Rollup'!$E$157:$AH$161, 5, FALSE) -> 129454.2242 | G83: =HLOOKUP($B83, 'UEC Rollup'!$E$200:$AH$204, 5, FALSE) -> 110344.2393 | H83: NA | I83: =HLOOKUP($B83, 'UEC Rollup'!$E$129:$AH$133, 5, FALSE) -> 3432.813983 | J83: =HLOOKUP($B83, 'UEC Rollup'!$E$172:$AH$176, 5, FALSE) -> 3408.644802 | K83: =HLOOKUP($B83, 'UEC Rollup'!$E$150:$AH$154, 5, FALSE) -> 119461.142 | L83: =HLOOKUP($B83, 'UEC Rollup'!$E$193:$AH$197, 5, FALSE) -> 118994.4822 | M83: NA | N83: 405008925.8 | O83: 266516550.3 | R83: 1.546474947e+10 | S83: 1.318184885e+10 | U83: 2029 | V83: 1765.382359 | W83: 1504.777266 | Z83: 2029 | AA83: 260.6050934 | AB83: 2533.92802 | AC83: 15.80963191
B84: 2030 | C84: NA | D84: =HLOOKUP($B84, 'UEC Rollup'!$E$136:$AH$140, 5, FALSE) -> 117981.6115 | E84: =HLOOKUP($B84, 'UEC Rollup'!$E$179:$AH$183, 5, FALSE) -> 78188.41968 | F84: =HLOOKUP($B84, 'UEC Rollup'!$E$157:$AH$161, 5, FALSE) -> 129498.98 | G84: =HLOOKUP($B84, 'UEC Rollup'!$E$200:$AH$204, 5, FALSE) -> 109190.7621 | H84: NA | I84: =HLOOKUP($B84, 'UEC Rollup'!$E$129:$AH$133, 5, FALSE) -> 3471.074526 | J84: =HLOOKUP($B84, 'UEC Rollup'!$E$172:$AH$176, 5, FALSE) -> 3446.650649 | K84: =HLOOKUP($B84, 'UEC Rollup'!$E$150:$AH$154, 5, FALSE) -> 118692.9275 | L84: =HLOOKUP($B84, 'UEC Rollup'!$E$193:$AH$197, 5, FALSE) -> 118206.7851 | M84: NA | N84: 409522966.3 | O84: 269488167.4 | R84: 1.537061305e+10 | S84: 1.296017122e+10 | U84: 2030 | V84: 1754.636192 | W84: 1479.4716 | Z84: 2030 | AA84: 275.1645922 | AB84: 2809.092612 | AC84: 15.98570764
B85: 2031 | C85: NA | D85: =HLOOKUP($B85, 'UEC Rollup'!$E$136:$AH$140, 5, FALSE) -> 117981.6115 | E85: =HLOOKUP($B85, 'UEC Rollup'!$E$179:$AH$183, 5, FALSE) -> 78188.41968 | F85: =HLOOKUP($B85, 'UEC Rollup'!$E$157:$AH$161, 5, FALSE) -> 129511.067 | G85: =HLOOKUP($B85, 'UEC Rollup'!$E$200:$AH$204, 5, FALSE) -> 108011.7637 | H85: NA | I85: =HLOOKUP($B85, 'UEC Rollup'!$E$129:$AH$133, 5, FALSE) -> 3484.831567 | J85: =HLOOKUP($B85, 'UEC Rollup'!$E$172:$AH$176, 5, FALSE) -> 3460.32436 | K85: =HLOOKUP($B85, 'UEC Rollup'!$E$150:$AH$154, 5, FALSE) -> 117980.541 | L85: =HLOOKUP($B85, 'UEC Rollup'!$E$193:$AH$197, 5, FALSE) -> 117475.1607 | M85: NA | N85: 411146044.2 | O85: 270557293.3 | R85: 1.527978576e+10 | S85: 1.274328632e+10 | U85: 2031 | V85: 1744.267781 | W85: 1454.71305 | Z85: 2031 | AA85: 289.5547307 | AB85: 3098.647343 | AC85: 16.04894417
B86: =B85+1 -> 2032 | C86: NA | D86: =HLOOKUP($B86, 'UEC Rollup'!$E$136:$AH$140, 5, FALSE) -> 117981.6115 | E86: =HLOOKUP($B86, 'UEC Rollup'!$E$179:$AH$183, 5, FALSE) -> 78188.41968 | F86: =HLOOKUP($B86, 'UEC Rollup'!$E$157:$AH$161, 5, FALSE) -> 129520.0715 | G86: =HLOOKUP($B86, 'UEC Rollup'!$E$200:$AH$204, 5, FALSE) -> 106834.5571 | H86: NA | I86: =HLOOKUP($B86, 'UEC Rollup'!$E$129:$AH$133, 5, FALSE) -> 3502.202405 | J86: =HLOOKUP($B86, 'UEC Rollup'!$E$172:$AH$176, 5, FALSE) -> 3477.598436 | K86: =HLOOKUP($B86, 'UEC Rollup'!$E$150:$AH$154, 5, FALSE) -> 117302.3141 | L86: =HLOOKUP($B86, 'UEC Rollup'!$E$193:$AH$197, 5, FALSE) -> 116778.1441 | M86: NA | N86: 413195483.6 | O86: 271907926 | R86: 1.519300411e+10 | S86: 1.253194077e+10 | U86: 2032 | V86: 1734.3612 | W86: 1430.586846 | Z86: 2032 | AA86: 303.774354 | AB86: 3402.421697 | AC86: 16.12871663
B87: =B86+1 -> 2033 | C87: NA | D87: =HLOOKUP($B87, 'UEC Rollup'!$E$136:$AH$140, 5, FALSE) -> 117981.6115 | E87: =HLOOKUP($B87, 'UEC Rollup'!$E$179:$AH$183, 5, FALSE) -> 78188.41968 | F87: =HLOOKUP($B87, 'UEC Rollup'!$E$157:$AH$161, 5, FALSE) -> 129520.1815 | G87: =HLOOKUP($B87, 'UEC Rollup'!$E$200:$AH$204, 5, FALSE) -> 105660.5109 | H87: NA | I87: =HLOOKUP($B87, 'UEC Rollup'!$E$129:$AH$133, 5, FALSE) -> 3513.445649 | J87: =HLOOKUP($B87, 'UEC Rollup'!$E$172:$AH$176, 5, FALSE) -> 3488.767475 | K87: =HLOOKUP($B87, 'UEC Rollup'!$E$150:$AH$154, 5, FALSE) -> 116664.3744 | L87: =HLOOKUP($B87, 'UEC Rollup'!$E$193:$AH$197, 5, FALSE) -> 116121.8822 | M87: NA | N87: 414521979.7 | O87: 272781215.5 | R87: 1.511039095e+10 | S87: 1.23268174e+10 | U87: 2033 | V87: 1724.930473 | W87: 1407.170936 | Z87: 2033 | AA87: 317.7595371 | AB87: 3720.181234 | AC87: 16.18045253
B88: =B87+1 -> 2034 | C88: NA | D88: =HLOOKUP($B88, 'UEC Rollup'!$E$136:$AH$140, 5, FALSE) -> 117981.6115 | E88: =HLOOKUP($B88, 'UEC Rollup'!$E$179:$AH$183, 5, FALSE) -> 78188.41968 | F88: =HLOOKUP($B88, 'UEC Rollup'!$E$157:$AH$161, 5, FALSE) -> 129517.6381 | G88: =HLOOKUP($B88, 'UEC Rollup'!$E$200:$AH$204, 5, FALSE) -> 104497.4892 | H88: NA | I88: =HLOOKUP($B88, 'UEC Rollup'!$E$129:$AH$133, 5, FALSE) -> 3527.787395 | J88: =HLOOKUP($B88, 'UEC Rollup'!$E$172:$AH$176, 5, FALSE) -> 3503.02349 | K88: =HLOOKUP($B88, 'UEC Rollup'!$E$150:$AH$154, 5, FALSE) -> 116062.843 | L88: =HLOOKUP($B88, 'UEC Rollup'!$E$193:$AH$197, 5, FALSE) -> 115502.5514 | M88: NA | N88: 416214042 | O88: 273895870.8 | R88: 1.50321853e+10 | S88: 1.212827568e+10 | U88: 2034 | V88: 1716.002888 | W88: 1384.506356 | Z88: 2034 | AA88: 331.4965317 | AB88: 4051.677766 | AC88: 16.24636658
B89: Total | M89: NA | N89: =SUM(N59:N88) -> 1.242450875e+10 | O89: =SUM(O59:O88) -> 9407751847 | R89: =SUM(R59:R88) -> 4.885413239e+11 | S89: =SUM(S59:S88) -> 4.530486267e+11 | U89: Total | V89: =SUM(V59:V88) -> 55769.55752 | W89: =SUM(W59:W88) -> 51717.87976 | Z89: Total | AA89: =SUM(AA59:AA88) -> 4051.677766

Sheet Proposed Data
B1: = current value
A3: Product: Commercial/Industrial Liquid-Immersed and Dry Type Distribution Transformers
B4: Input | C4: Description | D4: Regional Value Different from DOE NIA? | E4: Regional Value | F4: DOE Value | G4: Notes | H4: Data Source | I4: Is this the best available data? If no, is there an alternative data source?
A5: Usage | B5: 6P Baseline device efficiency | C5: 6th Plan baseline device efficiency tiers | D5: Only DOE Data Currently Available | E5: Only DOE Data Currently Available | F5: DOE Assumes least efficient transformer available on the market pre-standards case. Baseline Efficiency levels for Liquid-Immersed Transformers are on the order of 98.91% to 99.42% (TSL-1). Baseline Low-Voltage Dry Type Transformer efficiencies are on the order of 98% to 98.6% (TSL-2). Baseline Medium-Voltage Dry Type Transformer efficiencies are on the order of 98.63% to 99.22% (TSL-2). | G5: Distribution Transformers not highlighted in DEE or DESTD. Therefore code writeup does not reflect the baseline used although we could potentially use the % savings from the Industrial tool to see if the baseline is consistent with DOE as the % savings in the industrial tool is documented as sourced from DOE rulemaking. | H5: PNW Industrial Tool Supply Curves (Section Updated 2009), DOE Distribution Transformers NIA (2010), http://www1.eere.energy.gov/buildings/appliance_standards/commercial/pdfs/dt_prelim_tsdch9.pdf
B6: Standard device efficiency | C6: Device efficiency after standard took effect | D6: No | E6: 1.5% Savings for RET (Retrofit), 0.4% Savings for NEW (Replacements). Industrial tool workbook does not document TSL efficiency levels used to generate savings results. | F6: TSL-1 for Liquid-Immersed and TSL-2 for Dry-Type Transformers. Standard case Efficiency levels for Liquid-Immersed Transformers are on the order of 98.95% to 99.49% (TSL-1). Standard case Low-Voltage Dry Type Transformer efficiencies are on the order of 98% to 99.02% (TSL-2). Standard case Medium-Voltage Dry Type Transformer efficiencies are on the order of 98.69% to 99.37% (TSL-2). | G6: Industrial tool documentation shows that the savings are consistent as per U.S. DOE Rulemaking. DOE has more efficiency tiers and product classes. | H6: PNW Industrial Tool Supply Curves (Section Updated 2009), DOE Distribution Transformers NIA (2010), http://www1.eere.energy.gov/buildings/appliance_standards/commercial/pdfs/dt_prelim_tsdch9.pdf
A8: Market | B8: Basecase & Standard Case product class distribution | C8: Number of product class(s) and distribution for both cases of No Standard and Standard in Effect | D8: Only DOE Data Currently Available | E8: Only DOE Data Currently Available, Industrial Tool does not outline the breakouts by product classes. No documentation found in Industrial tool. | F8: HVOLT 2009 Market Share estimates used to distinguish between different equipment classes and size categories within each equipment class. Trends in electricity consumption from EIA national retail sales data to project market share trends for liquid-immersed and dry-type transformers <-we can update this if we have regional sales data. | G8: Key DOE assumption behind market share methodology is that transformer capacity market shares follow the relative electricity consumption of the end users of the electricity that passes through the transformers. DOE also assumed that the relative market share within each transformer type (liquid-immersed or dry-type) will be constant over time. | H8: DOE Distribution Transformers NIA (2010), http://www1.eere.energy.gov/buildings/appliance_standards/commercial/pdfs/dt_prelim_tsdch9.pdf
B9: Precase efficiency level distribution | C9: Efficiency distribution of each product class if standard did not exist | D9: Only DOE Data Currently Available | E9: Only DOE Data Currently Available, Industrial Tool does not outline the breakouts by product classes. Only % Savings for RET & NEW Scenarios which is documented as per DOE rulemaking. No documentation found in industrial tool. | F9: DOE Assumes least efficient transformer available on the market pre-standards case. | H9: DOE Distribution Transformers NIA (2010), http://www1.eere.energy.gov/buildings/appliance_standards/commercial/pdfs/dt_prelim_tsdch9.pdf
B10: Post case efficiency level distribution | C10: Efficiency distribution of each product class factoring in the effective standard | D10: Only DOE Data Currently Available | E10: Only DOE Data Currently Available, Industrial Tool does not outline the breakouts by product classes. Only % Savings for RET & NEW Scenarios which is documented as per DOE rulemaking. No documentation found in industrial tool. | F10: 100% at standard level for in-service transformers from the Basecase and Standard Case product class distribution that are purchased in or after the year the standard has taken effect. | G10: DOE 100% compliance at standard effective year for units purchased in or after the year the standard has taken effect. | H10: DOE Distribution Transformers NIA (2010), http://www1.eere.energy.gov/buildings/appliance_standards/commercial/pdfs/dt_prelim_tsdch9.pdf
A12: Stock Model | B12: Shipments Data | C12: Estimated shipments in MVA/year broken out by Liquid Immersed and Dry Type Distribution Transformers | D12: Only DOE Data Currently Available | E12: Only DOE Data Currently Available | F12: From NIA, 2001 & 2009 years established from HVOLT (contractor) estimates of shipments. Backcast generated from BEA. Forecast generated from EIA & AEO 2011 US Electricity Sales and Revenue data (Utility) <- we can update this if we have regional sales data. | H12: DOE Distribution Transformers NIA (2010), http://www1.eere.energy.gov/buildings/appliance_standards/commercial/pdfs/dt_prelim_tsdch9.pdf
B13: Product Lifetime (NEW) | C13: Lifetime of Product (non-early replacement, new capacity) | D13: Yes | E13: 10 | F13: Variable | G13: DOE assumes that the transformers shipments growth is equal to the forecasted growth in electricity consumption (Incremental C&I Sales) from EIA & AEO 2011 US Electricity Sales and Revenue data (Utility) <- we can update this if we have regional sales data. | H13: PNW Industrial Tool Supply Curves (Section Updated 2009), DOE Distribution Transformers NIA (2010), http://www1.eere.energy.gov/buildings/appliance_standards/commercial/pdfs/dt_prelim_tsdch9.pdf
B14: Product Lifetime (RET) | C14: Lifetime of Product (early replacement) | D14: No | E14: 32 | F14: 32 | G14: Industrial Supply tool follows U.S. DOE Rulemaking with 32 year average transformer lifetime. | H14: PNW Industrial Tool Supply Curves (Section Updated 2009), DOE Distribution Transformers NIA (2010), http://www1.eere.energy.gov/buildings/appliance_standards/commercial/pdfs/dt_prelim_tsdch9.pdf
B15: Turnover assumption | C15: Product retirement rate | D15: Yes | E15: 1/lifetime | F15: Survival & Retirement functions (Weibull Curve adjusted to fit 32 year average lifetime assumption with maximum vintage of 60 years) | G15: The 1/lifetime assumption is consistent with the council's modeling practice. However, we can consider using survival and retirement functions. | H15: PNW Industrial Tool Supply Curves (Section Updated 2009), DOE Distribution Transformers NIA (2010)

Sheet Loss Calc Schematic

Sheet Market Share Data 2012
B2: Market Share Data for Different Design Lines/Product Class
B4: Market Share by Size Category (2009) - Liquid-Immersed Type | H4: Market share for Liquid-Immersed type Transformers
B5: kVA | C5: Units | D5: Capacity in KVA | E5: % mkt share | H5: size category kVA | J5: 10 | K5: 15 | L5: 25 | M5: 30 | N5: 37.5 | O5: 45 | P5: 50 | Q5: 75 | R5: 100 | S5: 112.5 | T5: 150 | U5: 167 | V5: 225 | W5: 250 | X5: 300 | Y5: 333 | Z5: 500 | AA5: 667 | AB5: 750 | AC5: 833 | AD5: 1000 | AE5: 1500 | AF5: 2000 | AG5: 2500 | AH5: All
B6: 10 | C6: 58090.47619 | D6: =+C6*B6 -> 580904.7619 | E6: =+D6/$D$30 -> 0.01070597287 | H6: 2009 Units By Design Line
B7: 15 | C7: 169083.3333 | D7: =+C7*B7 -> 2536250 | E7: 0.04674264265 | H7: DL1 | J7: =J15*J$12 -> 2904.675887 | K7: =K15*K$12 -> 25362.39889 | L7: 85253.85953 | M7: 0 | N7: 8350.703013 | O7: 0 | P7: 53754.66744 | Q7: 11171.48703 | R7: 6911.112772 | S7: 0 | T7: 0 | U7: 1612.169637 | V7: 0 | W7: 0 | X7: 0 | Y7: 0 | Z7: 0 | AA7: 0 | AB7: 0 | AC7: 0 | AD7: 0 | AE7: 0 | AF7: 0 | AG7: 0
B8: 25 | C8: 243583.3333 | D8: 6089583.333 | E8: 0.1122299528 | H8: DL2 | J8: =J16*J$12 -> 55185.8003 | K8: 143720.9344 | L8: 158329.4738 | M8: 0 | N8: 33404.05889 | O8: 0 | P8: 65700.09446 | Q8: 18227.72299 | R8: 11767.45866 | S8: 0 | T8: 0 | U8: 2744.97322 | V8: 0 | W8: 0 | X8: 0 | Y8: 0 | Z8: 0 | AA8: 0 | AB8: 0 | AC8: 0 | AD8: 0 | AE8: 0 | AF8: 0 | AG8: 0
B9: 30 | C9: 0 | D9: 0 | E9: 0 | H9: DL3 | J9: =J17*J$12 -> 0 | K9: 0 | L9: 0 | M9: 0 | N9: 0 | O9: 0 | P9: 0 | Q9: 0 | R9: 0 | S9: 0 | T9: 0 | U9: 0 | V9: 0 | W9: 1904.761905 | X9: 0 | Y9: 238 | Z9: 238 | AA9: 5 | AB9: 0 | AC9: 0 | AD9: 0 | AE9: 0 | AF9: 0 | AG9: 0
B10: 37.5 | C10: 41754.7619 | D10: 1565803.571 | E10: 0.02885748519 | H10: DL4 | J10: 0 | K10: 0 | L10: 0 | M10: 0 | N10: 0 | O10: 1635.294118 | P10: 0 | Q10: 1207.512674 | R10: 0 | S10: 898.0392157 | T10: 8445.098039 | U10: 0 | V10: 2239.215686 | W10: 0 | X10: 8437 | Y10: 0 | Z10: 7563 | AA10: 0 | AB10: 0 | AC10: 0 | AD10: 0 | AE10: 0 | AF10: 0 | AG10: 0
B11: 45 | C11: 1635.294118 | D11: 73588.23529 | E11: 0.001356218269 | H11: DL5 | J11: 0 | K11: 0 | L11: 0 | M11: 0 | N11: 0 | O11: 0 | P11: 0 | Q11: 0 | R11: 0 | S11: 0 | T11: 0 | U11: 0 | V11: 0 | W11: 0 | X11: 0 | Y11: 0 | Z11: 0 | AA11: 0 | AB11: 3982 | AC11: 0 | AD11: 3606 | AE11: 3345 | AF11: 2839 | AG11: 2571
B12: 50 | C12: 119454.7619 | D12: 5972738.095 | E12: 0.1100765155 | H12: Total | J12: 58090.47619 | K12: 169083.3333 | L12: 243583.3333 | M12: 0 | N12: 41754.7619 | O12: 1635.294118 | P12: 119454.7619 | Q12: 30606.72269 | R12: 18678.57143 | S12: 898.0392157 | T12: 8445.098039 | U12: 4357.142857 | V12: 2239.215686 | W12: 1904.761905 | X12: =SUM(X7:X11) -> 8437 | Y12: 238 | Z12: 7801 | AA12: 5 | AB12: 3982 | AC12: 0 | AD12: 3606 | AE12: 3345 | AF12: 2839 | AG12: 2571
B13: 75 | C13: 30606.72269 | D13: 2295504.202 | E13: 0.04230573982 | H13: By size category kVA | J13: =+D6/$D$30 -> 0.01070597287 | K13: =+D7/$D$30 -> 0.04674264265 | L13: =+D8/$D$30 -> 0.1122299528 | M13: =+D9/$D$30 -> 0 | N13: =+D10/$D$30 -> 0.02885748519 | O13: =+D11/$D$30 -> 0.001356218269 | P13: =+D12/$D$30 -> 0.1100765155 | Q13: =+D13/$D$30 -> 0.04230573982 | R13: =+D14/$D$30 -> 0.03442427953 | S13: =+D15/$D$30 -> 0.001861954339 | T13: =+D16/$D$30 -> 0.02334625135 | U13: =+D17/$D$30 -> 0.01341033023 | V13: =+D18/$D$30 -> 0.009285379279 | W13: =+D19/$D$30 -> 0.008776106955 | X13: =+D20/$D$30 -> 0.04615044903 | Y13: =+D21/$D$30 -> 0.001461221808 | Z13: =+D22/$D$30 -> 0.07188405958 | AA13: =+D23/$D$30 -> 5.853663339e-05 | AB13: =+D24/$D$30 -> 0.05504554967 | AC13: =+D25/$D$30 -> 0 | AD13: =+D26/$D$30 -> 0.06645577931 | AE13: =+D27/$D$30 -> 0.09247435522 | AF13: =+D28/$D$30 -> 0.1046524942 | AG13: =+D29/$D$30 -> 0.1184387258 | AH13: =SUM(J13:AG13) -> 1
B14: 100 | C14: 18678.57143 | D14: 1867857.143 | E14: 0.03442427953 | H14: By Design Line
B15: 112.5 | C15: 898.0392157 | D15: 101029.4118 | E15: 0.001861954339 | H15: DL1 | J15: 0.05000261794 | K15: 0.149999402 | L15: 0.3499987391 | M15: 0 | N15: 0.1999940278 | O15: 0 | P15: 0.4500002058 | Q15: 0.3650010862 | R15: 0.3700022134 | S15: 0 | T15: 0 | U15: 0.3700061463 | V15: 0 | W15: 0 | X15: =X7/X$12 -> 0 | Y15: 0 | Z15: 0 | AA15: 0 | AB15: 0 | AC15: 0 | AD15: 0 | AE15: 0 | AF15: 0 | AG15: 0
B16: 150 | C16: 8445.098039 | D16: 1266764.706 | E16: 0.02334625135 | H16: DL2 | J16: 0.9499973821 | K16: 0.850000598 | L16: 0.6500012609 | M16: 0 | N16: 0.8000059722 | O16: 0 | P16: 0.5499997942 | Q16: 0.5955463828 | R16: 0.6299977866 | S16: 0 | T16: 0 | U16: 0.6299938537 | V16: 0 | W16: 0 | X16: 0 | Y16: 0 | Z16: 0 | AA16: 0 | AB16: 0 | AC16: 0 | AD16: 0 | AE16: 0 | AF16: 0 | AG16: 0
B17: 167 | C17: 4357.142857 | D17: 727642.8571 | E17: =+D17/$D$30 -> 0.01341033023 | H17: DL3 | J17: 0 | K17: 0 | L17: 0 | M17: 0 | N17: 0 | O17: 0 | P17: 0 | Q17: 0 | R17: 0 | S17: 0 | T17: 0 | U17: 0 | V17: 0 | W17: 1 | X17: 0 | Y17: 1 | Z17: 0.03050890911 | AA17: 1 | AB17: 0 | AC17: 0 | AD17: 0 | AE17: 0 | AF17: 0 | AG17: 0
B18: 225 | C18: 2239.215686 | D18: 503823.5294 | E18: 0.009285379279 | H18: DL4 | J18: 0 | K18: 0 | L18: 0 | M18: 0 | N18: 0 | O18: 1 | P18: 0 | Q18: 0.03945253096 | R18: 0 | S18: 1 | T18: 1 | U18: 0 | V18: 1 | W18: 0 | X18: 1 | Y18: 0 | Z18: 0.9694910909 | AA18: 0 | AB18: 0 | AC18: 0 | AD18: 0 | AE18: 0 | AF18: 0 | AG18: 0
B19: 250 | C19: 1904.761905 | D19: 476190.4762 | E19: 0.008776106955 | H19: DL5 | J19: 0 | K19: 0 | L19: 0 | M19: 0 | N19: 0 | O19: 0 | P19: 0 | Q19: 0 | R19: 0 | S19: 0 | T19: 0 | U19: 0 | V19: 0 | W19: 0 | X19: 0 | Y19: 0 | Z19: 0 | AA19: 0 | AB19: 1 | AC19: 0 | AD19: 1 | AE19: 1 | AF19: 1 | AG19: 1
B20: 300 | C20: 8347.058824 | D20: 2504117.647 | E20: 0.04615044903 | J20: =SUM(J15:J19) -> 1 | K20: =SUM(K15:K19) -> 1 | L20: 1 | M20: 0 | N20: 1 | O20: 1 | P20: 1 | Q20: 1 | R20: 1 | S20: 1 | T20: 1 | U20: 1 | V20: 1 | W20: 1 | X20: 1 | Y20: 1 | Z20: 1 | AA20: 1 | AB20: 1 | AC20: 0 | AD20: 1 | AE20: 1 | AF20: 1 | AG20: 1
B21: 333 | C21: 238.0952381 | D21: 79285.71429 | E21: 0.001461221808 | H21: By Size and Design Line | J21: 10 | K21: 15 | L21: 25 | M21: 30 | N21: 37.5 | O21: 45 | P21: 50 | Q21: 75 | R21: 100 | S21: 113 | T21: 150 | U21: 167 | V21: 225 | W21: 250 | X21: 300 | Y21: 333 | Z21: 500 | AA21: 667 | AB21: 750 | AC21: 833 | AD21: 1000 | AE21: 1500 | AF21: 2000 | AG21: 2500 | AH21: All
B22: 500 | C22: 7800.840336 | D22: 3900420.168 | E22: 0.07188405958 | H22: DL1 | I22: 2 | J22: =+J$13*J15 -> 0.0005353266713 | K22: =+K$13*K15 -> 0.007011368448 | L22: 0.03928034195 | M22: 0 | N22: 0.005771324695 | O22: 0 | P22: 0.04953445463 | Q22: 0.01544164099 | R22: 0.01273705962 | S22: 0 | T22: 0 | U22: 0.00496190461 | V22: 0 | W22: 0 | X22: 0 | Y22: 0 | Z22: 0 | AA22: 0 | AB22: 0 | AC22: 0 | AD22: 0 | AE22: 0 | AF22: 0 | AG22: 0 | AH22: =SUM(J22:AG22) -> 0.1352734216
B23: 667 | C23: 4.761904762 | D23: 3176.190476 | E23: 5.853663339e-05 | H23: DL2 | I23: 3 | J23: =+J$13*J16 -> 0.0101706462 | K23: 0.03973127421 | L23: 0.0729496108 | M23: 0 | N23: 0.02308616049 | O23: 0 | P23: 0.06054206087 | Q23: 0.02519503032 | R23: 0.02168721991 | S23: 0 | T23: 0 | U23: 0.008448425623 | V23: 0 | W23: 0 | X23: 0 | Y23: 0 | Z23: 0 | AA23: 0 | AB23: 0 | AC23: 0 | AD23: 0 | AE23: 0 | AF23: 0 | AG23: 0 | AH23: =SUM(J23:AG23) -> 0.2618104284
B24: 750 | C24: 3982.352941 | D24: 2986764.706 | E24: 0.05504554967 | H24: DL3 | I24: 4 | J24: 0 | K24: 0 | L24: 0 | M24: 0 | N24: 0 | O24: 0 | P24: 0 | Q24: 0 | R24: 0 | S24: 0 | T24: 0 | U24: 0 | V24: 0 | W24: 0.008776106955 | X24: 0 | Y24: 0.001461221808 | Z24: 0.002193104241 | AA24: 5.853663339e-05 | AB24: 0 | AC24: 0 | AD24: 0 | AE24: 0 | AF24: 0 | AG24: 0 | AH24: =SUM(J24:AG24) -> 0.01248896964
B25: 833 | C25: 0 | D25: 0 | E25: 0 | H25: DL4 | I25: 5 | J25: 0 | K25: 0 | L25: 0 | M25: 0 | N25: 0 | O25: 0.001356218269 | P25: 0 | Q25: 0.00166906851 | R25: 0 | S25: 0.001861954339 | T25: 0.02334625135 | U25: 0 | V25: 0.009285379279 | W25: 0 | X25: 0.04615044903 | Y25: 0 | Z25: 0.06969095534 | AA25: 0 | AB25: 0 | AC25: 0 | AD25: 0 | AE25: 0 | AF25: 0 | AG25: 0 | AH25: =SUM(J25:AG25) -> 0.1533602761
B26: 1000 | C26: 3605.882353 | D26: 3605882.353 | E26: 0.06645577931 | H26: DL5 | I26: 6 | J26: 0 | K26: 0 | L26: 0 | M26: 0 | N26: 0 | O26: 0 | P26: 0 | Q26: 0 | R26: 0 | S26: 0 | T26: 0 | U26: 0 | V26: 0 | W26: 0 | X26: 0 | Y26: 0 | Z26: 0 | AA26: 0 | AB26: 0.05504554967 | AC26: 0 | AD26: 0.06645577931 | AE26: 0.09247435522 | AF26: 0.1046524942 | AG26: 0.1184387258 | AH26: =SUM(J26:AG26) -> 0.4370669042
B27: 1500 | C27: 3345.098039 | D27: 5017647.059 | E27: 0.09247435522 | AH27: =SUM(J22:AG26) -> 1
B28: 2000 | C28: 2839.215686 | D28: 5678431.373 | E28: 0.1046524942
B29: 2500 | C29: 2570.588235 | D29: 6426470.588 | E29: 0.1184387258
B30: Totals | C30: =SUM(C6:C29) -> 733465.4062 | D30: =SUM(D6:D29) -> 54259876.12 | E30: =SUM(E6:E29) -> 1 | H30: market share for Dry type Transformers
H31: size category kVA | K31: 15 | L31: 25 | M31: 30 | N31: 37.5 | O31: 45 | P31: 50 | Q31: 75 | R31: 100 | S31: 112.5 | T31: 150 | U31: 167 | V31: 225 | W31: 250 | X31: 300 | Y31: 333 | Z31: 500 | AA31: 667 | AB31: 750 | AC31: 833 | AD31: 1000 | AE31: 1500 | AF31: 2000 | AG31: 2500 | AH31: All
H32: 2009 Units By Design Line
H33: DL6 | K33: =K$48*K51 -> 1948.295714 | L33: =L$48*L51 -> 5967.031746 | M33: 0 | N33: 2716.238095 | O33: 0 | P33: 3315.555556 | Q33: 767.2772482 | R33: 728.5353049 | S33: 0 | T33: 0 | U33: 0 | V33: 0 | W33: 8.581453634 | X33: 0 | Y33: 0 | Z33: 0 | AA33: 0 | AB33: 0 | AC33: 0 | AD33: 0 | AE33: 0 | AF33: 0 | AG33: 0
H34: DL7 | K34: =K$48*K52 -> 19699.43444 | L34: 0 | M34: 42045.09524 | N34: 0 | O34: 44318.11111 | P34: 0 | Q34: 59106.62805 | R34: 0 | S34: 19283.08865 | T34: 12374.68254 | U34: 0 | V34: 0 | W34: 0 | X34: 0 | Y34: 0 | Z34: 0 | AA34: 0 | AB34: 0 | AC34: 0 | AD34: 0 | AE34: 0 | AF34: 0 | AG34: 0
H35: DL8 | K35: =K$48*K53 -> 0 | L35: 0 | M35: 0 | N35: 0 | O35: 0 | P35: 0 | Q35: 0 | R35: 0 | S35: 0 | T35: 0 | U35: 0 | V35: 7411.492063 | W35: 0 | X35: 3930.857778 | Y35: 0 | Z35: 1698.241728 | AA35: 0 | AB35: 374.1055718 | AC35: 0 | AD35: 6.064448269 | AE35: 0 | AF35: 0 | AG35: 0
H36: DL9 | K36: 0 | L36: 0 | M36: 0 | N36: 0 | O36: 0 | P36: 0 | Q36: 4.847419438 | R36: 0 | S36: 15.96943159 | T36: 0 | U36: 0 | V36: 0 | W36: 0 | X36: 40.11079365 | Y36: 0 | Z36: 58.93441614 | AA36: 0 | AB36: 0 | AC36: 0 | AD36: 0 | AE36: 0 | AF36: 0 | AG36: 0
H37: DL10 | K37: 0 | L37: 0 | M37: 0 | N37: 0 | O37: 0 | P37: 0 | Q37: 0 | R37: 0 | S37: 0 | T37: 0 | U37: 0 | V37: 0 | W37: 0 | X37: 0 | Y37: 0 | Z37: 0 | AA37: 0 | AB37: 71.25820416 | AC37: 0 | AD37: 97.03117231 | AE37: 97.23898059 | AF37: 121.0670315 | AG37: 120.9443099
H38: DL11 | K38: 0 | L38: 0 | M38: 0 | N38: 0 | O38: 0 | P38: 0 | Q38: 2.077465473 | R38: 0 | S38: 8.783187377 | T38: 0 | U38: 0 | V38: 0 | W38: 0 | X38: 40.11079365 | Y38: 0 | Z38: 116.3179266 | AA38: 0 | AB38: 0 | AC38: 0 | AD38: 0 | AE38: 0 | AF38: 0 | AG38: 0
H39: DL12 | K39: 0 | L39: 0 | M39: 0 | N39: 0 | O39: 0 | P39: 0 | Q39: 0 | R39: 0 | S39: 0 | T39: 0 | U39: 0 | V39: 0 | W39: 0 | X39: 0 | Y39: 0 | Z39: 0 | AA39: 0 | AB39: 157.6587767 | AC39: 0 | AD39: 388.1246892 | AE39: 474.0400304 | AF39: 696.1354309 | AG39: 786.1380145
H40: DL13A | K40: 0 | L40: 0 | M40: 0 | N40: 0 | O40: 0 | P40: 0 | Q40: 0 | R40: 0 | S40: 0 | T40: 0 | U40: 0 | V40: 0 | W40: 0 | X40: 0 | Y40: 0 | Z40: 0.3801269841 | AA40: 0 | AB40: 0 | AC40: 0 | AD40: 0 | AE40: 0 | AF40: 0 | AG40: 0
H41: DL13B | K41: 0 | L41: 0 | M41: 0 | N41: 0 | O41: 0 | P41: 0 | Q41: 0 | R41: 0 | S41: 0 | T41: 0 | U41: 0 | V41: 0 | W41: 0 | X41: 0 | Y41: 0 | Z41: 3.497137236 | AA41: 0 | AB41: 4.45363776 | AC41: 0 | AD41: 12.12889654 | AE41: 38.89559223 | AF41: 67.79753762 | AG41: 91.91767554
H42: PC5A | K42: 0 | L42: 0 | M42: 0 | N42: 0 | O42: 0 | P42: 0 | Q42: 13.84976982 | R42: 15.68429074 | S42: 0 | T42: 0 | U42: 0 | V42: 0 | W42: 0 | X42: 0 | Y42: 0 | Z42: 0 | AA42: 0 | AB42: 0 | AC42: 0 | AD42: 0 | AE42: 0 | AF42: 0 | AG42: 0
H43: PC5B | K43: 0 | L43: 0 | M43: 0 | N43: 0 | O43: 0 | P43: 0 | Q43: 0 | R43: 0 | S43: 0 | T43: 0 | U43: 0 | V43: 0 | W43: 12.87218045 | X43: 0 | Y43: 0 | Z43: 9.305434128 | AA43: 0 | AB43: 0 | AC43: 0 | AD43: 0 | AE43: 0 | AF43: 0 | AG43: 0
H44: PC7A | K44: 0 | L44: 0 | M44: 0 | N44: 0 | O44: 0 | P44: 0 | Q44: 17.31221228 | R44: 19.60536343 | S44: 0 | T44: 0 | U44: 0 | V44: 0 | W44: 0 | X44: 0 | Y44: 0 | Z44: 0 | AA44: 0 | AB44: 0 | AC44: 0 | AD44: 0 | AE44: 0 | AF44: 0 | AG44: 0
H45: PC7B | K45: 0 | L45: 0 | M45: 0 | N45: 0 | O45: 0 | P45: 0 | Q45: 0 | R45: 0 | S45: 0 | T45: 0 | U45: 0 | V45: 0 | W45: 17.16290727 | X45: 0 | Y45: 0 | Z45: 11.63179266 | AA45: 0 | AB45: 0 | AC45: 0 | AD45: 0 | AE45: 0 | AF45: 0 | AG45: 0
H46: PC9 | K46: 0 | L46: 0 | M46: =M$48*M64 -> 0 | N46: 0 | O46: 0 | P46: 0 | Q46: 3.462442456 | R46: 3.921072685 | S46: 0 | T46: 0 | U46: 0 | V46: 0 | W46: 2.145363409 | X46: 0 | Y46: 0 | Z46: 2.326358532 | AA46: 0 | AB46: 0 | AC46: 0 | AD46: 0 | AE46: 0 | AF46: 0 | AG46: 0
H47: No DL/PC | K47: =K$48*K65 -> 0 | L47: 0 | M47: 0 | N47: 0 | O47: 0 | P47: 0 | Q47: 118.4501564 | R47: 0 | S47: 0 | T47: 0 | U47: 0 | V47: 0 | W47: 0 | X47: 0 | Y47: 0 | Z47: 0 | AA47: 0 | AB47: 0 | AC47: 0 | AD47: 0 | AE47: 0 | AF47: 0 | AG47: 0
H48: Total | K48: 21647.73016 | L48: 5967.031746 | M48: 42045.09524 | N48: 2716.238095 | O48: 44318.11111 | P48: 3315.555556 | Q48: 60033.90476 | R48: 767.7460317 | S48: 19307.84127 | T48: 12374.68254 | U48: 17 | V48: 7411.492063 | W48: 40.76190476 | X48: 4011.079365 | Y48: 36 | Z48: 1900.634921 | AA48: 0 | AB48: 607.4761905 | AC48: 0 | AD48: 503.3492063 | AE48: 610.1746032 | AF48: 885 | AG48: 999
K49: =+D55/$D$78 -> 0.01436940929 | L49: =+D56/$D$78 -> 0.006601363498 | M49: =+D57/$D$78 -> 0.05581769338 | N49: =+D58/$D$78 -> 0.004507486078 | O49: =+D59/$D$78 -> 0.08825291237 | P49: =+D60/$D$78 -> 0.007336038537 | Q49: =+D61/$D$78 -> 0.1992476215 | R49: =+D62/$D$78 -> 0.00339744841 | S49: =+D63/$D$78 -> 0.09612171982 | T49: =+D64/$D$78 -> 0.08214111916 | U49: =+D65/$D$78 -> 0.0001256321184 | V49: =+D66/$D$78 -> 0.07379440856 | W49: =+D67/$D$78 -> 0.0004509514306 | X49: =+D68/$D$78 -> 0.05324977785 | Y49: =+D69/$D$78 -> 0.0005304958913 | Z49: =+D70/$D$78 -> 0.04205367936 | AA49: =+D71/$D$78 -> 0 | AB49: =+D72/$D$78 -> 0.02016163808 | AC49: =+D73/$D$78 -> 0 | AD49: =+D74/$D$78 -> 0.02227433149 | AE49: =+D75/$D$78 -> 0.04050239239 | AF49: =+D76/$D$78 -> 0.07832647044 | AG49: =+D77/$D$78 -> 0.1105199774 | AH49: =SUM(J49:AG49) -> 0.999782567
H50: By Design Line/PC | K50: 15 | L50: 25 | M50: 30 | N50: 37.5 | O50: 45 | P50: 50 | Q50: 75 | R50: 100 | S50: 112.5 | T50: 150 | U50: 167 | V50: 225 | W50: 250 | X50: 300 | Y50: 333 | Z50: 500 | AA50: 667 | AB50: 750 | AC50: 833 | AD50: 1000 | AE50: 1500 | AF50: 2000 | AG50: 2500 | AH50: All
H51: DL6 | K51: 0.09 | L51: 1 | M51: 0 | N51: 1 | O51: 0 | P51: 1 | Q51: 0.01278073201 | R51: 0.948927477 | S51: 0 | T51: 0 | U51: 0 | V51: 0 | W51: 0.2105263158 | X51: 0 | Y51: 0 | Z51: 0 | AA51: 0 | AB51: 0 | AC51: 0 | AD51: 0 | AE51: 0 | AF51: 0 | AG51: 0
B52: Market Share by Size Category (2009) - Dry Type | H52: DL7 | K52: 0.91 | L52: 0 | M52: 1 | N52: 0 | O52: 1 | P52: 0 | Q52: 0.9845541162 | R52: 0 | S52: 0.9987180017 | T52: 1 | U52: 0 | V52: 0 | W52: 0 | X52: 0 | Y52: 0 | Z52: 0 | AA52: 0 | AB52: 0 | AC52: 0 | AD52: 0 | AE52: 0 | AF52: 0 | AG52: 0
B53: kVA | C53: Units | D53: Capacity in KVA | E53: % mkt share | H53: DL8 | K53: 0 | L53: 0 | M53: 0 | N53: 0 | O53: 0 | P53: 0 | Q53: 0 | R53: 0 | S53: 0 | T53: 0 | U53: 0 | V53: 1 | W53: 0 | X53: 0.98 | Y53: 0 | Z53: 0.8935128519 | AA53: 0 | AB53: 0.6158357771 | AC53: 0 | AD53: 0.01204819277 | AE53: 0 | AF53: 0 | AG53: 0
B54: 10 | C54: 491.3492063 | D54: =+C54*B54 -> 4913.492063 | E54: =+D54/$D$30 -> 9.055479693e-05 | H54: DL9 | K54: 0 | L54: 0 | M54: 0 | N54: 0 | O54: 0 | P54: 0 | Q54: 8.07446968e-05 | R54: 0 | S54: 0.0008270956536 | T54: 0 | U54: 0 | V54: 0 | W54: 0 | X54: 0.01 | Y54: 0 | Z54: 0.03100775194 | AA54: 0 | AB54: 0 | AC54: 0 | AD54: 0 | AE54: 0 | AF54: 0 | AG54: 0
B55: 15 | C55: 21647.73016 | D55: 324715.9524 | E55: =+D55/$D$78 -> 0.01436940929 | H55: DL10 | K55: 0 | L55: 0 | M55: 0 | N55: 0 | O55: 0 | P55: 0 | Q55: 0 | R55: 0 | S55: 0 | T55: 0 | U55: 0 | V55: 0 | W55: 0 | X55: 0 | Y55: 0 | Z55: 0 | AA55: 0 | AB55: 0.1173020528 | AC55: 0 | AD55: 0.1927710843 | AE55: 0.1593625498 | AF55: 0.1367989056 | AG55: 0.1210653753
B56: 25 | C56: 5967.031746 | D56: 149175.7937 | E56: 0.006601363498 | H56: DL11 | K56: 0 | L56: 0 | M56: 0 | N56: 0 | O56: 0 | P56: 0 | Q56: 3.460487006e-05 | R56: 0 | S56: 0.0004549026095 | T56: 0 | U56: 0 | V56: 0 | W56: 0 | X56: 0.01 | Y56: 0 | Z56: 0.0611995104 | AA56: 0 | AB56: 0 | AC56: 0 | AD56: 0 | AE56: 0 | AF56: 0 | AG56: 0
B57: 30 | C57: 42045.09524 | D57: 1261352.857 | E57: 0.05581769338 | H57: DL12 | K57: 0 | L57: 0 | M57: 0 | N57: 0 | O57: 0 | P57: 0 | Q57: 0 | R57: 0 | S57: 0 | T57: 0 | U57: 0 | V57: 0 | W57: 0 | X57: 0 | Y57: 0 | Z57: 0 | AA57: 0 | AB57: 0.2595307918 | AC57: 0 | AD57: 0.7710843373 | AE57: 0.7768924303 | AF57: 0.7865937073 | AG57: 0.7869249395
B58: 37.5 | C58: 2716.238095 | D58: 101858.9286 | E58: 0.004507486078 | H58: DL13A | K58: 0 | L58: 0 | M58: 0 | N58: 0 | O58: 0 | P58: 0 | Q58: 0 | R58: 0 | S58: 0 | T58: 0 | U58: 0 | V58: 0 | W58: 0 | X58: 0 | Y58: 0 | Z58: 0.0002 | AA58: 0 | AB58: 0 | AC58: 0 | AD58: 0 | AE58: 0 | AF58: 0 | AG58: 0
B59: 45 | C59: 44318.11111 | D59: 1994315 | E59: 0.08825291237 | H59: DL13B | K59: 0 | L59: 0 | M59: 0 | N59: 0 | O59: 0 | P59: 0 | Q59: 0 | R59: 0 | S59: 0 | T59: 0 | U59: 0 | V59: 0 | W59: 0 | X59: 0 | Y59: 0 | Z59: =0.203998368013056%-0.02% -> 0.00183998368 | AA59: 0 | AB59: 0.007331378299 | AC59: 0 | AD59: 0.02409638554 | AE59: 0.06374501992 | AF59: 0.07660738714 | AG59: 0.09200968523
B60: 50 | C60: 3315.555556 | D60: 165777.7778 | E60: 0.007336038537 | H60: PC5A | K60: 0 | L60: 0 | M60: 0 | N60: 0 | O60: 0 | P60: 0 | Q60: 0.0002306991337 | R60: 0.02042900919 | S60: 0 | T60: 0 | U60: 0 | V60: 0 | W60: 0 | X60: 0 | Y60: 0 | Z60: 0 | AA60: 0 | AB60: 0 | AC60: 0 | AD60: 0 | AE60: 0 | AF60: 0 | AG60: 0
B61: 75 | C61: 60033.90476 | D61: 4502542.857 | E61: 0.1992476215 | H61: PC5B | K61: 0 | L61: 0 | M61: 0 | N61: 0 | O61: 0 | P61: 0 | Q61: 0 | R61: 0 | S61: 0 | T61: 0 | U61: 0 | V61: 0 | W61: 0.3157894737 | X61: 0 | Y61: 0 | Z61: 0.004895960832 | AA61: 0 | AB61: 0 | AC61: 0 | AD61: 0 | AE61: 0 | AF61: 0 | AG61: 0
B62: 100 | C62: 767.7460317 | D62: 76774.60317 | E62: 0.00339744841 | H62: PC7A | K62: 0 | L62: 0 | M62: 0 | N62: 0 | O62: 0 | P62: 0 | Q62: 0.0002883739172 | R62: 0.02553626149 | S62: 0 | T62: 0 | U62: 0 | V62: 0 | W62: 0 | X62: 0 | Y62: 0 | Z62: 0 | AA62: 0 | AB62: 0 | AC62: 0 | AD62: 0 | AE62: 0 | AF62: 0 | AG62: 0
B63: 112.5 | C63: 19307.84127 | D63: 2172132.143 | E63: 0.09612171982 | H63: PC7B | K63: 0 | L63: 0 | M63: 0 | N63: 0 | O63: 0 | P63: 0 | Q63: 0 | R63: 0 | S63: 0 | T63: 0 | U63: 0 | V63: 0 | W63: 0.4210526316 | X63: 0 | Y63: 0 | Z63: 0.00611995104 | AA63: 0 | AB63: 0 | AC63: 0 | AD63: 0 | AE63: 0 | AF63: 0 | AG63: 0
B64: 150 | C64: 12374.68254 | D64: 1856202.381 | E64: 0.08214111916 | H64: PC9 | K64: 0 | L64: 0 | M64: 0 | N64: 0 | O64: 0 | P64: 0 | Q64: 5.767478343e-05 | R64: 0.005107252298 | S64: 0 | T64: 0 | U64: 0 | V64: 0 | W64: 0.05263157895 | X64: 0 | Y64: 0 | Z64: 0.001223990208 | AA64: 0 | AB64: 0 | AC64: 0 | AD64: 0 | AE64: 0 | AF64: 0 | AG64: 0
B65: 167 | C65: 17 | D65: 2839 | E65: 0.0001256321184 | H65: No DL/PC | K65: 0 | L65: 0 | M65: 0 | N65: 0 | O65: 0 | P65: 0 | Q65: 0.001973054341 | R65: 0 | S65: 0 | T65: 0 | U65: 0 | V65: 0 | W65: 0 | X65: 0 | Y65: 0 | Z65: 0 | AA65: 0 | AB65: 0 | AC65: 0 | AD65: 0 | AE65: 0 | AF65: 0 | AG65: 0
B66: 225 | C66: 7411.492063 | D66: 1667585.714 | E66: 0.07379440856 | K66: =SUM(K51:K65) -> 1 | L66: =SUM(L51:L65) -> 1 | M66: =SUM(M51:M55) -> 1 | N66: =SUM(N51:N65) -> 1 | O66: =SUM(O51:O55) -> 1 | P66: =SUM(P51:P65) -> 1 | Q66: 1 | R66: 1 | S66: 1 | T66: 1 | U66: 0 | V66: 1 | W66: 1 | X66: 1 | Y66: 0 | Z66: 1 | AA66: 0 | AB66: 1 | AC66: 0 | AD66: 1 | AE66: 1 | AF66: 1 | AG66: 1
B67: 250 | C67: 40.76190476 | D67: 10190.47619 | E67: 0.0004509514306 | H67: By Size and Design Line | K67: 15 | L67: 25 | M67: 30 | N67: 37.5 | O67: 45 | P67: 50 | Q67: 75 | R67: 100 | S67: 112.5 | T67: 150 | U67: 167 | V67: 225 | W67: 250 | X67: 300 | Y67: 333 | Z67: 500 | AA67: 667 | AB67: 750 | AC67: 833 | AD67: 1000 | AE67: 1500 | AF67: 2000 | AG67: 2500 | AH67: All
B68: 300 | C68: 4011.079365 | D68: 1203323.81 | E68: 0.05324977785 | H68: DL6 | I68: 2 | K68: =+K$49*K51 -> 0.001293246836 | L68: 0.006601363498 | M68: 0 | N68: 0.004507486078 | O68: 0 | P68: 0.007336038537 | Q68: 0.002546530453 | R68: 0.003223932148 | S68: 0 | T68: 0 | U68: 0 | V68: 0 | W68: 9.493714327e-05 | X68: 0 | Y68: 0 | Z68: 0 | AA68: 0 | AB68: 0 | AC68: 0 | AD68: 0 | AE68: 0 | AF68: 0 | AG68: 0 | AH68: =SUM(J68:AG68) -> 0.02560353469
B69: 333 | C69: 36 | D69: 11988 | E69: 0.0005304958913 | H69: DL7 | I69: 3 | K69: 0.01307616245 | L69: 0 | M69: 0.05581769338 | N69: 0 | O69: 0.08825291237 | P69: 0 | Q69: 0.1961700659 | R69: 0 | S69: 0.09599849194 | T69: 0.08214111916 | U69: 0 | V69: 0 | W69: 0 | X69: 0 | Y69: 0 | Z69: 0 | AA69: 0 | AB69: 0 | AC69: 0 | AD69: 0 | AE69: 0 | AF69: 0 | AG69: 0 | AH69: 0.5314564452
B70: 500 | C70: 1900.634921 | D70: 950317.4603 | E70: 0.04205367936 | H70: DL8 | I70: 4 | K70: 0 | L70: 0 | M70: 0 | N70: 0 | O70: 0 | P70: 0 | Q70: 0 | R70: 0 | S70: 0 | T70: 0 | U70: 0 | V70: 0.07379440856 | W70: 0 | X70: 0.05218478229 | Y70: 0 | Z70: 0.03757550297 | AA70: 0 | AB70: 0.01241625806 | AC70: 0 | AD70: 0.0002683654396 | AE70: 0 | AF70: 0 | AG70: 0 | AH70: 0.1762393173
B71: 667 | C71: 0 | D71: 0 | E71: 0 | H71: DL9 | I71: 5 | K71: 0 | L71: 0 | M71: 0 | N71: 0 | O71: 0 | P71: 0 | Q71: 1.608818878e-05 | R71: 0 | S71: 7.950185668e-05 | T71: 0 | U71: 0 | V71: 0 | W71: 0 | X71: 0.0005324977785 | Y71: 0 | Z71: 0.001303990058 | AA71: 0 | AB71: 0 | AC71: 0 | AD71: 0 | AE71: 0 | AF71: 0 | AG71: 0 | AH71: 0.001932077882
B72: 750 | C72: 607.4761905 | D72: 455607.1429 | E72: 0.02016163808 | H72: DL10 | I72: 6 | K72: 0 | L72: 0 | M72: 0 | N72: 0 | O72: 0 | P72: 0 | Q72: 0 | R72: 0 | S72: 0 | T72: 0 | U72: 0 | V72: 0 | W72: 0 | X72: 0 | Y72: 0 | Z72: 0 | AA72: 0 | AB72: 0.002365001535 | AC72: 0 | AD72: 0.004293847034 | AE72: 0.006454564524 | AF72: 0.01071497544 | AG72: 0.01338014254 | AH72: 0.03720853106
B73: 833 | C73: 0 | D73: 0 | E73: 0 | H73: DL11 | I73: 7 | K73: 0 | L73: 0 | M73: 0 | N73: 0 | O73: 0 | P73: 0 | Q73: 6.89493805e-06 | R73: 0 | S73: 4.372602117e-05 | T73: 0 | U73: 0 | V73: 0 | W73: 0 | X73: 0.0005324977785 | Y73: 0 | Z73: 0.002573664587 | AA73: 0 | AB73: 0 | AC73: 0 | AD73: 0 | AE73: 0 | AF73: 0 | AG73: 0 | AH73: 0.003156783325
B74: 1000 | C74: 503.3492063 | D74: 503349.2063 | E74: 0.02227433149 | H74: DL12 | I74: 8 | K74: 0 | L74: 0 | M74: 0 | N74: 0 | O74: 0 | P74: 0 | Q74: 0 | R74: 0 | S74: 0 | T74: 0 | U74: 0 | V74: 0 | W74: 0 | X74: 0 | Y74: 0 | Z74: 0 | AA74: 0 | AB74: 0.005232565895 | AC74: 0 | AD74: 0.01717538813 | AE74: 0.03146600205 | AF74: 0.06161110876 | AG74: 0.08697092649 | AH74: 0.2024559913
B75: 1500 | C75: 610.1746032 | D75: 915261.9048 | E75: 0.04050239239 | H75: DL13A | I75: 9 | K75: 0 | L75: 0 | M75: 0 | N75: 0 | O75: 0 | P75: 0 | Q75: 0 | R75: 0 | S75: 0 | T75: 0 | U75: 0 | V75: 0 | W75: 0 | X75: 0 | Y75: 0 | Z75: 8.410735871e-06 | AA75: 0 | AB75: 0 | AC75: 0 | AD75: 0 | AE75: 0 | AF75: 0 | AG75: 0 | AH75: 8.410735871e-06
B76: 2000 | C76: 885 | D76: 1770000 | E76: 0.07832647044 | H76: DL13B | I76: 10 | K76: 0 | L76: 0 | M76: 0 | N76: 0 | O76: 0 | P76: 0 | Q76: 0 | R76: 0 | S76: 0 | T76: 0 | U76: 0 | V76: 0 | W76: 0 | X76: 0 | Y76: 0 | Z76: 7.737808371e-05 | AA76: 0 | AB76: 0.0001478125959 | AC76: 0 | AD76: 0.0005367308792 | AE76: 0.00258182581 | AF76: 0.006000386244 | AG76: 0.01016890833 | AH76: =SUM(J76:AG76) -> 0.01951304194
B77: 2500 | C77: 999 | D77: 2497500 | E77: 0.1105199774 | H77: PC5A | K77: 0 | L77: 0 | M77: 0 | N77: 0 | O77: 0 | P77: 0 | Q77: 4.596625367e-05 | R77: 6.94065048e-05 | S77: 0 | T77: 0 | U77: 0 | V77: 0 | W77: 0 | X77: 0 | Y77: 0 | Z77: 0 | AA77: 0 | AB77: 0 | AC77: 0 | AD77: 0 | AE77: 0 | AF77: 0 | AG77: 0 | AH77: =SUM(J77:AG77) -> 0.0001153727585
B78: Totals | C78: =SUM(C54:C77) -> 230007.254 | D78: =SUM(D54:D77) -> 22597724.5 | E78: =SUM(E54:E77) -> 0.9998731218 | H78: PC5B | K78: 0 | L78: 0 | M78: 0 | N78: 0 | O78: 0 | P78: 0 | Q78: 0 | R78: 0 | S78: 0 | T78: 0 | U78: 0 | V78: 0 | W78: 0.0001424057149 | X78: 0 | Y78: 0 | Z78: 0.000205893167 | AA78: 0 | AB78: 0 | AC78: 0 | AD78: 0 | AE78: 0 | AF78: 0 | AG78: 0 | AH78: 0.0003482988819
H79: PC7A | K79: 0 | L79: 0 | M79: =+M$49*M62 -> 0 | N79: 0 | O79: 0 | P79: 0 | Q79: 5.745781709e-05 | R79: 8.6758131e-05 | S79: 0 | T79: 0 | U79: 0 | V79: 0 | W79: 0 | X79: 0 | Y79: 0 | Z79: 0 | AA79: 0 | AB79: 0 | AC79: 0 | AD79: 0 | AE79: 0 | AF79: 0 | AG79: 0 | AH79: 0.0001442159481
H80: PC7B | K80: =+K$49*K63 -> 0 | L80: 0 | M80: 0 | N80: 0 | O80: 0 | P80: 0 | Q80: 0 | R80: 0 | S80: 0 | T80: 0 | U80: 0 | V80: 0 | W80: 0.0001898742865 | X80: 0 | Y80: 0 | Z80: 0.0002573664587 | AA80: 0 | AB80: 0 | AC80: 0 | AD80: 0 | AE80: =+AE$49*AE63 -> 0 | AF80: 0 | AG80: 0 | AH80: 0.0004472407453
B81: The data in this worksheet comes from HVOLT | H81: PC9 | K81: 0 | L81: 0 | M81: 0 | N81: 0 | O81: 0 | P81: 0 | Q81: 1.149156342e-05 | R81: 1.73516262e-05 | S81: 0 | T81: 0 | U81: 0 | V81: 0 | W81: 2.373428582e-05 | X81: 0 | Y81: 0 | Z81: 5.147329175e-05 | AA81: 0 | AB81: 0 | AC81: 0 | AD81: 0 | AE81: 0 | AF81: 0 | AG81: 0 | AH81: 0.0001040507672
H82: No DL/PC | I82: 11 | K82: 0 | L82: 0 | M82: 0 | N82: 0 | O82: 0 | P82: 0 | Q82: 0.0003931263845 | R82: 0 | S82: 0 | T82: 0 | U82: 0 | V82: 0 | W82: 0 | X82: 0 | Y82: 0 | Z82: 0 | AA82: 0 | AB82: 0 | AC82: 0 | AD82: 0 | AE82: 0 | AF82: 0 | AG82: 0 | AH82: 0.0003931263845
AH83: =SUM(J68:AG82) -> 0.9991264389
H85: Scaling Relationships and Weights
H87: Scaling (0.75 power law) | J87: =J5^0.75 -> 5.623413252 | K87: =K5^0.75 -> 7.621991222 | L87: 11.18033989 | M87: 12.81861019 | N87: 15.15386629 | O87: 17.37438278 | P87: 18.80301547 | Q87: 25.48566367 | R87: 31.6227766 | S87: 34.54334514 | T87: 42.86160645 | U87: 46.45552296 | V87: 58.09475019 | W87: 62.87167148 | X87: 72.08434242 | Y87: 77.95306131 | Z87: 105.7371263 | AA87: 131.2485081 | AB87: 143.3164188 | AC87: 155.0542773 | AD87: 177.827941 | AE87: 241.0285257 | AF87: 299.0697562 | AG87: 353.5533906
H89: Shipment-Weighted Rescaling Factor | S89: Scaling Factor Adjustment
I90: Representative | J90: Average | K90: Base | L90: TSL1 | M90: TSL2 | N90: TSL3 | O90: TSL4 | P90: TSL5 | Q90: TSL6 | R90: TSL7 | S90: Base | T90: TSL1 | U90: TSL2 | V90: TSL3 | W90: TSL4 | X90: TSL5 | Y90: TSL6 | Z90: TSL7
I91: Capacity | J91: Capacity | K91: Scaling factor | S91: Cost or Loss per KVA Adjustment
H92: DL1 | I92: 50 | J92: =SUMPRODUCT($J$5:$AG$5,J7:AG7)/(SUM(J7:AG7)) -> 37.57873608 | K92: =SUMPRODUCT($I$117:$AF$117,$J7:$AG7)/(($I92^0.75)*SUM($J7:$AG7)) -> 0.7837075554 | L92: =SUMPRODUCT($I$118:$AF$118,$J7:$AG7)/(($I92^0.75)*SUM($J7:$AG7)) -> 0.7837075554 | M92: =SUMPRODUCT($I$119:$AF$119,$J7:$AG7)/(($I92^0.75)*SUM($J7:$AG7)) -> 0.7837075554 | N92: =SUMPRODUCT($I$120:$AF$120,$J7:$AG7)/(($I92^0.75)*SUM($J7:$AG7)) -> 0.7837075554 | O92: =SUMPRODUCT($I$121:$AF$121,$J7:$AG7)/(($I92^0.75)*SUM($J7:$AG7)) -> 0.7837075554 | P92: =SUMPRODUCT($I$122:$AF$122,$J7:$AG7)/(($I92^0.75)*SUM($J7:$AG7)) -> 0.7837075554 | Q92: =SUMPRODUCT($I$123:$AF$123,$J7:$AG7)/(($I92^0.75)*SUM($J7:$AG7)) -> 0.7837075554 | R92: =SUMPRODUCT($I$124:$AF$124,$J7:$AG7)/(($I92^0.75)*SUM($J7:$AG7)) -> 0.7837075554 | S92: =K92*$I92/$J92 -> 1.042754011 | T92: =L92*$I92/$J92 -> 1.042754011 | U92: 1.042754011 | V92: 1.042754011 | W92: 1.042754011 | X92: 1.042754011 | Y92: 1.042754011 | Z92: 1.042754011
H93: DL2 | I93: 25 | J93: =SUMPRODUCT($J$5:$AG$5,J8:AG8)/(SUM(J8:AG8)) -> 29.04593605 | K93: =SUMPRODUCT($I$117:$AF$117,$J8:$AG8)/(($I93^0.75)*SUM($J8:$AG8)) -> 1.075640395 | L93: =SUMPRODUCT($I$118:$AF$118,$J8:$AG8)/(($I93^0.75)*SUM($J8:$AG8)) -> 1.075640395 | M93: =SUMPRODUCT($I$119:$AF$119,$J8:$AG8)/(($I93^0.75)*SUM($J8:$AG8)) -> 1.075640395 | N93: =SUMPRODUCT($I$120:$AF$120,$J8:$AG8)/(($I93^0.75)*SUM($J8:$AG8)) -> 1.075640395 | O93: =SUMPRODUCT($I$121:$AF$121,$J8:$AG8)/(($I93^0.75)*SUM($J8:$AG8)) -> 1.075640395 | P93: =SUMPRODUCT($I$122:$AF$122,$J8:$AG8)/(($I93^0.75)*SUM($J8:$AG8)) -> 1.075640395 | Q93: =SUMPRODUCT($I$123:$AF$123,$J8:$AG8)/(($I93^0.75)*SUM($J8:$AG8)) -> 1.075640395 | R93: =SUMPRODUCT($I$124:$AF$124,$J8:$AG8)/(($I93^0.75)*SUM($J8:$AG8)) -> 1.075640395 | S93: =K93*$I93/$J93 -> 0.9258097186 | T93: 0.9258097186 | U93: 0.9258097186 | V93: 0.9258097186 | W93: 0.9258097186 | X93: 0.9258097186 | Y93: 0.9258097186 | Z93: 0.9258097186
H94: DL3 | I94: 500 | J94: =SUMPRODUCT($J$5:$AG$5,J9:AG9)/(SUM(J9:AG9)) -> 284.0935111 | K94: =SUMPRODUCT($I$117:$AF$117,$J9:$AG9)/(($I94^0.75)*SUM($J9:$AG9)) -> 0.6506292099 | L94: =SUMPRODUCT($I$118:$AF$118,$J9:$AG9)/(($I94^0.75)*SUM($J9:$AG9)) -> 0.6506292099 | M94: =SUMPRODUCT($I$119:$AF$119,$J9:$AG9)/(($I94^0.75)*SUM($J9:$AG9)) -> 0.6506292099 | N94: =SUMPRODUCT($I$120:$AF$120,$J9:$AG9)/(($I94^0.75)*SUM($J9:$AG9)) -> 0.6506292099 | O94: =SUMPRODUCT($I$121:$AF$121,$J9:$AG9)/(($I94^0.75)*SUM($J9:$AG9)) -> 0.6506292099 | P94: =SUMPRODUCT($I$122:$AF$122,$J9:$AG9)/(($I94^0.75)*SUM($J9:$AG9)) -> 0.6506292099 | Q94: =SUMPRODUCT($I$123:$AF$123,$J9:$AG9)/(($I94^0.75)*SUM($J9:$AG9)) -> 0.6506292099 | R94: =SUMPRODUCT($I$124:$AF$124,$J9:$AG9)/(($I94^0.75)*SUM($J9:$AG9)) -> 0.6506292099 | S94: 1.145096921 | T94: 1.145096921 | U94: 1.145096921 | V94: 1.145096921 | W94: 1.145096921 | X94: 1.145096921 | Y94: 1.145096921 | Z94: 1.145096921
H95: DL4 | I95: 150 | J95: =SUMPRODUCT($J$5:$AG$5,J10:AG10)/(SUM(J10:AG10)) -> 274.3903206 | K95: =SUMPRODUCT($I$117:$AF$117,$J10:$AG10)/(($I95^0.75)*SUM($J10:$AG10)) -> 1.526090263 | L95: =SUMPRODUCT($I$118:$AF$118,$J10:$AG10)/(($I95^0.75)*SUM($J10:$AG10)) -> 1.526090263 | M95: =SUMPRODUCT($I$119:$AF$119,$J10:$AG10)/(($I95^0.75)*SUM($J10:$AG10)) -> 1.526090263 | N95: =SUMPRODUCT($I$120:$AF$120,$J10:$AG10)/(($I95^0.75)*SUM($J10:$AG10)) -> 1.526090263 | O95: =SUMPRODUCT($I$121:$AF$121,$J10:$AG10)/(($I95^0.75)*SUM($J10:$AG10)) -> 1.526090263 | P95: =SUMPRODUCT($I$122:$AF$122,$J10:$AG10)/(($I95^0.75)*SUM($J10:$AG10)) -> 1.526090263 | Q95: =SUMPRODUCT($I$123:$AF$123,$J10:$AG10)/(($I95^0.75)*SUM($J10:$AG10)) -> 1.526090263 | R95: =SUMPRODUCT($I$124:$AF$124,$J10:$AG10)/(($I95^0.75)*SUM($J10:$AG10)) -> 1.526090263 | S95: 0.8342624438 | T95: 0.8342624438 | U95: 0.8342624438 | V95: 0.8342624438 | W95: 0.8342624438 | X95: 0.8342624438 | Y95: 0.8342624438 | Z95: 0.8342624438
H96: DL5 | I96: 1500 | J96: =SUMPRODUCT($J$5:$AG$5,J11:AG11)/(SUM(J11:AG11)) -> 1451.110567 | K96: =SUMPRODUCT($I$117:$AF$117,$J11:$AG11)/(($I96^0.75)*SUM($J11:$AG11)) -> 0.9586430329 | L96: =SUMPRODUCT($I$118:$AF$118,$J11:$AG11)/(($I96^0.75)*SUM($J11:$AG11)) -> 0.9586430329 | M96: =SUMPRODUCT($I$119:$AF$119,$J11:$AG11)/(($I96^0.75)*SUM($J11:$AG11)) -> 0.9586430329 | N96: =SUMPRODUCT($I$120:$AF$120,$J11:$AG11)/(($I96^0.75)*SUM($J11:$AG11)) -> 0.9586430329 | O96: =SUMPRODUCT($I$121:$AF$121,$J11:$AG11)/(($I96^0.75)*SUM($J11:$AG11)) -> 0.9586430329 | P96: =SUMPRODUCT($I$122:$AF$122,$J11:$AG11)/(($I96^0.75)*SUM($J11:$AG11)) -> 0.9586430329 | Q96: =SUMPRODUCT($I$123:$AF$123,$J11:$AG11)/(($I96^0.75)*SUM($J11:$AG11)) -> 0.9586430329 | R96: =SUMPRODUCT($I$124:$AF$124,$J11:$AG11)/(($I96^0.75)*SUM($J11:$AG11)) -> 0.9586430329 | S96: 0.9909407193 | T96: 0.9909407193 | U96: 0.9909407193 | V96: 0.9909407193 | W96: 0.9909407193 | X96: 0.9909407193 | Y96: 0.9909407193 | Z96: 0.9909407193
H97: DL6 | I97: 25 | J97: =SUMPRODUCT($J$5:$AG$5,J33:AG33)/(SUM(J33:AG33)) -> 37.44497668 | K97: =SUMPRODUCT($I$129:$AF$129,$J33:$AG33)/(($I97^0.75)*SUM($J33:$AG33)) -> 1.320957926 | L97: =SUMPRODUCT($I$130:$AF$130,$J33:$AG33)/(($I97^0.75)*SUM($J33:$AG33)) -> 1.320957926 | M97: =SUMPRODUCT($I$131:$AF$131,$J33:$AG33)/(($I97^0.75)*SUM($J33:$AG33)) -> 1.320957926 | N97: =SUMPRODUCT($I$132:$AF$132,$J33:$AG33)/(($I97^0.75)*SUM($J33:$AG33)) -> 1.320957926 | O97: =SUMPRODUCT($I$133:$AF$133,$J33:$AG33)/(($I97^0.75)*SUM($J33:$AG33)) -> 1.320957926 | P97: =SUMPRODUCT($I$134:$AF$134,$J33:$AG33)/(($I97^0.75)*SUM($J33:$AG33)) -> 1.320957926 | Q97: =SUMPRODUCT($I$135:$AF$135,$J33:$AG33)/(($I97^0.75)*SUM($J33:$AG33)) -> 1.320957926 | R97: =SUMPRODUCT($I$136:$AF$136,$J33:$AG33)/(($I97^0.75)*SUM($J33:$AG33)) -> 1.320957926 | S97: 0.8819326669 | T97: 0.8819326669 | U97: 0.8819326669 | V97: 0.8819326669 | W97: 0.8819326669 | X97: 0.8819326669 | Y97: 0.8819326669 | Z97: 0.8819326669
H98: DL7 | I98: 75 | J98: =SUMPRODUCT($J$5:$AG$5,J34:AG34)/(SUM(J34:AG34)) -> 61.01654696 | K98: =SUMPRODUCT($I$129:$AF$129,$J34:$AG34)/(($I98^0.75)*SUM($J34:$AG34)) -> 0.8296967874 | L98: =SUMPRODUCT($I$130:$AF$130,$J34:$AG34)/(($I98^0.75)*SUM($J34:$AG34)) -> 0.8296967874 | M98: =SUMPRODUCT($I$131:$AF$131,$J34:$AG34)/(($I98^0.75)*SUM($J34:$AG34)) -> 0.8296967874 | N98: =SUMPRODUCT($I$132:$AF$132,$J34:$AG34)/(($I98^0.75)*SUM($J34:$AG34)) -> 0.8296967874 | O98: =SUMPRODUCT($I$133:$AF$133,$J34:$AG34)/(($I98^0.75)*SUM($J34:$AG34)) -> 0.8296967874 | P98: =SUMPRODUCT($I$134:$AF$134,$J34:$AG34)/(($I98^0.75)*SUM($J34:$AG34)) -> 0.8296967874 | Q98: =SUMPRODUCT($I$135:$AF$135,$J34:$AG34)/(($I98^0.75)*SUM($J34:$AG34)) -> 0.8296967874 | R98: =SUMPRODUCT($I$136:$AF$136,$J34:$AG34)/(($I98^0.75)*SUM($J34:$AG34)) -> 0.8296967874 | S98: 1.019842357 | T98: 1.019842357 | U98: 1.019842357 | V98: 1.019842357 | W98: 1.019842357 | X98: 1.019842357 | Y98: 1.019842357 | Z98: 1.019842357
H99: DL8 | I99: 300 | J99: 296.749742 | K99: =SUMPRODUCT($I$129:$AF$129,$J35:$AG35)/(($I99^0.75)*SUM($J35:$AG35)) -> 0.9801084722 | L99: =SUMPRODUCT($I$130:$AF$130,$J35:$AG35)/(($I99^0.75)*SUM($J35:$AG35)) -> 0.9801084722 | M99: =SUMPRODUCT($I$131:$AF$131,$J35:$AG35)/(($I99^0.75)*SUM($J35:$AG35)) -> 0.9801084722 | N99: =SUMPRODUCT($I$132:$AF$132,$J35:$AG35)/(($I99^0.75)*SUM($J35:$AG35)) -> 0.9801084722 | O99: =SUMPRODUCT($I$133:$AF$133,$J35:$AG35)/(($I99^0.75)*SUM($J35:$AG35)) -> 0.9801084722 | P99: =SUMPRODUCT($I$134:$AF$134,$J35:$AG35)/(($I99^0.75)*SUM($J35:$AG35)) -> 0.9801084722 | Q99: =SUMPRODUCT($I$135:$AF$135,$J35:$AG35)/(($I99^0.75)*SUM($J35:$AG35)) -> 0.9801084722 | R99: =SUMPRODUCT($I$136:$AF$136,$J35:$AG35)/(($I99^0.75)*SUM($J35:$AG35)) -> 0.9801084722 | S99: 0.9908434619 | T99: 0.9908434619 | U99: 0.9908434619 | V99: 0.9908434619 | W99: 0.9908434619 | X99: 0.9908434619 | Y99: 0.9908434619 | Z99: 0.9908434619
H100: DL9 | I100: 300 | J100: 364.2567413 | K100: =SUMPRODUCT($I$141:$AF$141,$J36:$AG36)/(($I100^0.75)*SUM($J36:$AG36)) -> 1.134015233 | L100: =SUMPRODUCT($I$142:$AF$142,$J36:$AG36)/(($I100^0.75)*SUM($J36:$AG36)) -> 1.134015233 | M100: =SUMPRODUCT($I$143:$AF$143,$J36:$AG36)/(($I100^0.75)*SUM($J36:$AG36)) -> 1.134015233 | N100: =SUMPRODUCT($I$144:$AF$144,$J36:$AG36)/(($I100^0.75)*SUM($J36:$AG36)) -> 1.134015233 | O100: =SUMPRODUCT($I$145:$AF$145,$J36:$AG36)/(($I100^0.75)*SUM($J36:$AG36)) -> 1.134015233 | P100: =SUMPRODUCT($I$146:$AF$146,$J36:$AG36)/(($I100^0.75)*SUM($J36:$AG36)) -> 1.134015233 | Q100: =SUMPRODUCT($I$147:$AF$147,$J36:$AG36)/(($I100^0.75)*SUM($J36:$AG36)) -> 1.134015233 | R100: =SUMPRODUCT($I$148:$AF$148,$J36:$AG36)/(($I100^0.75)*SUM($J36:$AG36)) -> 1.134015233 | S100: 0.9339691795 | T100: 0.9339691795 | U100: 0.9339691795 | V100: 0.9339691795 | W100: 0.9339691795 | X100: 0.9339691795 | Y100: 0.9339691795 | Z100: 0.9339691795
H101: DL10 | I101: 1500 | J101: 1656.674614 | K101: =SUMPRODUCT($I$141:$AF$141,$J37:$AG37)/(($I101^0.75)*SUM($J37:$AG37)) -> 1.061643181 | L101: =SUMPRODUCT($I$142:$AF$142,$J37:$AG37)/(($I101^0.75)*SUM($J37:$AG37)) -> 1.061643181 | M101: =SUMPRODUCT($I$143:$AF$143,$J37:$AG37)/(($I101^0.75)*SUM($J37:$AG37)) -> 1.061643181 | N101: =SUMPRODUCT($I$144:$AF$144,$J37:$AG37)/(($I101^0.75)*SUM($J37:$AG37)) -> 1.061643181 | O101: =SUMPRODUCT($I$145:$AF$145,$J37:$AG37)/(($I101^0.75)*SUM($J37:$AG37)) -> 1.061643181 | P101: =SUMPRODUCT($I$146:$AF$146,$J37:$AG37)/(($I101^0.75)*SUM($J37:$AG37)) -> 1.061643181 | Q101: =SUMPRODUCT($I$147:$AF$147,$J37:$AG37)/(($I101^0.75)*SUM($J37:$AG37)) -> 1.061643181 | R101: =SUMPRODUCT($I$148:$AF$148,$J37:$AG37)/(($I101^0.75)*SUM($J37:$AG37)) -> 1.061643181 | S101: 0.9612417293 | T101: 0.9612417293 | U101: 0.9612417293 | V101: 0.9612417293 | W101: 0.9612417293 | X101: 0.9612417293 | Y101: 0.9612417293 | Z101: 0.9612417293
H102: DL11 | I102: 300 | J102: 426.4234994 | K102: =SUMPRODUCT($I$141:$AF$141,$J38:$AG38)/(($I102^0.75)*SUM($J38:$AG38)) -> 1.289236368 | L102: =SUMPRODUCT($I$142:$AF$142,$J38:$AG38)/(($I102^0.75)*SUM($J38:$AG38)) -> 1.289236368 | M102: =SUMPRODUCT($I$143:$AF$143,$J38:$AG38)/(($I102^0.75)*SUM($J38:$AG38)) -> 1.289236368 | N102: =SUMPRODUCT($I$144:$AF$144,$J38:$AG38)/(($I102^0.75)*SUM($J38:$AG38)) -> 1.289236368 | O102: =SUMPRODUCT($I$145:$AF$145,$J38:$AG38)/(($I102^0.75)*SUM($J38:$AG38)) -> 1.289236368 | P102: =SUMPRODUCT($I$146:$AF$146,$J38:$AG38)/(($I102^0.75)*SUM($J38:$AG38)) -> 1.289236368 | Q102: =SUMPRODUCT($I$147:$AF$147,$J38:$AG38)/(($I102^0.75)*SUM($J38:$AG38)) -> 1.289236368 | R102: =SUMPRODUCT($I$148:$AF$148,$J38:$AG38)/(($I102^0.75)*SUM($J38:$AG38)) -> 1.289236368 | S102: 0.9070112478 | T102: 0.9070112478 | U102: 0.9070112478 | V102: 0.9070112478 | W102: 0.9070112478 | X102: 0.9070112478 | Y102: 0.9070112478 | Z102: 0.9070112478
H103: DL12 | I103: 1500 | J103: 1828.484196 | K103: =SUMPRODUCT($I$141:$AF$141,$J39:$AG39)/(($I103^0.75)*SUM($J39:$AG39)) -> 1.147460094 | L103: =SUMPRODUCT($I$142:$AF$142,$J39:$AG39)/(($I103^0.75)*SUM($J39:$AG39)) -> 1.147460094 | M103: =SUMPRODUCT($I$143:$AF$143,$J39:$AG39)/(($I103^0.75)*SUM($J39:$AG39)) -> 1.147460094 | N103: =SUMPRODUCT($I$144:$AF$144,$J39:$AG39)/(($I103^0.75)*SUM($J39:$AG39)) -> 1.147460094 | O103: =SUMPRODUCT($I$145:$AF$145,$J39:$AG39)/(($I103^0.75)*SUM($J39:$AG39)) -> 1.147460094 | P103: =SUMPRODUCT($I$146:$AF$146,$J39:$AG39)/(($I103^0.75)*SUM($J39:$AG39)) -> 1.147460094 | Q103: =SUMPRODUCT($I$147:$AF$147,$J39:$AG39)/(($I103^0.75)*SUM($J39:$AG39)) -> 1.147460094 | R103: =SUMPRODUCT($I$148:$AF$148,$J39:$AG39)/(($I103^0.75)*SUM($J39:$AG39)) -> 1.147460094 | S103: 0.9413207643 | T103: 0.9413207643 | U103: 0.9413207643 | V103: 0.9413207643 | W103: 0.9413207643 | X103: 0.9413207643 | Y103: 0.9413207643 | Z103: 0.9413207643
H104: DL13A | I104: 300 | J104: 500 | K104: =SUMPRODUCT($I$153:$AF$153,$J40:$AG40)/(($I104^0.75)*SUM($J40:$AG40)) -> 1.466852895 | L104: =SUMPRODUCT($I$154:$AF$154,$J40:$AG40)/(($I104^0.75)*SUM($J40:$AG40)) -> 1.466852895 | M104: =SUMPRODUCT($I$155:$AF$155,$J40:$AG40)/(($I104^0.75)*SUM($J40:$AG40)) -> 1.466852895 | N104: =SUMPRODUCT($I$156:$AF$156,$J40:$AG40)/(($I104^0.75)*SUM($J40:$AG40)) -> 1.466852895 | O104: =SUMPRODUCT($I$157:$AF$157,$J40:$AG40)/(($I104^0.75)*SUM($J40:$AG40)) -> 1.466852895 | P104: =SUMPRODUCT($I$158:$AF$158,$J40:$AG40)/(($I104^0.75)*SUM($J40:$AG40)) -> 1.466852895 | Q104: =SUMPRODUCT($I$159:$AF$159,$J40:$AG40)/(($I104^0.75)*SUM($J40:$AG40)) -> 1.466852895 | R104: =SUMPRODUCT($I$160:$AF$160,$J40:$AG40)/(($I104^0.75)*SUM($J40:$AG40)) -> 1.466852895 | S104: 0.8801117368 | T104: 0.8801117368 | U104: 0.8801117368 | V104: 0.8801117368 | W104: 0.8801117368 | X104: 0.8801117368 | Y104: 0.8801117368 | Z104: 0.8801117368
H105: DL13B | I105: 2000 | J105: 2016.321662 | K105: =SUMPRODUCT($I$153:$AF$153,$J41:$AG41)/(($I105^0.75)*SUM($J41:$AG41)) -> 0.9986262533 | L105: =SUMPRODUCT($I$154:$AF$154,$J41:$AG41)/(($I105^0.75)*SUM($J41:$AG41)) -> 0.9986262533 | M105: =SUMPRODUCT($I$155:$AF$155,$J41:$AG41)/(($I105^0.75)*SUM($J41:$AG41)) -> 0.9986262533 | N105: =SUMPRODUCT($I$156:$AF$156,$J41:$AG41)/(($I105^0.75)*SUM($J41:$AG41)) -> 0.9986262533 | O105: =SUMPRODUCT($I$157:$AF$157,$J41:$AG41)/(($I105^0.75)*SUM($J41:$AG41)) -> 0.9986262533 | P105: =SUMPRODUCT($I$158:$AF$158,$J41:$AG41)/(($I105^0.75)*SUM($J41:$AG41)) -> 0.9986262533 | Q105: =SUMPRODUCT($I$159:$AF$159,$J41:$AG41)/(($I105^0.75)*SUM($J41:$AG41)) -> 0.9986262533 | R105: =SUMPRODUCT($I$160:$AF$160,$J41:$AG41)/(($I105^0.75)*SUM($J41:$AG41)) -> 0.9986262533 | S105: 0.9905426025 | T105: 0.9905426025 | U105: 0.9905426025 | V105: 0.9905426025 | W105: 0.9905426025 | X105: 0.9905426025 | Y105: 0.9905426025 | Z105: 0.9905426025
G106: 9 | H106: PC5A | I106: =I100/3 -> 100 | J106: 88.27644289 | K106: =SUMPRODUCT($I$141:$AF$141,$J42:$AG42)/(($I106^0.75)*SUM($J42:$AG42)) -> 0.9089911746 | L106: =SUMPRODUCT($I$142:$AF$142,$J42:$AG42)/(($I106^0.75)*SUM($J42:$AG42)) -> 0.9089911746 | M106: =SUMPRODUCT($I$143:$AF$143,$J42:$AG42)/(($I106^0.75)*SUM($J42:$AG42)) -> 0.9089911746 | N106: =SUMPRODUCT($I$144:$AF$144,$J42:$AG42)/(($I106^0.75)*SUM($J42:$AG42)) -> 0.9089911746 | O106: =SUMPRODUCT($I$145:$AF$145,$J42:$AG42)/(($I106^0.75)*SUM($J42:$AG42)) -> 0.9089911746 | P106: =SUMPRODUCT($I$146:$AF$146,$J42:$AG42)/(($I106^0.75)*SUM($J42:$AG42)) -> 0.9089911746 | Q106: =SUMPRODUCT($I$147:$AF$147,$J42:$AG42)/(($I106^0.75)*SUM($J42:$AG42)) -> 0.9089911746 | R106: =SUMPRODUCT($I$148:$AF$148,$J42:$AG42)/(($I106^0.75)*SUM($J42:$AG42)) -> 0.9089911746 | S106: 1.02970979 | T106: 1.02970979 | U106: 1.02970979 | V106: 1.02970979 | W106: 1.02970979 | X106: 1.02970979 | Y106: 1.02970979 | Z106: 1.02970979
G107: 10 | H107: PC5B | I107: 500 | J107: 354.8966977 | K107: =SUMPRODUCT($I$141:$AF$141,$J43:$AG43)/(($I107^0.75)*SUM($J43:$AG43)) -> 0.7647025498 | L107: =SUMPRODUCT($I$142:$AF$142,$J43:$AG43)/(($I107^0.75)*SUM($J43:$AG43)) -> 0.7647025498 | M107: =SUMPRODUCT($I$143:$AF$143,$J43:$AG43)/(($I107^0.75)*SUM($J43:$AG43)) -> 0.7647025498 | N107: =SUMPRODUCT($I$144:$AF$144,$J43:$AG43)/(($I107^0.75)*SUM($J43:$AG43)) -> 0.7647025498 | O107: =SUMPRODUCT($I$145:$AF$145,$J43:$AG43)/(($I107^0.75)*SUM($J43:$AG43)) -> 0.7647025498 | P107: =SUMPRODUCT($I$146:$AF$146,$J43:$AG43)/(($I107^0.75)*SUM($J43:$AG43)) -> 0.7647025498 | Q107: =SUMPRODUCT($I$147:$AF$147,$J43:$AG43)/(($I107^0.75)*SUM($J43:$AG43)) -> 0.7647025498 | R107: =SUMPRODUCT($I$148:$AF$148,$J43:$AG43)/(($I107^0.75)*SUM($J43:$AG43)) -> 0.7647025498 | S107: 1.077359348 | T107: 1.077359348 | U107: 1.077359348 | V107: 1.077359348 | W107: 1.077359348 | X107: 1.077359348 | Y107: 1.077359348 | Z107: 1.077359348
G108: 11 | H108: PC7A | I108: =I102/3 -> 100 | J108: 88.27644289 | K108: =SUMPRODUCT($I$141:$AF$141,$J44:$AG44)/(($I108^0.75)*SUM($J44:$AG44)) -> 0.9089911746 | L108: =SUMPRODUCT($I$142:$AF$142,$J44:$AG44)/(($I108^0.75)*SUM($J44:$AG44)) -> 0.9089911746 | M108: =SUMPRODUCT($I$143:$AF$143,$J44:$AG44)/(($I108^0.75)*SUM($J44:$AG44)) -> 0.9089911746 | N108: =SUMPRODUCT($I$144:$AF$144,$J44:$AG44)/(($I108^0.75)*SUM($J44:$AG44)) -> 0.9089911746 | O108: =SUMPRODUCT($I$145:$AF$145,$J44:$AG44)/(($I108^0.75)*SUM($J44:$AG44)) -> 0.9089911746 | P108: =SUMPRODUCT($I$146:$AF$146,$J44:$AG44)/(($I108^0.75)*SUM($J44:$AG44)) -> 0.9089911746 | Q108: =SUMPRODUCT($I$147:$AF$147,$J44:$AG44)/(($I108^0.75)*SUM($J44:$AG44)) -> 0.9089911746 | R108: =SUMPRODUCT($I$148:$AF$148,$J44:$AG44)/(($I108^0.75)*SUM($J44:$AG44)) -> 0.9089911746 | S108: 1.02970979 | T108: 1.02970979 | U108: 1.02970979 | V108: 1.02970979 | W108: 1.02970979 | X108: 1.02970979 | Y108: 1.02970979 | Z108: 1.02970979
G109: 12 | H109: PC7B | I109: 500 | J109: 350.9890074 | K109: =SUMPRODUCT($I$141:$AF$141,$J45:$AG45)/(($I109^0.75)*SUM($J45:$AG45)) -> 0.7583658949 | L109: =SUMPRODUCT($I$142:$AF$142,$J45:$AG45)/(($I109^0.75)*SUM($J45:$AG45)) -> 0.7583658949 | M109: =SUMPRODUCT($I$143:$AF$143,$J45:$AG45)/(($I109^0.75)*SUM($J45:$AG45)) -> 0.7583658949 | N109: =SUMPRODUCT($I$144:$AF$144,$J45:$AG45)/(($I109^0.75)*SUM($J45:$AG45)) -> 0.7583658949 | O109: =SUMPRODUCT($I$145:$AF$145,$J45:$AG45)/(($I109^0.75)*SUM($J45:$AG45)) -> 0.7583658949 | P109: =SUMPRODUCT($I$146:$AF$146,$J45:$AG45)/(($I109^0.75)*SUM($J45:$AG45)) -> 0.7583658949 | Q109: =SUMPRODUCT($I$147:$AF$147,$J45:$AG45)/(($I109^0.75)*SUM($J45:$AG45)) -> 0.7583658949 | R109: =SUMPRODUCT($I$148:$AF$148,$J45:$AG45)/(($I109^0.75)*SUM($J45:$AG45)) -> 0.7583658949 | S109: 1.080327131 | T109: 1.080327131 | U109: 1.080327131 | V109: 1.080327131 | W109: 1.080327131 | X109: 1.080327131 | Y109: 1.080327131 | Z109: 1.080327131
G110: 13b | H110: PC9 | I110: =I105/3 -> 666.6666667 | J110: 198.3351792 | K110: =SUMPRODUCT($I$153:$AF$153,$J46:$AG46)/(($I110^0.75)*SUM($J46:$AG46)) -> 0.3813188263 | L110: =SUMPRODUCT($I$154:$AF$154,$J46:$AG46)/(($I110^0.75)*SUM($J46:$AG46)) -> 0.3813188263 | M110: =SUMPRODUCT($I$155:$AF$155,$J46:$AG46)/(($I110^0.75)*SUM($J46:$AG46)) -> 0.3813188263 | N110: =SUMPRODUCT($I$156:$AF$156,$J46:$AG46)/(($I110^0.75)*SUM($J46:$AG46)) -> 0.3813188263 | O110: =SUMPRODUCT($I$157:$AF$157,$J46:$AG46)/(($I110^0.75)*SUM($J46:$AG46)) -> 0.3813188263 | P110: =SUMPRODUCT($I$158:$AF$158,$J46:$AG46)/(($I110^0.75)*SUM($J46:$AG46)) -> 0.3813188263 | Q110: =SUMPRODUCT($I$159:$AF$159,$J46:$AG46)/(($I110^0.75)*SUM($J46:$AG46)) -> 0.3813188263 | R110: =SUMPRODUCT($I$160:$AF$160,$J46:$AG46)/(($I110^0.75)*SUM($J46:$AG46)) -> 0.3813188263 | S110: 1.281732025 | T110: 1.281732025 | U110: 1.281732025 | V110: 1.281732025 | W110: 1.281732025 | X110: 1.281732025 | Y110: 1.281732025 | Z110: 1.281732025
H111: No DL/PC | I111: 25 | J111: 75 | K111: =SUMPRODUCT($J$87:$AG$87,$J47:$AG47)/(($I111^0.75)*SUM($J47:$AG47)) -> 2.279507057 | L111: =SUMPRODUCT($J$87:$AG$87,$J47:$AG47)/(($I111^0.75)*SUM($J47:$AG47)) -> 2.279507057 | M111: 2.279507057 | N111: 2.279507057 | O111: 2.279507057 | P111: 2.279507057 | Q111: 2.279507057 | R111: 2.279507057 | S111: 0.7598356857 | T111: 0.7598356857 | U111: 0.7598356857 | V111: 0.7598356857 | W111: 0.7598356857 | X111: 0.7598356857 | Y111: 0.7598356857 | Z111: 0.7598356857
H115: Scaling Liquid-Immersed (DL1 through DL5)
H116: Scaling Exponents | I116: =J5 -> 10 | J116: 15 | K116: 25 | L116: 30 | M116: 37.5 | N116: 45 | O116: 50 | P116: 75 | Q116: 100 | R116: 112.5 | S116: 150 | T116: 167 | U116: 225 | V116: 250 | W116: 300 | X116: 333 | Y116: 500 | Z116: 667 | AA116: 750 | AB116: 833 | AC116: 1000 | AD116: 1500 | AE116: 2000 | AF116: 2500
H117: Base | I117: =I$116^I166 -> 5.623413252 | J117: 7.621991222 | K117: 11.18033989 | L117: 12.81861019 | M117: 15.15386629 | N117: 17.37438278 | O117: 18.80301547 | P117: 25.48566367 | Q117: 31.6227766 | R117: 34.54334514 | S117: 42.86160645 | T117: 46.45552296 | U117: 58.09475019 | V117: 62.87167148 | W117: 72.08434242 | X117: 77.95306131 | Y117: 105.7371263 | Z117: 131.2485081 | AA117: 143.3164188 | AB117: 155.0542773 | AC117: 177.827941 | AD117: 241.0285257 | AE117: 299.0697562 | AF117: 353.5533906
H118: TSL1 | I118: 5.623413252 | J118: 7.621991222 | K118: 11.18033989 | L118: 12.81861019 | M118: 15.15386629 | N118: 17.37438278 | O118: 18.80301547 | P118: 25.48566367 | Q118: 31.6227766 | R118: 34.54334514 | S118: 42.86160645 | T118: 46.45552296 | U118: 58.09475019 | V118: 62.87167148 | W118: 72.08434242 | X118: 77.95306131 | Y118: 105.7371263 | Z118: 131.2485081 | AA118: 143.3164188 | AB118: 155.0542773 | AC118: 177.827941 | AD118: 241.0285257 | AE118: 299.0697562 | AF118: 353.5533906
H119: TSL2 | I119: 5.623413252 | J119: 7.621991222 | K119: =K$116^K168 -> 11.18033989 | L119: 12.81861019 | M119: 15.15386629 | N119: 17.37438278 | O119: 18.80301547 | P119: 25.48566367 | Q119: 31.6227766 | R119: 34.54334514 | S119: 42.86160645 | T119: 46.45552296 | U119: 58.09475019 | V119: 62.87167148 | W119: 72.08434242 | X119: 77.95306131 | Y119: 105.7371263 | Z119: 131.2485081 | AA119: 143.3164188 | AB119: 155.0542773 | AC119: 177.827941 | AD119: 241.0285257 | AE119: 299.0697562 | AF119: 353.5533906
H120: TSL3 | I120: 5.623413252 | J120: 7.621991222 | K120: 11.18033989 | L120: 12.81861019 | M120: 15.15386629 | N120: 17.37438278 | O120: 18.80301547 | P120: 25.48566367 | Q120: 31.6227766 | R120: 34.54334514 | S120: 42.86160645 | T120: 46.45552296 | U120: 58.09475019 | V120: 62.87167148 | W120: 72.08434242 | X120: 77.95306131 | Y120: 105.7371263 | Z120: 131.2485081 | AA120: 143.3164188 | AB120: 155.0542773 | AC120: 177.827941 | AD120: 241.0285257 | AE120: 299.0697562 | AF120: 353.5533906
H121: TSL4 | I121: 5.623413252 | J121: 7.621991222 | K121: 11.18033989 | L121: 12.81861019 | M121: 15.15386629 | N121: 17.37438278 | O121: 18.80301547 | P121: =P$116^P170 -> 25.48566367 | Q121: 31.6227766 | R121: 34.54334514 | S121: 42.86160645 | T121: 46.45552296 | U121: 58.09475019 | V121: 62.87167148 | W121: 72.08434242 | X121: 77.95306131 | Y121: 105.7371263 | Z121: 131.2485081 | AA121: 143.3164188 | AB121: 155.0542773 | AC121: 177.827941 | AD121: 241.0285257 | AE121: 299.0697562 | AF121: 353.5533906
H122: TSL5 | I122: 5.623413252 | J122: 7.621991222 | K122: 11.18033989 | L122: 12.81861019 | M122: 15.15386629 | N122: 17.37438278 | O122: 18.80301547 | P122: 25.48566367 | Q122: 31.6227766 | R122: 34.54334514 | S122: 42.86160645 | T122: 46.45552296 | U122: 58.09475019 | V122: 62.87167148 | W122: 72.08434242 | X122: 77.95306131 | Y122: 105.7371263 | Z122: 131.2485081 | AA122: 143.3164188 | AB122: 155.0542773 | AC122: 177.827941 | AD122: 241.0285257 | AE122: 299.0697562 | AF122: 353.5533906
H123: TSL6 | I123: 5.623413252 | J123: 7.621991222 | K123: 11.18033989 | L123: 12.81861019 | M123: =M$116^M172 -> 15.15386629 | N123: 17.37438278 | O123: 18.80301547 | P123: 25.48566367 | Q123: 31.6227766 | R123: 34.54334514 | S123: 42.86160645 | T123: 46.45552296 | U123: 58.09475019 | V123: 62.87167148 | W123: 72.08434242 | X123: 77.95306131 | Y123: 105.7371263 | Z123: 131.2485081 | AA123: 143.3164188 | AB123: 155.0542773 | AC123: 177.827941 | AD123: 241.0285257 | AE123: 299.0697562 | AF123: 353.5533906
H124: TSL7 | I124: 5.623413252 | J124: 7.621991222 | K124: 11.18033989 | L124: 12.81861019 | M124: 15.15386629 | N124: 17.37438278 | O124: 18.80301547 | P124: 25.48566367 | Q124: 31.6227766 | R124: 34.54334514 | S124: 42.86160645 | T124: 46.45552296 | U124: 58.09475019 | V124: 62.87167148 | W124: 72.08434242 | X124: 77.95306131 | Y124: 105.7371263 | Z124: 131.2485081 | AA124: 143.3164188 | AB124: 155.0542773 | AC124: 177.827941 | AD124: 241.0285257 | AE124: 299.0697562 | AF124: 353.5533906
H127: Scaling LVDT (DL6, DL7, DL8)
H128: Scaling Exponents | I128: 10 | J128: 15 | K128: 25 | L128: 30 | M128: 37.5 | N128: 45 | O128: 50 | P128: 75 | Q128: 100 | R128: 112.5 | S128: 150 | T128: 167 | U128: 225 | V128: 250 | W128: 300 | X128: 333 | Y128: 500 | Z128: 667 | AA128: 750 | AB128: 833 | AC128: 1000 | AD128: 1500 | AE128: 2000 | AF128: 2500
H129: Base | I129: =I$116^I179 -> 5.623413252 | J129: =J$116^J179 -> 7.621991222 | K129: 11.18033989 | L129: 12.81861019 | M129: 15.15386629 | N129: 17.37438278 | O129: 18.80301547 | P129: 25.48566367 | Q129: 31.6227766 | R129: 34.54334514 | S129: 42.86160645 | T129: 46.45552296 | U129: 58.09475019 | V129: 62.87167148 | W129: 72.08434242 | X129: 77.95306131 | Y129: 105.7371263 | Z129: 131.2485081 | AA129: 143.3164188 | AB129: 155.0542773 | AC129: 177.827941 | AD129: 241.0285257 | AE129: 299.0697562 | AF129: 353.5533906
H130: TSL1 | I130: =I$116^I180 -> 5.623413252 | J130: 7.621991222 | K130: 11.18033989 | L130: 12.81861019 | M130: 15.15386629 | N130: 17.37438278 | O130: 18.80301547 | P130: 25.48566367 | Q130: 31.6227766 | R130: 34.54334514 | S130: 42.86160645 | T130: 46.45552296 | U130: 58.09475019 | V130: 62.87167148 | W130: 72.08434242 | X130: 77.95306131 | Y130: 105.7371263 | Z130: 131.2485081 | AA130: 143.3164188 | AB130: 155.0542773 | AC130: 177.827941 | AD130: 241.0285257 | AE130: 299.0697562 | AF130: 353.5533906
H131: TSL2 | I131: 5.623413252 | J131: 7.621991222 | K131: 11.18033989 | L131: 12.81861019 | M131: 15.15386629 | N131: 17.37438278 | O131: 18.80301547 | P131: 25.48566367 | Q131: 31.6227766 | R131: 34.54334514 | S131: 42.86160645 | T131: 46.45552296 | U131: 58.09475019 | V131: 62.87167148 | W131: 72.08434242 | X131: 77.95306131 | Y131: 105.7371263 | Z131: 131.2485081 | AA131: 143.3164188 | AB131: 155.0542773 | AC131: 177.827941 | AD131: 241.0285257 | AE131: 299.0697562 | AF131: 353.5533906
H132: TSL3 | I132: 5.623413252 | J132: 7.621991222 | K132: 11.18033989 | L132: 12.81861019 | M132: 15.15386629 | N132: 17.37438278 | O132: 18.80301547 | P132: 25.48566367 | Q132: 31.6227766 | R132: 34.54334514 | S132: 42.86160645 | T132: 46.45552296 | U132: 58.09475019 | V132: 62.87167148 | W132: 72.08434242 | X132: 77.95306131 | Y132: 105.7371263 | Z132: 131.2485081 | AA132: 143.3164188 | AB132: 155.0542773 | AC132: 177.827941 | AD132: 241.0285257 | AE132: 299.0697562 | AF132: 353.5533906
H133: TSL4 | I133: 5.623413252 | J133: 7.621991222 | K133: 11.18033989 | L133: 12.81861019 | M133: 15.15386629 | N133: 17.37438278 | O133: 18.80301547 | P133: 25.48566367 | Q133: 31.6227766 | R133: 34.54334514 | S133: 42.86160645 | T133: 46.45552296 | U133: 58.09475019 | V133: 62.87167148 | W133: 72.08434242 | X133: 77.95306131 | Y133: 105.7371263 | Z133: 131.2485081 | AA133: 143.3164188 | AB133: 155.0542773 | AC133: 177.827941 | AD133: 241.0285257 | AE133: 299.0697562 | AF133: 353.5533906
H134: TSL5 | I134: 5.623413252 | J134: 7.621991222 | K134: 11.18033989 | L134: 12.81861019 | M134: 15.15386629 | N134: 17.37438278 | O134: 18.80301547 | P134: 25.48566367 | Q134: 31.6227766 | R134: 34.54334514 | S134: 42.86160645 | T134: 46.45552296 | U134: 58.09475019 | V134: 62.87167148 | W134: 72.08434242 | X134: 77.95306131 | Y134: 105.7371263 | Z134: 131.2485081 | AA134: 143.3164188 | AB134: 155.0542773 | AC134: 177.827941 | AD134: 241.0285257 | AE134: 299.0697562 | AF134: 353.5533906
H135: TSL6 | I135: 5.623413252 | J135: 7.621991222 | K135: 11.18033989 | L135: 12.81861019 | M135: 15.15386629 | N135: 17.37438278 | O135: 18.80301547 | P135: 25.48566367 | Q135: 31.6227766 | R135: 34.54334514 | S135: 42.86160645 | T135: 46.45552296 | U135: 58.09475019 | V135: 62.87167148 | W135: 72.08434242 | X135: 77.95306131 | Y135: 105.7371263 | Z135: 131.2485081 | AA135: 143.3164188 | AB135: 155.0542773 | AC135: 177.827941 | AD135: 241.0285257 | AE135: 299.0697562 | AF135: 353.5533906
H136: TSL7 | I136: 5.623413252 | J136: 7.621991222 | K136: 11.18033989 | L136: 12.81861019 | M136: 15.15386629 | N136: 17.37438278 | O136: 18.80301547 | P136: 25.48566367 | Q136: 31.6227766 | R136: 34.54334514 | S136: 42.86160645 | T136: 46.45552296 | U136: 58.09475019 | V136: 62.87167148 | W136: 72.08434242 | X136: 77.95306131 | Y136: 105.7371263 | Z136: 131.2485081 | AA136: 143.3164188 | AB136: 155.0542773 | AC136: 177.827941 | AD136: 241.0285257 | AE136: 299.0697562 | AF136: 353.5533906
H139: Scaling MVDT - DL9 - DL12
H140: Scaling Exponents | I140: 10 | J140: 15 | K140: 25 | L140: 30 | M140: 37.5 | N140: 45 | O140: 50 | P140: 75 | Q140: 100 | R140: 112.5 | S140: 150 | T140: 167 | U140: 225 | V140: 250 | W140: 300 | X140: 333 | Y140: 500 | Z140: 667 | AA140: 750 | AB140: 833 | AC140: 1000 | AD140: 1500 | AE140: 2000 | AF140: 2500
H141: Base | I141: =I$116^I193 -> 5.623413252 | J141: 7.621991222 | K141: 11.18033989 | L141: 12.81861019 | M141: 15.15386629 | N141: 17.37438278 | O141: 18.80301547 | P141: 25.48566367 | Q141: 31.6227766 | R141: 34.54334514 | S141: 42.86160645 | T141: 46.45552296 | U141: 58.09475019 | V141: 62.87167148 | W141: 72.08434242 | X141: 77.95306131 | Y141: 105.7371263 | Z141: 131.2485081 | AA141: 143.3164188 | AB141: 155.0542773 | AC141: 177.827941 | AD141: 241.0285257 | AE141: 299.0697562 | AF141: 353.5533906
H142: TSL1 | I142: 5.623413252 | J142: 7.621991222 | K142: 11.18033989 | L142: 12.81861019 | M142: 15.15386629 | N142: 17.37438278 | O142: 18.80301547 | P142: 25.48566367 | Q142: 31.6227766 | R142: 34.54334514 | S142: 42.86160645 | T142: 46.45552296 | U142: 58.09475019 | V142: 62.87167148 | W142: 72.08434242 | X142: 77.95306131 | Y142: 105.7371263 | Z142: 131.2485081 | AA142: 143.3164188 | AB142: 155.0542773 | AC142: 177.827941 | AD142: 241.0285257 | AE142: 299.0697562 | AF142: 353.5533906
H143: TSL2 | I143: 5.623413252 | J143: 7.621991222 | K143: 11.18033989 | L143: 12.81861019 | M143: 15.15386629 | N143: 17.37438278 | O143: 18.80301547 | P143: 25.48566367 | Q143: 31.6227766 | R143: 34.54334514 | S143: 42.86160645 | T143: 46.45552296 | U143: 58.09475019 | V143: 62.87167148 | W143: 72.08434242 | X143: 77.95306131 | Y143: 105.7371263 | Z143: 131.2485081 | AA143: 143.3164188 | AB143: 155.0542773 | AC143: 177.827941 | AD143: 241.0285257 | AE143: 299.0697562 | AF143: 353.5533906
H144: TSL3 | I144: 5.623413252 | J144: 7.621991222 | K144: 11.18033989 | L144: 12.81861019 | M144: 15.15386629 | N144: 17.37438278 | O144: 18.80301547 | P144: 25.48566367 | Q144: 31.6227766 | R144: 34.54334514 | S144: 42.86160645 | T144: 46.45552296 | U144: 58.09475019 | V144: 62.87167148 | W144: 72.08434242 | X144: 77.95306131 | Y144: 105.7371263 | Z144: 131.2485081 | AA144: 143.3164188 | AB144: 155.0542773 | AC144: 177.827941 | AD144: 241.0285257 | AE144: 299.0697562 | AF144: 353.5533906
H145: TSL4 | I145: 5.623413252 | J145: 7.621991222 | K145: 11.18033989 | L145: 12.81861019 | M145: 15.15386629 | N145: 17.37438278 | O145: 18.80301547 | P145: 25.48566367 | Q145: 31.6227766 | R145: 34.54334514 | S145: 42.86160645 | T145: 46.45552296 | U145: 58.09475019 | V145: 62.87167148 | W145: 72.08434242 | X145: 77.95306131 | Y145: 105.7371263 | Z145: 131.2485081 | AA145: 143.3164188 | AB145: 155.0542773 | AC145: 177.827941 | AD145: 241.0285257 | AE145: 299.0697562 | AF145: 353.5533906
H146: TSL5 | I146: 5.623413252 | J146: 7.621991222 | K146: 11.18033989 | L146: 12.81861019 | M146: 15.15386629 | N146: 17.37438278 | O146: 18.80301547 | P146: 25.48566367 | Q146: 31.6227766 | R146: 34.54334514 | S146: 42.86160645 | T146: 46.45552296 | U146: 58.09475019 | V146: 62.87167148 | W146: 72.08434242 | X146: 77.95306131 | Y146: 105.7371263 | Z146: 131.2485081 | AA146: 143.3164188 | AB146: 155.0542773 | AC146: 177.827941 | AD146: 241.0285257 | AE146: 299.0697562 | AF146: 353.5533906
H147: TSL6 | I147: 5.623413252 | J147: 7.621991222 | K147: 11.18033989 | L147: 12.81861019 | M147: 15.15386629 | N147: 17.37438278 | O147: 18.80301547 | P147: 25.48566367 | Q147: 31.6227766 | R147: 34.54334514 | S147: 42.86160645 | T147: 46.45552296 | U147: 58.09475019 | V147: 62.87167148 | W147: 72.08434242 | X147: 77.95306131 | Y147: 105.7371263 | Z147: 131.2485081 | AA147: 143.3164188 | AB147: 155.0542773 | AC147: 177.827941 | AD147: 241.0285257 | AE147: 299.0697562 | AF147: 353.5533906
H148: TSL7 | I148: 5.623413252 | J148: 7.621991222 | K148: 11.18033989 | L148: 12.81861019 | M148: 15.15386629 | N148: 17.37438278 | O148: 18.80301547 | P148: 25.48566367 | Q148: 31.6227766 | R148: 34.54334514 | S148: 42.86160645 | T148: 46.45552296 | U148: 58.09475019 | V148: 62.87167148 | W148: 72.08434242 | X148: 77.95306131 | Y148: 105.7371263 | Z148: 131.2485081 | AA148: 143.3164188 | AB148: 155.0542773 | AC148: 177.827941 | AD148: 241.0285257 | AE148: 299.0697562 | AF148: 353.5533906
H151: Scaling MVDT - DL13A &DL13B
H152: Scaling Exponents | I152: 10 | J152: 15 | K152: 25 | L152: 30 | M152: 37.5 | N152: 45 | O152: 50 | P152: 75 | Q152: 100 | R152: 112.5 | S152: 150 | T152: 167 | U152: 225 | V152: 250 | W152: 300 | X152: 333 | Y152: 500 | Z152: 667 | AA152: 750 | AB152: 833 | AC152: 1000 | AD152: 1500 | AE152: 2000 | AF152: 2500
H153: Base | I153: =I$116^I207 -> 5.623413252 | J153: 7.621991222 | K153: 11.18033989 | L153: 12.81861019 | M153: 15.15386629 | N153: 17.37438278 | O153: 18.80301547 | P153: 25.48566367 | Q153: 31.6227766 | R153: 34.54334514 | S153: 42.86160645 | T153: 46.45552296 | U153: 58.09475019 | V153: 62.87167148 | W153: 72.08434242 | X153: 77.95306131 | Y153: 105.7371263 | Z153: 131.2485081 | AA153: 143.3164188 | AB153: 155.0542773 | AC153: 177.827941 | AD153: 241.0285257 | AE153: 299.0697562 | AF153: 353.5533906
H154: TSL1 | I154: 5.623413252 | J154: 7.621991222 | K154: 11.18033989 | L154: 12.81861019 | M154: 15.15386629 | N154: 17.37438278 | O154: 18.80301547 | P154: 25.48566367 | Q154: 31.6227766 | R154: 34.54334514 | S154: 42.86160645 | T154: 46.45552296 | U154: 58.09475019 | V154: 62.87167148 | W154: 72.08434242 | X154: 77.95306131 | Y154: 105.7371263 | Z154: 131.2485081 | AA154: 143.3164188 | AB154: 155.0542773 | AC154: 177.827941 | AD154: 241.0285257 | AE154: 299.0697562 | AF154: 353.5533906
H155: TSL2 | I155: 5.623413252 | J155: 7.621991222 | K155: 11.18033989 | L155: 12.81861019 | M155: 15.15386629 | N155: 17.37438278 | O155: 18.80301547 | P155: 25.48566367 | Q155: 31.6227766 | R155: 34.54334514 | S155: 42.86160645 | T155: 46.45552296 | U155: 58.09475019 | V155: 62.87167148 | W155: 72.08434242 | X155: 77.95306131 | Y155: 105.7371263 | Z155: 131.2485081 | AA155: 143.3164188 | AB155: 155.0542773 | AC155: 177.827941 | AD155: 241.0285257 | AE155: 299.0697562 | AF155: 353.5533906
H156: TSL3 | I156: 5.623413252 | J156: 7.621991222 | K156: 11.18033989 | L156: 12.81861019 | M156: 15.15386629 | N156: 17.37438278 | O156: 18.80301547 | P156: 25.48566367 | Q156: 31.6227766 | R156: 34.54334514 | S156: 42.86160645 | T156: 46.45552296 | U156: 58.09475019 | V156: 62.87167148 | W156: 72.08434242 | X156: 77.95306131 | Y156: 105.7371263 | Z156: 131.2485081 | AA156: 143.3164188 | AB156: 155.0542773 | AC156: 177.827941 | AD156: 241.0285257 | AE156: 299.0697562 | AF156: 353.5533906
H157: TSL4 | I157: 5.623413252 | J157: 7.621991222 | K157: 11.18033989 | L157: 12.81861019 | M157: 15.15386629 | N157: 17.37438278 | O157: 18.80301547 | P157: 25.48566367 | Q157: 31.6227766 | R157: 34.54334514 | S157: 42.86160645 | T157: 46.45552296 | U157: 58.09475019 | V157: 62.87167148 | W157: 72.08434242 | X157: 77.95306131 | Y157: 105.7371263 | Z157: 131.2485081 | AA157: 143.3164188 | AB157: 155.0542773 | AC157: 177.827941 | AD157: 241.0285257 | AE157: 299.0697562 | AF157: 353.5533906
H158: TSL5 | I158: 5.623413252 | J158: 7.621991222 | K158: 11.18033989 | L158: 12.81861019 | M158: 15.15386629 | N158: 17.37438278 | O158: 18.80301547 | P158: 25.48566367 | Q158: 31.6227766 | R158: 34.54334514 | S158: 42.86160645 | T158: 46.45552296 | U158: 58.09475019 | V158: 62.87167148 | W158: 72.08434242 | X158: 77.95306131 | Y158: 105.7371263 | Z158: 131.2485081 | AA158: 143.3164188 | AB158: 155.0542773 | AC158: 177.827941 | AD158: =AD$116^AD212 -> 241.0285257 | AE158: 299.0697562 | AF158: 353.5533906
H159: TSL6 | I159: 5.623413252 | J159: 7.621991222 | K159: 11.18033989 | L159: 12.81861019 | M159: 15.15386629 | N159: 17.37438278 | O159: 18.80301547 | P159: 25.48566367 | Q159: 31.6227766 | R159: 34.54334514 | S159: 42.86160645 | T159: 46.45552296 | U159: 58.09475019 | V159: 62.87167148 | W159: 72.08434242 | X159: 77.95306131 | Y159: 105.7371263 | Z159: 131.2485081 | AA159: 143.3164188 | AB159: 155.0542773 | AC159: 177.827941 | AD159: 241.0285257 | AE159: 299.0697562 | AF159: 353.5533906
H160: TSL7 | I160: 5.623413252 | J160: 7.621991222 | K160: 11.18033989 | L160: 12.81861019 | M160: 15.15386629 | N160: 17.37438278 | O160: 18.80301547 | P160: 25.48566367 | Q160: 31.6227766 | R160: 34.54334514 | S160: 42.86160645 | T160: 46.45552296 | U160: 58.09475019 | V160: 62.87167148 | W160: 72.08434242 | X160: 77.95306131 | Y160: 105.7371263 | Z160: 131.2485081 | AA160: 143.3164188 | AB160: 155.0542773 | AC160: 177.827941 | AD160: 241.0285257 | AE160: 299.0697562 | AF160: 353.5533906
H163: Scaling based on Adjusted Exponents
H164: Liquid Immersed
H165: Scaling Exponents | I165: 10 | J165: 15 | K165: 25 | L165: 30 | M165: 37.5 | N165: 45 | O165: 50 | P165: 75 | Q165: 100 | R165: 112.5 | S165: 150 | T165: 167 | U165: 225 | V165: 250 | W165: 300 | X165: 333 | Y165: 500 | Z165: 667 | AA165: 750 | AB165: 833 | AC165: 1000 | AD165: 1500 | AE165: 2000 | AF165: 2500
H166: Base | I166: 0.75 | J166: 0.75 | K166: 0.75 | L166: 0.75 | M166: 0.75 | N166: 0.75 | O166: 0.75 | P166: 0.75 | Q166: 0.75 | R166: 0.75 | S166: 0.75 | T166: 0.75 | U166: 0.75 | V166: 0.75 | W166: 0.75 | X166: 0.75 | Y166: 0.75 | Z166: 0.75 | AA166: 0.75 | AB166: 0.75 | AC166: 0.75 | AD166: 0.75 | AE166: 0.75 | AF166: 0.75
H167: TSL1 | I167: 0.75 | J167: 0.75 | K167: 0.75 | L167: 0.75 | M167: 0.75 | N167: 0.75 | O167: 0.75 | P167: 0.75 | Q167: 0.75 | R167: 0.75 | S167: 0.75 | T167: 0.75 | U167: 0.75 | V167: 0.75 | W167: 0.75 | X167: 0.75 | Y167: 0.75 | Z167: 0.75 | AA167: 0.75 | AB167: 0.75 | AC167: 0.75 | AD167: 0.75 | AE167: 0.75 | AF167: 0.75
H168: TSL2 | I168: 0.75 | J168: 0.75 | K168: 0.75 | L168: 0.75 | M168: 0.75 | N168: 0.75 | O168: 0.75 | P168: 0.75 | Q168: 0.75 | R168: 0.75 | S168: 0.75 | T168: 0.75 | U168: 0.75 | V168: 0.75 | W168: 0.75 | X168: 0.75 | Y168: 0.75 | Z168: 0.75 | AA168: 0.75 | AB168: 0.75 | AC168: 0.75 | AD168: 0.75 | AE168: 0.75 | AF168: 0.75
H169: TSL3 | I169: 0.75 | J169: 0.75 | K169: 0.75 | L169: 0.75 | M169: 0.75 | N169: 0.75 | O169: 0.75 | P169: 0.75 | Q169: 0.75 | R169: 0.75 | S169: 0.75 | T169: 0.75 | U169: 0.75 | V169: 0.75 | W169: 0.75 | X169: 0.75 | Y169: 0.75 | Z169: 0.75 | AA169: 0.75 | AB169: 0.75 | AC169: 0.75 | AD169: 0.75 | AE169: 0.75 | AF169: 0.75
H170: TSL4 | I170: 0.75 | J170: 0.75 | K170: 0.75 | L170: 0.75 | M170: 0.75 | N170: 0.75 | O170: 0.75 | P170: 0.75 | Q170: 0.75 | R170: 0.75 | S170: 0.75 | T170: 0.75 | U170: 0.75 | V170: 0.75 | W170: 0.75 | X170: 0.75 | Y170: 0.75 | Z170: 0.75 | AA170: 0.75 | AB170: 0.75 | AC170: 0.75 | AD170: 0.75 | AE170: 0.75 | AF170: 0.75
H171: TSL5 | I171: 0.75 | J171: 0.75 | K171: 0.75 | L171: 0.75 | M171: 0.75 | N171: 0.75 | O171: 0.75 | P171: 0.75 | Q171: 0.75 | R171: 0.75 | S171: 0.75 | T171: 0.75 | U171: 0.75 | V171: 0.75 | W171: 0.75 | X171: 0.75 | Y171: 0.75 | Z171: 0.75 | AA171: 0.75 | AB171: 0.75 | AC171: 0.75 | AD171: 0.75 | AE171: 0.75 | AF171: 0.75
H172: TSL6 | I172: 0.75 | J172: 0.75 | K172: 0.75 | L172: 0.75 | M172: 0.75 | N172: 0.75 | O172: 0.75 | P172: 0.75 | Q172: 0.75 | R172: 0.75 | S172: 0.75 | T172: 0.75 | U172: 0.75 | V172: 0.75 | W172: 0.75 | X172: 0.75 | Y172: 0.75 | Z172: 0.75 | AA172: 0.75 | AB172: 0.75 | AC172: 0.75 | AD172: 0.75 | AE172: 0.75 | AF172: 0.75
H173: TSL7 | I173: 0.75 | J173: 0.75 | K173: 0.75 | L173: 0.75 | M173: 0.75 | N173: 0.75 | O173: 0.75 | P173: 0.75 | Q173: 0.75 | R173: 0.75 | S173: 0.75 | T173: 0.75 | U173: 0.75 | V173: 0.75 | W173: 0.75 | X173: 0.75 | Y173: 0.75 | Z173: 0.75 | AA173: 0.75 | AB173: 0.75 | AC173: 0.75 | AD173: 0.75 | AE173: 0.75 | AF173: 0.75
H176: Scaling based on Adjusted Exponents
H177: LVDT
H178: Scaling Exponents | I178: 10 | J178: 15 | K178: 25 | L178: 30 | M178: 37.5 | N178: 45 | O178: 50 | P178: 75 | Q178: 100 | R178: 112.5 | S178: 150 | T178: 167 | U178: 225 | V178: 250 | W178: 300 | X178: 333 | Y178: 500 | Z178: 667 | AA178: 750 | AB178: 833 | AC178: 1000 | AD178: 1500 | AE178: 2000 | AF178: 2500
H179: Base | I179: 0.75 | J179: 0.75 | K179: 0.75 | L179: 0.75 | M179: 0.75 | N179: 0.75 | O179: 0.75 | P179: 0.75 | Q179: 0.75 | R179: 0.75 | S179: 0.75 | T179: 0.75 | U179: 0.75 | V179: 0.75 | W179: 0.75 | X179: 0.75 | Y179: 0.75 | Z179: 0.75 | AA179: 0.75 | AB179: 0.75 | AC179: 0.75 | AD179: 0.75 | AE179: 0.75 | AF179: 0.75
H180: TSL1 | I180: 0.75 | J180: 0.75 | K180: 0.75 | L180: 0.75 | M180: 0.75 | N180: 0.75 | O180: 0.75 | P180: 0.75 | Q180: 0.75 | R180: 0.75 | S180: 0.75 | T180: 0.75 | U180: 0.75 | V180: 0.75 | W180: 0.75 | X180: 0.75 | Y180: 0.75 | Z180: 0.75 | AA180: 0.75 | AB180: 0.75 | AC180: 0.75 | AD180: 0.75 | AE180: 0.75 | AF180: 0.75
H181: TSL2 | I181: 0.75 | J181: 0.75 | K181: 0.75 | L181: 0.75 | M181: 0.75 | N181: 0.75 | O181: 0.75 | P181: 0.75 | Q181: 0.75 | R181: 0.75 | S181: 0.75 | T181: 0.75 | U181: 0.75 | V181: 0.75 | W181: 0.75 | X181: 0.75 | Y181: 0.75 | Z181: 0.75 | AA181: 0.75 | AB181: 0.75 | AC181: 0.75 | AD181: 0.75 | AE181: 0.75 | AF181: 0.75
H182: TSL3 | I182: 0.75 | J182: 0.75 | K182: 0.75 | L182: 0.75 | M182: 0.75 | N182: 0.75 | O182: 0.75 | P182: 0.75 | Q182: 0.75 | R182: 0.75 | S182: 0.75 | T182: 0.75 | U182: 0.75 | V182: 0.75 | W182: 0.75 | X182: 0.75 | Y182: 0.75 | Z182: 0.75 | AA182: 0.75 | AB182: 0.75 | AC182: 0.75 | AD182: 0.75 | AE182: 0.75 | AF182: 0.75
H183: TSL4 | I183: 0.75 | J183: 0.75 | K183: 0.75 | L183: 0.75 | M183: 0.75 | N183: 0.75 | O183: 0.75 | P183: 0.75 | Q183: 0.75 | R183: 0.75 | S183: 0.75 | T183: 0.75 | U183: 0.75 | V183: 0.75 | W183: 0.75 | X183: 0.75 | Y183: 0.75 | Z183: 0.75 | AA183: 0.75 | AB183: 0.75 | AC183: 0.75 | AD183: 0.75 | AE183: 0.75 | AF183: 0.75
H184: TSL5 | I184: 0.75 | J184: 0.75 | K184: 0.75 | L184: 0.75 | M184: 0.75 | N184: 0.75 | O184: 0.75 | P184: 0.75 | Q184: 0.75 | R184: 0.75 | S184: 0.75 | T184: 0.75 | U184: 0.75 | V184: 0.75 | W184: 0.75 | X184: 0.75 | Y184: 0.75 | Z184: 0.75 | AA184: 0.75 | AB184: 0.75 | AC184: 0.75 | AD184: 0.75 | AE184: 0.75 | AF184: 0.75
H185: TSL6 | I185: 0.75 | J185: 0.75 | K185: 0.75 | L185: 0.75 | M185: 0.75 | N185: 0.75 | O185: 0.75 | P185: 0.75 | Q185: 0.75 | R185: 0.75 | S185: 0.75 | T185: 0.75 | U185: 0.75 | V185: 0.75 | W185: 0.75 | X185: 0.75 | Y185: 0.75 | Z185: 0.75 | AA185: 0.75 | AB185: 0.75 | AC185: 0.75 | AD185: 0.75 | AE185: 0.75 | AF185: 0.75
H186: TSL7 | I186: 0.75 | J186: 0.75 | K186: 0.75 | L186: 0.75 | M186: 0.75 | N186: 0.75 | O186: 0.75 | P186: 0.75 | Q186: 0.75 | R186: 0.75 | S186: 0.75 | T186: 0.75 | U186: 0.75 | V186: 0.75 | W186: 0.75 | X186: 0.75 | Y186: 0.75 | Z186: 0.75 | AA186: 0.75 | AB186: 0.75 | AC186: 0.75 | AD186: 0.75 | AE186: 0.75 | AF186: 0.75
H190: Scaling based on Adjusted Exponents
H191: MVDT - DL9-DL12
H192: Scaling Exponents | I192: 10 | J192: 15 | K192: 25 | L192: 30 | M192: 37.5 | N192: 45 | O192: 50 | P192: 75 | Q192: 100 | R192: 112.5 | S192: 150 | T192: 167 | U192: 225 | V192: 250 | W192: 300 | X192: 333 | Y192: 500 | Z192: 667 | AA192: 750 | AB192: 833 | AC192: 1000 | AD192: 1500 | AE192: 2000 | AF192: 2500
H193: Base | I193: 0.75 | J193: 0.75 | K193: 0.75 | L193: 0.75 | M193: 0.75 | N193: 0.75 | O193: 0.75 | P193: 0.75 | Q193: 0.75 | R193: 0.75 | S193: 0.75 | T193: 0.75 | U193: 0.75 | V193: 0.75 | W193: 0.75 | X193: 0.75 | Y193: 0.75 | Z193: 0.75 | AA193: 0.75 | AB193: 0.75 | AC193: 0.75 | AD193: 0.75 | AE193: 0.75 | AF193: 0.75
H194: TSL1 | I194: 0.75 | J194: 0.75 | K194: 0.75 | L194: 0.75 | M194: 0.75 | N194: 0.75 | O194: 0.75 | P194: 0.75 | Q194: 0.75 | R194: 0.75 | S194: 0.75 | T194: 0.75 | U194: 0.75 | V194: 0.75 | W194: 0.75 | X194: 0.75 | Y194: 0.75 | Z194: 0.75 | AA194: 0.75 | AB194: 0.75 | AC194: 0.75 | AD194: 0.75 | AE194: 0.75 | AF194: 0.75
H195: TSL2 | I195: 0.75 | J195: 0.75 | K195: 0.75 | L195: 0.75 | M195: 0.75 | N195: 0.75 | O195: 0.75 | P195: 0.75 | Q195: 0.75 | R195: 0.75 | S195: 0.75 | T195: 0.75 | U195: 0.75 | V195: 0.75 | W195: 0.75 | X195: 0.75 | Y195: 0.75 | Z195: 0.75 | AA195: 0.75 | AB195: 0.75 | AC195: 0.75 | AD195: 0.75 | AE195: 0.75 | AF195: 0.75
H196: TSL3 | I196: 0.75 | J196: 0.75 | K196: 0.75 | L196: 0.75 | M196: 0.75 | N196: 0.75 | O196: 0.75 | P196: 0.75 | Q196: 0.75 | R196: 0.75 | S196: 0.75 | T196: 0.75 | U196: 0.75 | V196: 0.75 | W196: 0.75 | X196: 0.75 | Y196: 0.75 | Z196: 0.75 | AA196: 0.75 | AB196: 0.75 | AC196: 0.75 | AD196: 0.75 | AE196: 0.75 | AF196: 0.75
H197: TSL4 | I197: 0.75 | J197: 0.75 | K197: 0.75 | L197: 0.75 | M197: 0.75 | N197: 0.75 | O197: 0.75 | P197: 0.75 | Q197: 0.75 | R197: 0.75 | S197: 0.75 | T197: 0.75 | U197: 0.75 | V197: 0.75 | W197: 0.75 | X197: 0.75 | Y197: 0.75 | Z197: 0.75 | AA197: 0.75 | AB197: 0.75 | AC197: 0.75 | AD197: 0.75 | AE197: 0.75 | AF197: 0.75
H198: TSL5 | I198: 0.75 | J198: 0.75 | K198: 0.75 | L198: 0.75 | M198: 0.75 | N198: 0.75 | O198: 0.75 | P198: 0.75 | Q198: 0.75 | R198: 0.75 | S198: 0.75 | T198: 0.75 | U198: 0.75 | V198: 0.75 | W198: 0.75 | X198: 0.75 | Y198: 0.75 | Z198: 0.75 | AA198: 0.75 | AB198: 0.75 | AC198: 0.75 | AD198: 0.75 | AE198: 0.75 | AF198: 0.75
H199: TSL6 | I199: 0.75 | J199: 0.75 | K199: 0.75 | L199: 0.75 | M199: 0.75 | N199: 0.75 | O199: 0.75 | P199: 0.75 | Q199: 0.75 | R199: 0.75 | S199: 0.75 | T199: 0.75 | U199: 0.75 | V199: 0.75 | W199: 0.75 | X199: 0.75 | Y199: 0.75 | Z199: 0.75 | AA199: 0.75 | AB199: 0.75 | AC199: 0.75 | AD199: 0.75 | AE199: 0.75 | AF199: 0.75
H200: TSL7 | I200: 0.75 | J200: 0.75 | K200: 0.75 | L200: 0.75 | M200: 0.75 | N200: 0.75 | O200: 0.75 | P200: 0.75 | Q200: 0.75 | R200: 0.75 | S200: 0.75 | T200: 0.75 | U200: 0.75 | V200: 0.75 | W200: 0.75 | X200: 0.75 | Y200: 0.75 | Z200: 0.75 | AA200: 0.75 | AB200: 0.75 | AC200: 0.75 | AD200: 0.75 | AE200: 0.75 | AF200: 0.75
H204: Scaling based on Adjusted Exponents
H205: MVDT - DL13A and DL13B
H206: Scaling Exponents | I206: 10 | J206: 15 | K206: 25 | L206: 30 | M206: 37.5 | N206: 45 | O206: 50 | P206: 75 | Q206: 100 | R206: 112.5 | S206: 150 | T206: 167 | U206: 225 | V206: 250 | W206: 300 | X206: 333 | Y206: 500 | Z206: 667 | AA206: 750 | AB206: 833 | AC206: 1000 | AD206: 1500 | AE206: 2000 | AF206: 2500
H207: Base | I207: 0.75 | J207: 0.75 | K207: 0.75 | L207: 0.75 | M207: 0.75 | N207: 0.75 | O207: 0.75 | P207: 0.75 | Q207: 0.75 | R207: 0.75 | S207: 0.75 | T207: 0.75 | U207: 0.75 | V207: 0.75 | W207: 0.75 | X207: 0.75 | Y207: 0.75 | Z207: 0.75 | AA207: 0.75 | AB207: 0.75 | AC207: 0.75 | AD207: 0.75 | AE207: 0.75 | AF207: 0.75
H208: TSL1 | I208: 0.75 | J208: 0.75 | K208: 0.75 | L208: 0.75 | M208: 0.75 | N208: 0.75 | O208: 0.75 | P208: 0.75 | Q208: 0.75 | R208: 0.75 | S208: 0.75 | T208: 0.75 | U208: 0.75 | V208: 0.75 | W208: 0.75 | X208: 0.75 | Y208: 0.75 | Z208: 0.75 | AA208: 0.75 | AB208: 0.75 | AC208: 0.75 | AD208: 0.75 | AE208: 0.75 | AF208: 0.75
H209: TSL2 | I209: 0.75 | J209: 0.75 | K209: 0.75 | L209: 0.75 | M209: 0.75 | N209: 0.75 | O209: 0.75 | P209: 0.75 | Q209: 0.75 | R209: 0.75 | S209: 0.75 | T209: 0.75 | U209: 0.75 | V209: 0.75 | W209: 0.75 | X209: 0.75 | Y209: 0.75 | Z209: 0.75 | AA209: 0.75 | AB209: 0.75 | AC209: 0.75 | AD209: 0.75 | AE209: 0.75 | AF209: 0.75
H210: TSL3 | I210: 0.75 | J210: 0.75 | K210: 0.75 | L210: 0.75 | M210: 0.75 | N210: 0.75 | O210: 0.75 | P210: 0.75 | Q210: 0.75 | R210: 0.75 | S210: 0.75 | T210: 0.75 | U210: 0.75 | V210: 0.75 | W210: 0.75 | X210: 0.75 | Y210: 0.75 | Z210: 0.75 | AA210: 0.75 | AB210: 0.75 | AC210: 0.75 | AD210: 0.75 | AE210: 0.75 | AF210: 0.75
H211: TSL4 | I211: 0.75 | J211: 0.75 | K211: 0.75 | L211: 0.75 | M211: 0.75 | N211: 0.75 | O211: 0.75 | P211: 0.75 | Q211: 0.75 | R211: 0.75 | S211: 0.75 | T211: 0.75 | U211: 0.75 | V211: 0.75 | W211: 0.75 | X211: 0.75 | Y211: 0.75 | Z211: 0.75 | AA211: 0.75 | AB211: 0.75 | AC211: 0.75 | AD211: 0.75 | AE211: 0.75 | AF211: 0.75
H212: TSL5 | I212: 0.75 | J212: 0.75 | K212: 0.75 | L212: 0.75 | M212: 0.75 | N212: 0.75 | O212: 0.75 | P212: 0.75 | Q212: 0.75 | R212: 0.75 | S212: 0.75 | T212: 0.75 | U212: 0.75 | V212: 0.75 | W212: 0.75 | X212: 0.75 | Y212: 0.75 | Z212: 0.75 | AA212: 0.75 | AB212: 0.75 | AC212: 0.75 | AD212: 0.75 | AE212: 0.75 | AF212: 0.75
H213: TSL6 | I213: 0.75 | J213: 0.75 | K213: 0.75 | L213: 0.75 | M213: 0.75 | N213: 0.75 | O213: 0.75 | P213: 0.75 | Q213: 0.75 | R213: 0.75 | S213: 0.75 | T213: 0.75 | U213: 0.75 | V213: 0.75 | W213: 0.75 | X213: 0.75 | Y213: 0.75 | Z213: 0.75 | AA213: 0.75 | AB213: 0.75 | AC213: 0.75 | AD213: 0.75 | AE213: 0.75 | AF213: 0.75
H214: TSL7 | I214: 0.75 | J214: 0.75 | K214: 0.75 | L214: 0.75 | M214: 0.75 | N214: 0.75 | O214: 0.75 | P214: 0.75 | Q214: 0.75 | R214: 0.75 | S214: 0.75 | T214: 0.75 | U214: 0.75 | V214: 0.75 | W214: 0.75 | X214: 0.75 | Y214: 0.75 | Z214: 0.75 | AA214: 0.75 | AB214: 0.75 | AC214: 0.75 | AD214: 0.75 | AE214: 0.75 | AF214: 0.75

Sheet Efficiency Distributions
A1: Distribution Transformers Efficiency Distribution Definitions and TSL-EL Maps
B3: Liquid Immersed
B4: Rep Unit | C4: Design Line | D4: Pre-Standard "Avg Base Case Efficiency" (Nelly Leap) | E4: 2010 Minimum | F4: 2016 Minimum | G4: =B3&" "&D4&" "&E4&" Efficiency Increase" -> Liquid Immersed Pre-Standard "Avg Base Case Efficiency" (Nelly Leap) 2010 Minimum Efficiency Increase | H4: kVa Rating (kVa) | I4: =B3&" "&"Notes" -> Liquid Immersed Notes
B5: Single 50 kva | C5: DL1 | D5: 0.9897 | E5: 0.9908 | F5: 0.9911 | G5: =E5-D5 -> 0.0011 | H5: 50
B6: Single 25 kva | C6: DL2 | D6: 0.9874 | E6: 0.9891 | F6: 0.9895 | G6: =E6-D6 -> 0.0017 | H6: 25
B7: Single 500 kva | C7: DL3 | D7: 0.9936 | E7: 0.9942 | F7: 0.9949 | G7: =E7-D7 -> 0.0006 | H7: 500
B8: Three 150 kva | C8: DL4 | D8: 0.9891 | E8: 0.9908 | F8: 0.9916 | G8: =E8-D8 -> 0.0017 | H8: 150
B9: Three 1500 kva | C9: DL5 | D9: 0.9936 | E9: 0.9942 | F9: 0.9948 | G9: =E9-D9 -> 0.0006 | H9: 1500
B10: Medium Voltage Dry-Type
A11: CSL 2016 Standard | B11: Rep Unit | C11: Design Line | D11: Pre-Standard "Avg Base Case Efficiency" (Nelly Leap) | E11: 2010 Minimum | F11: 2016 Minimum | G11: =B10&" "&D11&" "&E11&" Efficiency Increase" -> Medium Voltage Dry-Type Pre-Standard "Avg Base Case Efficiency" (Nelly Leap) 2010 Minimum Efficiency Increase | H11: kVa Rating (kVa) | I11: =B10&" "&"Notes" -> Medium Voltage Dry-Type Notes
A12: 1 | B12: Three 300 kVa (Low BIL) | C12: DL9 | D12: 0.9877 | E12: 0.9882 | F12: 0.9893 | G12: =E12-D12 -> 0.0005 | H12: 300
A13: 2 | B13: Three 1500 kVa (Low BIL) | C13: DL10 | D13: 0.9917 | E13: 0.9922 | F13: 0.9937 | G13: =E13-D13 -> 0.0005 | H13: 1500
A14: 1 | B14: Three 300 kVa (Med BIL) | C14: DL11 | D14: 0.9842 | E14: 0.9867 | F14: 0.9881 | G14: =E14-D14 -> 0.0025 | H14: 300
A15: 2 | B15: Three 1500 kVa (Med BIL) | C15: DL12 | D15: 0.99 | E15: 0.9912 | F15: 0.993 | G15: =E15-D15 -> 0.0012 | H15: 1500
A16: 1 | B16: Three 300 kVa (High BIL) | C16: DL13A | D16: =E16 -> 0.9863 | E16: 0.9863 | F16: 0.9869 | G16: 0 | H16: 300 | I16: Added in 2013 rule, set Pre-Standard case to 2010 minimum | J16: Source: Design_Line_12_1500kVA,46-95_kV_BIL_LCC_Analytical_Spreadsheet
A17: 2 | B17: Three 2000 kVa (High BIL) | C17: DL13B | D17: 0.9925 | E17: 0.992 | F17: 0.9928 | G17: =E17-D17 -> -0.0005 | H17: 2000 | I17: Selected 2010 minimum for 2500 kVa High BIL case. Three phase 2000 kVa (High BIL) did not exist for 2010 standard.
B18: Low Voltage Dry-Type
B19: Rep Unit | C19: Design Line | D19: Pre-Standard "Avg Base Case Efficiency" (Nelly Leap, EPAct) | E19: 2007 Minimum | F19: 2016 Minimum | G19: =B18&" "&D19&" "&E19&" Efficiency Increase" -> Low Voltage Dry-Type Pre-Standard "Avg Base Case Efficiency" (Nelly Leap, EPAct) 2007 Minimum Efficiency Increase | H19: kVa Rating (kVa) | I19: =B18&" "&"Notes" -> Low Voltage Dry-Type Notes
B20: Single 25 kVa | C20: DL6 | D20: 0.972 | E20: 0.98 | F20: 0.98 | G20: =E20-D20 -> 0.008 | H20: 25
B21: Three 75 kVa | C21: DL7 | D21: 0.973 | E21: 0.98 | F21: 0.986 | G21: =E21-D21 -> 0.007 | H21: 75
B22: Three 300 kVa | C22: DL8 | D22: 0.983 | E22: 0.986 | F22: 0.9902 | G22: =E22-D22 -> 0.003 | H22: 300
B23: Also Reviewed in Navigant Presentation Expert Panel Meeting 1 - Updates applied since meeting.
J26: Design Line | L26: Description | M26: Base % | N26: NEMA TP-1 efficiency
J27: LIQUID IMMERSED
J28: 1 | L28: 50kVA/1 phase/$1,382/pad | M28: 98.97 | N28: 99.06 per ch 8 (98.9)
J29: 2 | L29: 25kVA/1 phase/$737/pole-round | M29: 98.74 | N29: 98.84 per ch 8 (98.7)
J30: 3 | L30: 500kVA/1 phase/$5,428/dist | M30: 99.36 | N30: 99.43 per ch 8 (99.3)
J31: 4 | L31: 150kVA/3 phase/$3,335/dist | M31: 98.91 | N31: 99.06 per ch 8 (98.9)
J32: 5 | L32: 1500kVA/3 phase/$11,931/dist | M32: 99.36 | N32: 99.41 per ch 8 (99.3)
J33: DRY-LOW VOLTAGE (EPAct)
J34: 6 | L34: 25kVA/1 phase | M34: 97.2 | N34: 98
J35: 7 | L35: 75kVA/3 phase | M35: 97.3 | N35: 98.5
J36: 8 | L36: 300kVA/3 phase | M36: 98.3 | N36: 98.6
J37: DRY-MEDIUM VOLTAGE-3 PHASE
J38: 9 | L38: 300kVA/20-45kV BIL/$7,510/dist | M38: 98.77 | N38: 98.86 per ch 8 (98.6)
J39: 10 | L39: 1500kVA/20-45kV BIL/$33,584 | M39: 99.17 | N39: 99.26 per ch 8 (99.1)
J40: 11 | L40: 300kVA/46-95kV BIL/$10,945 | M40: 98.42 | N40: 98.66 per ch 8 (98.5)
J41: 12 | L41: 1500kVA/46-95kV BIL/$33,590 | M41: 99.18 | N41: 99.24 per ch 8 (99.0)
J42: 13 | L42: 2000kVA/>=96kV BIL/$41,873 | M42: 99.26 | N42: 99.27 per ch 8 (99.2)

Sheet UEC Rollup
B2: Stock Unit Energy Consumption
D4: Product | E4: Distribution Transformers (Liquid-Immersed, Medium-Voltage Dry-Type, Low-Voltage Dry-Type)
D6: Number of Product Classes | E6: =MAX($C:$C) -> 2010
E8: 2009 Estimate
D9: Product Class | E9: Product Class Share by Design Line | F9: Notes
C10: 1 | D10: Liquid Immersed | E10: =SUM(E11:E15) -> 1
D11: DL1 | E11: =Assumptions!D133 -> 0.1352734216
D12: DL2 | E12: =Assumptions!D134 -> 0.2618104284
D13: DL3 | E13: =Assumptions!D135 -> 0.01248896964
D14: DL4 | E14: =Assumptions!D136 -> 0.1533602761
D15: DL5 | E15: =Assumptions!D137 -> 0.4370669042
C16: 2 | D16: Low Voltage Dry | E16: =SUM(E17:E19) -> 0.7332992972
D17: DL6 | E17: =Assumptions!D138 -> 0.02560353469
D18: DL7 | E18: =Assumptions!D139 -> 0.5314564452
D19: DL8 | E19: =Assumptions!D140 -> 0.1762393173
C20: 3 | D20: Medium Voltage Dry | E20: =SUM(E21:E26) -> 0.264283247
D21: DL9 | E21: =Assumptions!D141 -> 0.001932077882
D22: DL10 | E22: =Assumptions!D142 -> 0.03720853106
D23: DL11 | E23: =Assumptions!D143 -> 0.003156783325
D24: DL12 | E24: =Assumptions!D144 -> 0.2024559913
D25: DL13A | E25: =Assumptions!D145 -> 0.01952145268
D26: DL13B | E26: =Assumptions!D146 -> 8.410735871e-06
D28: Efficiency Tier by Product Class
D29: Liquid Immersed | E29: Pre-Standard "Avg Base Case Efficiency" | F29: 2010 Minimum Efficiency | G29: 2016 Minimum Efficiency
E30: % | F30: % | G30: %
D31: DL1 | E31: =VLOOKUP(D31, Assumptions!$D$5:$E$18, 2, FALSE) -> 0.9897 | F31: =VLOOKUP(D31, Assumptions!$D$22:$E$35, 2, FALSE) -> 0.9908 | G31: =VLOOKUP(D31, Assumptions!$D$39:$E$52, 2, FALSE) -> 0.9911
D32: DL2 | E32: =VLOOKUP(D32, Assumptions!$D$5:$E$18, 2, FALSE) -> 0.9874 | F32: =VLOOKUP(D32, Assumptions!$D$22:$E$35, 2, FALSE) -> 0.9891 | G32: =VLOOKUP(D32, Assumptions!$D$39:$E$52, 2, FALSE) -> 0.9895
D33: DL3 | E33: =VLOOKUP(D33, Assumptions!$D$5:$E$18, 2, FALSE) -> 0.9936 | F33: =VLOOKUP(D33, Assumptions!$D$22:$E$35, 2, FALSE) -> 0.9942 | G33: =VLOOKUP(D33, Assumptions!$D$39:$E$52, 2, FALSE) -> 0.9949
D34: DL4 | E34: =VLOOKUP(D34, Assumptions!$D$5:$E$18, 2, FALSE) -> 0.9891 | F34: =VLOOKUP(D34, Assumptions!$D$22:$E$35, 2, FALSE) -> 0.9908 | G34: =VLOOKUP(D34, Assumptions!$D$39:$E$52, 2, FALSE) -> 0.9916
D35: DL5 | E35: =VLOOKUP(D35, Assumptions!$D$5:$E$18, 2, FALSE) -> 0.9936 | F35: =VLOOKUP(D35, Assumptions!$D$22:$E$35, 2, FALSE) -> 0.9942 | G35: =VLOOKUP(D35, Assumptions!$D$39:$E$52, 2, FALSE) -> 0.9948
D37: Low Voltage Dry | E37: Pre-Standard "Avg Base Case Efficiency" | F37: 2007 Minimum Efficiency | G37: 2016 Minimum Efficiency
E38: % | F38: % | G38: %
D39: DL6 | E39: =VLOOKUP(D39, Assumptions!$D$5:$E$18, 2, FALSE) -> 0.972 | F39: =VLOOKUP(D39, Assumptions!$D$22:$E$35, 2, FALSE) -> 0.98 | G39: =VLOOKUP(D39, Assumptions!$D$39:$E$52, 2, FALSE) -> 0.98
D40: DL7 | E40: =VLOOKUP(D40, Assumptions!$D$5:$E$18, 2, FALSE) -> 0.973 | F40: =VLOOKUP(D40, Assumptions!$D$22:$E$35, 2, FALSE) -> 0.98 | G40: =VLOOKUP(D40, Assumptions!$D$39:$E$52, 2, FALSE) -> 0.986
D41: DL8 | E41: =VLOOKUP(D41, Assumptions!$D$5:$E$18, 2, FALSE) -> 0.983 | F41: =VLOOKUP(D41, Assumptions!$D$22:$E$35, 2, FALSE) -> 0.986 | G41: =VLOOKUP(D41, Assumptions!$D$39:$E$52, 2, FALSE) -> 0.9902
D43: Medium Voltage Dry | E43: Pre-Standard "Avg Base Case Efficiency" | F43: 2010 Minimum Efficiency | G43: 2016 Minimum Efficiency
E44: % | F44: % | G44: %
D45: DL9 | E45: =VLOOKUP(D45, Assumptions!$D$5:$E$18, 2, FALSE) -> 0.9877 | F45: =VLOOKUP(D45, Assumptions!$D$22:$E$35, 2, FALSE) -> 0.9882 | G45: =VLOOKUP(D45, Assumptions!$D$39:$E$52, 2, FALSE) -> 0.9893
D46: DL10 | E46: =VLOOKUP(D46, Assumptions!$D$5:$E$18, 2, FALSE) -> 0.9917 | F46: =VLOOKUP(D46, Assumptions!$D$22:$E$35, 2, FALSE) -> 0.9922 | G46: =VLOOKUP(D46, Assumptions!$D$39:$E$52, 2, FALSE) -> 0.9937
D47: DL11 | E47: =VLOOKUP(D47, Assumptions!$D$5:$E$18, 2, FALSE) -> 0.9842 | F47: =VLOOKUP(D47, Assumptions!$D$22:$E$35, 2, FALSE) -> 0.9867 | G47: =VLOOKUP(D47, Assumptions!$D$39:$E$52, 2, FALSE) -> 0.9881
D48: DL12 | E48: =VLOOKUP(D48, Assumptions!$D$5:$E$18, 2, FALSE) -> 0.99 | F48: =VLOOKUP(D48, Assumptions!$D$22:$E$35, 2, FALSE) -> 0.9912 | G48: =VLOOKUP(D48, Assumptions!$D$39:$E$52, 2, FALSE) -> 0.993
D49: DL13A | E49: =VLOOKUP(D49, Assumptions!$D$5:$E$18, 2, FALSE) -> 0.9863 | F49: =VLOOKUP(D49, Assumptions!$D$22:$E$35, 2, FALSE) -> 0.9863 | G49: =VLOOKUP(D49, Assumptions!$D$39:$E$52, 2, FALSE) -> 0.9869
D50: DL13B | E50: =VLOOKUP(D50, Assumptions!$D$5:$E$18, 2, FALSE) -> 0.9925 | F50: =VLOOKUP(D50, Assumptions!$D$22:$E$35, 2, FALSE) -> 0.992 | G50: =VLOOKUP(D50, Assumptions!$D$39:$E$52, 2, FALSE) -> 0.9928
B53: Market Share by Product Class and Efficiency Tier (2005-2034)
B55: Base Case Market Share Matrix by Product Class and Efficiency Distribution
D57: Stepped from 2001 and 2009 HVOLT Market Share Data
D58: =$D$29 -> Liquid Immersed | E58: 2005 | F58: =E58+1 -> 2006 | G58: =F58+1 -> 2007 | H58: 2008 | I58: 2009 | J58: 2010 | K58: 2011 | L58: 2012 | M58: 2013 | N58: 2014 | O58: 2015 | P58: 2016 | Q58: 2017 | R58: 2018 | S58: 2019 | T58: 2020 | U58: 2021 | V58: 2022 | W58: 2023 | X58: 2024 | Y58: 2025 | Z58: 2026 | AA58: 2027 | AB58: 2028 | AC58: 2029 | AD58: 2030 | AE58: 2031 | AF58: 2032 | AG58: 2033 | AH58: 2034
D59: DL1
D60: DL2
D61: DL3
D62: DL4
D63: DL5
D65: =$D$37 -> Low Voltage Dry | E65: =E$58 -> 2005 | F65: =F$58 -> 2006 | G65: 2007 | H65: 2008 | I65: 2009 | J65: 2010 | K65: 2011 | L65: 2012 | M65: 2013 | N65: 2014 | O65: 2015 | P65: 2016 | Q65: 2017 | R65: 2018 | S65: 2019 | T65: 2020 | U65: 2021 | V65: 2022 | W65: 2023 | X65: 2024 | Y65: 2025 | Z65: 2026 | AA65: 2027 | AB65: 2028 | AC65: 2029 | AD65: 2030 | AE65: 2031 | AF65: 2032 | AG65: 2033 | AH65: 2034
D66: =D39 -> DL6
D67: =D40 -> DL7
D68: =D41 -> DL8
D70: =$D$43 -> Medium Voltage Dry | E70: =E$58 -> 2005 | F70: =F$58 -> 2006 | G70: 2007 | H70: 2008 | I70: 2009 | J70: 2010 | K70: 2011 | L70: 2012 | M70: 2013 | N70: 2014 | O70: 2015 | P70: 2016 | Q70: 2017 | R70: 2018 | S70: 2019 | T70: 2020 | U70: 2021 | V70: 2022 | W70: 2023 | X70: 2024 | Y70: 2025 | Z70: 2026 | AA70: 2027 | AB70: 2028 | AC70: 2029 | AD70: 2030 | AE70: 2031 | AF70: 2032 | AG70: 2033 | AH70: 2034
D71: =D45 -> DL9
D72: DL10
D73: DL11
D74: DL12
D75: DL13A
D76: DL13B
B78: Standard Case Market Share Matrix by Product Class and Efficiency Distribution
D80: Standard Effective Year Map
D81: Design Line | E81: 2007 Fed Standard | F81: 2010 Fed Standard | G81: 2016 Fed Standard | H81: Notes
D82: DL1 | F82: x | G82: x
D83: DL2 | F83: x | G83: x
D84: DL3 | F84: x | G84: x
D85: DL4 | F85: x | G85: x
D86: DL5 | F86: x | G86: x
D87: DL6 | E87: x | G87: x
D88: DL7 | E88: x | G88: x
D89: DL8 | E89: x | G89: x
D90: DL9 | F90: x | G90: x
D91: DL10 | F91: x | G91: x
D92: DL11 | F92: x | G92: x
D93: DL12 | F93: x | G93: x
D94: DL13A | F94: x | G94: x | H94: Split DL13 from 2010 Rule to coincide with current split 2016 Rule
D95: DL13B | F95: x | G95: x
D97: =$D$29 -> Liquid Immersed | E97: 2005 | F97: =E97+1 -> 2006 | G97: =F97+1 -> 2007 | H97: =G97+1 -> 2008 | I97: =H97+1 -> 2009 | J97: =I97+1 -> 2010 | K97: =J97+1 -> 2011 | L97: =K97+1 -> 2012 | M97: =L97+1 -> 2013 | N97: =M97+1 -> 2014 | O97: =N97+1 -> 2015 | P97: =O97+1 -> 2016 | Q97: =P97+1 -> 2017 | R97: =Q97+1 -> 2018 | S97: =R97+1 -> 2019 | T97: =S97+1 -> 2020 | U97: =T97+1 -> 2021 | V97: =U97+1 -> 2022 | W97: =V97+1 -> 2023 | X97: =W97+1 -> 2024 | Y97: =X97+1 -> 2025 | Z97: =Y97+1 -> 2026 | AA97: =Z97+1 -> 2027 | AB97: =AA97+1 -> 2028 | AC97: =AB97+1 -> 2029 | AD97: =AC97+1 -> 2030 | AE97: =AD97+1 -> 2031 | AF97: =AE97+1 -> 2032 | AG97: =AF97+1 -> 2033 | AH97: =AG97+1 -> 2034
D98: DL1
D99: DL2
D100: DL3
D101: DL4
D102: DL5
D104: =$D$37 -> Low Voltage Dry | E104: =E$58 -> 2005 | F104: =F$58 -> 2006 | G104: 2007 | H104: 2008 | I104: 2009 | J104: 2010 | K104: 2011 | L104: 2012 | M104: 2013 | N104: 2014 | O104: 2015 | P104: 2016 | Q104: 2017 | R104: 2018 | S104: 2019 | T104: 2020 | U104: 2021 | V104: 2022 | W104: 2023 | X104: 2024 | Y104: 2025 | Z104: 2026 | AA104: 2027 | AB104: 2028 | AC104: 2029 | AD104: 2030 | AE104: 2031 | AF104: 2032 | AG104: 2033 | AH104: 2034
D105: DL6
D106: DL7
D107: DL8
D109: =$D$43 -> Medium Voltage Dry | E109: =E$58 -> 2005 | F109: =F$58 -> 2006 | G109: 2007 | H109: 2008 | I109: 2009 | J109: 2010 | K109: 2011 | L109: 2012 | M109: 2013 | N109: 2014 | O109: 2015 | P109: 2016 | Q109: 2017 | R109: 2018 | S109: 2019 | T109: 2020 | U109: 2021 | V109: 2022 | W109: 2023 | X109: 2024 | Y109: 2025 | Z109: 2026 | AA109: 2027 | AB109: 2028 | AC109: 2029 | AD109: 2030 | AE109: 2031 | AF109: 2032 | AG109: 2033 | AH109: 2034
D110: DL9
D111: DL10
D112: DL11
D113: DL12
D114: DL13A
D115: DL13B
B118: Aggregated Total
B120: Base Case
D121: Total Shipped Energy Consumption by Product Class
D122: Year | E122: =E$58 -> 2005 | F122: =F$58 -> 2006 | G122: 2007 | H122: 2008 | I122: 2009 | J122: 2010 | K122: 2011 | L122: 2012 | M122: 2013 | N122: 2014 | O122: 2015 | P122: 2016 | Q122: 2017 | R122: 2018 | S122: 2019 | T122: 2020 | U122: 2021 | V122: 2022 | W122: 2023 | X122: 2024 | Y122: 2025 | Z122: 2026 | AA122: 2027 | AB122: 2028 | AC122: 2029 | AD122: 2030 | AE122: 2031 | AF122: 2032 | AG122: 2033 | AH122: 2034
D123: =$D$58&" Base Case EC" -> Liquid Immersed Base Case EC | E123: =VLOOKUP(E$122, 'Base Case Liquid Immersed'!$B$68:$K$97, 9, FALSE)+VLOOKUP(E$122, 'Base Case Liquid Immersed'!$B$68:$K$97, 10, FALSE) -> 96978692.97 | F123: =VLOOKUP(F$122, 'Base Case Liquid Immersed'!$B$68:$K$97, 9, FALSE)+VLOOKUP(F$122, 'Base Case Liquid Immersed'!$B$68:$K$97, 10, FALSE) -> 97304599.1 | G123: =VLOOKUP(G$122, 'Base Case Liquid Immersed'!$B$68:$K$97, 9, FALSE)+VLOOKUP(G$122, 'Base Case Liquid Immersed'!$B$68:$K$97, 10, FALSE) -> 131080537.2 | H123: =VLOOKUP(H$122, 'Base Case Liquid Immersed'!$B$68:$K$97, 9, FALSE)+VLOOKUP(H$122, 'Base Case Liquid Immersed'!$B$68:$K$97, 10, FALSE) -> 119364723.3 | I123: =VLOOKUP(I$122, 'Base Case Liquid Immersed'!$B$68:$K$97, 9, FALSE)+VLOOKUP(I$122, 'Base Case Liquid Immersed'!$B$68:$K$97, 10, FALSE) -> 75789994.55 | J123: =VLOOKUP(J$122, 'Base Case Liquid Immersed'!$B$68:$K$97, 9, FALSE)+VLOOKUP(J$122, 'Base Case Liquid Immersed'!$B$68:$K$97, 10, FALSE) -> 79031600.81 | K123: =VLOOKUP(K$122, 'Base Case Liquid Immersed'!$B$68:$K$97, 9, FALSE)+VLOOKUP(K$122, 'Base Case Liquid Immersed'!$B$68:$K$97, 10, FALSE) -> 76341053.32 | L123: =VLOOKUP(L$122, 'Base Case Liquid Immersed'!$B$68:$K$97, 9, FALSE)+VLOOKUP(L$122, 'Base Case Liquid Immersed'!$B$68:$K$97, 10, FALSE) -> 73447213.7 | M123: =VLOOKUP(M$122, 'Base Case Liquid Immersed'!$B$68:$K$97, 9, FALSE)+VLOOKUP(M$122, 'Base Case Liquid Immersed'!$B$68:$K$97, 10, FALSE) -> 72278939.91 | N123: =VLOOKUP(N$122, 'Base Case Liquid Immersed'!$B$68:$K$97, 9, FALSE)+VLOOKUP(N$122, 'Base Case Liquid Immersed'!$B$68:$K$97, 10, FALSE) -> 72822694.61 | O123: =VLOOKUP(O$122, 'Base Case Liquid Immersed'!$B$68:$K$97, 9, FALSE)+VLOOKUP(O$122, 'Base Case Liquid Immersed'!$B$68:$K$97, 10, FALSE) -> 72423049.46 | P123: =VLOOKUP(P$122, 'Base Case Liquid Immersed'!$B$68:$K$97, 9, FALSE)+VLOOKUP(P$122, 'Base Case Liquid Immersed'!$B$68:$K$97, 10, FALSE) -> 72884273.87 | Q123: =VLOOKUP(Q$122, 'Base Case Liquid Immersed'!$B$68:$K$97, 9, FALSE)+VLOOKUP(Q$122, 'Base Case Liquid Immersed'!$B$68:$K$97, 10, FALSE) -> 73248688.22 | R123: =VLOOKUP(R$122, 'Base Case Liquid Immersed'!$B$68:$K$97, 9, FALSE)+VLOOKUP(R$122, 'Base Case Liquid Immersed'!$B$68:$K$97, 10, FALSE) -> 73251055.98 | S123: =VLOOKUP(S$122, 'Base Case Liquid Immersed'!$B$68:$K$97, 9, FALSE)+VLOOKUP(S$122, 'Base Case Liquid Immersed'!$B$68:$K$97, 10, FALSE) -> 72831064.17 | T123: =VLOOKUP(T$122, 'Base Case Liquid Immersed'!$B$68:$K$97, 9, FALSE)+VLOOKUP(T$122, 'Base Case Liquid Immersed'!$B$68:$K$97, 10, FALSE) -> 71783863.37 | U123: =VLOOKUP(U$122, 'Base Case Liquid Immersed'!$B$68:$K$97, 9, FALSE)+VLOOKUP(U$122, 'Base Case Liquid Immersed'!$B$68:$K$97, 10, FALSE) -> 71936984.11 | V123: =VLOOKUP(V$122, 'Base Case Liquid Immersed'!$B$68:$K$97, 9, FALSE)+VLOOKUP(V$122, 'Base Case Liquid Immersed'!$B$68:$K$97, 10, FALSE) -> 72569616.38 | W123: =VLOOKUP(W$122, 'Base Case Liquid Immersed'!$B$68:$K$97, 9, FALSE)+VLOOKUP(W$122, 'Base Case Liquid Immersed'!$B$68:$K$97, 10, FALSE) -> 73246708.61 | X123: =VLOOKUP(X$122, 'Base Case Liquid Immersed'!$B$68:$K$97, 9, FALSE)+VLOOKUP(X$122, 'Base Case Liquid Immersed'!$B$68:$K$97, 10, FALSE) -> 73924170.88 | Y123: =VLOOKUP(Y$122, 'Base Case Liquid Immersed'!$B$68:$K$97, 9, FALSE)+VLOOKUP(Y$122, 'Base Case Liquid Immersed'!$B$68:$K$97, 10, FALSE) -> 74476998.74 | Z123: =VLOOKUP(Z$122, 'Base Case Liquid Immersed'!$B$68:$K$97, 9, FALSE)+VLOOKUP(Z$122, 'Base Case Liquid Immersed'!$B$68:$K$97, 10, FALSE) -> 75025604.8 | AA123: =VLOOKUP(AA$122, 'Base Case Liquid Immersed'!$B$68:$K$97, 9, FALSE)+VLOOKUP(AA$122, 'Base Case Liquid Immersed'!$B$68:$K$97, 10, FALSE) -> 75711649.22 | AB123: =VLOOKUP(AB$122, 'Base Case Liquid Immersed'!$B$68:$K$97, 9, FALSE)+VLOOKUP(AB$122, 'Base Case Liquid Immersed'!$B$68:$K$97, 10, FALSE) -> 76635445.98 | AC123: =VLOOKUP(AC$122, 'Base Case Liquid Immersed'!$B$68:$K$97, 9, FALSE)+VLOOKUP(AC$122, 'Base Case Liquid Immersed'!$B$68:$K$97, 10, FALSE) -> 77419159.52 | AD123: =VLOOKUP(AD$122, 'Base Case Liquid Immersed'!$B$68:$K$97, 9, FALSE)+VLOOKUP(AD$122, 'Base Case Liquid Immersed'!$B$68:$K$97, 10, FALSE) -> 78311907.99 | AE123: =VLOOKUP(AE$122, 'Base Case Liquid Immersed'!$B$68:$K$97, 9, FALSE)+VLOOKUP(AE$122, 'Base Case Liquid Immersed'!$B$68:$K$97, 10, FALSE) -> 78649690.15 | AF123: =VLOOKUP(AF$122, 'Base Case Liquid Immersed'!$B$68:$K$97, 9, FALSE)+VLOOKUP(AF$122, 'Base Case Liquid Immersed'!$B$68:$K$97, 10, FALSE) -> 79093408.52 | AG123: =VLOOKUP(AG$122, 'Base Case Liquid Immersed'!$B$68:$K$97, 9, FALSE)+VLOOKUP(AG$122, 'Base Case Liquid Immersed'!$B$68:$K$97, 10, FALSE) -> 79357055.01 | AH123: =VLOOKUP(AH$122, 'Base Case Liquid Immersed'!$B$68:$K$97, 9, FALSE)+VLOOKUP(AH$122, 'Base Case Liquid Immersed'!$B$68:$K$97, 10, FALSE) -> 79711512.88
D124: =$D$65&" Base Case EC" -> Low Voltage Dry Base Case EC | E124: =VLOOKUP(E$122, 'Base Case Low Dry'!$B$68:$K$97, 9, FALSE)+VLOOKUP(E$122, 'Base Case Low Dry'!$B$68:$K$97, 10, FALSE) -> 43413262.73 | F124: =VLOOKUP(F$122, 'Base Case Low Dry'!$B$68:$K$97, 9, FALSE)+VLOOKUP(F$122, 'Base Case Low Dry'!$B$68:$K$97, 10, FALSE) -> 43614889.77 | G124: =VLOOKUP(G$122, 'Base Case Low Dry'!$B$68:$K$97, 9, FALSE)+VLOOKUP(G$122, 'Base Case Low Dry'!$B$68:$K$97, 10, FALSE) -> 55191248.66 | H124: =VLOOKUP(H$122, 'Base Case Low Dry'!$B$68:$K$97, 9, FALSE)+VLOOKUP(H$122, 'Base Case Low Dry'!$B$68:$K$97, 10, FALSE) -> 53446982.05 | I124: =VLOOKUP(I$122, 'Base Case Low Dry'!$B$68:$K$97, 9, FALSE)+VLOOKUP(I$122, 'Base Case Low Dry'!$B$68:$K$97, 10, FALSE) -> 38151541.29 | J124: =VLOOKUP(J$122, 'Base Case Low Dry'!$B$68:$K$97, 9, FALSE)+VLOOKUP(J$122, 'Base Case Low Dry'!$B$68:$K$97, 10, FALSE) -> 39339671.49 | K124: =VLOOKUP(K$122, 'Base Case Low Dry'!$B$68:$K$97, 9, FALSE)+VLOOKUP(K$122, 'Base Case Low Dry'!$B$68:$K$97, 10, FALSE) -> 39288657.92 | L124: =VLOOKUP(L$122, 'Base Case Low Dry'!$B$68:$K$97, 9, FALSE)+VLOOKUP(L$122, 'Base Case Low Dry'!$B$68:$K$97, 10, FALSE) -> 37873734.85 | M124: =VLOOKUP(M$122, 'Base Case Low Dry'!$B$68:$K$97, 9, FALSE)+VLOOKUP(M$122, 'Base Case Low Dry'!$B$68:$K$97, 10, FALSE) -> 37748183.04 | N124: =VLOOKUP(N$122, 'Base Case Low Dry'!$B$68:$K$97, 9, FALSE)+VLOOKUP(N$122, 'Base Case Low Dry'!$B$68:$K$97, 10, FALSE) -> 38105259.13 | O124: =VLOOKUP(O$122, 'Base Case Low Dry'!$B$68:$K$97, 9, FALSE)+VLOOKUP(O$122, 'Base Case Low Dry'!$B$68:$K$97, 10, FALSE) -> 38064530.45 | P124: =VLOOKUP(P$122, 'Base Case Low Dry'!$B$68:$K$97, 9, FALSE)+VLOOKUP(P$122, 'Base Case Low Dry'!$B$68:$K$97, 10, FALSE) -> 38335585.28 | Q124: =VLOOKUP(Q$122, 'Base Case Low Dry'!$B$68:$K$97, 9, FALSE)+VLOOKUP(Q$122, 'Base Case Low Dry'!$B$68:$K$97, 10, FALSE) -> 38593879.7 | R124: =VLOOKUP(R$122, 'Base Case Low Dry'!$B$68:$K$97, 9, FALSE)+VLOOKUP(R$122, 'Base Case Low Dry'!$B$68:$K$97, 10, FALSE) -> 38626715.94 | S124: =VLOOKUP(S$122, 'Base Case Low Dry'!$B$68:$K$97, 9, FALSE)+VLOOKUP(S$122, 'Base Case Low Dry'!$B$68:$K$97, 10, FALSE) -> 38420824.39 | T124: =VLOOKUP(T$122, 'Base Case Low Dry'!$B$68:$K$97, 9, FALSE)+VLOOKUP(T$122, 'Base Case Low Dry'!$B$68:$K$97, 10, FALSE) -> 37899249.86 | U124: =VLOOKUP(U$122, 'Base Case Low Dry'!$B$68:$K$97, 9, FALSE)+VLOOKUP(U$122, 'Base Case Low Dry'!$B$68:$K$97, 10, FALSE) -> 37996329.24 | V124: =VLOOKUP(V$122, 'Base Case Low Dry'!$B$68:$K$97, 9, FALSE)+VLOOKUP(V$122, 'Base Case Low Dry'!$B$68:$K$97, 10, FALSE) -> 38283814.22 | W124: =VLOOKUP(W$122, 'Base Case Low Dry'!$B$68:$K$97, 9, FALSE)+VLOOKUP(W$122, 'Base Case Low Dry'!$B$68:$K$97, 10, FALSE) -> 38599394.67 | X124: =VLOOKUP(X$122, 'Base Case Low Dry'!$B$68:$K$97, 9, FALSE)+VLOOKUP(X$122, 'Base Case Low Dry'!$B$68:$K$97, 10, FALSE) -> 38878800.37 | Y124: =VLOOKUP(Y$122, 'Base Case Low Dry'!$B$68:$K$97, 9, FALSE)+VLOOKUP(Y$122, 'Base Case Low Dry'!$B$68:$K$97, 10, FALSE) -> 39144067.03 | Z124: =VLOOKUP(Z$122, 'Base Case Low Dry'!$B$68:$K$97, 9, FALSE)+VLOOKUP(Z$122, 'Base Case Low Dry'!$B$68:$K$97, 10, FALSE) -> 39371692.17 | AA124: =VLOOKUP(AA$122, 'Base Case Low Dry'!$B$68:$K$97, 9, FALSE)+VLOOKUP(AA$122, 'Base Case Low Dry'!$B$68:$K$97, 10, FALSE) -> 39664318 | AB124: =VLOOKUP(AB$122, 'Base Case Low Dry'!$B$68:$K$97, 9, FALSE)+VLOOKUP(AB$122, 'Base Case Low Dry'!$B$68:$K$97, 10, FALSE) -> 40046419.65 | AC124: =VLOOKUP(AC$122, 'Base Case Low Dry'!$B$68:$K$97, 9, FALSE)+VLOOKUP(AC$122, 'Base Case Low Dry'!$B$68:$K$97, 10, FALSE) -> 40444779.43 | AD124: =VLOOKUP(AD$122, 'Base Case Low Dry'!$B$68:$K$97, 9, FALSE)+VLOOKUP(AD$122, 'Base Case Low Dry'!$B$68:$K$97, 10, FALSE) -> 40859365.98 | AE124: =VLOOKUP(AE$122, 'Base Case Low Dry'!$B$68:$K$97, 9, FALSE)+VLOOKUP(AE$122, 'Base Case Low Dry'!$B$68:$K$97, 10, FALSE) -> 40988100.06 | AF124: =VLOOKUP(AF$122, 'Base Case Low Dry'!$B$68:$K$97, 9, FALSE)+VLOOKUP(AF$122, 'Base Case Low Dry'!$B$68:$K$97, 10, FALSE) -> 41129804.62 | AG124: =VLOOKUP(AG$122, 'Base Case Low Dry'!$B$68:$K$97, 9, FALSE)+VLOOKUP(AG$122, 'Base Case Low Dry'!$B$68:$K$97, 10, FALSE) -> 41250055.79 | AH124: =VLOOKUP(AH$122, 'Base Case Low Dry'!$B$68:$K$97, 9, FALSE)+VLOOKUP(AH$122, 'Base Case Low Dry'!$B$68:$K$97, 10, FALSE) -> 41381451.34
D125: =$D$70&" Base Case EC" -> Medium Voltage Dry Base Case EC | E125: =VLOOKUP(E$122, 'Base Case Medium Dry'!$B$68:$K$97, 9, FALSE)+VLOOKUP(E$122, 'Base Case Medium Dry'!$B$68:$K$97, 10, FALSE) -> 9558935.618 | F125: =VLOOKUP(F$122, 'Base Case Medium Dry'!$B$68:$K$97, 9, FALSE)+VLOOKUP(F$122, 'Base Case Medium Dry'!$B$68:$K$97, 10, FALSE) -> 9603330.804 | G125: =VLOOKUP(G$122, 'Base Case Medium Dry'!$B$68:$K$97, 9, FALSE)+VLOOKUP(G$122, 'Base Case Medium Dry'!$B$68:$K$97, 10, FALSE) -> 12152267.75 | H125: =VLOOKUP(H$122, 'Base Case Medium Dry'!$B$68:$K$97, 9, FALSE)+VLOOKUP(H$122, 'Base Case Medium Dry'!$B$68:$K$97, 10, FALSE) -> 11768206.95 | I125: =VLOOKUP(I$122, 'Base Case Medium Dry'!$B$68:$K$97, 9, FALSE)+VLOOKUP(I$122, 'Base Case Medium Dry'!$B$68:$K$97, 10, FALSE) -> 8400385.134 | J125: =VLOOKUP(J$122, 'Base Case Medium Dry'!$B$68:$K$97, 9, FALSE)+VLOOKUP(J$122, 'Base Case Medium Dry'!$B$68:$K$97, 10, FALSE) -> 8661993.21 | K125: =VLOOKUP(K$122, 'Base Case Medium Dry'!$B$68:$K$97, 9, FALSE)+VLOOKUP(K$122, 'Base Case Medium Dry'!$B$68:$K$97, 10, FALSE) -> 8650760.803 | L125: =VLOOKUP(L$122, 'Base Case Medium Dry'!$B$68:$K$97, 9, FALSE)+VLOOKUP(L$122, 'Base Case Medium Dry'!$B$68:$K$97, 10, FALSE) -> 8339216.411 | M125: =VLOOKUP(M$122, 'Base Case Medium Dry'!$B$68:$K$97, 9, FALSE)+VLOOKUP(M$122, 'Base Case Medium Dry'!$B$68:$K$97, 10, FALSE) -> 8311571.825 | N125: =VLOOKUP(N$122, 'Base Case Medium Dry'!$B$68:$K$97, 9, FALSE)+VLOOKUP(N$122, 'Base Case Medium Dry'!$B$68:$K$97, 10, FALSE) -> 8390194.513 | O125: =VLOOKUP(O$122, 'Base Case Medium Dry'!$B$68:$K$97, 9, FALSE)+VLOOKUP(O$122, 'Base Case Medium Dry'!$B$68:$K$97, 10, FALSE) -> 8381226.682 | P125: =VLOOKUP(P$122, 'Base Case Medium Dry'!$B$68:$K$97, 9, FALSE)+VLOOKUP(P$122, 'Base Case Medium Dry'!$B$68:$K$97, 10, FALSE) -> 8440908.804 | Q125: =VLOOKUP(Q$122, 'Base Case Medium Dry'!$B$68:$K$97, 9, FALSE)+VLOOKUP(Q$122, 'Base Case Medium Dry'!$B$68:$K$97, 10, FALSE) -> 8497781.28 | R125: =VLOOKUP(R$122, 'Base Case Medium Dry'!$B$68:$K$97, 9, FALSE)+VLOOKUP(R$122, 'Base Case Medium Dry'!$B$68:$K$97, 10, FALSE) -> 8505011.317 | S125: =VLOOKUP(S$122, 'Base Case Medium Dry'!$B$68:$K$97, 9, FALSE)+VLOOKUP(S$122, 'Base Case Medium Dry'!$B$68:$K$97, 10, FALSE) -> 8459677.15 | T125: =VLOOKUP(T$122, 'Base Case Medium Dry'!$B$68:$K$97, 9, FALSE)+VLOOKUP(T$122, 'Base Case Medium Dry'!$B$68:$K$97, 10, FALSE) -> 8344834.427 | U125: =VLOOKUP(U$122, 'Base Case Medium Dry'!$B$68:$K$97, 9, FALSE)+VLOOKUP(U$122, 'Base Case Medium Dry'!$B$68:$K$97, 10, FALSE) -> 8366209.818 | V125: =VLOOKUP(V$122, 'Base Case Medium Dry'!$B$68:$K$97, 9, FALSE)+VLOOKUP(V$122, 'Base Case Medium Dry'!$B$68:$K$97, 10, FALSE) -> 8429509.609 | W125: =VLOOKUP(W$122, 'Base Case Medium Dry'!$B$68:$K$97, 9, FALSE)+VLOOKUP(W$122, 'Base Case Medium Dry'!$B$68:$K$97, 10, FALSE) -> 8498995.59 | X125: =VLOOKUP(X$122, 'Base Case Medium Dry'!$B$68:$K$97, 9, FALSE)+VLOOKUP(X$122, 'Base Case Medium Dry'!$B$68:$K$97, 10, FALSE) -> 8560516.448 | Y125: =VLOOKUP(Y$122, 'Base Case Medium Dry'!$B$68:$K$97, 9, FALSE)+VLOOKUP(Y$122, 'Base Case Medium Dry'!$B$68:$K$97, 10, FALSE) -> 8618924.104 | Z125: =VLOOKUP(Z$122, 'Base Case Medium Dry'!$B$68:$K$97, 9, FALSE)+VLOOKUP(Z$122, 'Base Case Medium Dry'!$B$68:$K$97, 10, FALSE) -> 8669043.674 | AA125: =VLOOKUP(AA$122, 'Base Case Medium Dry'!$B$68:$K$97, 9, FALSE)+VLOOKUP(AA$122, 'Base Case Medium Dry'!$B$68:$K$97, 10, FALSE) -> 8733475.4 | AB125: =VLOOKUP(AB$122, 'Base Case Medium Dry'!$B$68:$K$97, 9, FALSE)+VLOOKUP(AB$122, 'Base Case Medium Dry'!$B$68:$K$97, 10, FALSE) -> 8817608.332 | AC125: =VLOOKUP(AC$122, 'Base Case Medium Dry'!$B$68:$K$97, 9, FALSE)+VLOOKUP(AC$122, 'Base Case Medium Dry'!$B$68:$K$97, 10, FALSE) -> 8905321.055 | AD125: =VLOOKUP(AD$122, 'Base Case Medium Dry'!$B$68:$K$97, 9, FALSE)+VLOOKUP(AD$122, 'Base Case Medium Dry'!$B$68:$K$97, 10, FALSE) -> 8996606.664 | AE125: =VLOOKUP(AE$122, 'Base Case Medium Dry'!$B$68:$K$97, 9, FALSE)+VLOOKUP(AE$122, 'Base Case Medium Dry'!$B$68:$K$97, 10, FALSE) -> 9024951.937 | AF125: =VLOOKUP(AF$122, 'Base Case Medium Dry'!$B$68:$K$97, 9, FALSE)+VLOOKUP(AF$122, 'Base Case Medium Dry'!$B$68:$K$97, 10, FALSE) -> 9056153.111 | AG125: =VLOOKUP(AG$122, 'Base Case Medium Dry'!$B$68:$K$97, 9, FALSE)+VLOOKUP(AG$122, 'Base Case Medium Dry'!$B$68:$K$97, 10, FALSE) -> 9082630.577 | AH125: =VLOOKUP(AH$122, 'Base Case Medium Dry'!$B$68:$K$97, 9, FALSE)+VLOOKUP(AH$122, 'Base Case Medium Dry'!$B$68:$K$97, 10, FALSE) -> 9111561.866
D126: Total Base Case EC | E126: =SUM(E123:E125) -> 149950891.3 | F126: =SUM(F123:F125) -> 150522819.7 | G126: 198424053.6 | H126: 184579912.3 | I126: 122341921 | J126: 127033265.5 | K126: 124280472 | L126: 119660165 | M126: 118338694.8 | N126: 119318148.3 | O126: 118868806.6 | P126: 119660768 | Q126: 120340349.2 | R126: 120382783.2 | S126: 119711565.7 | T126: 118027947.7 | U126: 118299523.2 | V126: 119282940.2 | W126: 120345098.9 | X126: 121363487.7 | Y126: 122239989.9 | Z126: 123066340.7 | AA126: 124109442.6 | AB126: 125499474 | AC126: 126769260 | AD126: 128167880.6 | AE126: 128662742.2 | AF126: 129279366.3 | AG126: 129689741.4 | AH126: 130204526.1
D128: Shipments
D129: Year | E129: =E$58 -> 2005 | F129: =F$58 -> 2006 | G129: 2007 | H129: 2008 | I129: 2009 | J129: 2010 | K129: 2011 | L129: 2012 | M129: 2013 | N129: 2014 | O129: 2015 | P129: 2016 | Q129: 2017 | R129: 2018 | S129: 2019 | T129: 2020 | U129: 2021 | V129: 2022 | W129: 2023 | X129: 2024 | Y129: 2025 | Z129: 2026 | AA129: 2027 | AB129: 2028 | AC129: 2029 | AD129: 2030 | AE129: 2031 | AF129: 2032 | AG129: 2033 | AH129: 2034
D130: =$D$58&" Base Case Shipped" -> Liquid Immersed Base Case Shipped | E130: =VLOOKUP(E$129, 'Base Case Liquid Immersed'!$O$13:$U$168, 5, FALSE) -> 3004.609366 | F130: =VLOOKUP(F$129, 'Base Case Liquid Immersed'!$O$13:$U$168, 5, FALSE) -> 3014.706642 | G130: =VLOOKUP(G$129, 'Base Case Liquid Immersed'!$O$13:$U$168, 5, FALSE) -> 4061.158154 | H130: =VLOOKUP(H$129, 'Base Case Liquid Immersed'!$O$13:$U$168, 5, FALSE) -> 3698.176936 | I130: =VLOOKUP(I$129, 'Base Case Liquid Immersed'!$O$13:$U$168, 5, FALSE) -> 2348.137725 | J130: =VLOOKUP(J$129, 'Base Case Liquid Immersed'!$O$13:$U$168, 5, FALSE) -> 2448.569688 | K130: =VLOOKUP(K$129, 'Base Case Liquid Immersed'!$O$13:$U$168, 5, FALSE) -> 2365.210716 | L130: =VLOOKUP(L$129, 'Base Case Liquid Immersed'!$O$13:$U$168, 5, FALSE) -> 2275.553314 | M130: =VLOOKUP(M$129, 'Base Case Liquid Immersed'!$O$13:$U$168, 5, FALSE) -> 2239.357669 | N130: =VLOOKUP(N$129, 'Base Case Liquid Immersed'!$O$13:$U$168, 5, FALSE) -> 2256.204364 | O130: =VLOOKUP(O$129, 'Base Case Liquid Immersed'!$O$13:$U$168, 5, FALSE) -> 2243.822494 | P130: =VLOOKUP(P$129, 'Base Case Liquid Immersed'!$O$13:$U$168, 5, FALSE) -> 2258.112223 | Q130: =VLOOKUP(Q$129, 'Base Case Liquid Immersed'!$O$13:$U$168, 5, FALSE) -> 2269.402566 | R130: =VLOOKUP(R$129, 'Base Case Liquid Immersed'!$O$13:$U$168, 5, FALSE) -> 2269.475924 | S130: =VLOOKUP(S$129, 'Base Case Liquid Immersed'!$O$13:$U$168, 5, FALSE) -> 2256.463671 | T130: =VLOOKUP(T$129, 'Base Case Liquid Immersed'!$O$13:$U$168, 5, FALSE) -> 2224.019129 | U130: =VLOOKUP(U$129, 'Base Case Liquid Immersed'!$O$13:$U$168, 5, FALSE) -> 2228.76314 | V130: =VLOOKUP(V$129, 'Base Case Liquid Immersed'!$O$13:$U$168, 5, FALSE) -> 2248.363454 | W130: =VLOOKUP(W$129, 'Base Case Liquid Immersed'!$O$13:$U$168, 5, FALSE) -> 2269.341234 | X130: =VLOOKUP(X$129, 'Base Case Liquid Immersed'!$O$13:$U$168, 5, FALSE) -> 2290.330478 | Y130: =VLOOKUP(Y$129, 'Base Case Liquid Immersed'!$O$13:$U$168, 5, FALSE) -> 2307.458279 | Z130: =VLOOKUP(Z$129, 'Base Case Liquid Immersed'!$O$13:$U$168, 5, FALSE) -> 2324.45528 | AA130: =VLOOKUP(AA$129, 'Base Case Liquid Immersed'!$O$13:$U$168, 5, FALSE) -> 2345.710417 | AB130: =VLOOKUP(AB$129, 'Base Case Liquid Immersed'!$O$13:$U$168, 5, FALSE) -> 2374.331636 | AC130: =VLOOKUP(AC$129, 'Base Case Liquid Immersed'!$O$13:$U$168, 5, FALSE) -> 2398.612775 | AD130: =VLOOKUP(AD$129, 'Base Case Liquid Immersed'!$O$13:$U$168, 5, FALSE) -> 2426.27205 | AE130: =VLOOKUP(AE$129, 'Base Case Liquid Immersed'!$O$13:$U$168, 5, FALSE) -> 2436.737271 | AF130: =VLOOKUP(AF$129, 'Base Case Liquid Immersed'!$O$13:$U$168, 5, FALSE) -> 2450.484625 | AG130: =VLOOKUP(AG$129, 'Base Case Liquid Immersed'!$O$13:$U$168, 5, FALSE) -> 2458.652963 | AH130: =VLOOKUP(AH$129, 'Base Case Liquid Immersed'!$O$13:$U$168, 5, FALSE) -> 2469.634833
D131: =$D$65&" Base Case Shipped" -> Low Voltage Dry Base Case Shipped | E131: =VLOOKUP(E$129, 'Base Case Low Dry'!$B$13:$H$168, 5, FALSE) -> 816.0205302 | F131: =VLOOKUP(F$129, 'Base Case Low Dry'!$B$13:$H$168, 5, FALSE) -> 819.8104273 | G131: =VLOOKUP(G$129, 'Base Case Low Dry'!$B$13:$H$168, 5, FALSE) -> 1037.406294 | H131: =VLOOKUP(H$129, 'Base Case Low Dry'!$B$13:$H$168, 5, FALSE) -> 1004.62006 | I131: =VLOOKUP(I$129, 'Base Case Low Dry'!$B$13:$H$168, 5, FALSE) -> 717.1182028 | J131: =VLOOKUP(J$129, 'Base Case Low Dry'!$B$13:$H$168, 5, FALSE) -> 739.450978 | K131: =VLOOKUP(K$129, 'Base Case Low Dry'!$B$13:$H$168, 5, FALSE) -> 738.4920978 | L131: =VLOOKUP(L$129, 'Base Case Low Dry'!$B$13:$H$168, 5, FALSE) -> 711.896394 | M131: =VLOOKUP(M$129, 'Base Case Low Dry'!$B$13:$H$168, 5, FALSE) -> 709.5364503 | N131: =VLOOKUP(N$129, 'Base Case Low Dry'!$B$13:$H$168, 5, FALSE) -> 716.2482569 | O131: =VLOOKUP(O$129, 'Base Case Low Dry'!$B$13:$H$168, 5, FALSE) -> 715.4826974 | P131: =VLOOKUP(P$129, 'Base Case Low Dry'!$B$13:$H$168, 5, FALSE) -> 720.5775991 | Q131: =VLOOKUP(Q$129, 'Base Case Low Dry'!$B$13:$H$168, 5, FALSE) -> 725.4326488 | R131: =VLOOKUP(R$129, 'Base Case Low Dry'!$B$13:$H$168, 5, FALSE) -> 726.0498575 | S131: =VLOOKUP(S$129, 'Base Case Low Dry'!$B$13:$H$168, 5, FALSE) -> 722.1798021 | T131: =VLOOKUP(T$129, 'Base Case Low Dry'!$B$13:$H$168, 5, FALSE) -> 712.3759888 | U131: =VLOOKUP(U$129, 'Base Case Low Dry'!$B$13:$H$168, 5, FALSE) -> 714.2007483 | V131: =VLOOKUP(V$129, 'Base Case Low Dry'!$B$13:$H$168, 5, FALSE) -> 719.6044806 | W131: =VLOOKUP(W$129, 'Base Case Low Dry'!$B$13:$H$168, 5, FALSE) -> 725.5363112 | X131: =VLOOKUP(X$129, 'Base Case Low Dry'!$B$13:$H$168, 5, FALSE) -> 730.7881808 | Y131: =VLOOKUP(Y$129, 'Base Case Low Dry'!$B$13:$H$168, 5, FALSE) -> 735.7742847 | Z131: =VLOOKUP(Z$129, 'Base Case Low Dry'!$B$13:$H$168, 5, FALSE) -> 740.0528571 | AA131: =VLOOKUP(AA$129, 'Base Case Low Dry'!$B$13:$H$168, 5, FALSE) -> 745.5532196 | AB131: =VLOOKUP(AB$129, 'Base Case Low Dry'!$B$13:$H$168, 5, FALSE) -> 752.7354209 | AC131: =VLOOKUP(AC$129, 'Base Case Low Dry'!$B$13:$H$168, 5, FALSE) -> 760.2232193 | AD131: =VLOOKUP(AD$129, 'Base Case Low Dry'!$B$13:$H$168, 5, FALSE) -> 768.0160253 | AE131: =VLOOKUP(AE$129, 'Base Case Low Dry'!$B$13:$H$168, 5, FALSE) -> 770.4357848 | AF131: =VLOOKUP(AF$129, 'Base Case Low Dry'!$B$13:$H$168, 5, FALSE) -> 773.0993447 | AG131: =VLOOKUP(AG$129, 'Base Case Low Dry'!$B$13:$H$168, 5, FALSE) -> 775.3596546 | AH131: =VLOOKUP(AH$129, 'Base Case Low Dry'!$B$13:$H$168, 5, FALSE) -> 777.8294406
D132: =$D$70&" Base Case Shipped" -> Medium Voltage Dry Base Case Shipped | E132: =VLOOKUP(E$129, 'Base Case Medium Dry'!$B$13:$H$168, 5, FALSE) -> 294.0868658 | F132: =VLOOKUP(F$129, 'Base Case Medium Dry'!$B$13:$H$168, 5, FALSE) -> 295.4527125 | G132: =VLOOKUP(G$129, 'Base Case Medium Dry'!$B$13:$H$168, 5, FALSE) -> 373.872414 | H132: =VLOOKUP(H$129, 'Base Case Medium Dry'!$B$13:$H$168, 5, FALSE) -> 362.0565341 | I132: =VLOOKUP(I$129, 'Base Case Medium Dry'!$B$13:$H$168, 5, FALSE) -> 258.4433073 | J132: =VLOOKUP(J$129, 'Base Case Medium Dry'!$B$13:$H$168, 5, FALSE) -> 266.4918498 | K132: =VLOOKUP(K$129, 'Base Case Medium Dry'!$B$13:$H$168, 5, FALSE) -> 266.1462775 | L132: =VLOOKUP(L$129, 'Base Case Medium Dry'!$B$13:$H$168, 5, FALSE) -> 256.5614118 | M132: =VLOOKUP(M$129, 'Base Case Medium Dry'!$B$13:$H$168, 5, FALSE) -> 255.7109082 | N132: =VLOOKUP(N$129, 'Base Case Medium Dry'!$B$13:$H$168, 5, FALSE) -> 258.1297862 | O132: =VLOOKUP(O$129, 'Base Case Medium Dry'!$B$13:$H$168, 5, FALSE) -> 257.8538851 | P132: =VLOOKUP(P$129, 'Base Case Medium Dry'!$B$13:$H$168, 5, FALSE) -> 259.6900444 | Q132: =VLOOKUP(Q$129, 'Base Case Medium Dry'!$B$13:$H$168, 5, FALSE) -> 261.439763 | R132: =VLOOKUP(R$129, 'Base Case Medium Dry'!$B$13:$H$168, 5, FALSE) -> 261.6621998 | S132: =VLOOKUP(S$129, 'Base Case Medium Dry'!$B$13:$H$168, 5, FALSE) -> 260.2674647 | T132: =VLOOKUP(T$129, 'Base Case Medium Dry'!$B$13:$H$168, 5, FALSE) -> 256.7342537 | U132: =VLOOKUP(U$129, 'Base Case Medium Dry'!$B$13:$H$168, 5, FALSE) -> 257.3918815 | V132: =VLOOKUP(V$129, 'Base Case Medium Dry'!$B$13:$H$168, 5, FALSE) -> 259.3393407 | W132: =VLOOKUP(W$129, 'Base Case Medium Dry'!$B$13:$H$168, 5, FALSE) -> 261.4771221 | X132: =VLOOKUP(X$129, 'Base Case Medium Dry'!$B$13:$H$168, 5, FALSE) -> 263.3698513 | Y132: =VLOOKUP(Y$129, 'Base Case Medium Dry'!$B$13:$H$168, 5, FALSE) -> 265.1668007 | Z132: =VLOOKUP(Z$129, 'Base Case Medium Dry'!$B$13:$H$168, 5, FALSE) -> 266.7087619 | AA132: =VLOOKUP(AA$129, 'Base Case Medium Dry'!$B$13:$H$168, 5, FALSE) -> 268.6910458 | AB132: =VLOOKUP(AB$129, 'Base Case Medium Dry'!$B$13:$H$168, 5, FALSE) -> 271.2794501 | AC132: =VLOOKUP(AC$129, 'Base Case Medium Dry'!$B$13:$H$168, 5, FALSE) -> 273.9779891 | AD132: =VLOOKUP(AD$129, 'Base Case Medium Dry'!$B$13:$H$168, 5, FALSE) -> 276.7864501 | AE132: =VLOOKUP(AE$129, 'Base Case Medium Dry'!$B$13:$H$168, 5, FALSE) -> 277.6585109 | AF132: =VLOOKUP(AF$129, 'Base Case Medium Dry'!$B$13:$H$168, 5, FALSE) -> 278.6184353 | AG132: =VLOOKUP(AG$129, 'Base Case Medium Dry'!$B$13:$H$168, 5, FALSE) -> 279.4330317 | AH132: =VLOOKUP(AH$129, 'Base Case Medium Dry'!$B$13:$H$168, 5, FALSE) -> 280.3231216
D133: Total Base Case Shipped | E133: =SUM(E130:E132) -> 4114.716762 | F133: =SUM(F130:F132) -> 4129.969782 | G133: 5472.436862 | H133: 5064.853531 | I133: 3323.699235 | J133: 3454.512516 | K133: 3369.849091 | L133: 3244.01112 | M133: 3204.605028 | N133: 3230.582407 | O133: 3217.159077 | P133: 3238.379866 | Q133: 3256.274978 | R133: 3257.187982 | S133: 3238.910938 | T133: 3193.129371 | U133: 3200.35577 | V133: 3227.307275 | W133: 3256.354667 | X133: 3284.48851 | Y133: 3308.399364 | Z133: 3331.216899 | AA133: 3359.954683 | AB133: 3398.346507 | AC133: 3432.813983 | AD133: 3471.074526 | AE133: 3484.831567 | AF133: 3502.202405 | AG133: 3513.445649 | AH133: 3527.787395
D135: Shipped UEC
D136: Year | E136: =E$58 -> 2005 | F136: =F$58 -> 2006 | G136: 2007 | H136: 2008 | I136: 2009 | J136: 2010 | K136: 2011 | L136: 2012 | M136: 2013 | N136: 2014 | O136: 2015 | P136: 2016 | Q136: 2017 | R136: 2018 | S136: 2019 | T136: 2020 | U136: 2021 | V136: 2022 | W136: 2023 | X136: 2024 | Y136: 2025 | Z136: 2026 | AA136: 2027 | AB136: 2028 | AC136: 2029 | AD136: 2030 | AE136: 2031 | AF136: 2032 | AG136: 2033 | AH136: 2034
D137: =$D$58&" Base Case UEC" -> Liquid Immersed Base Case UEC | E137: =E123/E130 -> 32276.63937 | F137: =F123/F130 -> 32276.63937 | G137: 32276.63937 | H137: 32276.63937 | I137: 32276.63937 | J137: 32276.63937 | K137: 32276.63937 | L137: 32276.63937 | M137: 32276.63937 | N137: 32276.63937 | O137: 32276.63937 | P137: 32276.63937 | Q137: 32276.63937 | R137: 32276.63937 | S137: 32276.63937 | T137: 32276.63937 | U137: 32276.63937 | V137: 32276.63937 | W137: 32276.63937 | X137: 32276.63937 | Y137: 32276.63937 | Z137: 32276.63937 | AA137: 32276.63937 | AB137: 32276.63937 | AC137: 32276.63937 | AD137: 32276.63937 | AE137: 32276.63937 | AF137: 32276.63937 | AG137: 32276.63937 | AH137: 32276.63937
D138: =$D$65&" Base Case UEC" -> Low Voltage Dry Base Case UEC | E138: =E124/E131 -> 53201.18934 | F138: =F124/F131 -> 53201.18934 | G138: 53201.18934 | H138: 53201.18934 | I138: 53201.18934 | J138: 53201.18934 | K138: 53201.18934 | L138: 53201.18934 | M138: 53201.18934 | N138: 53201.18934 | O138: 53201.18934 | P138: 53201.18934 | Q138: 53201.18934 | R138: 53201.18934 | S138: 53201.18934 | T138: 53201.18934 | U138: 53201.18934 | V138: 53201.18934 | W138: 53201.18934 | X138: 53201.18934 | Y138: 53201.18934 | Z138: 53201.18934 | AA138: 53201.18934 | AB138: 53201.18934 | AC138: 53201.18934 | AD138: 53201.18934 | AE138: 53201.18934 | AF138: 53201.18934 | AG138: 53201.18934 | AH138: 53201.18934
D139: =$D$70&" Base Case UEC" -> Medium Voltage Dry Base Case UEC | E139: =E125/E132 -> 32503.78283 | F139: =F125/F132 -> 32503.78283 | G139: 32503.78283 | H139: 32503.78283 | I139: 32503.78283 | J139: 32503.78283 | K139: 32503.78283 | L139: 32503.78283 | M139: 32503.78283 | N139: 32503.78283 | O139: 32503.78283 | P139: 32503.78283 | Q139: 32503.78283 | R139: 32503.78283 | S139: 32503.78283 | T139: 32503.78283 | U139: 32503.78283 | V139: 32503.78283 | W139: 32503.78283 | X139: 32503.78283 | Y139: 32503.78283 | Z139: 32503.78283 | AA139: 32503.78283 | AB139: 32503.78283 | AC139: 32503.78283 | AD139: 32503.78283 | AE139: 32503.78283 | AF139: 32503.78283 | AG139: 32503.78283 | AH139: 32503.78283
D140: Total Base Case UEC | E140: =SUM(E137:E139) -> 117981.6115 | F140: =SUM(F137:F139) -> 117981.6115 | G140: 117981.6115 | H140: 117981.6115 | I140: 117981.6115 | J140: 117981.6115 | K140: 117981.6115 | L140: 117981.6115 | M140: 117981.6115 | N140: 117981.6115 | O140: 117981.6115 | P140: 117981.6115 | Q140: 117981.6115 | R140: 117981.6115 | S140: 117981.6115 | T140: 117981.6115 | U140: 117981.6115 | V140: 117981.6115 | W140: 117981.6115 | X140: 117981.6115 | Y140: 117981.6115 | Z140: 117981.6115 | AA140: 117981.6115 | AB140: 117981.6115 | AC140: 117981.6115 | AD140: 117981.6115 | AE140: 117981.6115 | AF140: 117981.6115 | AG140: 117981.6115 | AH140: 117981.6115
D142: Total Stock Energy Consumption by Product Class
D143: Year | E143: =E$58 -> 2005 | F143: =F$58 -> 2006 | G143: 2007 | H143: 2008 | I143: 2009 | J143: 2010 | K143: 2011 | L143: 2012 | M143: 2013 | N143: 2014 | O143: 2015 | P143: 2016 | Q143: 2017 | R143: 2018 | S143: 2019 | T143: 2020 | U143: 2021 | V143: 2022 | W143: 2023 | X143: 2024 | Y143: 2025 | Z143: 2026 | AA143: 2027 | AB143: 2028 | AC143: 2029 | AD143: 2030 | AE143: 2031 | AF143: 2032 | AG143: 2033 | AH143: 2034
D144: =$D$58&" Base Case EC" -> Liquid Immersed Base Case EC | E144: =VLOOKUP(E$122, 'Base Case Liquid Immersed'!$B$68:$M$97, 11, FALSE)+VLOOKUP(E$122, 'Base Case Liquid Immersed'!$B$68:$M$97, 12, FALSE) -> 3720349936 | F144: =VLOOKUP(F$122, 'Base Case Liquid Immersed'!$B$68:$M$97, 11, FALSE)+VLOOKUP(F$122, 'Base Case Liquid Immersed'!$B$68:$M$97, 12, FALSE) -> 3760486650 | G144: =VLOOKUP(G$122, 'Base Case Liquid Immersed'!$B$68:$M$97, 11, FALSE)+VLOOKUP(G$122, 'Base Case Liquid Immersed'!$B$68:$M$97, 12, FALSE) -> 3831379143 | H144: =VLOOKUP(H$122, 'Base Case Liquid Immersed'!$B$68:$M$97, 11, FALSE)+VLOOKUP(H$122, 'Base Case Liquid Immersed'!$B$68:$M$97, 12, FALSE) -> 3887479934 | I144: =VLOOKUP(I$122, 'Base Case Liquid Immersed'!$B$68:$M$97, 11, FALSE)+VLOOKUP(I$122, 'Base Case Liquid Immersed'!$B$68:$M$97, 12, FALSE) -> 3896281871 | J144: =VLOOKUP(J$122, 'Base Case Liquid Immersed'!$B$68:$M$97, 11, FALSE)+VLOOKUP(J$122, 'Base Case Liquid Immersed'!$B$68:$M$97, 12, FALSE) -> 3904833440 | K144: =VLOOKUP(K$122, 'Base Case Liquid Immersed'!$B$68:$M$97, 11, FALSE)+VLOOKUP(K$122, 'Base Case Liquid Immersed'!$B$68:$M$97, 12, FALSE) -> 3907347933 | L144: =VLOOKUP(L$122, 'Base Case Liquid Immersed'!$B$68:$M$97, 11, FALSE)+VLOOKUP(L$122, 'Base Case Liquid Immersed'!$B$68:$M$97, 12, FALSE) -> 3903655435 | M144: =VLOOKUP(M$122, 'Base Case Liquid Immersed'!$B$68:$M$97, 11, FALSE)+VLOOKUP(M$122, 'Base Case Liquid Immersed'!$B$68:$M$97, 12, FALSE) -> 3895629793 | N144: =VLOOKUP(N$122, 'Base Case Liquid Immersed'!$B$68:$M$97, 11, FALSE)+VLOOKUP(N$122, 'Base Case Liquid Immersed'!$B$68:$M$97, 12, FALSE) -> 3885176500 | O144: =VLOOKUP(O$122, 'Base Case Liquid Immersed'!$B$68:$M$97, 11, FALSE)+VLOOKUP(O$122, 'Base Case Liquid Immersed'!$B$68:$M$97, 12, FALSE) -> 3871499415 | P144: =VLOOKUP(P$122, 'Base Case Liquid Immersed'!$B$68:$M$97, 11, FALSE)+VLOOKUP(P$122, 'Base Case Liquid Immersed'!$B$68:$M$97, 12, FALSE) -> 3855642783 | Q144: =VLOOKUP(Q$122, 'Base Case Liquid Immersed'!$B$68:$M$97, 11, FALSE)+VLOOKUP(Q$122, 'Base Case Liquid Immersed'!$B$68:$M$97, 12, FALSE) -> 3837643934 | R144: =VLOOKUP(R$122, 'Base Case Liquid Immersed'!$B$68:$M$97, 11, FALSE)+VLOOKUP(R$122, 'Base Case Liquid Immersed'!$B$68:$M$97, 12, FALSE) -> 3817372419 | S144: =VLOOKUP(S$122, 'Base Case Liquid Immersed'!$B$68:$M$97, 11, FALSE)+VLOOKUP(S$122, 'Base Case Liquid Immersed'!$B$68:$M$97, 12, FALSE) -> 3794701442 | T144: =VLOOKUP(T$122, 'Base Case Liquid Immersed'!$B$68:$M$97, 11, FALSE)+VLOOKUP(T$122, 'Base Case Liquid Immersed'!$B$68:$M$97, 12, FALSE) -> 3769191666 | U144: =VLOOKUP(U$122, 'Base Case Liquid Immersed'!$B$68:$M$97, 11, FALSE)+VLOOKUP(U$122, 'Base Case Liquid Immersed'!$B$68:$M$97, 12, FALSE) -> 3742262990 | V144: =VLOOKUP(V$122, 'Base Case Liquid Immersed'!$B$68:$M$97, 11, FALSE)+VLOOKUP(V$122, 'Base Case Liquid Immersed'!$B$68:$M$97, 12, FALSE) -> 3714525851 | W144: =VLOOKUP(W$122, 'Base Case Liquid Immersed'!$B$68:$M$97, 11, FALSE)+VLOOKUP(W$122, 'Base Case Liquid Immersed'!$B$68:$M$97, 12, FALSE) -> 3686232838 | X144: =VLOOKUP(X$122, 'Base Case Liquid Immersed'!$B$68:$M$97, 11, FALSE)+VLOOKUP(X$122, 'Base Case Liquid Immersed'!$B$68:$M$97, 12, FALSE) -> 3657404642 | Y144: =VLOOKUP(Y$122, 'Base Case Liquid Immersed'!$B$68:$M$97, 11, FALSE)+VLOOKUP(Y$122, 'Base Case Liquid Immersed'!$B$68:$M$97, 12, FALSE) -> 3628176274 | Z144: =VLOOKUP(Z$122, 'Base Case Liquid Immersed'!$B$68:$M$97, 11, FALSE)+VLOOKUP(Z$122, 'Base Case Liquid Immersed'!$B$68:$M$97, 12, FALSE) -> 3598966502 | AA144: =VLOOKUP(AA$122, 'Base Case Liquid Immersed'!$B$68:$M$97, 11, FALSE)+VLOOKUP(AA$122, 'Base Case Liquid Immersed'!$B$68:$M$97, 12, FALSE) -> 3570074747 | AB144: =VLOOKUP(AB$122, 'Base Case Liquid Immersed'!$B$68:$M$97, 11, FALSE)+VLOOKUP(AB$122, 'Base Case Liquid Immersed'!$B$68:$M$97, 12, FALSE) -> 3541925005 | AC144: =VLOOKUP(AC$122, 'Base Case Liquid Immersed'!$B$68:$M$97, 11, FALSE)+VLOOKUP(AC$122, 'Base Case Liquid Immersed'!$B$68:$M$97, 12, FALSE) -> 3514551505 | AD144: =VLOOKUP(AD$122, 'Base Case Liquid Immersed'!$B$68:$M$97, 11, FALSE)+VLOOKUP(AD$122, 'Base Case Liquid Immersed'!$B$68:$M$97, 12, FALSE) -> 3488218175 | AE144: =VLOOKUP(AE$122, 'Base Case Liquid Immersed'!$B$68:$M$97, 11, FALSE)+VLOOKUP(AE$122, 'Base Case Liquid Immersed'!$B$68:$M$97, 12, FALSE) -> 3462500482 | AF144: =VLOOKUP(AF$122, 'Base Case Liquid Immersed'!$B$68:$M$97, 11, FALSE)+VLOOKUP(AF$122, 'Base Case Liquid Immersed'!$B$68:$M$97, 12, FALSE) -> 3437629963 | AG144: =VLOOKUP(AG$122, 'Base Case Liquid Immersed'!$B$68:$M$97, 11, FALSE)+VLOOKUP(AG$122, 'Base Case Liquid Immersed'!$B$68:$M$97, 12, FALSE) -> 3413539705 | AH144: =VLOOKUP(AH$122, 'Base Case Liquid Immersed'!$B$68:$M$97, 11, FALSE)+VLOOKUP(AH$122, 'Base Case Liquid Immersed'!$B$68:$M$97, 12, FALSE) -> 3390425393
D145: =$D$65&" Base Case EC" -> Low Voltage Dry Base Case EC | E145: =VLOOKUP(E$122, 'Base Case Low Dry'!$B$68:$M$97, 11, FALSE)+VLOOKUP(E$122, 'Base Case Low Dry'!$B$68:$M$97, 12, FALSE) -> 1384987675 | F145: =VLOOKUP(F$122, 'Base Case Low Dry'!$B$68:$M$97, 11, FALSE)+VLOOKUP(F$122, 'Base Case Low Dry'!$B$68:$M$97, 12, FALSE) -> 1396692876 | G145: =VLOOKUP(G$122, 'Base Case Low Dry'!$B$68:$M$97, 11, FALSE)+VLOOKUP(G$122, 'Base Case Low Dry'!$B$68:$M$97, 12, FALSE) -> 1418863821 | H145: =VLOOKUP(H$122, 'Base Case Low Dry'!$B$68:$M$97, 11, FALSE)+VLOOKUP(H$122, 'Base Case Low Dry'!$B$68:$M$97, 12, FALSE) -> 1438220207 | I145: =VLOOKUP(I$122, 'Base Case Low Dry'!$B$68:$M$97, 11, FALSE)+VLOOKUP(I$122, 'Base Case Low Dry'!$B$68:$M$97, 12, FALSE) -> 1441169630 | J145: =VLOOKUP(J$122, 'Base Case Low Dry'!$B$68:$M$97, 11, FALSE)+VLOOKUP(J$122, 'Base Case Low Dry'!$B$68:$M$97, 12, FALSE) -> 1444251586 | K145: =VLOOKUP(K$122, 'Base Case Low Dry'!$B$68:$M$97, 11, FALSE)+VLOOKUP(K$122, 'Base Case Low Dry'!$B$68:$M$97, 12, FALSE) -> 1446294336 | L145: =VLOOKUP(L$122, 'Base Case Low Dry'!$B$68:$M$97, 11, FALSE)+VLOOKUP(L$122, 'Base Case Low Dry'!$B$68:$M$97, 12, FALSE) -> 1445972372 | M145: =VLOOKUP(M$122, 'Base Case Low Dry'!$B$68:$M$97, 11, FALSE)+VLOOKUP(M$122, 'Base Case Low Dry'!$B$68:$M$97, 12, FALSE) -> 1444639410 | N145: =VLOOKUP(N$122, 'Base Case Low Dry'!$B$68:$M$97, 11, FALSE)+VLOOKUP(N$122, 'Base Case Low Dry'!$B$68:$M$97, 12, FALSE) -> 1442852265 | O145: =VLOOKUP(O$122, 'Base Case Low Dry'!$B$68:$M$97, 11, FALSE)+VLOOKUP(O$122, 'Base Case Low Dry'!$B$68:$M$97, 12, FALSE) -> 1440271659 | P145: =VLOOKUP(P$122, 'Base Case Low Dry'!$B$68:$M$97, 11, FALSE)+VLOOKUP(P$122, 'Base Case Low Dry'!$B$68:$M$97, 12, FALSE) -> 1437273596 | Q145: =VLOOKUP(Q$122, 'Base Case Low Dry'!$B$68:$M$97, 11, FALSE)+VLOOKUP(Q$122, 'Base Case Low Dry'!$B$68:$M$97, 12, FALSE) -> 1433891470 | R145: =VLOOKUP(R$122, 'Base Case Low Dry'!$B$68:$M$97, 11, FALSE)+VLOOKUP(R$122, 'Base Case Low Dry'!$B$68:$M$97, 12, FALSE) -> 1429979959 | S145: =VLOOKUP(S$122, 'Base Case Low Dry'!$B$68:$M$97, 11, FALSE)+VLOOKUP(S$122, 'Base Case Low Dry'!$B$68:$M$97, 12, FALSE) -> 1425398580 | T145: =VLOOKUP(T$122, 'Base Case Low Dry'!$B$68:$M$97, 11, FALSE)+VLOOKUP(T$122, 'Base Case Low Dry'!$B$68:$M$97, 12, FALSE) -> 1419894457 | U145: =VLOOKUP(U$122, 'Base Case Low Dry'!$B$68:$M$97, 11, FALSE)+VLOOKUP(U$122, 'Base Case Low Dry'!$B$68:$M$97, 12, FALSE) -> 1414151282 | V145: =VLOOKUP(V$122, 'Base Case Low Dry'!$B$68:$M$97, 11, FALSE)+VLOOKUP(V$122, 'Base Case Low Dry'!$B$68:$M$97, 12, FALSE) -> 1408390989 | W145: =VLOOKUP(W$122, 'Base Case Low Dry'!$B$68:$M$97, 11, FALSE)+VLOOKUP(W$122, 'Base Case Low Dry'!$B$68:$M$97, 12, FALSE) -> 1402698684 | X145: =VLOOKUP(X$122, 'Base Case Low Dry'!$B$68:$M$97, 11, FALSE)+VLOOKUP(X$122, 'Base Case Low Dry'!$B$68:$M$97, 12, FALSE) -> 1397040416 | Y145: =VLOOKUP(Y$122, 'Base Case Low Dry'!$B$68:$M$97, 11, FALSE)+VLOOKUP(Y$122, 'Base Case Low Dry'!$B$68:$M$97, 12, FALSE) -> 1391461954 | Z145: =VLOOKUP(Z$122, 'Base Case Low Dry'!$B$68:$M$97, 11, FALSE)+VLOOKUP(Z$122, 'Base Case Low Dry'!$B$68:$M$97, 12, FALSE) -> 1386043321 | AA145: =VLOOKUP(AA$122, 'Base Case Low Dry'!$B$68:$M$97, 11, FALSE)+VLOOKUP(AA$122, 'Base Case Low Dry'!$B$68:$M$97, 12, FALSE) -> 1380887074 | AB145: =VLOOKUP(AB$122, 'Base Case Low Dry'!$B$68:$M$97, 11, FALSE)+VLOOKUP(AB$122, 'Base Case Low Dry'!$B$68:$M$97, 12, FALSE) -> 1376122185 | AC145: =VLOOKUP(AC$122, 'Base Case Low Dry'!$B$68:$M$97, 11, FALSE)+VLOOKUP(AC$122, 'Base Case Low Dry'!$B$68:$M$97, 12, FALSE) -> 1371806184 | AD145: =VLOOKUP(AD$122, 'Base Case Low Dry'!$B$68:$M$97, 11, FALSE)+VLOOKUP(AD$122, 'Base Case Low Dry'!$B$68:$M$97, 12, FALSE) -> 1367986104 | AE145: =VLOOKUP(AE$122, 'Base Case Low Dry'!$B$68:$M$97, 11, FALSE)+VLOOKUP(AE$122, 'Base Case Low Dry'!$B$68:$M$97, 12, FALSE) -> 1364401023 | AF145: =VLOOKUP(AF$122, 'Base Case Low Dry'!$B$68:$M$97, 11, FALSE)+VLOOKUP(AF$122, 'Base Case Low Dry'!$B$68:$M$97, 12, FALSE) -> 1361086648 | AG145: =VLOOKUP(AG$122, 'Base Case Low Dry'!$B$68:$M$97, 11, FALSE)+VLOOKUP(AG$122, 'Base Case Low Dry'!$B$68:$M$97, 12, FALSE) -> 1358041046 | AH145: =VLOOKUP(AH$122, 'Base Case Low Dry'!$B$68:$M$97, 11, FALSE)+VLOOKUP(AH$122, 'Base Case Low Dry'!$B$68:$M$97, 12, FALSE) -> 1355292718
D146: =$D$70&" Base Case EC" -> Medium Voltage Dry Base Case EC | E146: =VLOOKUP(E$122, 'Base Case Medium Dry'!$B$68:$M$97, 11, FALSE)+VLOOKUP(E$122, 'Base Case Medium Dry'!$B$68:$M$97, 12, FALSE) -> 304953076.1 | F146: =VLOOKUP(F$122, 'Base Case Medium Dry'!$B$68:$M$97, 11, FALSE)+VLOOKUP(F$122, 'Base Case Medium Dry'!$B$68:$M$97, 12, FALSE) -> 307530382.1 | G146: =VLOOKUP(G$122, 'Base Case Medium Dry'!$B$68:$M$97, 11, FALSE)+VLOOKUP(G$122, 'Base Case Medium Dry'!$B$68:$M$97, 12, FALSE) -> 312412084.8 | H146: =VLOOKUP(H$122, 'Base Case Medium Dry'!$B$68:$M$97, 11, FALSE)+VLOOKUP(H$122, 'Base Case Medium Dry'!$B$68:$M$97, 12, FALSE) -> 316674064.5 | I146: =VLOOKUP(I$122, 'Base Case Medium Dry'!$B$68:$M$97, 11, FALSE)+VLOOKUP(I$122, 'Base Case Medium Dry'!$B$68:$M$97, 12, FALSE) -> 317323482.4 | J146: =VLOOKUP(J$122, 'Base Case Medium Dry'!$B$68:$M$97, 11, FALSE)+VLOOKUP(J$122, 'Base Case Medium Dry'!$B$68:$M$97, 12, FALSE) -> 318002081.7 | K146: =VLOOKUP(K$122, 'Base Case Medium Dry'!$B$68:$M$97, 11, FALSE)+VLOOKUP(K$122, 'Base Case Medium Dry'!$B$68:$M$97, 12, FALSE) -> 318451864 | L146: =VLOOKUP(L$122, 'Base Case Medium Dry'!$B$68:$M$97, 11, FALSE)+VLOOKUP(L$122, 'Base Case Medium Dry'!$B$68:$M$97, 12, FALSE) -> 318380972.5 | M146: =VLOOKUP(M$122, 'Base Case Medium Dry'!$B$68:$M$97, 11, FALSE)+VLOOKUP(M$122, 'Base Case Medium Dry'!$B$68:$M$97, 12, FALSE) -> 318087474.8 | N146: =VLOOKUP(N$122, 'Base Case Medium Dry'!$B$68:$M$97, 11, FALSE)+VLOOKUP(N$122, 'Base Case Medium Dry'!$B$68:$M$97, 12, FALSE) -> 317693972.8 | O146: =VLOOKUP(O$122, 'Base Case Medium Dry'!$B$68:$M$97, 11, FALSE)+VLOOKUP(O$122, 'Base Case Medium Dry'!$B$68:$M$97, 12, FALSE) -> 317125762.7 | P146: =VLOOKUP(P$122, 'Base Case Medium Dry'!$B$68:$M$97, 11, FALSE)+VLOOKUP(P$122, 'Base Case Medium Dry'!$B$68:$M$97, 12, FALSE) -> 316465635.2 | Q146: =VLOOKUP(Q$122, 'Base Case Medium Dry'!$B$68:$M$97, 11, FALSE)+VLOOKUP(Q$122, 'Base Case Medium Dry'!$B$68:$M$97, 12, FALSE) -> 315720942.9 | R146: =VLOOKUP(R$122, 'Base Case Medium Dry'!$B$68:$M$97, 11, FALSE)+VLOOKUP(R$122, 'Base Case Medium Dry'!$B$68:$M$97, 12, FALSE) -> 314859688 | S146: =VLOOKUP(S$122, 'Base Case Medium Dry'!$B$68:$M$97, 11, FALSE)+VLOOKUP(S$122, 'Base Case Medium Dry'!$B$68:$M$97, 12, FALSE) -> 313850938.6 | T146: =VLOOKUP(T$122, 'Base Case Medium Dry'!$B$68:$M$97, 11, FALSE)+VLOOKUP(T$122, 'Base Case Medium Dry'!$B$68:$M$97, 12, FALSE) -> 312639015 | U146: =VLOOKUP(U$122, 'Base Case Medium Dry'!$B$68:$M$97, 11, FALSE)+VLOOKUP(U$122, 'Base Case Medium Dry'!$B$68:$M$97, 12, FALSE) -> 311374455.8 | V146: =VLOOKUP(V$122, 'Base Case Medium Dry'!$B$68:$M$97, 11, FALSE)+VLOOKUP(V$122, 'Base Case Medium Dry'!$B$68:$M$97, 12, FALSE) -> 310106127.5 | W146: =VLOOKUP(W$122, 'Base Case Medium Dry'!$B$68:$M$97, 11, FALSE)+VLOOKUP(W$122, 'Base Case Medium Dry'!$B$68:$M$97, 12, FALSE) -> 308852769.1 | X146: =VLOOKUP(X$122, 'Base Case Medium Dry'!$B$68:$M$97, 11, FALSE)+VLOOKUP(X$122, 'Base Case Medium Dry'!$B$68:$M$97, 12, FALSE) -> 307606905.1 | Y146: =VLOOKUP(Y$122, 'Base Case Medium Dry'!$B$68:$M$97, 11, FALSE)+VLOOKUP(Y$122, 'Base Case Medium Dry'!$B$68:$M$97, 12, FALSE) -> 306378613.3 | Z146: =VLOOKUP(Z$122, 'Base Case Medium Dry'!$B$68:$M$97, 11, FALSE)+VLOOKUP(Z$122, 'Base Case Medium Dry'!$B$68:$M$97, 12, FALSE) -> 305185513.3 | AA146: =VLOOKUP(AA$122, 'Base Case Medium Dry'!$B$68:$M$97, 11, FALSE)+VLOOKUP(AA$122, 'Base Case Medium Dry'!$B$68:$M$97, 12, FALSE) -> 304050186.6 | AB146: =VLOOKUP(AB$122, 'Base Case Medium Dry'!$B$68:$M$97, 11, FALSE)+VLOOKUP(AB$122, 'Base Case Medium Dry'!$B$68:$M$97, 12, FALSE) -> 303001031 | AC146: =VLOOKUP(AC$122, 'Base Case Medium Dry'!$B$68:$M$97, 11, FALSE)+VLOOKUP(AC$122, 'Base Case Medium Dry'!$B$68:$M$97, 12, FALSE) -> 302050713.8 | AD146: =VLOOKUP(AD$122, 'Base Case Medium Dry'!$B$68:$M$97, 11, FALSE)+VLOOKUP(AD$122, 'Base Case Medium Dry'!$B$68:$M$97, 12, FALSE) -> 301209590.5 | AE146: =VLOOKUP(AE$122, 'Base Case Medium Dry'!$B$68:$M$97, 11, FALSE)+VLOOKUP(AE$122, 'Base Case Medium Dry'!$B$68:$M$97, 12, FALSE) -> 300420210.6 | AF146: =VLOOKUP(AF$122, 'Base Case Medium Dry'!$B$68:$M$97, 11, FALSE)+VLOOKUP(AF$122, 'Base Case Medium Dry'!$B$68:$M$97, 12, FALSE) -> 299690436.1 | AG146: =VLOOKUP(AG$122, 'Base Case Medium Dry'!$B$68:$M$97, 11, FALSE)+VLOOKUP(AG$122, 'Base Case Medium Dry'!$B$68:$M$97, 12, FALSE) -> 299019841.2 | AH146: =VLOOKUP(AH$122, 'Base Case Medium Dry'!$B$68:$M$97, 11, FALSE)+VLOOKUP(AH$122, 'Base Case Medium Dry'!$B$68:$M$97, 12, FALSE) -> 298414701.5
D147: Total Base Case EC | E147: =SUM(E144:E146) -> 5410290687 | F147: =SUM(F144:F146) -> 5464709908 | G147: 5562655049 | H147: 5642374205 | I147: 5654774984 | J147: 5667087107 | K147: 5672094133 | L147: 5668008779 | M147: 5658356678 | N147: 5645722738 | O147: 5628896836 | P147: 5609382014 | Q147: 5587256347 | R147: 5562212066 | S147: 5533950960 | T147: 5501725138 | U147: 5467788727 | V147: 5433022968 | W147: 5397784291 | X147: 5362051963 | Y147: 5326016841 | Z147: 5290195336 | AA147: 5255012007 | AB147: 5221048220 | AC147: 5188408403 | AD147: 5157413869 | AE147: 5127321715 | AF147: 5098407047 | AG147: 5070600592 | AH147: 5044132813
D149: Stock
D150: Year | E150: =E$58 -> 2005 | F150: =F$58 -> 2006 | G150: 2007 | H150: 2008 | I150: 2009 | J150: 2010 | K150: 2011 | L150: 2012 | M150: 2013 | N150: 2014 | O150: 2015 | P150: 2016 | Q150: 2017 | R150: 2018 | S150: 2019 | T150: 2020 | U150: 2021 | V150: 2022 | W150: 2023 | X150: 2024 | Y150: 2025 | Z150: 2026 | AA150: 2027 | AB150: 2028 | AC150: 2029 | AD150: 2030 | AE150: 2031 | AF150: 2032 | AG150: 2033 | AH150: 2034
D151: =$D$58&" Base Case Stock" -> Liquid Immersed Base Case Stock | E151: =VLOOKUP(E$129, 'Base Case Liquid Immersed'!$O$13:$U$168, 3, FALSE) -> 93421.52096 | F151: =VLOOKUP(F$129, 'Base Case Liquid Immersed'!$O$13:$U$168, 3, FALSE) -> 94228.91397 | G151: =VLOOKUP(G$129, 'Base Case Liquid Immersed'!$O$13:$U$168, 3, FALSE) -> 94967.31368 | H151: =VLOOKUP(H$129, 'Base Case Liquid Immersed'!$O$13:$U$168, 3, FALSE) -> 96675.67518 | I151: =VLOOKUP(I$129, 'Base Case Liquid Immersed'!$O$13:$U$168, 3, FALSE) -> 97940.58325 | J151: =VLOOKUP(J$129, 'Base Case Liquid Immersed'!$O$13:$U$168, 3, FALSE) -> 97779.84569 | K151: =VLOOKUP(K$129, 'Base Case Liquid Immersed'!$O$13:$U$168, 3, FALSE) -> 97650.17533 | L151: =VLOOKUP(L$129, 'Base Case Liquid Immersed'!$O$13:$U$168, 3, FALSE) -> 97370.23839 | M151: =VLOOKUP(M$129, 'Base Case Liquid Immersed'!$O$13:$U$168, 3, FALSE) -> 96938.55805 | N151: =VLOOKUP(N$129, 'Base Case Liquid Immersed'!$O$13:$U$168, 3, FALSE) -> 96413.92737 | O151: =VLOOKUP(O$129, 'Base Case Liquid Immersed'!$O$13:$U$168, 3, FALSE) -> 95853.57577 | P151: =VLOOKUP(P$129, 'Base Case Liquid Immersed'!$O$13:$U$168, 3, FALSE) -> 95232.95416 | Q151: =VLOOKUP(Q$129, 'Base Case Liquid Immersed'!$O$13:$U$168, 3, FALSE) -> 94582.0042 | R151: =VLOOKUP(R$129, 'Base Case Liquid Immersed'!$O$13:$U$168, 3, FALSE) -> 93903.43636 | S151: =VLOOKUP(S$129, 'Base Case Liquid Immersed'!$O$13:$U$168, 3, FALSE) -> 93193.36607 | T151: =VLOOKUP(T$129, 'Base Case Liquid Immersed'!$O$13:$U$168, 3, FALSE) -> 92443.24602 | U151: =VLOOKUP(U$129, 'Base Case Liquid Immersed'!$O$13:$U$168, 3, FALSE) -> 91638.57724 | V151: =VLOOKUP(V$129, 'Base Case Liquid Immersed'!$O$13:$U$168, 3, FALSE) -> 90818.98609 | W151: =VLOOKUP(W$129, 'Base Case Liquid Immersed'!$O$13:$U$168, 3, FALSE) -> 90003.68708 | X151: =VLOOKUP(X$129, 'Base Case Liquid Immersed'!$O$13:$U$168, 3, FALSE) -> 89193.4985 | Y151: =VLOOKUP(Y$129, 'Base Case Liquid Immersed'!$O$13:$U$168, 3, FALSE) -> 88394.1596 | Z151: =VLOOKUP(Z$129, 'Base Case Liquid Immersed'!$O$13:$U$168, 3, FALSE) -> 87611.72328 | AA151: =VLOOKUP(AA$129, 'Base Case Liquid Immersed'!$O$13:$U$168, 3, FALSE) -> 86849.06108 | AB151: =VLOOKUP(AB$129, 'Base Case Liquid Immersed'!$O$13:$U$168, 3, FALSE) -> 86114.0205 | AC151: =VLOOKUP(AC$129, 'Base Case Liquid Immersed'!$O$13:$U$168, 3, FALSE) -> 85417.30268 | AD151: =VLOOKUP(AD$129, 'Base Case Liquid Immersed'!$O$13:$U$168, 3, FALSE) -> 84757.37157 | AE151: =VLOOKUP(AE$129, 'Base Case Liquid Immersed'!$O$13:$U$168, 3, FALSE) -> 84139.94991 | AF151: =VLOOKUP(AF$129, 'Base Case Liquid Immersed'!$O$13:$U$168, 3, FALSE) -> 83550.09731 | AG151: =VLOOKUP(AG$129, 'Base Case Liquid Immersed'!$O$13:$U$168, 3, FALSE) -> 82993.1107 | AH151: =VLOOKUP(AH$129, 'Base Case Liquid Immersed'!$O$13:$U$168, 3, FALSE) -> 82465.21587
D152: =$D$65&" Base Case Stock" -> Low Voltage Dry Base Case Stock | E152: =VLOOKUP(E$129, 'Base Case Low Dry'!$B$13:$H$168, 3, FALSE) -> 25217.00038 | F152: =VLOOKUP(F$129, 'Base Case Low Dry'!$B$13:$H$168, 3, FALSE) -> 25433.22814 | G152: =VLOOKUP(G$129, 'Base Case Low Dry'!$B$13:$H$168, 3, FALSE) -> 25632.37006 | H152: =VLOOKUP(H$129, 'Base Case Low Dry'!$B$13:$H$168, 3, FALSE) -> 26028.98999 | I152: =VLOOKUP(I$129, 'Base Case Low Dry'!$B$13:$H$168, 3, FALSE) -> 26371.9309 | J152: =VLOOKUP(J$129, 'Base Case Low Dry'!$B$13:$H$168, 3, FALSE) -> 26407.52832 | K152: =VLOOKUP(K$129, 'Base Case Low Dry'!$B$13:$H$168, 3, FALSE) -> 26446.8839 | L152: =VLOOKUP(L$129, 'Base Case Low Dry'!$B$13:$H$168, 3, FALSE) -> 26467.42778 | M152: =VLOOKUP(M$129, 'Base Case Low Dry'!$B$13:$H$168, 3, FALSE) -> 26444.73262 | N152: =VLOOKUP(N$129, 'Base Case Low Dry'!$B$13:$H$168, 3, FALSE) -> 26404.42861 | O152: =VLOOKUP(O$129, 'Base Case Low Dry'!$B$13:$H$168, 3, FALSE) -> 26356.68761 | P152: =VLOOKUP(P$129, 'Base Case Low Dry'!$B$13:$H$168, 3, FALSE) -> 26295.23941 | Q152: =VLOOKUP(Q$129, 'Base Case Low Dry'!$B$13:$H$168, 3, FALSE) -> 26226.81199 | R152: =VLOOKUP(R$129, 'Base Case Low Dry'!$B$13:$H$168, 3, FALSE) -> 26152.67177 | S152: =VLOOKUP(S$129, 'Base Case Low Dry'!$B$13:$H$168, 3, FALSE) -> 26070.42761 | T152: =VLOOKUP(T$129, 'Base Case Low Dry'!$B$13:$H$168, 3, FALSE) -> 25976.77278 | U152: =VLOOKUP(U$129, 'Base Case Low Dry'!$B$13:$H$168, 3, FALSE) -> 25866.99601 | V152: =VLOOKUP(V$129, 'Base Case Low Dry'!$B$13:$H$168, 3, FALSE) -> 25753.31851 | W152: =VLOOKUP(W$129, 'Base Case Low Dry'!$B$13:$H$168, 3, FALSE) -> 25640.39087 | X152: =VLOOKUP(X$129, 'Base Case Low Dry'!$B$13:$H$168, 3, FALSE) -> 25528.78295 | Y152: =VLOOKUP(Y$129, 'Base Case Low Dry'!$B$13:$H$168, 3, FALSE) -> 25418.94089 | Z152: =VLOOKUP(Z$129, 'Base Case Low Dry'!$B$13:$H$168, 3, FALSE) -> 25312.81059 | AA152: =VLOOKUP(AA$129, 'Base Case Low Dry'!$B$13:$H$168, 3, FALSE) -> 25210.39045 | AB152: =VLOOKUP(AB$129, 'Base Case Low Dry'!$B$13:$H$168, 3, FALSE) -> 25113.64467 | AC152: =VLOOKUP(AC$129, 'Base Case Low Dry'!$B$13:$H$168, 3, FALSE) -> 25025.03085 | AD152: =VLOOKUP(AD$129, 'Base Case Low Dry'!$B$13:$H$168, 3, FALSE) -> 24945.43363 | AE152: =VLOOKUP(AE$129, 'Base Case Low Dry'!$B$13:$H$168, 3, FALSE) -> 24875.62663 | AF152: =VLOOKUP(AF$129, 'Base Case Low Dry'!$B$13:$H$168, 3, FALSE) -> 24810.66419 | AG152: =VLOOKUP(AG$129, 'Base Case Low Dry'!$B$13:$H$168, 3, FALSE) -> 24751.15701 | AH152: =VLOOKUP(AH$129, 'Base Case Low Dry'!$B$13:$H$168, 3, FALSE) -> 24697.02808
D153: =$D$70&" Base Case Stock" -> Medium Voltage Dry Base Case Stock | E153: =VLOOKUP(E$129, 'Base Case Medium Dry'!$B$13:$H$168, 3, FALSE) -> 9087.992684 | F153: =VLOOKUP(F$129, 'Base Case Medium Dry'!$B$13:$H$168, 3, FALSE) -> 9165.91933 | G153: =VLOOKUP(G$129, 'Base Case Medium Dry'!$B$13:$H$168, 3, FALSE) -> 9237.688385 | H153: =VLOOKUP(H$129, 'Base Case Medium Dry'!$B$13:$H$168, 3, FALSE) -> 9380.626838 | I153: =VLOOKUP(I$129, 'Base Case Medium Dry'!$B$13:$H$168, 3, FALSE) -> 9504.219828 | J153: =VLOOKUP(J$129, 'Base Case Medium Dry'!$B$13:$H$168, 3, FALSE) -> 9517.048836 | K153: =VLOOKUP(K$129, 'Base Case Medium Dry'!$B$13:$H$168, 3, FALSE) -> 9531.232254 | L153: =VLOOKUP(L$129, 'Base Case Medium Dry'!$B$13:$H$168, 3, FALSE) -> 9538.636094 | M153: =VLOOKUP(M$129, 'Base Case Medium Dry'!$B$13:$H$168, 3, FALSE) -> 9530.456952 | N153: =VLOOKUP(N$129, 'Base Case Medium Dry'!$B$13:$H$168, 3, FALSE) -> 9515.931729 | O153: =VLOOKUP(O$129, 'Base Case Medium Dry'!$B$13:$H$168, 3, FALSE) -> 9498.726278 | P153: =VLOOKUP(P$129, 'Base Case Medium Dry'!$B$13:$H$168, 3, FALSE) -> 9476.580866 | Q153: =VLOOKUP(Q$129, 'Base Case Medium Dry'!$B$13:$H$168, 3, FALSE) -> 9451.920206 | R153: =VLOOKUP(R$129, 'Base Case Medium Dry'!$B$13:$H$168, 3, FALSE) -> 9425.200702 | S153: =VLOOKUP(S$129, 'Base Case Medium Dry'!$B$13:$H$168, 3, FALSE) -> 9395.560604 | T153: =VLOOKUP(T$129, 'Base Case Medium Dry'!$B$13:$H$168, 3, FALSE) -> 9361.808201 | U153: =VLOOKUP(U$129, 'Base Case Medium Dry'!$B$13:$H$168, 3, FALSE) -> 9322.245586 | V153: =VLOOKUP(V$129, 'Base Case Medium Dry'!$B$13:$H$168, 3, FALSE) -> 9281.277181 | W153: =VLOOKUP(W$129, 'Base Case Medium Dry'!$B$13:$H$168, 3, FALSE) -> 9240.579017 | X153: =VLOOKUP(X$129, 'Base Case Medium Dry'!$B$13:$H$168, 3, FALSE) -> 9200.356472 | Y153: =VLOOKUP(Y$129, 'Base Case Medium Dry'!$B$13:$H$168, 3, FALSE) -> 9160.770325 | Z153: =VLOOKUP(Z$129, 'Base Case Medium Dry'!$B$13:$H$168, 3, FALSE) -> 9122.521867 | AA153: =VLOOKUP(AA$129, 'Base Case Medium Dry'!$B$13:$H$168, 3, FALSE) -> 9085.61052 | AB153: =VLOOKUP(AB$129, 'Base Case Medium Dry'!$B$13:$H$168, 3, FALSE) -> 9050.744162 | AC153: =VLOOKUP(AC$129, 'Base Case Medium Dry'!$B$13:$H$168, 3, FALSE) -> 9018.808496 | AD153: =VLOOKUP(AD$129, 'Base Case Medium Dry'!$B$13:$H$168, 3, FALSE) -> 8990.122332 | AE153: =VLOOKUP(AE$129, 'Base Case Medium Dry'!$B$13:$H$168, 3, FALSE) -> 8964.964485 | AF153: =VLOOKUP(AF$129, 'Base Case Medium Dry'!$B$13:$H$168, 3, FALSE) -> 8941.552573 | AG153: =VLOOKUP(AG$129, 'Base Case Medium Dry'!$B$13:$H$168, 3, FALSE) -> 8920.106688 | AH153: =VLOOKUP(AH$129, 'Base Case Medium Dry'!$B$13:$H$168, 3, FALSE) -> 8900.599083
D154: Total Base Case Stock | E154: =SUM(E151:E153) -> 127726.514 | F154: =SUM(F151:F153) -> 128828.0614 | G154: 129837.3721 | H154: 132085.292 | I154: 133816.734 | J154: 133704.4228 | K154: 133628.2915 | L154: 133376.3023 | M154: 132913.7476 | N154: 132334.2877 | O154: 131708.9897 | P154: 131004.7744 | Q154: 130260.7364 | R154: 129481.3088 | S154: 128659.3543 | T154: 127781.827 | U154: 126827.8188 | V154: 125853.5818 | W154: 124884.657 | X154: 123922.6379 | Y154: 122973.8708 | Z154: 122047.0557 | AA154: 121145.0621 | AB154: 120278.4093 | AC154: 119461.142 | AD154: 118692.9275 | AE154: 117980.541 | AF154: 117302.3141 | AG154: 116664.3744 | AH154: 116062.843
D156: Stock UEC
D157: Year | E157: =E$58 -> 2005 | F157: =F$58 -> 2006 | G157: 2007 | H157: 2008 | I157: 2009 | J157: 2010 | K157: 2011 | L157: 2012 | M157: 2013 | N157: 2014 | O157: 2015 | P157: 2016 | Q157: 2017 | R157: 2018 | S157: 2019 | T157: 2020 | U157: 2021 | V157: 2022 | W157: 2023 | X157: 2024 | Y157: 2025 | Z157: 2026 | AA157: 2027 | AB157: 2028 | AC157: 2029 | AD157: 2030 | AE157: 2031 | AF157: 2032 | AG157: 2033 | AH157: 2034
D158: =$D$58&" Base Case Stock UEC" -> Liquid Immersed Base Case Stock UEC | E158: =E144/E151 -> 39823.26447 | F158: =F144/F151 -> 39907.991 | G158: 40344.18785 | H158: 40211.56229 | I158: 39782.0979 | J158: 39934.95195 | K158: 40013.73188 | L158: 40090.84808 | M158: 40186.58696 | N158: 40296.83891 | O158: 40389.72343 | P158: 40486.43473 | Q158: 40574.77917 | R158: 40652.10569 | S158: 40718.57903 | T158: 40773.03457 | U158: 40837.20091 | V158: 40900.32284 | W158: 40956.46476 | X158: 41005.28294 | Y158: 41045.42982 | Z158: 41078.59505 | AA158: 41106.65909 | AB158: 41130.64266 | AC158: 41145.66246 | AD158: 41155.33682 | AE158: 41151.68224 | AF158: 41144.53571 | AG158: 41130.39837 | AH158: 41113.39984
D159: =$D$65&" Base Case Stock UEC" -> Low Voltage Dry Base Case Stock UEC | E159: =E145/E152 -> 54922.77645 | F159: 54916.06759 | G159: 55354.37488 | H159: 55254.553 | I159: 54647.86162 | J159: 54690.9036 | K159: 54686.75785 | L159: 54632.14573 | M159: 54628.62608 | N159: 54644.32828 | O159: 54645.39701 | P159: 54659.08005 | Q159: 54672.73227 | R159: 54678.15951 | S159: 54674.92138 | T159: 54660.15617 | U159: 54670.10089 | V159: 54687.74783 | W159: 54706.603 | X159: 54724.12917 | Y159: 54741.14599 | Z159: 54756.59513 | AA159: 54774.5215 | AB159: 54795.79738 | AC159: 54817.36235 | AD159: 54839.13906 | AE159: 54848.91065 | AF159: 54858.93636 | AG159: 54867.78035 | AH159: 54876.75335
D160: =$D$70&" Base Case Stock UEC" -> Medium Voltage Dry Base Case Stock UEC | E160: 33555.60317 | F160: 33551.50433 | G160: 33819.29242 | H160: 33758.30527 | I160: 33387.64129 | J160: 33413.93821 | K160: 33411.40532 | L160: 33378.03951 | M160: 33375.88915 | N160: 33385.48256 | O160: 33386.13551 | P160: 33394.4953 | Q160: 33402.83625 | R160: 33406.15208 | S160: 33404.17371 | T160: 33395.15277 | U160: 33401.22859 | V160: 33412.01016 | W160: 33423.52991 | X160: 33434.23769 | Y160: 33444.63428 | Z160: 33454.07308 | AA160: 33465.02537 | AB160: 33478.02408 | AC160: 33491.19941 | AD160: 33504.5041 | AE160: 33510.47415 | AF160: 33516.59945 | AG160: 33522.00277 | AH160: 33527.48491
D161: Total Base Case Stock UEC | E161: =SUM(E158:E160) -> 128301.6441 | F161: =SUM(F158:F160) -> 128375.5629 | G161: =SUM(G158:G160) -> 129517.8552 | H161: =SUM(H158:H160) -> 129224.4206 | I161: =SUM(I158:I160) -> 127817.6008 | J161: =SUM(J158:J160) -> 128039.7938 | K161: =SUM(K158:K160) -> 128111.8951 | L161: =SUM(L158:L160) -> 128101.0333 | M161: =SUM(M158:M160) -> 128191.1022 | N161: =SUM(N158:N160) -> 128326.6498 | O161: =SUM(O158:O160) -> 128421.256 | P161: =SUM(P158:P160) -> 128540.0101 | Q161: =SUM(Q158:Q160) -> 128650.3477 | R161: =SUM(R158:R160) -> 128736.4173 | S161: =SUM(S158:S160) -> 128797.6741 | T161: =SUM(T158:T160) -> 128828.3435 | U161: =SUM(U158:U160) -> 128908.5304 | V161: =SUM(V158:V160) -> 129000.0808 | W161: =SUM(W158:W160) -> 129086.5977 | X161: =SUM(X158:X160) -> 129163.6498 | Y161: =SUM(Y158:Y160) -> 129231.2101 | Z161: =SUM(Z158:Z160) -> 129289.2633 | AA161: =SUM(AA158:AA160) -> 129346.206 | AB161: =SUM(AB158:AB160) -> 129404.4641 | AC161: =SUM(AC158:AC160) -> 129454.2242 | AD161: =SUM(AD158:AD160) -> 129498.98 | AE161: =SUM(AE158:AE160) -> 129511.067 | AF161: =SUM(AF158:AF160) -> 129520.0715 | AG161: =SUM(AG158:AG160) -> 129520.1815 | AH161: =SUM(AH158:AH160) -> 129517.6381
B163: Standard Case
D164: Total Shipped Energy Consumption by Product Class
C165: STD1 | D165: Year | E165: =E$58 -> 2005 | F165: =F$58 -> 2006 | G165: 2007 | H165: 2008 | I165: 2009 | J165: 2010 | K165: 2011 | L165: 2012 | M165: 2013 | N165: 2014 | O165: 2015 | P165: 2016 | Q165: 2017 | R165: 2018 | S165: 2019 | T165: 2020 | U165: 2021 | V165: 2022 | W165: 2023 | X165: 2024 | Y165: 2025 | Z165: 2026 | AA165: 2027 | AB165: 2028 | AC165: 2029 | AD165: 2030 | AE165: 2031 | AF165: 2032 | AG165: 2033 | AH165: 2034
C166: 2010 | D166: =$D$97&" Standard Case EC" -> Liquid Immersed Standard Case EC | E166: =VLOOKUP(E$165,'Stds Case Liquid Immersed'!$K$13:$T$168,9,FALSE)+VLOOKUP(E$165,'Stds Case Liquid Immersed'!$K$13:$T$168,10,FALSE) -> 96978692.97 | F166: =VLOOKUP(F$165,'Stds Case Liquid Immersed'!$K$13:$T$168,9,FALSE)+VLOOKUP(F$165,'Stds Case Liquid Immersed'!$K$13:$T$168,10,FALSE) -> 97304599.1 | G166: =VLOOKUP(G$165,'Stds Case Liquid Immersed'!$K$13:$T$168,9,FALSE)+VLOOKUP(G$165,'Stds Case Liquid Immersed'!$K$13:$T$168,10,FALSE) -> 131080537.2 | H166: =VLOOKUP(H$165,'Stds Case Liquid Immersed'!$K$13:$T$168,9,FALSE)+VLOOKUP(H$165,'Stds Case Liquid Immersed'!$K$13:$T$168,10,FALSE) -> 119364723.3 | I166: =VLOOKUP(I$165,'Stds Case Liquid Immersed'!$K$13:$T$168,9,FALSE)+VLOOKUP(I$165,'Stds Case Liquid Immersed'!$K$13:$T$168,10,FALSE) -> 75789994.55 | J166: =VLOOKUP(J$165,'Stds Case Liquid Immersed'!$K$13:$T$168,9,FALSE)+VLOOKUP(J$165,'Stds Case Liquid Immersed'!$K$13:$T$168,10,FALSE) -> 62727183.92 | K166: =VLOOKUP(K$165,'Stds Case Liquid Immersed'!$K$13:$T$168,9,FALSE)+VLOOKUP(K$165,'Stds Case Liquid Immersed'!$K$13:$T$168,10,FALSE) -> 60591703.1 | L166: =VLOOKUP(L$165,'Stds Case Liquid Immersed'!$K$13:$T$168,9,FALSE)+VLOOKUP(L$165,'Stds Case Liquid Immersed'!$K$13:$T$168,10,FALSE) -> 58294869.84 | M166: =VLOOKUP(M$165,'Stds Case Liquid Immersed'!$K$13:$T$168,9,FALSE)+VLOOKUP(M$165,'Stds Case Liquid Immersed'!$K$13:$T$168,10,FALSE) -> 57367613.85 | N166: =VLOOKUP(N$165,'Stds Case Liquid Immersed'!$K$13:$T$168,9,FALSE)+VLOOKUP(N$165,'Stds Case Liquid Immersed'!$K$13:$T$168,10,FALSE) -> 57799190.6 | O166: =VLOOKUP(O$165,'Stds Case Liquid Immersed'!$K$13:$T$168,9,FALSE)+VLOOKUP(O$165,'Stds Case Liquid Immersed'!$K$13:$T$168,10,FALSE) -> 57481993.24 | P166: =VLOOKUP(P$165,'Stds Case Liquid Immersed'!$K$13:$T$168,9,FALSE)+VLOOKUP(P$165,'Stds Case Liquid Immersed'!$K$13:$T$168,10,FALSE) -> 52151341.77 | Q166: =VLOOKUP(Q$165,'Stds Case Liquid Immersed'!$K$13:$T$168,9,FALSE)+VLOOKUP(Q$165,'Stds Case Liquid Immersed'!$K$13:$T$168,10,FALSE) -> 52412093.46 | R166: =VLOOKUP(R$165,'Stds Case Liquid Immersed'!$K$13:$T$168,9,FALSE)+VLOOKUP(R$165,'Stds Case Liquid Immersed'!$K$13:$T$168,10,FALSE) -> 52413787.67 | S166: =VLOOKUP(S$165,'Stds Case Liquid Immersed'!$K$13:$T$168,9,FALSE)+VLOOKUP(S$165,'Stds Case Liquid Immersed'!$K$13:$T$168,10,FALSE) -> 52113268.3 | T166: =VLOOKUP(T$165,'Stds Case Liquid Immersed'!$K$13:$T$168,9,FALSE)+VLOOKUP(T$165,'Stds Case Liquid Immersed'!$K$13:$T$168,10,FALSE) -> 51363958.14 | U166: =VLOOKUP(U$165,'Stds Case Liquid Immersed'!$K$13:$T$168,9,FALSE)+VLOOKUP(U$165,'Stds Case Liquid Immersed'!$K$13:$T$168,10,FALSE) -> 51473521.59 | V166: =VLOOKUP(V$165,'Stds Case Liquid Immersed'!$K$13:$T$168,9,FALSE)+VLOOKUP(V$165,'Stds Case Liquid Immersed'!$K$13:$T$168,10,FALSE) -> 51926192.92 | W166: =VLOOKUP(W$165,'Stds Case Liquid Immersed'!$K$13:$T$168,9,FALSE)+VLOOKUP(W$165,'Stds Case Liquid Immersed'!$K$13:$T$168,10,FALSE) -> 52410676.98 | X166: =VLOOKUP(X$165,'Stds Case Liquid Immersed'!$K$13:$T$168,9,FALSE)+VLOOKUP(X$165,'Stds Case Liquid Immersed'!$K$13:$T$168,10,FALSE) -> 52895425.8 | Y166: =VLOOKUP(Y$165,'Stds Case Liquid Immersed'!$K$13:$T$168,9,FALSE)+VLOOKUP(Y$165,'Stds Case Liquid Immersed'!$K$13:$T$168,10,FALSE) -> 53290994.19 | Z166: =VLOOKUP(Z$165,'Stds Case Liquid Immersed'!$K$13:$T$168,9,FALSE)+VLOOKUP(Z$165,'Stds Case Liquid Immersed'!$K$13:$T$168,10,FALSE) -> 53683541.73 | AA166: =VLOOKUP(AA$165,'Stds Case Liquid Immersed'!$K$13:$T$168,9,FALSE)+VLOOKUP(AA$165,'Stds Case Liquid Immersed'!$K$13:$T$168,10,FALSE) -> 54174431.39 | AB166: =VLOOKUP(AB$165,'Stds Case Liquid Immersed'!$K$13:$T$168,9,FALSE)+VLOOKUP(AB$165,'Stds Case Liquid Immersed'!$K$13:$T$168,10,FALSE) -> 54835441.49 | AC166: =VLOOKUP(AC$165,'Stds Case Liquid Immersed'!$K$13:$T$168,9,FALSE)+VLOOKUP(AC$165,'Stds Case Liquid Immersed'!$K$13:$T$168,10,FALSE) -> 55396216.95 | AD166: =VLOOKUP(AD$165,'Stds Case Liquid Immersed'!$K$13:$T$168,9,FALSE)+VLOOKUP(AD$165,'Stds Case Liquid Immersed'!$K$13:$T$168,10,FALSE) -> 56035010.87 | AE166: =VLOOKUP(AE$165,'Stds Case Liquid Immersed'!$K$13:$T$168,9,FALSE)+VLOOKUP(AE$165,'Stds Case Liquid Immersed'!$K$13:$T$168,10,FALSE) -> 56276706.26 | AF166: =VLOOKUP(AF$165,'Stds Case Liquid Immersed'!$K$13:$T$168,9,FALSE)+VLOOKUP(AF$165,'Stds Case Liquid Immersed'!$K$13:$T$168,10,FALSE) -> 56594202.85 | AG166: =VLOOKUP(AG$165,'Stds Case Liquid Immersed'!$K$13:$T$168,9,FALSE)+VLOOKUP(AG$165,'Stds Case Liquid Immersed'!$K$13:$T$168,10,FALSE) -> 56782851.47 | AH166: =VLOOKUP(AH$165,'Stds Case Liquid Immersed'!$K$13:$T$168,9,FALSE)+VLOOKUP(AH$165,'Stds Case Liquid Immersed'!$K$13:$T$168,10,FALSE) -> 57036478.94
C167: 2007 | D167: =$D$104&" Standard Case EC" -> Low Voltage Dry Standard Case EC | E167: =VLOOKUP(E$165, 'Stds Case Low Dry'!$O$13:$AA$168, 9, FALSE)+VLOOKUP(E$165, 'Stds Case Low Dry'!$O$13:$AA$168, 10, FALSE) -> 43413262.73 | F167: =VLOOKUP(F$165, 'Stds Case Low Dry'!$O$13:$AA$168, 9, FALSE)+VLOOKUP(F$165, 'Stds Case Low Dry'!$O$13:$AA$168, 10, FALSE) -> 43614889.77 | G167: =VLOOKUP(G$165, 'Stds Case Low Dry'!$O$13:$AA$168, 9, FALSE)+VLOOKUP(G$165, 'Stds Case Low Dry'!$O$13:$AA$168, 10, FALSE) -> 47533475.86 | H167: =VLOOKUP(H$165, 'Stds Case Low Dry'!$O$13:$AA$168, 9, FALSE)+VLOOKUP(H$165, 'Stds Case Low Dry'!$O$13:$AA$168, 10, FALSE) -> 46031225.83 | I167: =VLOOKUP(I$165, 'Stds Case Low Dry'!$O$13:$AA$168, 9, FALSE)+VLOOKUP(I$165, 'Stds Case Low Dry'!$O$13:$AA$168, 10, FALSE) -> 32858023.89 | J167: =VLOOKUP(J$165, 'Stds Case Low Dry'!$O$13:$AA$168, 9, FALSE)+VLOOKUP(J$165, 'Stds Case Low Dry'!$O$13:$AA$168, 10, FALSE) -> 33881301.3 | K167: =VLOOKUP(K$165, 'Stds Case Low Dry'!$O$13:$AA$168, 9, FALSE)+VLOOKUP(K$165, 'Stds Case Low Dry'!$O$13:$AA$168, 10, FALSE) -> 33837365.85 | L167: =VLOOKUP(L$165, 'Stds Case Low Dry'!$O$13:$AA$168, 9, FALSE)+VLOOKUP(L$165, 'Stds Case Low Dry'!$O$13:$AA$168, 10, FALSE) -> 32618763.03 | M167: =VLOOKUP(M$165, 'Stds Case Low Dry'!$O$13:$AA$168, 9, FALSE)+VLOOKUP(M$165, 'Stds Case Low Dry'!$O$13:$AA$168, 10, FALSE) -> 32510631.5 | N167: =VLOOKUP(N$165, 'Stds Case Low Dry'!$O$13:$AA$168, 9, FALSE)+VLOOKUP(N$165, 'Stds Case Low Dry'!$O$13:$AA$168, 10, FALSE) -> 32818163.37 | O167: =VLOOKUP(O$165, 'Stds Case Low Dry'!$O$13:$AA$168, 9, FALSE)+VLOOKUP(O$165, 'Stds Case Low Dry'!$O$13:$AA$168, 10, FALSE) -> 32783085.79 | P167: =VLOOKUP(P$165, 'Stds Case Low Dry'!$O$13:$AA$168, 9, FALSE)+VLOOKUP(P$165, 'Stds Case Low Dry'!$O$13:$AA$168, 10, FALSE) -> 23132874.97 | Q167: =VLOOKUP(Q$165, 'Stds Case Low Dry'!$O$13:$AA$168, 9, FALSE)+VLOOKUP(Q$165, 'Stds Case Low Dry'!$O$13:$AA$168, 10, FALSE) -> 23288737.79 | R167: =VLOOKUP(R$165, 'Stds Case Low Dry'!$O$13:$AA$168, 9, FALSE)+VLOOKUP(R$165, 'Stds Case Low Dry'!$O$13:$AA$168, 10, FALSE) -> 23308552.19 | S167: =VLOOKUP(S$165, 'Stds Case Low Dry'!$O$13:$AA$168, 9, FALSE)+VLOOKUP(S$165, 'Stds Case Low Dry'!$O$13:$AA$168, 10, FALSE) -> 23184310.87 | T167: =VLOOKUP(T$165, 'Stds Case Low Dry'!$O$13:$AA$168, 9, FALSE)+VLOOKUP(T$165, 'Stds Case Low Dry'!$O$13:$AA$168, 10, FALSE) -> 22869576.71 | U167: =VLOOKUP(U$165, 'Stds Case Low Dry'!$O$13:$AA$168, 9, FALSE)+VLOOKUP(U$165, 'Stds Case Low Dry'!$O$13:$AA$168, 10, FALSE) -> 22928157.4 | V167: =VLOOKUP(V$165, 'Stds Case Low Dry'!$O$13:$AA$168, 9, FALSE)+VLOOKUP(V$165, 'Stds Case Low Dry'!$O$13:$AA$168, 10, FALSE) -> 23101634.71 | W167: =VLOOKUP(W$165, 'Stds Case Low Dry'!$O$13:$AA$168, 9, FALSE)+VLOOKUP(W$165, 'Stds Case Low Dry'!$O$13:$AA$168, 10, FALSE) -> 23292065.69 | X167: =VLOOKUP(X$165, 'Stds Case Low Dry'!$O$13:$AA$168, 9, FALSE)+VLOOKUP(X$165, 'Stds Case Low Dry'!$O$13:$AA$168, 10, FALSE) -> 23460667.71 | Y167: =VLOOKUP(Y$165, 'Stds Case Low Dry'!$O$13:$AA$168, 9, FALSE)+VLOOKUP(Y$165, 'Stds Case Low Dry'!$O$13:$AA$168, 10, FALSE) -> 23620737.8 | Z167: =VLOOKUP(Z$165, 'Stds Case Low Dry'!$O$13:$AA$168, 9, FALSE)+VLOOKUP(Z$165, 'Stds Case Low Dry'!$O$13:$AA$168, 10, FALSE) -> 23758093.83 | AA167: =VLOOKUP(AA$165, 'Stds Case Low Dry'!$O$13:$AA$168, 9, FALSE)+VLOOKUP(AA$165, 'Stds Case Low Dry'!$O$13:$AA$168, 10, FALSE) -> 23934673.28 | AB167: =VLOOKUP(AB$165, 'Stds Case Low Dry'!$O$13:$AA$168, 9, FALSE)+VLOOKUP(AB$165, 'Stds Case Low Dry'!$O$13:$AA$168, 10, FALSE) -> 24165245.21 | AC167: =VLOOKUP(AC$165, 'Stds Case Low Dry'!$O$13:$AA$168, 9, FALSE)+VLOOKUP(AC$165, 'Stds Case Low Dry'!$O$13:$AA$168, 10, FALSE) -> 24405627.79 | AD167: =VLOOKUP(AD$165, 'Stds Case Low Dry'!$O$13:$AA$168, 9, FALSE)+VLOOKUP(AD$165, 'Stds Case Low Dry'!$O$13:$AA$168, 10, FALSE) -> 24655802.11 | AE167: =VLOOKUP(AE$165, 'Stds Case Low Dry'!$O$13:$AA$168, 9, FALSE)+VLOOKUP(AE$165, 'Stds Case Low Dry'!$O$13:$AA$168, 10, FALSE) -> 24733484.22 | AF167: =VLOOKUP(AF$165, 'Stds Case Low Dry'!$O$13:$AA$168, 9, FALSE)+VLOOKUP(AF$165, 'Stds Case Low Dry'!$O$13:$AA$168, 10, FALSE) -> 24818993.13 | AG167: =VLOOKUP(AG$165, 'Stds Case Low Dry'!$O$13:$AA$168, 9, FALSE)+VLOOKUP(AG$165, 'Stds Case Low Dry'!$O$13:$AA$168, 10, FALSE) -> 24891556.39 | AH167: =VLOOKUP(AH$165, 'Stds Case Low Dry'!$O$13:$AA$168, 9, FALSE)+VLOOKUP(AH$165, 'Stds Case Low Dry'!$O$13:$AA$168, 10, FALSE) -> 24970844.52
C168: 2010 | D168: =$D$109&" Standard Case EC" -> Medium Voltage Dry Standard Case EC | E168: =VLOOKUP(E$165,'Stds Case Medium Dry'!$K$13:$T$168,9,FALSE)+VLOOKUP(E$165,'Stds Case Medium Dry'!$K$13:$T$168,10,FALSE) -> 9558935.618 | F168: =VLOOKUP(F$165,'Stds Case Medium Dry'!$K$13:$T$168,9,FALSE)+VLOOKUP(F$165,'Stds Case Medium Dry'!$K$13:$T$168,10,FALSE) -> 9603330.804 | G168: =VLOOKUP(G$165,'Stds Case Medium Dry'!$K$13:$T$168,9,FALSE)+VLOOKUP(G$165,'Stds Case Medium Dry'!$K$13:$T$168,10,FALSE) -> 12152267.75 | H168: =VLOOKUP(H$165,'Stds Case Medium Dry'!$K$13:$T$168,9,FALSE)+VLOOKUP(H$165,'Stds Case Medium Dry'!$K$13:$T$168,10,FALSE) -> 11768206.95 | I168: =VLOOKUP(I$165,'Stds Case Medium Dry'!$K$13:$T$168,9,FALSE)+VLOOKUP(I$165,'Stds Case Medium Dry'!$K$13:$T$168,10,FALSE) -> 8400385.134 | J168: =VLOOKUP(J$165,'Stds Case Medium Dry'!$K$13:$T$168,9,FALSE)+VLOOKUP(J$165,'Stds Case Medium Dry'!$K$13:$T$168,10,FALSE) -> 7371837.188 | K168: =VLOOKUP(K$165,'Stds Case Medium Dry'!$K$13:$T$168,9,FALSE)+VLOOKUP(K$165,'Stds Case Medium Dry'!$K$13:$T$168,10,FALSE) -> 7362277.787 | L168: =VLOOKUP(L$165,'Stds Case Medium Dry'!$K$13:$T$168,9,FALSE)+VLOOKUP(L$165,'Stds Case Medium Dry'!$K$13:$T$168,10,FALSE) -> 7097136.21 | M168: =VLOOKUP(M$165,'Stds Case Medium Dry'!$K$13:$T$168,9,FALSE)+VLOOKUP(M$165,'Stds Case Medium Dry'!$K$13:$T$168,10,FALSE) -> 7073609.132 | N168: =VLOOKUP(N$165,'Stds Case Medium Dry'!$K$13:$T$168,9,FALSE)+VLOOKUP(N$165,'Stds Case Medium Dry'!$K$13:$T$168,10,FALSE) -> 7140521.405 | O168: =VLOOKUP(O$165,'Stds Case Medium Dry'!$K$13:$T$168,9,FALSE)+VLOOKUP(O$165,'Stds Case Medium Dry'!$K$13:$T$168,10,FALSE) -> 7132889.283 | P168: =VLOOKUP(P$165,'Stds Case Medium Dry'!$K$13:$T$168,9,FALSE)+VLOOKUP(P$165,'Stds Case Medium Dry'!$K$13:$T$168,10,FALSE) -> 5728978.931 | Q168: =VLOOKUP(Q$165,'Stds Case Medium Dry'!$K$13:$T$168,9,FALSE)+VLOOKUP(Q$165,'Stds Case Medium Dry'!$K$13:$T$168,10,FALSE) -> 5767579.183 | R168: =VLOOKUP(R$165,'Stds Case Medium Dry'!$K$13:$T$168,9,FALSE)+VLOOKUP(R$165,'Stds Case Medium Dry'!$K$13:$T$168,10,FALSE) -> 5772486.324 | S168: =VLOOKUP(S$165,'Stds Case Medium Dry'!$K$13:$T$168,9,FALSE)+VLOOKUP(S$165,'Stds Case Medium Dry'!$K$13:$T$168,10,FALSE) -> 5741717.305 | T168: =VLOOKUP(T$165,'Stds Case Medium Dry'!$K$13:$T$168,9,FALSE)+VLOOKUP(T$165,'Stds Case Medium Dry'!$K$13:$T$168,10,FALSE) -> 5663771.724 | U168: =VLOOKUP(U$165,'Stds Case Medium Dry'!$K$13:$T$168,9,FALSE)+VLOOKUP(U$165,'Stds Case Medium Dry'!$K$13:$T$168,10,FALSE) -> 5678279.542 | V168: =VLOOKUP(V$165,'Stds Case Medium Dry'!$K$13:$T$168,9,FALSE)+VLOOKUP(V$165,'Stds Case Medium Dry'!$K$13:$T$168,10,FALSE) -> 5721242.116 | W168: =VLOOKUP(W$165,'Stds Case Medium Dry'!$K$13:$T$168,9,FALSE)+VLOOKUP(W$165,'Stds Case Medium Dry'!$K$13:$T$168,10,FALSE) -> 5768403.355 | X168: =VLOOKUP(X$165,'Stds Case Medium Dry'!$K$13:$T$168,9,FALSE)+VLOOKUP(X$165,'Stds Case Medium Dry'!$K$13:$T$168,10,FALSE) -> 5810158.539 | Y168: =VLOOKUP(Y$165,'Stds Case Medium Dry'!$K$13:$T$168,9,FALSE)+VLOOKUP(Y$165,'Stds Case Medium Dry'!$K$13:$T$168,10,FALSE) -> 5849800.743 | Z168: =VLOOKUP(Z$165,'Stds Case Medium Dry'!$K$13:$T$168,9,FALSE)+VLOOKUP(Z$165,'Stds Case Medium Dry'!$K$13:$T$168,10,FALSE) -> 5883817.692 | AA168: =VLOOKUP(AA$165,'Stds Case Medium Dry'!$K$13:$T$168,9,FALSE)+VLOOKUP(AA$165,'Stds Case Medium Dry'!$K$13:$T$168,10,FALSE) -> 5927548.528 | AB168: =VLOOKUP(AB$165,'Stds Case Medium Dry'!$K$13:$T$168,9,FALSE)+VLOOKUP(AB$165,'Stds Case Medium Dry'!$K$13:$T$168,10,FALSE) -> 5984650.886 | AC168: =VLOOKUP(AC$165,'Stds Case Medium Dry'!$K$13:$T$168,9,FALSE)+VLOOKUP(AC$165,'Stds Case Medium Dry'!$K$13:$T$168,10,FALSE) -> 6044182.905 | AD168: =VLOOKUP(AD$165,'Stds Case Medium Dry'!$K$13:$T$168,9,FALSE)+VLOOKUP(AD$165,'Stds Case Medium Dry'!$K$13:$T$168,10,FALSE) -> 6106139.898 | AE168: =VLOOKUP(AE$165,'Stds Case Medium Dry'!$K$13:$T$168,9,FALSE)+VLOOKUP(AE$165,'Stds Case Medium Dry'!$K$13:$T$168,10,FALSE) -> 6125378.286 | AF168: =VLOOKUP(AF$165,'Stds Case Medium Dry'!$K$13:$T$168,9,FALSE)+VLOOKUP(AF$165,'Stds Case Medium Dry'!$K$13:$T$168,10,FALSE) -> 6146555.018 | AG168: =VLOOKUP(AG$165,'Stds Case Medium Dry'!$K$13:$T$168,9,FALSE)+VLOOKUP(AG$165,'Stds Case Medium Dry'!$K$13:$T$168,10,FALSE) -> 6164525.695 | AH168: =VLOOKUP(AH$165,'Stds Case Medium Dry'!$K$13:$T$168,9,FALSE)+VLOOKUP(AH$165,'Stds Case Medium Dry'!$K$13:$T$168,10,FALSE) -> 6184161.82
D169: Total Standard Case EC | E169: =SUM(E166:E168) -> 149950891.3 | F169: =SUM(F166:F168) -> 150522819.7 | G169: 190766280.8 | H169: 177164156.1 | I169: 117048403.6 | J169: 103980322.4 | K169: 101791346.7 | L169: 98010769.07 | M169: 96951854.48 | N169: 97757875.37 | O169: 97397968.31 | P169: 81013195.67 | Q169: 81468410.43 | R169: 81494826.19 | S169: 81039296.48 | T169: 79897306.57 | U169: 80079958.53 | V169: 80749069.75 | W169: 81471146.02 | X169: 82166252.05 | Y169: 82761532.73 | Z169: 83325453.25 | AA169: 84036653.21 | AB169: 84985337.58 | AC169: 85846027.65 | AD169: 86796952.87 | AE169: 87135568.77 | AF169: 87559750.99 | AG169: 87838933.56 | AH169: =SUM(AH166:AH168) -> 88191485.28
D171: Shipments
C172: STD1 | D172: Year | E172: =E$58 -> 2005 | F172: =F$58 -> 2006 | G172: 2007 | H172: 2008 | I172: 2009 | J172: 2010 | K172: 2011 | L172: 2012 | M172: 2013 | N172: 2014 | O172: 2015 | P172: 2016 | Q172: 2017 | R172: 2018 | S172: 2019 | T172: 2020 | U172: 2021 | V172: 2022 | W172: 2023 | X172: 2024 | Y172: 2025 | Z172: 2026 | AA172: 2027 | AB172: 2028 | AC172: 2029 | AD172: 2030 | AE172: 2031 | AF172: 2032 | AG172: 2033 | AH172: 2034
C173: 2010 | D173: =$D$58&" Std Case Shipped" -> Liquid Immersed Std Case Shipped | E173: =VLOOKUP(E$172,'Stds Case Liquid Immersed'!$K$68:$O$97,2,FALSE) -> 3004.609366 | F173: =VLOOKUP(F$172,'Stds Case Liquid Immersed'!$K$68:$O$97,2,FALSE) -> 3014.706642 | G173: =VLOOKUP(G$172,'Stds Case Liquid Immersed'!$K$68:$O$97,2,FALSE) -> 4061.158154 | H173: =VLOOKUP(H$172,'Stds Case Liquid Immersed'!$K$68:$O$97,2,FALSE) -> 3698.176936 | I173: =VLOOKUP(I$172,'Stds Case Liquid Immersed'!$K$68:$O$97,2,FALSE) -> 2348.137725 | J173: =VLOOKUP(J$172,'Stds Case Liquid Immersed'!$K$68:$O$97,2,FALSE) -> 2443.033305 | K173: =VLOOKUP(K$172,'Stds Case Liquid Immersed'!$K$68:$O$97,2,FALSE) -> 2359.862813 | L173: =VLOOKUP(L$172,'Stds Case Liquid Immersed'!$K$68:$O$97,2,FALSE) -> 2270.408133 | M173: =VLOOKUP(M$172,'Stds Case Liquid Immersed'!$K$68:$O$97,2,FALSE) -> 2234.294328 | N173: =VLOOKUP(N$172,'Stds Case Liquid Immersed'!$K$68:$O$97,2,FALSE) -> 2251.102932 | O173: =VLOOKUP(O$172,'Stds Case Liquid Immersed'!$K$68:$O$97,2,FALSE) -> 2238.749058 | P173: =VLOOKUP(P$172,'Stds Case Liquid Immersed'!$K$68:$O$97,2,FALSE) -> 2253.006476 | Q173: =VLOOKUP(Q$172,'Stds Case Liquid Immersed'!$K$68:$O$97,2,FALSE) -> 2264.271292 | R173: =VLOOKUP(R$172,'Stds Case Liquid Immersed'!$K$68:$O$97,2,FALSE) -> 2264.344484 | S173: =VLOOKUP(S$172,'Stds Case Liquid Immersed'!$K$68:$O$97,2,FALSE) -> 2251.361652 | T173: =VLOOKUP(T$172,'Stds Case Liquid Immersed'!$K$68:$O$97,2,FALSE) -> 2218.990469 | U173: =VLOOKUP(U$172,'Stds Case Liquid Immersed'!$K$68:$O$97,2,FALSE) -> 2223.723754 | V173: =VLOOKUP(V$172,'Stds Case Liquid Immersed'!$K$68:$O$97,2,FALSE) -> 2243.27975 | W173: =VLOOKUP(W$172,'Stds Case Liquid Immersed'!$K$68:$O$97,2,FALSE) -> 2264.210098 | X173: =VLOOKUP(X$172,'Stds Case Liquid Immersed'!$K$68:$O$97,2,FALSE) -> 2285.151884 | Y173: =VLOOKUP(Y$172,'Stds Case Liquid Immersed'!$K$68:$O$97,2,FALSE) -> 2302.240958 | Z173: =VLOOKUP(Z$172,'Stds Case Liquid Immersed'!$K$68:$O$97,2,FALSE) -> 2319.199527 | AA173: =VLOOKUP(AA$172,'Stds Case Liquid Immersed'!$K$68:$O$97,2,FALSE) -> 2340.406606 | AB173: =VLOOKUP(AB$172,'Stds Case Liquid Immersed'!$K$68:$O$97,2,FALSE) -> 2368.96311 | AC173: =VLOOKUP(AC$172,'Stds Case Liquid Immersed'!$K$68:$O$97,2,FALSE) -> 2393.189347 | AD173: =VLOOKUP(AD$172,'Stds Case Liquid Immersed'!$K$68:$O$97,2,FALSE) -> 2420.786083 | AE173: =VLOOKUP(AE$172,'Stds Case Liquid Immersed'!$K$68:$O$97,2,FALSE) -> 2431.227642 | AF173: =VLOOKUP(AF$172,'Stds Case Liquid Immersed'!$K$68:$O$97,2,FALSE) -> 2444.943911 | AG173: =VLOOKUP(AG$172,'Stds Case Liquid Immersed'!$K$68:$O$97,2,FALSE) -> 2453.09378 | AH173: =VLOOKUP(AH$172,'Stds Case Liquid Immersed'!$K$68:$O$97,2,FALSE) -> 2464.05082
C174: 2007 | D174: =$D$65&" Std Case Shipped" -> Low Voltage Dry Std Case Shipped | E174: =VLOOKUP(E$172,'Stds Case Low Dry'!$O$68:$S$97,2,FALSE) -> 816.0205302 | F174: =VLOOKUP(F$172,'Stds Case Low Dry'!$O$68:$S$97,2,FALSE) -> 819.8104273 | G174: =VLOOKUP(G$172,'Stds Case Low Dry'!$O$68:$S$97,2,FALSE) -> 1014.248985 | H174: =VLOOKUP(H$172,'Stds Case Low Dry'!$O$68:$S$97,2,FALSE) -> 982.1946162 | I174: =VLOOKUP(I$172,'Stds Case Low Dry'!$O$68:$S$97,2,FALSE) -> 701.1104652 | J174: =VLOOKUP(J$172,'Stds Case Low Dry'!$O$68:$S$97,2,FALSE) -> 722.9447212 | K174: =VLOOKUP(K$172,'Stds Case Low Dry'!$O$68:$S$97,2,FALSE) -> 722.0072454 | L174: =VLOOKUP(L$172,'Stds Case Low Dry'!$O$68:$S$97,2,FALSE) -> 696.0052193 | M174: =VLOOKUP(M$172,'Stds Case Low Dry'!$O$68:$S$97,2,FALSE) -> 693.697955 | N174: =VLOOKUP(N$172,'Stds Case Low Dry'!$O$68:$S$97,2,FALSE) -> 700.2599386 | O174: =VLOOKUP(O$172,'Stds Case Low Dry'!$O$68:$S$97,2,FALSE) -> 699.5114681 | P174: =VLOOKUP(P$172,'Stds Case Low Dry'!$O$68:$S$97,2,FALSE) -> 704.4926398 | Q174: =VLOOKUP(Q$172,'Stds Case Low Dry'!$O$68:$S$97,2,FALSE) -> 709.2393136 | R174: =VLOOKUP(R$172,'Stds Case Low Dry'!$O$68:$S$97,2,FALSE) -> 709.8427448 | S174: =VLOOKUP(S$172,'Stds Case Low Dry'!$O$68:$S$97,2,FALSE) -> 706.0590779 | T174: =VLOOKUP(T$172,'Stds Case Low Dry'!$O$68:$S$97,2,FALSE) -> 696.4741084 | U174: =VLOOKUP(U$172,'Stds Case Low Dry'!$O$68:$S$97,2,FALSE) -> 698.258135 | V174: =VLOOKUP(V$172,'Stds Case Low Dry'!$O$68:$S$97,2,FALSE) -> 703.5412436 | W174: =VLOOKUP(W$172,'Stds Case Low Dry'!$O$68:$S$97,2,FALSE) -> 709.340662 | X174: =VLOOKUP(X$172,'Stds Case Low Dry'!$O$68:$S$97,2,FALSE) -> 714.4752977 | Y174: =VLOOKUP(Y$172,'Stds Case Low Dry'!$O$68:$S$97,2,FALSE) -> 719.3501002 | Z174: =VLOOKUP(Z$172,'Stds Case Low Dry'!$O$68:$S$97,2,FALSE) -> 723.533165 | AA174: =VLOOKUP(AA$172,'Stds Case Low Dry'!$O$68:$S$97,2,FALSE) -> 728.9107467 | AB174: =VLOOKUP(AB$172,'Stds Case Low Dry'!$O$68:$S$97,2,FALSE) -> 735.9326246 | AC174: =VLOOKUP(AC$172,'Stds Case Low Dry'!$O$68:$S$97,2,FALSE) -> 743.253278 | AD174: =VLOOKUP(AD$172,'Stds Case Low Dry'!$O$68:$S$97,2,FALSE) -> 750.8721306 | AE174: =VLOOKUP(AE$172,'Stds Case Low Dry'!$O$68:$S$97,2,FALSE) -> 753.2378754 | AF174: =VLOOKUP(AF$172,'Stds Case Low Dry'!$O$68:$S$97,2,FALSE) -> 755.8419786 | AG174: =VLOOKUP(AG$172,'Stds Case Low Dry'!$O$68:$S$97,2,FALSE) -> 758.0518331 | AH174: =VLOOKUP(AH$172,'Stds Case Low Dry'!$O$68:$S$97,2,FALSE) -> 760.4664877
C175: 2010 | D175: =$D$70&" Std Case Shipped" -> Medium Voltage Dry Std Case Shipped | E175: =VLOOKUP(E$172,'Stds Case Medium Dry'!$K$68:$O$97,2,FALSE) -> 294.0868658 | F175: =VLOOKUP(F$172,'Stds Case Medium Dry'!$K$68:$O$97,2,FALSE) -> 295.4527125 | G175: =VLOOKUP(G$172,'Stds Case Medium Dry'!$K$68:$O$97,2,FALSE) -> 373.872414 | H175: =VLOOKUP(H$172,'Stds Case Medium Dry'!$K$68:$O$97,2,FALSE) -> 362.0565341 | I175: =VLOOKUP(I$172,'Stds Case Medium Dry'!$K$68:$O$97,2,FALSE) -> 258.4433073 | J175: =VLOOKUP(J$172,'Stds Case Medium Dry'!$K$68:$O$97,2,FALSE) -> 264.7645598 | K175: =VLOOKUP(K$172,'Stds Case Medium Dry'!$K$68:$O$97,2,FALSE) -> 264.4212274 | L175: =VLOOKUP(L$172,'Stds Case Medium Dry'!$K$68:$O$97,2,FALSE) -> 254.8984868 | M175: =VLOOKUP(M$172,'Stds Case Medium Dry'!$K$68:$O$97,2,FALSE) -> 254.0534958 | N175: =VLOOKUP(N$172,'Stds Case Medium Dry'!$K$68:$O$97,2,FALSE) -> 256.4566957 | O175: =VLOOKUP(O$172,'Stds Case Medium Dry'!$K$68:$O$97,2,FALSE) -> 256.1825828 | P175: =VLOOKUP(P$172,'Stds Case Medium Dry'!$K$68:$O$97,2,FALSE) -> 258.0068409 | Q175: =VLOOKUP(Q$172,'Stds Case Medium Dry'!$K$68:$O$97,2,FALSE) -> 259.7452186 | R175: =VLOOKUP(R$172,'Stds Case Medium Dry'!$K$68:$O$97,2,FALSE) -> 259.9662136 | S175: =VLOOKUP(S$172,'Stds Case Medium Dry'!$K$68:$O$97,2,FALSE) -> 258.5805186 | T175: =VLOOKUP(T$172,'Stds Case Medium Dry'!$K$68:$O$97,2,FALSE) -> 255.0702084 | U175: =VLOOKUP(U$172,'Stds Case Medium Dry'!$K$68:$O$97,2,FALSE) -> 255.7235738 | V175: =VLOOKUP(V$172,'Stds Case Medium Dry'!$K$68:$O$97,2,FALSE) -> 257.6584104 | W175: =VLOOKUP(W$172,'Stds Case Medium Dry'!$K$68:$O$97,2,FALSE) -> 259.7823355 | X175: =VLOOKUP(X$172,'Stds Case Medium Dry'!$K$68:$O$97,2,FALSE) -> 261.6627968 | Y175: =VLOOKUP(Y$172,'Stds Case Medium Dry'!$K$68:$O$97,2,FALSE) -> 263.4480992 | Z175: =VLOOKUP(Z$172,'Stds Case Medium Dry'!$K$68:$O$97,2,FALSE) -> 264.980066 | AA175: =VLOOKUP(AA$172,'Stds Case Medium Dry'!$K$68:$O$97,2,FALSE) -> 266.9495015 | AB175: =VLOOKUP(AB$172,'Stds Case Medium Dry'!$K$68:$O$97,2,FALSE) -> 269.5211289 | AC175: =VLOOKUP(AC$172,'Stds Case Medium Dry'!$K$68:$O$97,2,FALSE) -> 272.202177 | AD175: =VLOOKUP(AD$172,'Stds Case Medium Dry'!$K$68:$O$97,2,FALSE) -> 274.9924348 | AE175: =VLOOKUP(AE$172,'Stds Case Medium Dry'!$K$68:$O$97,2,FALSE) -> 275.8588432 | AF175: =VLOOKUP(AF$172,'Stds Case Medium Dry'!$K$68:$O$97,2,FALSE) -> 276.8125458 | AG175: =VLOOKUP(AG$172,'Stds Case Medium Dry'!$K$68:$O$97,2,FALSE) -> 277.6218623 | AH175: =VLOOKUP(AH$172,'Stds Case Medium Dry'!$K$68:$O$97,2,FALSE) -> 278.506183
D176: Total Std Case Shipped | E176: =SUM(E173:E175) -> 4114.716762 | F176: =SUM(F173:F175) -> 4129.969782 | G176: 5449.279553 | H176: 5042.428086 | I176: 3307.691498 | J176: 3430.742586 | K176: 3346.291285 | L176: 3221.311839 | M176: 3182.045779 | N176: 3207.819566 | O176: 3194.443109 | P176: 3215.505957 | Q176: 3233.255824 | R176: 3234.153442 | S176: 3216.001249 | T176: 3170.534786 | U176: 3177.705463 | V176: 3204.479404 | W176: 3233.333095 | X176: 3261.289978 | Y176: 3285.039157 | Z176: 3307.712758 | AA176: 3336.266854 | AB176: 3374.416864 | AC176: 3408.644802 | AD176: 3446.650649 | AE176: 3460.32436 | AF176: 3477.598436 | AG176: 3488.767475 | AH176: 3503.02349
D178: Shipped UEC
C179: STD1 | D179: Year | E179: =E$58 -> 2005 | F179: =F$58 -> 2006 | G179: 2007 | H179: 2008 | I179: 2009 | J179: 2010 | K179: 2011 | L179: 2012 | M179: 2013 | N179: 2014 | O179: 2015 | P179: 2016 | Q179: 2017 | R179: 2018 | S179: 2019 | T179: 2020 | U179: 2021 | V179: 2022 | W179: 2023 | X179: 2024 | Y179: 2025 | Z179: 2026 | AA179: 2027 | AB179: 2028 | AC179: 2029 | AD179: 2030 | AE179: 2031 | AF179: 2032 | AG179: 2033 | AH179: 2034
C180: 2010 | D180: =$D$58&" Std Case Shipped UEC" -> Liquid Immersed Std Case Shipped UEC | E180: =IF(E173=0,0,E166/E173) -> 32276.63937 | F180: =IF(F173=0,0,F166/F173) -> 32276.63937 | G180: 32276.63937 | H180: 32276.63937 | I180: 32276.63937 | J180: 25675.94302 | K180: 25675.94302 | L180: 25675.94302 | M180: 25675.94302 | N180: 25675.94302 | O180: 25675.94302 | P180: 23147.44423 | Q180: 23147.44423 | R180: 23147.44423 | S180: 23147.44423 | T180: 23147.44423 | U180: 23147.44423 | V180: 23147.44423 | W180: 23147.44423 | X180: 23147.44423 | Y180: 23147.44423 | Z180: 23147.44423 | AA180: 23147.44423 | AB180: 23147.44423 | AC180: 23147.44423 | AD180: 23147.44423 | AE180: 23147.44423 | AF180: 23147.44423 | AG180: 23147.44423 | AH180: 23147.44423
C181: 2007 | D181: =$D$65&" Std Case Shipped UEC" -> Low Voltage Dry Std Case Shipped UEC | E181: =IF(E174=0,0,E167/E174) -> 53201.18934 | F181: 53201.18934 | G181: 46865.68739 | H181: 46865.68739 | I181: 46865.68739 | J181: 46865.68739 | K181: 46865.68739 | L181: 46865.68739 | M181: 46865.68739 | N181: 46865.68739 | O181: 46865.68739 | P181: 32836.21951 | Q181: 32836.21951 | R181: 32836.21951 | S181: 32836.21951 | T181: 32836.21951 | U181: 32836.21951 | V181: 32836.21951 | W181: 32836.21951 | X181: 32836.21951 | Y181: 32836.21951 | Z181: 32836.21951 | AA181: 32836.21951 | AB181: 32836.21951 | AC181: 32836.21951 | AD181: 32836.21951 | AE181: 32836.21951 | AF181: 32836.21951 | AG181: 32836.21951 | AH181: 32836.21951
C182: 2010 | D182: =$D$70&" Std Case Shipped UEC" -> Medium Voltage Dry Std Case Shipped UEC | E182: 32503.78283 | F182: 32503.78283 | G182: 32503.78283 | H182: 32503.78283 | I182: 32503.78283 | J182: 27842.99075 | K182: 27842.99075 | L182: 27842.99075 | M182: 27842.99075 | N182: 27842.99075 | O182: 27842.99075 | P182: 22204.75593 | Q182: 22204.75593 | R182: 22204.75593 | S182: 22204.75593 | T182: 22204.75593 | U182: 22204.75593 | V182: 22204.75593 | W182: 22204.75593 | X182: 22204.75593 | Y182: 22204.75593 | Z182: 22204.75593 | AA182: 22204.75593 | AB182: 22204.75593 | AC182: 22204.75593 | AD182: 22204.75593 | AE182: 22204.75593 | AF182: 22204.75593 | AG182: 22204.75593 | AH182: 22204.75593
D183: Total Std Case Shipped UEC | E183: =SUM(E180:E182) -> 117981.6115 | F183: =SUM(F180:F182) -> 117981.6115 | G183: =SUM(G180:G182) -> 111646.1096 | H183: =SUM(H180:H182) -> 111646.1096 | I183: =SUM(I180:I182) -> 111646.1096 | J183: =SUM(J180:J182) -> 100384.6211 | K183: =SUM(K180:K182) -> 100384.6211 | L183: =SUM(L180:L182) -> 100384.6211 | M183: =SUM(M180:M182) -> 100384.6211 | N183: =SUM(N180:N182) -> 100384.6211 | O183: =SUM(O180:O182) -> 100384.6211 | P183: =SUM(P180:P182) -> 78188.41968 | Q183: =SUM(Q180:Q182) -> 78188.41968 | R183: =SUM(R180:R182) -> 78188.41968 | S183: =SUM(S180:S182) -> 78188.41968 | T183: =SUM(T180:T182) -> 78188.41968 | U183: =SUM(U180:U182) -> 78188.41968 | V183: =SUM(V180:V182) -> 78188.41968 | W183: =SUM(W180:W182) -> 78188.41968 | X183: =SUM(X180:X182) -> 78188.41968 | Y183: =SUM(Y180:Y182) -> 78188.41968 | Z183: =SUM(Z180:Z182) -> 78188.41968 | AA183: =SUM(AA180:AA182) -> 78188.41968 | AB183: =SUM(AB180:AB182) -> 78188.41968 | AC183: =SUM(AC180:AC182) -> 78188.41968 | AD183: =SUM(AD180:AD182) -> 78188.41968 | AE183: =SUM(AE180:AE182) -> 78188.41968 | AF183: =SUM(AF180:AF182) -> 78188.41968 | AG183: =SUM(AG180:AG182) -> 78188.41968 | AH183: =SUM(AH180:AH182) -> 78188.41968
D185: Total Stock Energy Consumption by Product Class
C186: STD1 | D186: Year | E186: =E$58 -> 2005 | F186: =F$58 -> 2006 | G186: 2007 | H186: 2008 | I186: 2009 | J186: 2010 | K186: 2011 | L186: 2012 | M186: 2013 | N186: 2014 | O186: 2015 | P186: 2016 | Q186: 2017 | R186: 2018 | S186: 2019 | T186: 2020 | U186: 2021 | V186: 2022 | W186: 2023 | X186: 2024 | Y186: 2025 | Z186: 2026 | AA186: 2027 | AB186: 2028 | AC186: 2029 | AD186: 2030 | AE186: 2031 | AF186: 2032 | AG186: 2033 | AH186: 2034
C187: 2010 | D187: =$D$58&" Std Case Stock EC" -> Liquid Immersed Std Case Stock EC | E187: =VLOOKUP(E$186, 'Stds Case Liquid Immersed'!$K$13:$V$168, 11, FALSE)+VLOOKUP(E$186, 'Stds Case Liquid Immersed'!$K$13:$V$168, 12, FALSE) -> 3720349936 | F187: =VLOOKUP(F$186, 'Stds Case Liquid Immersed'!$K$13:$V$168, 11, FALSE)+VLOOKUP(F$186, 'Stds Case Liquid Immersed'!$K$13:$V$168, 12, FALSE) -> 3760486650 | G187: =VLOOKUP(G$186, 'Stds Case Liquid Immersed'!$K$13:$V$168, 11, FALSE)+VLOOKUP(G$186, 'Stds Case Liquid Immersed'!$K$13:$V$168, 12, FALSE) -> 3831379143 | H187: =VLOOKUP(H$186, 'Stds Case Liquid Immersed'!$K$13:$V$168, 11, FALSE)+VLOOKUP(H$186, 'Stds Case Liquid Immersed'!$K$13:$V$168, 12, FALSE) -> 3887479934 | I187: =VLOOKUP(I$186, 'Stds Case Liquid Immersed'!$K$13:$V$168, 11, FALSE)+VLOOKUP(I$186, 'Stds Case Liquid Immersed'!$K$13:$V$168, 12, FALSE) -> 3896281871 | J187: =VLOOKUP(J$186, 'Stds Case Liquid Immersed'!$K$13:$V$168, 11, FALSE)+VLOOKUP(J$186, 'Stds Case Liquid Immersed'!$K$13:$V$168, 12, FALSE) -> 3888365979 | K187: =VLOOKUP(K$186, 'Stds Case Liquid Immersed'!$K$13:$V$168, 11, FALSE)+VLOOKUP(K$186, 'Stds Case Liquid Immersed'!$K$13:$V$168, 12, FALSE) -> 3874808954 | L187: =VLOOKUP(L$186, 'Stds Case Liquid Immersed'!$K$13:$V$168, 11, FALSE)+VLOOKUP(L$186, 'Stds Case Liquid Immersed'!$K$13:$V$168, 12, FALSE) -> 3855571194 | M187: =VLOOKUP(M$186, 'Stds Case Liquid Immersed'!$K$13:$V$168, 11, FALSE)+VLOOKUP(M$186, 'Stds Case Liquid Immersed'!$K$13:$V$168, 12, FALSE) -> 3832169883 | N187: =VLOOKUP(N$186, 'Stds Case Liquid Immersed'!$K$13:$V$168, 11, FALSE)+VLOOKUP(N$186, 'Stds Case Liquid Immersed'!$K$13:$V$168, 12, FALSE) -> 3806153052 | O187: =VLOOKUP(O$186, 'Stds Case Liquid Immersed'!$K$13:$V$168, 11, FALSE)+VLOOKUP(O$186, 'Stds Case Liquid Immersed'!$K$13:$V$168, 12, FALSE) -> 3776918967 | P187: =VLOOKUP(P$186, 'Stds Case Liquid Immersed'!$K$13:$V$168, 11, FALSE)+VLOOKUP(P$186, 'Stds Case Liquid Immersed'!$K$13:$V$168, 12, FALSE) -> 3739580870 | Q187: =VLOOKUP(Q$186, 'Stds Case Liquid Immersed'!$K$13:$V$168, 11, FALSE)+VLOOKUP(Q$186, 'Stds Case Liquid Immersed'!$K$13:$V$168, 12, FALSE) -> 3699863565 | R187: =VLOOKUP(R$186, 'Stds Case Liquid Immersed'!$K$13:$V$168, 11, FALSE)+VLOOKUP(R$186, 'Stds Case Liquid Immersed'!$K$13:$V$168, 12, FALSE) -> 3657770923 | S187: =VLOOKUP(S$186, 'Stds Case Liquid Immersed'!$K$13:$V$168, 11, FALSE)+VLOOKUP(S$186, 'Stds Case Liquid Immersed'!$K$13:$V$168, 12, FALSE) -> 3613300960 | T187: =VLOOKUP(T$186, 'Stds Case Liquid Immersed'!$K$13:$V$168, 11, FALSE)+VLOOKUP(T$186, 'Stds Case Liquid Immersed'!$K$13:$V$168, 12, FALSE) -> 3566199917 | U187: =VLOOKUP(U$186, 'Stds Case Liquid Immersed'!$K$13:$V$168, 11, FALSE)+VLOOKUP(U$186, 'Stds Case Liquid Immersed'!$K$13:$V$168, 12, FALSE) -> 3517550856 | V187: =VLOOKUP(V$186, 'Stds Case Liquid Immersed'!$K$13:$V$168, 11, FALSE)+VLOOKUP(V$186, 'Stds Case Liquid Immersed'!$K$13:$V$168, 12, FALSE) -> 3467831830 | W187: =VLOOKUP(W$186, 'Stds Case Liquid Immersed'!$K$13:$V$168, 11, FALSE)+VLOOKUP(W$186, 'Stds Case Liquid Immersed'!$K$13:$V$168, 12, FALSE) -> 3417290338 | X187: =VLOOKUP(X$186, 'Stds Case Liquid Immersed'!$K$13:$V$168, 11, FALSE)+VLOOKUP(X$186, 'Stds Case Liquid Immersed'!$K$13:$V$168, 12, FALSE) -> 3365957407 | Y187: =VLOOKUP(Y$186, 'Stds Case Liquid Immersed'!$K$13:$V$168, 11, FALSE)+VLOOKUP(Y$186, 'Stds Case Liquid Immersed'!$K$13:$V$168, 12, FALSE) -> 3314016793 | Z187: =VLOOKUP(Z$186, 'Stds Case Liquid Immersed'!$K$13:$V$168, 11, FALSE)+VLOOKUP(Z$186, 'Stds Case Liquid Immersed'!$K$13:$V$168, 12, FALSE) -> 3261904437 | AA187: =VLOOKUP(AA$186, 'Stds Case Liquid Immersed'!$K$13:$V$168, 11, FALSE)+VLOOKUP(AA$186, 'Stds Case Liquid Immersed'!$K$13:$V$168, 12, FALSE) -> 3209986843 | AB187: =VLOOKUP(AB$186, 'Stds Case Liquid Immersed'!$K$13:$V$168, 11, FALSE)+VLOOKUP(AB$186, 'Stds Case Liquid Immersed'!$K$13:$V$168, 12, FALSE) -> 3158637320 | AC187: =VLOOKUP(AC$186, 'Stds Case Liquid Immersed'!$K$13:$V$168, 11, FALSE)+VLOOKUP(AC$186, 'Stds Case Liquid Immersed'!$K$13:$V$168, 12, FALSE) -> 3107950193 | AD187: =VLOOKUP(AD$186, 'Stds Case Liquid Immersed'!$K$13:$V$168, 11, FALSE)+VLOOKUP(AD$186, 'Stds Case Liquid Immersed'!$K$13:$V$168, 12, FALSE) -> 3058183616 | AE187: =VLOOKUP(AE$186, 'Stds Case Liquid Immersed'!$K$13:$V$168, 11, FALSE)+VLOOKUP(AE$186, 'Stds Case Liquid Immersed'!$K$13:$V$168, 12, FALSE) -> 3009102524 | AF187: =VLOOKUP(AF$186, 'Stds Case Liquid Immersed'!$K$13:$V$168, 11, FALSE)+VLOOKUP(AF$186, 'Stds Case Liquid Immersed'!$K$13:$V$168, 12, FALSE) -> 2960941811 | AG187: =VLOOKUP(AG$186, 'Stds Case Liquid Immersed'!$K$13:$V$168, 11, FALSE)+VLOOKUP(AG$186, 'Stds Case Liquid Immersed'!$K$13:$V$168, 12, FALSE) -> 2913753664 | AH187: =VLOOKUP(AH$186, 'Stds Case Liquid Immersed'!$K$13:$V$168, 11, FALSE)+VLOOKUP(AH$186, 'Stds Case Liquid Immersed'!$K$13:$V$168, 12, FALSE) -> 2867747658
C188: 2007 | D188: =$D$65&" Std Case Stock EC" -> Low Voltage Dry Std Case Stock EC | E188: =VLOOKUP(E$186, 'Stds Case Low Dry'!$O$68:$AC$97, 11, FALSE)+VLOOKUP(E$186, 'Stds Case Low Dry'!$O$68:$AC$97, 12, FALSE) -> 1384987675 | F188: =VLOOKUP(F$186, 'Stds Case Low Dry'!$O$68:$AC$97, 11, FALSE)+VLOOKUP(F$186, 'Stds Case Low Dry'!$O$68:$AC$97, 12, FALSE) -> 1396692876 | G188: =VLOOKUP(G$186, 'Stds Case Low Dry'!$O$68:$AC$97, 11, FALSE)+VLOOKUP(G$186, 'Stds Case Low Dry'!$O$68:$AC$97, 12, FALSE) -> 1411206048 | H188: =VLOOKUP(H$186, 'Stds Case Low Dry'!$O$68:$AC$97, 11, FALSE)+VLOOKUP(H$186, 'Stds Case Low Dry'!$O$68:$AC$97, 12, FALSE) -> 1423146678 | I188: =VLOOKUP(I$186, 'Stds Case Low Dry'!$O$68:$AC$97, 11, FALSE)+VLOOKUP(I$186, 'Stds Case Low Dry'!$O$68:$AC$97, 12, FALSE) -> 1420840875 | J188: =VLOOKUP(J$186, 'Stds Case Low Dry'!$O$68:$AC$97, 11, FALSE)+VLOOKUP(J$186, 'Stds Case Low Dry'!$O$68:$AC$97, 12, FALSE) -> 1418539668 | K188: =VLOOKUP(K$186, 'Stds Case Low Dry'!$O$68:$AC$97, 11, FALSE)+VLOOKUP(K$186, 'Stds Case Low Dry'!$O$68:$AC$97, 12, FALSE) -> 1415232565 | L188: =VLOOKUP(L$186, 'Stds Case Low Dry'!$O$68:$AC$97, 11, FALSE)+VLOOKUP(L$186, 'Stds Case Low Dry'!$O$68:$AC$97, 12, FALSE) -> 1409784234 | M188: =VLOOKUP(M$186, 'Stds Case Low Dry'!$O$68:$AC$97, 11, FALSE)+VLOOKUP(M$186, 'Stds Case Low Dry'!$O$68:$AC$97, 12, FALSE) -> 1403369747 | N188: =VLOOKUP(N$186, 'Stds Case Low Dry'!$O$68:$AC$97, 11, FALSE)+VLOOKUP(N$186, 'Stds Case Low Dry'!$O$68:$AC$97, 12, FALSE) -> 1396478492 | O188: =VLOOKUP(O$186, 'Stds Case Low Dry'!$O$68:$AC$97, 11, FALSE)+VLOOKUP(O$186, 'Stds Case Low Dry'!$O$68:$AC$97, 12, FALSE) -> 1388827103 | P188: =VLOOKUP(P$186, 'Stds Case Low Dry'!$O$68:$AC$97, 11, FALSE)+VLOOKUP(P$186, 'Stds Case Low Dry'!$O$68:$AC$97, 12, FALSE) -> 1370866045 | Q188: =VLOOKUP(Q$186, 'Stds Case Low Dry'!$O$68:$AC$97, 11, FALSE)+VLOOKUP(Q$186, 'Stds Case Low Dry'!$O$68:$AC$97, 12, FALSE) -> 1352449012 | R188: =VLOOKUP(R$186, 'Stds Case Low Dry'!$O$68:$AC$97, 11, FALSE)+VLOOKUP(R$186, 'Stds Case Low Dry'!$O$68:$AC$97, 12, FALSE) -> 1333571607 | S188: =VLOOKUP(S$186, 'Stds Case Low Dry'!$O$68:$AC$97, 11, FALSE)+VLOOKUP(S$186, 'Stds Case Low Dry'!$O$68:$AC$97, 12, FALSE) -> 1314190682 | T188: =VLOOKUP(T$186, 'Stds Case Low Dry'!$O$68:$AC$97, 11, FALSE)+VLOOKUP(T$186, 'Stds Case Low Dry'!$O$68:$AC$97, 12, FALSE) -> 1294181358 | U188: =VLOOKUP(U$186, 'Stds Case Low Dry'!$O$68:$AC$97, 11, FALSE)+VLOOKUP(U$186, 'Stds Case Low Dry'!$O$68:$AC$97, 12, FALSE) -> 1273985039 | V188: =VLOOKUP(V$186, 'Stds Case Low Dry'!$O$68:$AC$97, 11, FALSE)+VLOOKUP(V$186, 'Stds Case Low Dry'!$O$68:$AC$97, 12, FALSE) -> 1253751402 | W188: =VLOOKUP(W$186, 'Stds Case Low Dry'!$O$68:$AC$97, 11, FALSE)+VLOOKUP(W$186, 'Stds Case Low Dry'!$O$68:$AC$97, 12, FALSE) -> 1233559833 | X188: =VLOOKUP(X$186, 'Stds Case Low Dry'!$O$68:$AC$97, 11, FALSE)+VLOOKUP(X$186, 'Stds Case Low Dry'!$O$68:$AC$97, 12, FALSE) -> 1213432072 | Y188: =VLOOKUP(Y$186, 'Stds Case Low Dry'!$O$68:$AC$97, 11, FALSE)+VLOOKUP(Y$186, 'Stds Case Low Dry'!$O$68:$AC$97, 12, FALSE) -> 1193425441 | Z188: =VLOOKUP(Z$186, 'Stds Case Low Dry'!$O$68:$AC$97, 11, FALSE)+VLOOKUP(Z$186, 'Stds Case Low Dry'!$O$68:$AC$97, 12, FALSE) -> 1173633417 | AA188: =VLOOKUP(AA$186, 'Stds Case Low Dry'!$O$68:$AC$97, 11, FALSE)+VLOOKUP(AA$186, 'Stds Case Low Dry'!$O$68:$AC$97, 12, FALSE) -> 1154143000 | AB188: =VLOOKUP(AB$186, 'Stds Case Low Dry'!$O$68:$AC$97, 11, FALSE)+VLOOKUP(AB$186, 'Stds Case Low Dry'!$O$68:$AC$97, 12, FALSE) -> 1135058249 | AC188: =VLOOKUP(AC$186, 'Stds Case Low Dry'!$O$68:$AC$97, 11, FALSE)+VLOOKUP(AC$186, 'Stds Case Low Dry'!$O$68:$AC$97, 12, FALSE) -> 1116441334 | AD188: =VLOOKUP(AD$186, 'Stds Case Low Dry'!$O$68:$AC$97, 11, FALSE)+VLOOKUP(AD$186, 'Stds Case Low Dry'!$O$68:$AC$97, 12, FALSE) -> 1098346193 | AE188: =VLOOKUP(AE$186, 'Stds Case Low Dry'!$O$68:$AC$97, 11, FALSE)+VLOOKUP(AE$186, 'Stds Case Low Dry'!$O$68:$AC$97, 12, FALSE) -> 1080640173 | AF188: =VLOOKUP(AF$186, 'Stds Case Low Dry'!$O$68:$AC$97, 11, FALSE)+VLOOKUP(AF$186, 'Stds Case Low Dry'!$O$68:$AC$97, 12, FALSE) -> 1063369709 | AG188: =VLOOKUP(AG$186, 'Stds Case Low Dry'!$O$68:$AC$97, 11, FALSE)+VLOOKUP(AG$186, 'Stds Case Low Dry'!$O$68:$AC$97, 12, FALSE) -> 1046602538 | AH188: =VLOOKUP(AH$186, 'Stds Case Low Dry'!$O$68:$AC$97, 11, FALSE)+VLOOKUP(AH$186, 'Stds Case Low Dry'!$O$68:$AC$97, 12, FALSE) -> 1030379439
C189: 2010 | D189: =$D$70&" Std Case Stock EC" -> Medium Voltage Dry Std Case Stock EC | E189: =VLOOKUP(E$186, 'Stds Case Medium Dry'!$K$68:$V$97, 11, FALSE)+VLOOKUP(E$186, 'Stds Case Medium Dry'!$K$68:$V$97, 12, FALSE) -> 304953076.1 | F189: =VLOOKUP(F$186, 'Stds Case Medium Dry'!$K$68:$V$97, 11, FALSE)+VLOOKUP(F$186, 'Stds Case Medium Dry'!$K$68:$V$97, 12, FALSE) -> 307530382.1 | G189: =VLOOKUP(G$186, 'Stds Case Medium Dry'!$K$68:$V$97, 11, FALSE)+VLOOKUP(G$186, 'Stds Case Medium Dry'!$K$68:$V$97, 12, FALSE) -> 312412084.8 | H189: =VLOOKUP(H$186, 'Stds Case Medium Dry'!$K$68:$V$97, 11, FALSE)+VLOOKUP(H$186, 'Stds Case Medium Dry'!$K$68:$V$97, 12, FALSE) -> 316674064.5 | I189: =VLOOKUP(I$186, 'Stds Case Medium Dry'!$K$68:$V$97, 11, FALSE)+VLOOKUP(I$186, 'Stds Case Medium Dry'!$K$68:$V$97, 12, FALSE) -> 317323482.4 | J189: =VLOOKUP(J$186, 'Stds Case Medium Dry'!$K$68:$V$97, 11, FALSE)+VLOOKUP(J$186, 'Stds Case Medium Dry'!$K$68:$V$97, 12, FALSE) -> 316711925.7 | K189: =VLOOKUP(K$186, 'Stds Case Medium Dry'!$K$68:$V$97, 11, FALSE)+VLOOKUP(K$186, 'Stds Case Medium Dry'!$K$68:$V$97, 12, FALSE) -> 315873225 | L189: =VLOOKUP(L$186, 'Stds Case Medium Dry'!$K$68:$V$97, 11, FALSE)+VLOOKUP(L$186, 'Stds Case Medium Dry'!$K$68:$V$97, 12, FALSE) -> 314566704.3 | M189: =VLOOKUP(M$186, 'Stds Case Medium Dry'!$K$68:$V$97, 11, FALSE)+VLOOKUP(M$186, 'Stds Case Medium Dry'!$K$68:$V$97, 12, FALSE) -> 313048110.3 | N189: =VLOOKUP(N$186, 'Stds Case Medium Dry'!$K$68:$V$97, 11, FALSE)+VLOOKUP(N$186, 'Stds Case Medium Dry'!$K$68:$V$97, 12, FALSE) -> 311423971.3 | O189: =VLOOKUP(O$186, 'Stds Case Medium Dry'!$K$68:$V$97, 11, FALSE)+VLOOKUP(O$186, 'Stds Case Medium Dry'!$K$68:$V$97, 12, FALSE) -> 309632620.7 | P189: =VLOOKUP(P$186, 'Stds Case Medium Dry'!$K$68:$V$97, 11, FALSE)+VLOOKUP(P$186, 'Stds Case Medium Dry'!$K$68:$V$97, 12, FALSE) -> 306292026.2 | Q189: =VLOOKUP(Q$186, 'Stds Case Medium Dry'!$K$68:$V$97, 11, FALSE)+VLOOKUP(Q$186, 'Stds Case Medium Dry'!$K$68:$V$97, 12, FALSE) -> 302854945.8 | R189: =VLOOKUP(R$186, 'Stds Case Medium Dry'!$K$68:$V$97, 11, FALSE)+VLOOKUP(R$186, 'Stds Case Medium Dry'!$K$68:$V$97, 12, FALSE) -> 299312797.7 | S189: =VLOOKUP(S$186, 'Stds Case Medium Dry'!$K$68:$V$97, 11, FALSE)+VLOOKUP(S$186, 'Stds Case Medium Dry'!$K$68:$V$97, 12, FALSE) -> 295651813.5 | T189: =VLOOKUP(T$186, 'Stds Case Medium Dry'!$K$68:$V$97, 11, FALSE)+VLOOKUP(T$186, 'Stds Case Medium Dry'!$K$68:$V$97, 12, FALSE) -> 291838935 | U189: =VLOOKUP(U$186, 'Stds Case Medium Dry'!$K$68:$V$97, 11, FALSE)+VLOOKUP(U$186, 'Stds Case Medium Dry'!$K$68:$V$97, 12, FALSE) -> 287981256.4 | V189: =VLOOKUP(V$186, 'Stds Case Medium Dry'!$K$68:$V$97, 11, FALSE)+VLOOKUP(V$186, 'Stds Case Medium Dry'!$K$68:$V$97, 12, FALSE) -> 284114522.9 | W189: =VLOOKUP(W$186, 'Stds Case Medium Dry'!$K$68:$V$97, 11, FALSE)+VLOOKUP(W$186, 'Stds Case Medium Dry'!$K$68:$V$97, 12, FALSE) -> 280256214.4 | X189: =VLOOKUP(X$186, 'Stds Case Medium Dry'!$K$68:$V$97, 11, FALSE)+VLOOKUP(X$186, 'Stds Case Medium Dry'!$K$68:$V$97, 12, FALSE) -> 276402391.7 | Y189: =VLOOKUP(Y$186, 'Stds Case Medium Dry'!$K$68:$V$97, 11, FALSE)+VLOOKUP(Y$186, 'Stds Case Medium Dry'!$K$68:$V$97, 12, FALSE) -> 272565321.7 | Z189: =VLOOKUP(Z$186, 'Stds Case Medium Dry'!$K$68:$V$97, 11, FALSE)+VLOOKUP(Z$186, 'Stds Case Medium Dry'!$K$68:$V$97, 12, FALSE) -> 268766683.7 | AA189: =VLOOKUP(AA$186, 'Stds Case Medium Dry'!$K$68:$V$97, 11, FALSE)+VLOOKUP(AA$186, 'Stds Case Medium Dry'!$K$68:$V$97, 12, FALSE) -> 265031904 | AB189: =VLOOKUP(AB$186, 'Stds Case Medium Dry'!$K$68:$V$97, 11, FALSE)+VLOOKUP(AB$186, 'Stds Case Medium Dry'!$K$68:$V$97, 12, FALSE) -> 261384746.9 | AC189: =VLOOKUP(AC$186, 'Stds Case Medium Dry'!$K$68:$V$97, 11, FALSE)+VLOOKUP(AC$186, 'Stds Case Medium Dry'!$K$68:$V$97, 12, FALSE) -> 257838493.1 | AD189: =VLOOKUP(AD$186, 'Stds Case Medium Dry'!$K$68:$V$97, 11, FALSE)+VLOOKUP(AD$186, 'Stds Case Medium Dry'!$K$68:$V$97, 12, FALSE) -> 254404593.7 | AE189: =VLOOKUP(AE$186, 'Stds Case Medium Dry'!$K$68:$V$97, 11, FALSE)+VLOOKUP(AE$186, 'Stds Case Medium Dry'!$K$68:$V$97, 12, FALSE) -> 251048396.4 | AF189: =VLOOKUP(AF$186, 'Stds Case Medium Dry'!$K$68:$V$97, 11, FALSE)+VLOOKUP(AF$186, 'Stds Case Medium Dry'!$K$68:$V$97, 12, FALSE) -> 247779621.7 | AG189: =VLOOKUP(AG$186, 'Stds Case Medium Dry'!$K$68:$V$97, 11, FALSE)+VLOOKUP(AG$186, 'Stds Case Medium Dry'!$K$68:$V$97, 12, FALSE) -> 244608885.3 | AH189: =VLOOKUP(AH$186, 'Stds Case Medium Dry'!$K$68:$V$97, 11, FALSE)+VLOOKUP(AH$186, 'Stds Case Medium Dry'!$K$68:$V$97, 12, FALSE) -> 241544739.4
D190: Total Std Case Stock EC | E190: =SUM(E187:E189) -> 5410290687 | F190: =SUM(F187:F189) -> 5464709908 | G190: 5554997276 | H190: 5627300676 | I190: 5634446228 | J190: 5623617572 | K190: 5605914744 | L190: 5579922133 | M190: 5548587740 | N190: 5514055515 | O190: 5475378691 | P190: 5416738942 | Q190: 5355167524 | R190: 5290655329 | S190: 5223143456 | T190: 5152220210 | U190: 5079517151 | V190: 5005697754 | W190: 4931106386 | X190: 4855791870 | Y190: 4780007556 | Z190: 4704304538 | AA190: 4629161747 | AB190: 4555080317 | AC190: 4482230020 | AD190: 4410934403 | AE190: 4340791093 | AF190: 4272091142 | AG190: 4204965087 | AH190: 4139671837
D192: Stock
C193: STD1 | D193: Year | E193: =E$58 -> 2005 | F193: =F$58 -> 2006 | G193: 2007 | H193: 2008 | I193: 2009 | J193: 2010 | K193: 2011 | L193: 2012 | M193: 2013 | N193: 2014 | O193: 2015 | P193: 2016 | Q193: 2017 | R193: 2018 | S193: 2019 | T193: 2020 | U193: 2021 | V193: 2022 | W193: 2023 | X193: 2024 | Y193: 2025 | Z193: 2026 | AA193: 2027 | AB193: 2028 | AC193: 2029 | AD193: 2030 | AE193: 2031 | AF193: 2032 | AG193: 2033 | AH193: 2034
C194: 2010 | D194: =$D$58&" Std Case Stock" -> Liquid Immersed Std Case Stock | E194: =VLOOKUP(E$193,'Stds Case Liquid Immersed'!$K$68:$Q$97,3,FALSE) -> 93421.52096 | F194: =VLOOKUP(F$193,'Stds Case Liquid Immersed'!$K$68:$Q$97,3,FALSE) -> 94228.91397 | G194: =VLOOKUP(G$193,'Stds Case Liquid Immersed'!$K$68:$Q$97,3,FALSE) -> 94967.31368 | H194: =VLOOKUP(H$193,'Stds Case Liquid Immersed'!$K$68:$Q$97,3,FALSE) -> 96675.67518 | I194: =VLOOKUP(I$193,'Stds Case Liquid Immersed'!$K$68:$Q$97,3,FALSE) -> 97940.58325 | J194: =VLOOKUP(J$193,'Stds Case Liquid Immersed'!$K$68:$Q$97,3,FALSE) -> 97779.84569 | K194: =VLOOKUP(K$193,'Stds Case Liquid Immersed'!$K$68:$Q$97,3,FALSE) -> 97644.63894 | L194: =VLOOKUP(L$193,'Stds Case Liquid Immersed'!$K$68:$Q$97,3,FALSE) -> 97359.38178 | M194: =VLOOKUP(M$193,'Stds Case Liquid Immersed'!$K$68:$Q$97,3,FALSE) -> 96922.61057 | N194: =VLOOKUP(N$193,'Stds Case Liquid Immersed'!$K$68:$Q$97,3,FALSE) -> 96392.99641 | O194: =VLOOKUP(O$193,'Stds Case Liquid Immersed'!$K$68:$Q$97,3,FALSE) -> 95827.64844 | P194: =VLOOKUP(P$193,'Stds Case Liquid Immersed'!$K$68:$Q$97,3,FALSE) -> 95202.08404 | Q194: =VLOOKUP(Q$193,'Stds Case Liquid Immersed'!$K$68:$Q$97,3,FALSE) -> 94546.18482 | R194: =VLOOKUP(R$193,'Stds Case Liquid Immersed'!$K$68:$Q$97,3,FALSE) -> 93862.66881 | S194: =VLOOKUP(S$193,'Stds Case Liquid Immersed'!$K$68:$Q$97,3,FALSE) -> 93147.67784 | T194: =VLOOKUP(T$193,'Stds Case Liquid Immersed'!$K$68:$Q$97,3,FALSE) -> 92392.6954 | U194: =VLOOKUP(U$193,'Stds Case Liquid Immersed'!$K$68:$Q$97,3,FALSE) -> 91583.2679 | V194: =VLOOKUP(V$193,'Stds Case Liquid Immersed'!$K$68:$Q$97,3,FALSE) -> 90758.93923 | W194: =VLOOKUP(W$193,'Stds Case Liquid Immersed'!$K$68:$Q$97,3,FALSE) -> 89938.89282 | X194: =VLOOKUP(X$193,'Stds Case Liquid Immersed'!$K$68:$Q$97,3,FALSE) -> 89123.94697 | Y194: =VLOOKUP(Y$193,'Stds Case Liquid Immersed'!$K$68:$Q$97,3,FALSE) -> 88319.84456 | Z194: =VLOOKUP(Z$193,'Stds Case Liquid Immersed'!$K$68:$Q$97,3,FALSE) -> 87532.65142 | AA194: =VLOOKUP(AA$193,'Stds Case Liquid Immersed'!$K$68:$Q$97,3,FALSE) -> 86765.26904 | AB194: =VLOOKUP(AB$193,'Stds Case Liquid Immersed'!$K$68:$Q$97,3,FALSE) -> 86025.53898 | AC194: =VLOOKUP(AC$193,'Stds Case Liquid Immersed'!$K$68:$Q$97,3,FALSE) -> 85324.14995 | AD194: =VLOOKUP(AD$193,'Stds Case Liquid Immersed'!$K$68:$Q$97,3,FALSE) -> 84659.58102 | AE194: =VLOOKUP(AE$193,'Stds Case Liquid Immersed'!$K$68:$Q$97,3,FALSE) -> 84037.55357 | AF194: =VLOOKUP(AF$193,'Stds Case Liquid Immersed'!$K$68:$Q$97,3,FALSE) -> 83443.17251 | AG194: =VLOOKUP(AG$193,'Stds Case Liquid Immersed'!$K$68:$Q$97,3,FALSE) -> 82881.73417 | AH194: =VLOOKUP(AH$193,'Stds Case Liquid Immersed'!$K$68:$Q$97,3,FALSE) -> 82349.48409
C195: 2007 | D195: =$D$65&" Std Case Stock" -> Low Voltage Dry Std Case Stock | E195: =VLOOKUP(E$193,'Stds Case Low Dry'!$O$68:$U$97,3,FALSE) -> 25217.00038 | F195: =VLOOKUP(F$193,'Stds Case Low Dry'!$O$68:$U$97,3,FALSE) -> 25433.22814 | G195: =VLOOKUP(G$193,'Stds Case Low Dry'!$O$68:$U$97,3,FALSE) -> 25632.37006 | H195: =VLOOKUP(H$193,'Stds Case Low Dry'!$O$68:$U$97,3,FALSE) -> 26005.83268 | I195: =VLOOKUP(I$193,'Stds Case Low Dry'!$O$68:$U$97,3,FALSE) -> 26326.46394 | J195: =VLOOKUP(J$193,'Stds Case Low Dry'!$O$68:$U$97,3,FALSE) -> 26346.28105 | K195: =VLOOKUP(K$193,'Stds Case Low Dry'!$O$68:$U$97,3,FALSE) -> 26369.43713 | L195: =VLOOKUP(L$193,'Stds Case Low Dry'!$O$68:$U$97,3,FALSE) -> 26373.88507 | M195: =VLOOKUP(M$193,'Stds Case Low Dry'!$O$68:$U$97,3,FALSE) -> 26335.77056 | N195: =VLOOKUP(N$193,'Stds Case Low Dry'!$O$68:$U$97,3,FALSE) -> 26280.18141 | O195: =VLOOKUP(O$193,'Stds Case Low Dry'!$O$68:$U$97,3,FALSE) -> 26217.08914 | P195: =VLOOKUP(P$193,'Stds Case Low Dry'!$O$68:$U$97,3,FALSE) -> 26140.39461 | Q195: =VLOOKUP(Q$193,'Stds Case Low Dry'!$O$68:$U$97,3,FALSE) -> 26056.69942 | R195: =VLOOKUP(R$193,'Stds Case Low Dry'!$O$68:$U$97,3,FALSE) -> 25967.2817 | S195: =VLOOKUP(S$193,'Stds Case Low Dry'!$O$68:$U$97,3,FALSE) -> 25869.85255 | T195: =VLOOKUP(T$193,'Stds Case Low Dry'!$O$68:$U$97,3,FALSE) -> 25761.21412 | U195: =VLOOKUP(U$193,'Stds Case Low Dry'!$O$68:$U$97,3,FALSE) -> 25636.79736 | V195: =VLOOKUP(V$193,'Stds Case Low Dry'!$O$68:$U$97,3,FALSE) -> 25508.5747 | W195: =VLOOKUP(W$193,'Stds Case Low Dry'!$O$68:$U$97,3,FALSE) -> 25381.1307 | X195: =VLOOKUP(X$193,'Stds Case Low Dry'!$O$68:$U$97,3,FALSE) -> 25255.14385 | Y195: =VLOOKUP(Y$193,'Stds Case Low Dry'!$O$68:$U$97,3,FALSE) -> 25131.08712 | Z195: =VLOOKUP(Z$193,'Stds Case Low Dry'!$O$68:$U$97,3,FALSE) -> 25010.89988 | AA195: =VLOOKUP(AA$193,'Stds Case Low Dry'!$O$68:$U$97,3,FALSE) -> 24894.61717 | AB195: =VLOOKUP(AB$193,'Stds Case Low Dry'!$O$68:$U$97,3,FALSE) -> 24784.19562 | AC195: =VLOOKUP(AC$193,'Stds Case Low Dry'!$O$68:$U$97,3,FALSE) -> 24682.07375 | AD195: =VLOOKUP(AD$193,'Stds Case Low Dry'!$O$68:$U$97,3,FALSE) -> 24589.15149 | AE195: =VLOOKUP(AE$193,'Stds Case Low Dry'!$O$68:$U$97,3,FALSE) -> 24506.2195 | AF195: =VLOOKUP(AF$193,'Stds Case Low Dry'!$O$68:$U$97,3,FALSE) -> 24428.47556 | AG195: =VLOOKUP(AG$193,'Stds Case Low Dry'!$O$68:$U$97,3,FALSE) -> 24356.54859 | AH195: =VLOOKUP(AH$193,'Stds Case Low Dry'!$O$68:$U$97,3,FALSE) -> 24290.39394
C196: 2010 | D196: =$D$70&" Std Case Stock" -> Medium Voltage Dry Std Case Stock | E196: =VLOOKUP(E$193,'Stds Case Medium Dry'!$K$68:$Q$97,3,FALSE) -> 9087.992684 | F196: =VLOOKUP(F$193,'Stds Case Medium Dry'!$K$68:$Q$97,3,FALSE) -> 9165.91933 | G196: =VLOOKUP(G$193,'Stds Case Medium Dry'!$K$68:$Q$97,3,FALSE) -> 9237.688385 | H196: =VLOOKUP(H$193,'Stds Case Medium Dry'!$K$68:$Q$97,3,FALSE) -> 9380.626838 | I196: =VLOOKUP(I$193,'Stds Case Medium Dry'!$K$68:$Q$97,3,FALSE) -> 9504.219828 | J196: =VLOOKUP(J$193,'Stds Case Medium Dry'!$K$68:$Q$97,3,FALSE) -> 9517.048836 | K196: =VLOOKUP(K$193,'Stds Case Medium Dry'!$K$68:$Q$97,3,FALSE) -> 9529.504964 | L196: =VLOOKUP(L$193,'Stds Case Medium Dry'!$K$68:$Q$97,3,FALSE) -> 9535.192391 | M196: =VLOOKUP(M$193,'Stds Case Medium Dry'!$K$68:$Q$97,3,FALSE) -> 9525.367549 | N196: =VLOOKUP(N$193,'Stds Case Medium Dry'!$K$68:$Q$97,3,FALSE) -> 9509.2104 | O196: =VLOOKUP(O$193,'Stds Case Medium Dry'!$K$68:$Q$97,3,FALSE) -> 9490.365593 | P196: =VLOOKUP(P$193,'Stds Case Medium Dry'!$K$68:$Q$97,3,FALSE) -> 9466.591002 | Q196: =VLOOKUP(Q$193,'Stds Case Medium Dry'!$K$68:$Q$97,3,FALSE) -> 9440.297764 | R196: =VLOOKUP(R$193,'Stds Case Medium Dry'!$K$68:$Q$97,3,FALSE) -> 9411.943103 | S196: =VLOOKUP(S$193,'Stds Case Medium Dry'!$K$68:$Q$97,3,FALSE) -> 9380.675513 | T196: =VLOOKUP(T$193,'Stds Case Medium Dry'!$K$68:$Q$97,3,FALSE) -> 9345.314162 | U196: =VLOOKUP(U$193,'Stds Case Medium Dry'!$K$68:$Q$97,3,FALSE) -> 9304.175472 | V196: =VLOOKUP(V$193,'Stds Case Medium Dry'!$K$68:$Q$97,3,FALSE) -> 9261.637229 | W196: =VLOOKUP(W$193,'Stds Case Medium Dry'!$K$68:$Q$97,3,FALSE) -> 9219.367914 | X196: =VLOOKUP(X$193,'Stds Case Medium Dry'!$K$68:$Q$97,3,FALSE) -> 9177.57268 | Y196: =VLOOKUP(Y$193,'Stds Case Medium Dry'!$K$68:$Q$97,3,FALSE) -> 9136.415073 | Z196: =VLOOKUP(Z$193,'Stds Case Medium Dry'!$K$68:$Q$97,3,FALSE) -> 9096.598353 | AA196: =VLOOKUP(AA$193,'Stds Case Medium Dry'!$K$68:$Q$97,3,FALSE) -> 9058.132905 | AB196: =VLOOKUP(AB$193,'Stds Case Medium Dry'!$K$68:$Q$97,3,FALSE) -> 9021.725225 | AC196: =VLOOKUP(AC$193,'Stds Case Medium Dry'!$K$68:$Q$97,3,FALSE) -> 8988.258465 | AD196: =VLOOKUP(AD$193,'Stds Case Medium Dry'!$K$68:$Q$97,3,FALSE) -> 8958.052539 | AE196: =VLOOKUP(AE$193,'Stds Case Medium Dry'!$K$68:$Q$97,3,FALSE) -> 8931.387613 | AF196: =VLOOKUP(AF$193,'Stds Case Medium Dry'!$K$68:$Q$97,3,FALSE) -> 8906.495978 | AG196: =VLOOKUP(AG$193,'Stds Case Medium Dry'!$K$68:$Q$97,3,FALSE) -> 8883.599398 | AH196: =VLOOKUP(AH$193,'Stds Case Medium Dry'!$K$68:$Q$97,3,FALSE) -> 8862.673401
D197: Total Std Case Stock | E197: =SUM(E194:E196) -> 127726.514 | F197: =SUM(F194:F196) -> 128828.0614 | G197: 129837.3721 | H197: 132062.1347 | I197: 133771.267 | J197: 133643.1756 | K197: 133543.581 | L197: 133268.4592 | M197: 132783.7487 | N197: 132182.3882 | O197: 131535.1032 | P197: 130809.0696 | Q197: 130043.182 | R197: 129241.8936 | S197: 128398.2059 | T197: 127499.2237 | U197: 126524.2407 | V197: 125529.1512 | W197: 124539.3914 | X197: 123556.6635 | Y197: 122587.3468 | Z197: 121640.1497 | AA197: 120718.0191 | AB197: 119831.4598 | AC197: 118994.4822 | AD197: 118206.7851 | AE197: 117475.1607 | AF197: 116778.1441 | AG197: 116121.8822 | AH197: 115502.5514
D199: Stock UEC
C200: STD1 | D200: Year | E200: =E$58 -> 2005 | F200: =F$58 -> 2006 | G200: 2007 | H200: 2008 | I200: 2009 | J200: 2010 | K200: 2011 | L200: 2012 | M200: 2013 | N200: 2014 | O200: 2015 | P200: 2016 | Q200: 2017 | R200: 2018 | S200: 2019 | T200: 2020 | U200: 2021 | V200: 2022 | W200: 2023 | X200: 2024 | Y200: 2025 | Z200: 2026 | AA200: 2027 | AB200: 2028 | AC200: 2029 | AD200: 2030 | AE200: 2031 | AF200: 2032 | AG200: 2033 | AH200: 2034
C201: 2010 | D201: =$D$58&" Std Case Stock UEC" -> Liquid Immersed Std Case Stock UEC | E201: =IF(E194=0,0,E187/E194) -> 39823.26447 | F201: =IF(F194=0,0,F187/F194) -> 39907.991 | G201: 40344.18785 | H201: 40211.56229 | I201: 39782.0979 | J201: 39766.5383 | K201: 39682.76186 | L201: 39601.43464 | M201: 39538.45094 | N201: 39485.78417 | O201: 39413.6664 | P201: 39280.45177 | Q201: 39132.87006 | R201: 38969.38975 | S201: 38791.1008 | T201: 38598.28855 | U201: 38408.22605 | V201: 38209.25915 | W201: 37995.69053 | X201: 37767.14925 | Y201: 37522.9011 | Z201: 37265.00208 | AA201: 36996.2184 | AB201: 36717.43715 | AC201: 36425.21133 | AD201: 36123.30204 | AE201: 35806.64116 | AF201: 35484.53063 | AG201: 35155.55862 | AH201: 34824.11201
C202: 2007 | D202: =$D$65&" Std Case Stock UEC" -> Low Voltage Dry Std Case Stock UEC | E202: =IF(E195=0,0,E188/E195) -> 54922.77645 | F202: =IF(F195=0,0,F188/F195) -> 54916.06759 | G202: =IF(G195=0,0,G188/G195) -> 55055.62089 | H202: 54724.13421 | I202: 53970.06138 | J202: 53842.1216 | K202: 53669.42638 | L202: 53453.79455 | M202: 53287.59011 | N202: 53138.08417 | O202: 52974.11531 | P202: 52442.43883 | Q202: 51904.08003 | R202: 51355.84167 | S202: 50800.08396 | T202: 50237.59176 | U202: 49693.61113 | V202: 49150.19424 | W202: 48601.45309 | X202: 48046.92775 | Y202: 47488.01498 | Z202: 46924.87767 | AA202: 46361.14676 | AB202: 45797.66341 | AC202: 45232.88219 | AD202: 44667.91761 | AE202: 44096.56792 | AF202: 43529.92499 | AG202: 42970.06754 | AH202: 42419.21485
C203: 2010 | D203: =$D$70&" Std Case Stock UEC" -> Medium Voltage Dry Std Case Stock UEC | E203: =IF(E196=0,0,E189/E196) -> 33555.60317 | F203: 33551.50433 | G203: 33819.29242 | H203: 33758.30527 | I203: 33387.64129 | J203: 33278.37559 | K203: 33146.8661 | L203: 32990.07418 | M203: 32864.67516 | N203: 32749.71929 | O203: 32625.99503 | P203: 32355.0501 | Q203: 32081.07979 | R203: 31801.38197 | S203: 31517.11336 | T203: 31228.3707 | U203: 30951.82989 | V203: 30676.49011 | W203: 30398.63654 | X203: 30117.15639 | Y203: 29832.85233 | Z203: 29545.84486 | AA203: 29258.99926 | AB203: 28972.81179 | AC203: 28686.14583 | AD203: 28399.54249 | AE203: 28108.55461 | AF203: 27820.10145 | AG203: 27534.88472 | AH203: 27254.16231
D204: Total Std Case Stock UEC | E204: =SUM(E201:E203) -> 128301.6441 | F204: =SUM(F201:F203) -> 128375.5629 | G204: =SUM(G201:G203) -> 129219.1012 | H204: =SUM(H201:H203) -> 128694.0018 | I204: =SUM(I201:I203) -> 127139.8006 | J204: =SUM(J201:J203) -> 126887.0355 | K204: =SUM(K201:K203) -> 126499.0543 | L204: =SUM(L201:L203) -> 126045.3034 | M204: =SUM(M201:M203) -> 125690.7162 | N204: =SUM(N201:N203) -> 125373.5876 | O204: =SUM(O201:O203) -> 125013.7767 | P204: =SUM(P201:P203) -> 124077.9407 | Q204: =SUM(Q201:Q203) -> 123118.0299 | R204: =SUM(R201:R203) -> 122126.6134 | S204: =SUM(S201:S203) -> 121108.2981 | T204: =SUM(T201:T203) -> 120064.251 | U204: =SUM(U201:U203) -> 119053.6671 | V204: =SUM(V201:V203) -> 118035.9435 | W204: =SUM(W201:W203) -> 116995.7802 | X204: =SUM(X201:X203) -> 115931.2334 | Y204: =SUM(Y201:Y203) -> 114843.7684 | Z204: =SUM(Z201:Z203) -> 113735.7246 | AA204: =SUM(AA201:AA203) -> 112616.3644 | AB204: =SUM(AB201:AB203) -> 111487.9123 | AC204: =SUM(AC201:AC203) -> 110344.2393 | AD204: =SUM(AD201:AD203) -> 109190.7621 | AE204: =SUM(AE201:AE203) -> 108011.7637 | AF204: =SUM(AF201:AF203) -> 106834.5571 | AG204: =SUM(AG201:AG203) -> 105660.5109 | AH204: =SUM(AH201:AH203) -> 104497.4892
B206: % Base Case to Standard Case Improvement of Shipments
D208: Year | E208: =E$58 -> 2005 | F208: =F$58 -> 2006 | G208: 2007 | H208: 2008 | I208: 2009 | J208: 2010 | K208: 2011 | L208: 2012 | M208: 2013 | N208: 2014 | O208: 2015 | P208: 2016 | Q208: 2017 | R208: 2018 | S208: 2019 | T208: 2020 | U208: 2021 | V208: 2022 | W208: 2023 | X208: 2024 | Y208: 2025 | Z208: 2026 | AA208: 2027 | AB208: 2028 | AC208: 2029 | AD208: 2030 | AE208: 2031 | AF208: 2032 | AG208: 2033 | AH208: 2034
D209: Liquid Immersed % Improvement | E209: =IF(E166=0, 0%, (E123-E166)/E123) -> 0 | F209: =IF(F166=0, 0%, (F123-F166)/F123) -> 0 | G209: 0 | H209: -1.248372281e-16 | I209: 0 | J209: 0.2063025008 | K209: 0.2063025008 | L209: 0.2063025008 | M209: 0.2063025008 | N209: 0.2063025008 | O209: 0.2063025008 | P209: 0.2844637258 | Q209: 0.2844637258 | R209: 0.2844637258 | S209: 0.2844637258 | T209: 0.2844637258 | U209: 0.2844637258 | V209: 0.2844637258 | W209: 0.2844637258 | X209: 0.2844637258 | Y209: 0.2844637258 | Z209: 0.2844637258 | AA209: 0.2844637258 | AB209: 0.2844637258 | AC209: 0.2844637258 | AD209: 0.2844637258 | AE209: 0.2844637258 | AF209: 0.2844637258 | AG209: 0.2844637258 | AH209: 0.2844637258
D210: Low Voltage Dry % Improvement | E210: =IF(E167=0, 0%, (E124-E167)/E124) -> 0 | F210: =IF(F167=0, 0%, (F124-F167)/F124) -> 0 | G210: 0.1387497653 | H210: 0.1387497653 | I210: 0.1387497653 | J210: 0.1387497653 | K210: 0.1387497653 | L210: 0.1387497653 | M210: 0.1387497653 | N210: 0.1387497653 | O210: 0.1387497653 | P210: =IF(P167=0, 0%, (P124-P167)/P124) -> 0.396569146 | Q210: 0.396569146 | R210: 0.396569146 | S210: 0.396569146 | T210: 0.396569146 | U210: 0.396569146 | V210: 0.396569146 | W210: 0.396569146 | X210: 0.396569146 | Y210: 0.396569146 | Z210: 0.396569146 | AA210: 0.396569146 | AB210: 0.396569146 | AC210: 0.396569146 | AD210: 0.396569146 | AE210: 0.396569146 | AF210: 0.396569146 | AG210: 0.396569146 | AH210: 0.396569146
D211: Medium Voltage Dry % Improvement | E211: =IF(E168=0, 0%, (E125-E168)/E125) -> 0 | F211: =IF(F168=0, 0%, (F125-F168)/F125) -> 0 | G211: 0 | H211: 0 | I211: 0 | J211: 0.1489444739 | K211: 0.1489444739 | L211: 0.1489444739 | M211: 0.1489444739 | N211: 0.1489444739 | O211: 0.1489444739 | P211: 0.3212841101 | Q211: 0.3212841101 | R211: 0.3212841101 | S211: 0.3212841101 | T211: 0.3212841101 | U211: 0.3212841101 | V211: 0.3212841101 | W211: 0.3212841101 | X211: 0.3212841101 | Y211: 0.3212841101 | Z211: 0.3212841101 | AA211: 0.3212841101 | AB211: 0.3212841101 | AC211: 0.3212841101 | AD211: 0.3212841101 | AE211: 0.3212841101 | AF211: 0.3212841101 | AG211: 0.3212841101 | AH211: 0.3212841101
D212: Cumulative % Improvement | E212: =(E126-E169)/E126 -> 0 | F212: =(F126-F169)/F126 -> 0 | G212: 0.03859296623 | H212: 0.04017639906 | I212: 0.04326822203 | J212: 0.1814717035 | K212: 0.1809546176 | L212: 0.1809240017 | M212: 0.1807256733 | N212: 0.1806956712 | O212: 0.1806263468 | P212: 0.3229761345 | Q212: 0.3230166692 | R212: 0.3230358695 | S212: 0.3230453883 | T212: 0.3230645101 | U212: 0.3230745451 | V212: 0.3230459477 | W212: 0.3230206566 | X212: 0.3229738729 | Y212: 0.3229586094 | Z212: 0.3229224757 | AA212: 0.3228826797 | AB212: 0.322823157 | AC212: 0.3228166856 | AD212: 0.3227870162 | AE212: 0.3227598968 | AF212: 0.322709002 | AG212: 0.322699447 | AH212: 0.3226695882
B215: % Base Case to Standard Case Improvement of Stock UEC
D217: Year | E217: =E$58 -> 2005 | F217: =F$58 -> 2006 | G217: 2007 | H217: 2008 | I217: 2009 | J217: 2010 | K217: 2011 | L217: 2012 | M217: 2013 | N217: 2014 | O217: 2015 | P217: 2016 | Q217: 2017 | R217: 2018 | S217: 2019 | T217: 2020 | U217: 2021 | V217: 2022 | W217: 2023 | X217: 2024 | Y217: 2025 | Z217: 2026 | AA217: 2027 | AB217: 2028 | AC217: 2029 | AD217: 2030 | AE217: 2031 | AF217: 2032 | AG217: 2033 | AH217: 2034
D218: Liquid Immersed % Improvement | E218: =E158/E201-1 -> 0 | F218: 0 | G218: 0 | H218: 0 | I218: 0 | J218: 0.004235059444 | K218: 0.008340397784 | L218: 0.01235847747 | M218: =M158/M201-1 -> 0.01639254966 | N218: 0.02054042376 | O218: 0.02476443121 | P218: 0.03070186086 | Q218: 0.03684649524 | R218: 0.04318045391 | S218: 0.04968867063 | T218: 0.05634306865 | U218: 0.06324100617 | V218: 0.07042962232 | W218: 0.07792394852 | X218: 0.08573942563 | Y218: 0.09387676901 | Z218: 0.1023371195 | AA218: 0.1111043471 | AB218: 0.1201937241 | AC218: 0.129592965 | AD218: 0.1393016279 | AE218: 0.1492751319 | AF218: 0.1595062688 | AG218: 0.1699543398 | AH218: 0.1806015278
D219: Low Voltage Dry % Improvement | E219: =E159/E202-1 -> 0 | F219: 0 | G219: =G159/G202-1 -> 0.005426403045 | H219: 0.00969259352 | I219: 0.01255881911 | J219: =J159/J202-1 -> 0.01576427486 | K219: 0.01895551223 | L219: =L159/L202-1 -> 0.0220442943 | M219: 0.02516600909 | N219: 0.02834584902 | O219: 0.03154902532 | P219: =P159/P202-1 -> 0.04226808043 | Q219: 0.05334170708 | R219: 0.06469211158 | S219: 0.07627620102 | T219: 0.08803297003 | U219: 0.100143452 | V219: 0.1126659553 | W219: 0.1256166126 | X219: 0.138972495 | Y219: 0.1527360328 | Z219: 0.1668990491 | AA219: 0.1814746901 | AB219: 0.1964758307 | AC219: 0.2118918738 | AD219: 0.2277075358 | AE219: 0.243836272 | AF219: 0.2602580034 | AG219: 0.2768837353 | AH219: 0.2936767815
D220: Medium Voltage Dry % Improvement | E220: 0 | F220: 0 | G220: =G160/G203-1 -> 0 | H220: 0 | I220: 0 | J220: =J160/J203-1 -> 0.004073594699 | K220: 0.007980821587 | L220: =L160/L203-1 -> 0.01176006246 | M220: 0.01555512072 | N220: 0.01941278542 | O220: 0.02329861451 | P220: =P160/P203-1 -> 0.03212621192 | Q220: 0.04120049791 | R220: 0.05046227585 | S220: 0.05987414933 | T220: 0.06938504998 | U220: 0.07913582858 | V220: 0.08917317576 | W220: 0.0995075342 | X220: 0.1101392595 | Y220: 0.1210672687 | Z220: 0.1322767463 | AA220: 0.1437515368 | AB220: 0.1554979311 | AC220: 0.1675043279 | AD220: 0.1797550649 | AE220: 0.1921806231 | AF220: 0.2047619422 | AG220: 0.2174375565 | AH220: 0.2301785148
D221: Cumulative % Improvement | E221: 0 | F221: 0 | G221: =G161/G204-1 -> 0.002311995565 | H221: 0.004121550199 | I221: 0.005331141275 | J221: =J161/J204-1 -> 0.00908491768 | K221: 0.01274982426 | L221: =L161/L204-1 -> 0.01630945298 | M221: 0.01989316366 | N221: 0.02355410082 | O221: 0.02725682965 | P221: =P161/P204-1 -> 0.03596182656 | Q221: 0.04493507417 | R221: 0.05412255121 | S221: 0.06349173523 | T221: 0.07299502074 | U221: 0.08277664662 | V221: 0.0928881237 | W221: 0.1033440479 | X221: 0.1141402194 | Y221: 0.1252783837 | Z221: 0.1367515679 | AA221: 0.1485560436 | AB221: 0.1607039847 | AC221: 0.1731851612 | AD221: 0.1859884246 | AE221: 0.1990459429 | AF221: 0.2123424767 | AG221: 0.2258144544 | AH221: 0.2394330153

Sheet Regional Elec Sales
A1: =IF(#REF!<$G$7, 0,#REF!) -> 
A3: Annual Historical Sales to End-Use Customers, Weather Adjusted
AA4: 2005 revised from Massoud updated values
A5: Average MW. To get to MWH multiply by 8760 | B5: 1980 | C5: 1981 | D5: 1982 | E5: 1983 | F5: 1984 | G5: 1985 | H5: 1986 | I5: 1987 | J5: 1988 | K5: 1989 | L5: 1990 | M5: 1991 | N5: 1992 | O5: 1993 | P5: 1994 | Q5: 1995 | R5: 1996 | S5: 1997 | T5: 1998 | U5: 1999 | V5: 2000 | W5: 2001 | X5: 2002 | Y5: 2003 | Z5: 2004 | AA5: 2005 | AB5: 2006 | AC5: 2007 | AD5: 2008 | AE5: 2009 | AF5: 2010 | AG5: 2011
A6: COMMERCIAL | B6: 2824.8247 | C6: 2936.738446 | D6: 2870.308574 | E6: 2969.2018 | F6: 3103.576799 | G6: 3132.083224 | H6: 3341.726811 | I6: 3473.301211 | J6: 3586.755527 | K6: 3748.443824 | L6: 3857.838516 | M6: 4053.275975 | N6: 4166.202128 | O6: 4265.408584 | P6: 4416.929407 | Q6: 4623.872449 | R6: 4506.400956 | S6: 4682.638084 | T6: 4722.680138 | U6: 5016.64804 | V6: 5219.199439 | W6: 5057.944773 | X6: 5025.504723 | Y6: 5301.42502 | Z6: 5249.338515 | AA6: 5823 | AB6: 5751.96917 | AC6: 6129.02957 | AD6: 6413.478296 | AE6: 5900.43313 | AF6: 6256.138737 | AG6: 6221.273352
A7: RESIDENTIAL | B7: 5447.545006 | C7: 5391.434182 | D7: 5411.688398 | E7: 5215.877196 | F7: 5350.536045 | G7: 5315.032142 | H7: 5440.271678 | I7: 5424.403363 | J7: 5589.188091 | K7: 5819.794158 | L7: 5854.798824 | M7: 6166.632158 | N7: 6037.244008 | O7: 6246.13059 | P7: 6393.123471 | Q7: 6485.577846 | R7: 6549.312939 | S7: 6525.222017 | T7: 6563.327007 | U7: 6840.958287 | V7: 6723.622436 | W7: 6571.359637 | X7: 6665.675048 | Y7: 6935.886879 | Z7: 6577.855674 | AA7: 6980 | AB7: 7253.410965 | AC7: 7391.049598 | AD7: 7440.864744 | AE7: 7530.288797 | AF7: 7370.087291 | AG7: 7396.09057
A8: INDUSTRIAL FIRM (1) | B8: 6240 | C8: 6392 | D8: 5719 | E8: 5567 | F8: 6310 | G8: 5943 | H8: 5830 | I8: 6175 | J8: 6673 | K8: 6962 | L8: 6971 | M8: 6844 | N8: 6870 | O8: 6753 | P8: 6674 | Q8: 6731 | R8: 7218 | S8: 7633 | T8: 7953 | U8: 7510 | V8: 7315 | W8: 4688 | X8: 4139 | Y8: 4179 | Z8: 3986.501783 | AA8: 5147 | AB8: 5108.944526 | AC8: 5219.78979 | AD8: 5263.975541 | AE8: 5516.76479 | AF8: 5463.201011 | AG8: 5676.101127
A9: DSI | B9: 2484 | C9: 2448 | D9: 1993 | E9: 1860 | F9: 2458 | G9: 2068 | H9: 1885 | I9: 2065 | J9: 2435 | K9: 2531 | L9: 2465 | M9: 2407 | N9: 2341 | O9: 2265 | P9: 2075 | Q9: 2058 | R9: 2580 | S9: 2814 | T9: 2933 | U9: 2815 | V9: 2477 | W9: 287 | X9: 412 | Y9: 439 | Z9: 310.7820136 | AA9: 459 | AB9: 488.0763642 | AC9: 739.8819854 | AD9: 733.286168 | AE9: 525.2408094 | AF9: 525.0056161 | AG9: 606.9997603
A10: NON-DSI INDUSTRIAL | B10: 3756 | C10: 3944 | D10: 3726 | E10: 3707 | F10: 3852 | G10: 3875 | H10: 3945 | I10: 4110 | J10: 4238 | K10: 4431 | L10: 4506 | M10: 4437 | N10: 4529 | O10: 4488 | P10: 4599 | Q10: 4673 | R10: 4638 | S10: 4819 | T10: 5020 | U10: 4695 | V10: 4838 | W10: 4401 | X10: 3727 | Y10: 3740 | Z10: 3675.719769 | AA10: 4687 | AB10: 4620.868162 | AC10: 4479.907804 | AD10: 4530.689373 | AE10: 4991.523981 | AF10: 4938.195395 | AG10: 5069.101367
A11: IRRIGATION | B11: 583 | C11: 637 | D11: 592 | E11: 521 | F11: 531 | G11: 615 | H11: 561 | I11: 618 | J11: 649 | K11: 641 | L11: 683 | M11: 656 | N11: 739 | O11: 585 | P11: 722 | Q11: 614 | R11: 641 | S11: 656 | T11: 549 | U11: 627 | V11: 652 | W11: 742 | X11: 735.2035584 | Y11: 707.9836963 | Z11: 713.2802307 | AA11: 0 | AB11: 666.136291 | AC11: 758.3063732 | AD11: 751.7055187 | AE11: 727.7277127 | AF11: 663.5573085 | AG11: 676.0722592
A12: OTHER | B12: 169 | C12: 176 | D12: 174 | E12: 175 | F12: 182 | G12: 189 | H12: 179 | I12: 181 | J12: 185 | K12: 184 | L12: 183 | M12: 183 | N12: 182 | O12: 171 | P12: 179 | Q12: 192 | R12: 184 | S12: 190 | T12: 179 | U12: 157 | V12: 172 | W12: 196 | X12: 191 | Y12: 170 | Z12: 180 | AA12: 0 | AB12: 0 | AC12: 0 | AD12: 0 | AE12: 0 | AF12: 0 | AG12: 1
A13: TOTAL FIRM SALES | B13: 15264.36971 | C13: 15533.17263 | D13: 14766.99697 | E13: 14448.079 | F13: 15477.11284 | G13: 15194.11537 | H13: 15351.99849 | I13: 15871.70457 | J13: 16682.94362 | K13: 17355.23798 | L13: 17549.63734 | M13: 17902.90813 | N13: 17994.44614 | O13: 18020.53917 | P13: 18385.05288 | Q13: 18646.4503 | R13: 19098.71389 | S13: 19686.8601 | T13: 19967.00714 | U13: 20151.60633 | V13: 20081.82187 | W13: 17255.30441 | X13: 16756.38333 | Y13: 17294.2956 | Z13: 16706.9762 | AA13: 17949 | AB13: 18780.46095 | AC13: 19498.17533 | AD13: 19870.0241 | AE13: 19675.21443 | AF13: 19752.98435 | AG13: 19970.53731
A14: TOTAL NON-DSI SALES | B14: 12780.36971 | C14: 13085.17263 | D14: 12773.99697 | E14: 12588.079 | F14: 13019.11284 | G14: 13126.11537 | H14: 13466.99849 | I14: 13806.70457 | J14: 14247.94362 | K14: 14824.23798 | L14: 15084.63734 | M14: 15495.90813 | N14: 15653.44614 | O14: 15755.53917 | P14: 16310.05288 | Q14: 16588.4503 | R14: 16518.71389 | S14: 16872.8601 | T14: 17034.00714 | U14: 17336.60633 | V14: 17604.82187 | W14: 16968.30441 | X14: 16344.38333 | Y14: 16855.2956 | Z14: 16396.19419 | AA14: 17490 | AB14: 18292.38459 | AC14: 18758.29335 | AD14: 19136.73793 | AE14: 19149.97362 | AF14: 19227.97873 | AG14: 19363.53755
A16: Unit MWh/Year | B16: 1980 | C16: 1981 | D16: 1982 | E16: 1983 | F16: 1984 | G16: 1985 | H16: 1986 | I16: 1987 | J16: 1988 | K16: 1989 | L16: 1990 | M16: 1991 | N16: 1992 | O16: 1993 | P16: 1994 | Q16: 1995 | R16: 1996 | S16: 1997 | T16: 1998 | U16: 1999 | V16: 2000 | W16: 2001 | X16: 2002 | Y16: 2003 | Z16: 2004 | AA16: 2005 | AB16: 2006 | AC16: 2007 | AD16: 2008 | AE16: 2009 | AF16: 2010 | AG16: 2011
A17: COMMERCIAL | B17: =(B6*8760) -> 24745464.38 | C17: 25725828.78 | D17: 25143903.1 | E17: 26010207.77 | F17: 27187332.76 | G17: 27437049.04 | H17: 29273526.87 | I17: 30426118.61 | J17: 31419978.42 | K17: 32836367.89 | L17: 33794665.4 | M17: 35506697.54 | N17: 36495930.64 | O17: 37364979.2 | P17: 38692301.61 | Q17: 40505122.65 | R17: 39476072.37 | S17: 41019909.62 | T17: 41370678.01 | U17: 43945836.83 | V17: 45720187.08 | W17: 44307596.21 | X17: 44023421.37 | Y17: 46440483.18 | Z17: 45984205.39 | AA17: 51009480 | AB17: 50387249.93 | AC17: 53690299.03 | AD17: 56182069.87 | AE17: 51687794.22 | AF17: 54803775.34 | AG17: 54498354.56
A18: RESIDENTIAL | B18: =(B7*8760) -> 47720494.25 | C18: 47228963.43 | D18: 47406390.36 | E18: 45691084.24 | F18: 46870695.75 | G18: 46559681.57 | H18: 47656779.9 | I18: 47517773.46 | J18: 48961287.68 | K18: 50981396.82 | L18: 51288037.7 | M18: 54019697.71 | N18: 52886257.51 | O18: 54716103.97 | P18: 56003761.61 | Q18: 56813661.93 | R18: 57371981.34 | S18: 57160944.87 | T18: 57494744.58 | U18: 59926794.6 | V18: 58898932.54 | W18: 57565110.42 | X18: 58391313.42 | Y18: 60758369.06 | Z18: 57622015.7 | AA18: 61144800 | AB18: 63539880.06 | AC18: 64745594.48 | AD18: 65181975.16 | AE18: 65965329.86 | AF18: 64561964.67 | AG18: 64789753.4
A19: INDUSTRIAL FIRM (1) | B19: =(B8*8760) -> 54662400 | C19: 55993920 | D19: 50098440 | E19: 48766920 | F19: 55275600 | G19: 52060680 | H19: 51070800 | I19: 54093000 | J19: 58455480 | K19: 60987120 | L19: 61065960 | M19: 59953440 | N19: 60181200 | O19: 59156280 | P19: 58464240 | Q19: 58963560 | R19: 63229680 | S19: 66865080 | T19: 69668280 | U19: 65787600 | V19: 64079400 | W19: 41066880 | X19: 36257640 | Y19: 36608040 | Z19: 34921755.62 | AA19: 45087720 | AB19: 44754354.05 | AC19: 45725358.56 | AD19: 46112425.74 | AE19: 48326859.56 | AF19: 47857640.85 | AG19: 49722645.88
A20: DSI FIRM | B20: =(B9*8760) -> 21759840 | C20: 21444480 | D20: 17458680 | E20: 16293600 | F20: 21532080 | G20: 18115680 | H20: 16512600 | I20: 18089400 | J20: 21330600 | K20: 22171560 | L20: 21593400 | M20: 21085320 | N20: 20507160 | O20: 19841400 | P20: 18177000 | Q20: 18028080 | R20: 22600800 | S20: 24650640 | T20: 25693080 | U20: 24659400 | V20: 21698520 | W20: 2514120 | X20: 3609120 | Y20: 3845640 | Z20: 2722450.439 | AA20: 4020840 | AB20: 4275548.95 | AC20: 6481366.192 | AD20: 6423586.832 | AE20: 4601109.49 | AF20: 4599049.197 | AG20: 5317317.9
A21: NON-DSI FIRM | B21: =(B10*8760) -> 32902560 | C21: 34549440 | D21: 32639760 | E21: 32473320 | F21: 33743520 | G21: 33945000 | H21: 34558200 | I21: 36003600 | J21: 37124880 | K21: 38815560 | L21: 39472560 | M21: 38868120 | N21: 39674040 | O21: 39314880 | P21: 40287240 | Q21: 40935480 | R21: 40628880 | S21: 42214440 | T21: 43975200 | U21: 41128200 | V21: 42380880 | W21: 38552760 | X21: 32648520 | Y21: 32762400 | Z21: 32199305.18 | AA21: 41058120 | AB21: 40478805.1 | AC21: 39243992.37 | AD21: 39688838.91 | AE21: 43725750.07 | AF21: 43258591.66 | AG21: 44405327.98
A22: IRRIGATION | B22: =(B11*8760) -> 5107080 | C22: 5580120 | D22: 5185920 | E22: 4563960 | F22: 4651560 | G22: 5387400 | H22: 4914360 | I22: 5413680 | J22: 5685240 | K22: 5615160 | L22: 5983080 | M22: 5746560 | N22: 6473640 | O22: 5124600 | P22: 6324720 | Q22: 5378640 | R22: 5615160 | S22: 5746560 | T22: 4809240 | U22: 5492520 | V22: 5711520 | W22: 6499920 | X22: 6440383.172 | Y22: 6201937.18 | Z22: 6248334.821 | AA22: 0 | AB22: 5835353.909 | AC22: 6642763.829 | AD22: 6584940.344 | AE22: 6374894.763 | AF22: 5812762.023 | AG22: 5922392.991
A23: OTHER | B23: =(B12*8760) -> 1480440 | C23: 1541760 | D23: 1524240 | E23: 1533000 | F23: 1594320 | G23: 1655640 | H23: 1568040 | I23: 1585560 | J23: 1620600 | K23: 1611840 | L23: 1603080 | M23: 1603080 | N23: 1594320 | O23: 1497960 | P23: 1568040 | Q23: 1681920 | R23: 1611840 | S23: 1664400 | T23: 1568040 | U23: 1375320 | V23: 1506720 | W23: 1716960 | X23: 1673160 | Y23: 1489200 | Z23: 1576800 | AA23: 0 | AB23: 0 | AC23: 0 | AD23: 0 | AE23: 0 | AF23: 0 | AG23: 8760
A24: TOTAL FIRM SALES | B24: =(B13*8760) -> 133715878.6 | C24: 136070592.2 | D24: 129358893.5 | E24: 126565172 | F24: 135579508.5 | G24: 133100450.6 | H24: 134483506.8 | I24: 139036132.1 | J24: 146142586.1 | K24: 152031884.7 | L24: 153734823.1 | M24: 156829475.2 | N24: 157631348.2 | O24: 157859923.2 | P24: 161053063.2 | Q24: 163342904.6 | R24: 167304733.7 | S24: 172456894.5 | T24: 174910982.6 | U24: 176528071.4 | V24: 175916759.6 | W24: 151156466.6 | X24: 146785918 | Y24: 151498029.4 | Z24: 146353111.5 | AA24: 157233240 | AB24: 164516837.9 | AC24: 170804015.9 | AD24: 174061411.1 | AE24: 172354878.4 | AF24: 173036142.9 | AG24: 174941906.8
A25: TOTAL NON-DSI SALES | B25: =(B14*8760) -> 111956038.6 | C25: 114626112.2 | D25: 111900213.5 | E25: 110271572 | F25: 114047428.5 | G25: 114984770.6 | H25: 117970906.8 | I25: 120946732.1 | J25: 124811986.1 | K25: 129860324.7 | L25: 132141423.1 | M25: 135744155.2 | N25: 137124188.2 | O25: 138018523.2 | P25: 142876063.2 | Q25: 145314824.6 | R25: 144703933.7 | S25: 147806254.5 | T25: 149217902.6 | U25: 151868671.4 | V25: 154218239.6 | W25: 148642346.6 | X25: 143176798 | Y25: 147652389.4 | Z25: 143630661.1 | AA25: 153212400 | AB25: 160241289 | AC25: 164322649.7 | AD25: 167637824.3 | AE25: 167753768.9 | AF25: 168437093.7 | AG25: 169624588.9
A27: Unit GWh/Year | B27: 1980 | C27: 1981 | D27: 1982 | E27: 1983 | F27: 1984 | G27: 1985 | H27: 1986 | I27: 1987 | J27: 1988 | K27: 1989 | L27: 1990 | M27: 1991 | N27: 1992 | O27: 1993 | P27: 1994 | Q27: 1995 | R27: 1996 | S27: 1997 | T27: 1998 | U27: 1999 | V27: 2000 | W27: 2001 | X27: 2002 | Y27: 2003 | Z27: 2004 | AA27: 2005 | AB27: 2006 | AC27: 2007 | AD27: 2008 | AE27: 2009 | AF27: 2010 | AG27: 2011
A28: COMMERCIAL | B28: =B17*(10^-3) -> 24745.46438 | C28: 25725.82878 | D28: 25143.9031 | E28: 26010.20777 | F28: 27187.33276 | G28: 27437.04904 | H28: 29273.52687 | I28: 30426.11861 | J28: 31419.97842 | K28: 32836.36789 | L28: 33794.6654 | M28: 35506.69754 | N28: 36495.93064 | O28: 37364.9792 | P28: 38692.30161 | Q28: 40505.12265 | R28: 39476.07237 | S28: 41019.90962 | T28: 41370.67801 | U28: 43945.83683 | V28: 45720.18708 | W28: 44307.59621 | X28: 44023.42137 | Y28: 46440.48318 | Z28: 45984.20539 | AA28: 51009.48 | AB28: 50387.24993 | AC28: 53690.29903 | AD28: 56182.06987 | AE28: 51687.79422 | AF28: 54803.77534 | AG28: 54498.35456
A29: RESIDENTIAL | B29: =B18*(10^-3) -> 47720.49425 | C29: 47228.96343 | D29: 47406.39036 | E29: 45691.08424 | F29: 46870.69575 | G29: 46559.68157 | H29: 47656.7799 | I29: 47517.77346 | J29: 48961.28768 | K29: 50981.39682 | L29: 51288.0377 | M29: 54019.69771 | N29: 52886.25751 | O29: 54716.10397 | P29: 56003.76161 | Q29: 56813.66193 | R29: 57371.98134 | S29: 57160.94487 | T29: 57494.74458 | U29: 59926.7946 | V29: 58898.93254 | W29: 57565.11042 | X29: 58391.31342 | Y29: 60758.36906 | Z29: 57622.0157 | AA29: 61144.8 | AB29: 63539.88006 | AC29: 64745.59448 | AD29: 65181.97516 | AE29: 65965.32986 | AF29: 64561.96467 | AG29: 64789.7534
A30: INDUSTRIAL FIRM (1) | B30: =B19*(10^-3) -> 54662.4 | C30: 55993.92 | D30: 50098.44 | E30: 48766.92 | F30: 55275.6 | G30: 52060.68 | H30: 51070.8 | I30: 54093 | J30: 58455.48 | K30: 60987.12 | L30: 61065.96 | M30: 59953.44 | N30: 60181.2 | O30: 59156.28 | P30: 58464.24 | Q30: 58963.56 | R30: 63229.68 | S30: 66865.08 | T30: 69668.28 | U30: 65787.6 | V30: 64079.4 | W30: 41066.88 | X30: 36257.64 | Y30: 36608.04 | Z30: 34921.75562 | AA30: 45087.72 | AB30: 44754.35405 | AC30: 45725.35856 | AD30: 46112.42574 | AE30: 48326.85956 | AF30: 47857.64085 | AG30: 49722.64588
A31: DSI FIRM | B31: =B20*(10^-3) -> 21759.84 | C31: 21444.48 | D31: 17458.68 | E31: 16293.6 | F31: 21532.08 | G31: 18115.68 | H31: 16512.6 | I31: 18089.4 | J31: 21330.6 | K31: 22171.56 | L31: 21593.4 | M31: 21085.32 | N31: 20507.16 | O31: 19841.4 | P31: 18177 | Q31: 18028.08 | R31: 22600.8 | S31: 24650.64 | T31: 25693.08 | U31: 24659.4 | V31: 21698.52 | W31: 2514.12 | X31: 3609.12 | Y31: 3845.64 | Z31: 2722.450439 | AA31: 4020.84 | AB31: 4275.54895 | AC31: 6481.366192 | AD31: 6423.586832 | AE31: 4601.10949 | AF31: 4599.049197 | AG31: 5317.3179
A32: NON-DSI FIRM | B32: =B21*(10^-3) -> 32902.56 | C32: 34549.44 | D32: 32639.76 | E32: 32473.32 | F32: 33743.52 | G32: 33945 | H32: 34558.2 | I32: 36003.6 | J32: 37124.88 | K32: 38815.56 | L32: 39472.56 | M32: 38868.12 | N32: 39674.04 | O32: 39314.88 | P32: 40287.24 | Q32: 40935.48 | R32: 40628.88 | S32: 42214.44 | T32: 43975.2 | U32: 41128.2 | V32: 42380.88 | W32: 38552.76 | X32: 32648.52 | Y32: 32762.4 | Z32: 32199.30518 | AA32: 41058.12 | AB32: 40478.8051 | AC32: 39243.99237 | AD32: 39688.83891 | AE32: 43725.75007 | AF32: 43258.59166 | AG32: 44405.32798
A33: IRRIGATION | B33: =B22*(10^-3) -> 5107.08 | C33: 5580.12 | D33: 5185.92 | E33: 4563.96 | F33: 4651.56 | G33: 5387.4 | H33: 4914.36 | I33: 5413.68 | J33: 5685.24 | K33: 5615.16 | L33: 5983.08 | M33: 5746.56 | N33: 6473.64 | O33: 5124.6 | P33: 6324.72 | Q33: 5378.64 | R33: 5615.16 | S33: 5746.56 | T33: 4809.24 | U33: 5492.52 | V33: 5711.52 | W33: 6499.92 | X33: 6440.383172 | Y33: 6201.93718 | Z33: 6248.334821 | AA33: 0 | AB33: 5835.353909 | AC33: 6642.763829 | AD33: 6584.940344 | AE33: 6374.894763 | AF33: 5812.762023 | AG33: 5922.392991
A34: OTHER | B34: =B23*(10^-3) -> 1480.44 | C34: 1541.76 | D34: 1524.24 | E34: 1533 | F34: 1594.32 | G34: 1655.64 | H34: 1568.04 | I34: 1585.56 | J34: 1620.6 | K34: 1611.84 | L34: 1603.08 | M34: 1603.08 | N34: 1594.32 | O34: 1497.96 | P34: 1568.04 | Q34: 1681.92 | R34: 1611.84 | S34: 1664.4 | T34: 1568.04 | U34: 1375.32 | V34: 1506.72 | W34: 1716.96 | X34: 1673.16 | Y34: 1489.2 | Z34: 1576.8 | AA34: 0 | AB34: 0 | AC34: 0 | AD34: 0 | AE34: 0 | AF34: 0 | AG34: 8.76
A35: TOTAL FIRM SALES | B35: =B24*(10^-3) -> 133715.8786 | C35: 136070.5922 | D35: 129358.8935 | E35: 126565.172 | F35: 135579.5085 | G35: 133100.4506 | H35: 134483.5068 | I35: 139036.1321 | J35: 146142.5861 | K35: 152031.8847 | L35: 153734.8231 | M35: 156829.4752 | N35: 157631.3482 | O35: 157859.9232 | P35: 161053.0632 | Q35: 163342.9046 | R35: 167304.7337 | S35: 172456.8945 | T35: 174910.9826 | U35: 176528.0714 | V35: 175916.7596 | W35: 151156.4666 | X35: 146785.918 | Y35: 151498.0294 | Z35: 146353.1115 | AA35: 157233.24 | AB35: 164516.8379 | AC35: 170804.0159 | AD35: 174061.4111 | AE35: 172354.8784 | AF35: 173036.1429 | AG35: 174941.9068
A36: TOTAL NON-DSI SALES | B36: =B25*(10^-3) -> 111956.0386 | C36: 114626.1122 | D36: 111900.2135 | E36: 110271.572 | F36: 114047.4285 | G36: 114984.7706 | H36: 117970.9068 | I36: 120946.7321 | J36: 124811.9861 | K36: 129860.3247 | L36: 132141.4231 | M36: 135744.1552 | N36: 137124.1882 | O36: 138018.5232 | P36: 142876.0632 | Q36: 145314.8246 | R36: 144703.9337 | S36: 147806.2545 | T36: 149217.9026 | U36: 151868.6714 | V36: 154218.2396 | W36: 148642.3466 | X36: 143176.798 | Y36: 147652.3894 | Z36: 143630.6611 | AA36: 153212.4 | AB36: 160241.289 | AC36: 164322.6497 | AD36: 167637.8243 | AE36: 167753.7689 | AF36: 168437.0937 | AG36: 169624.5889
A38: Frozen Efficiency forecast
A39: Total Class Electric Sales (GWh/Year) | C39: 2012 | D39: 2013 | E39: 2014 | F39: 2015 | G39: 2016 | H39: 2017 | I39: 2018 | J39: 2019 | K39: 2020 | L39: 2021 | M39: 2022 | N39: 2023 | O39: 2024 | P39: 2025 | Q39: 2026 | R39: 2027 | S39: 2028 | T39: 2029 | U39: 2030
A40: NorthWest | B40: Total | C40: 170264.9 | D40: 169772.7 | E40: 170151.8 | F40: 169855.5 | G40: 170245.5 | H40: 170618.2 | I40: 170198.5 | J40: 169166.6 | K40: 167397.9 | L40: 167236.1 | M40: 167609.4 | N40: 168147.5 | O40: 168687.5 | P40: 169700.1 | Q40: 170689.7 | R40: 171928.3 | S40: 173448.7 | T40: 175163.6 | U40: 178249.8
A41: NorthWest | B41: Residential | C41: 63880.33 | D41: 63176.32 | E41: 62432.57 | F41: 62105.18 | G41: 61747.32 | H41: 61353.71 | I41: 60745.95 | J41: 60130.91 | K41: 59542.99 | L41: 58982.46 | M41: 58496.87 | N41: 58090.81 | O41: 57794.01 | P41: 57947.39 | Q41: 58193.61 | R41: 58520.54 | S41: 58918.37 | T41: 59388.66 | U41: 61204.36
A42: NorthWest | B42: Commercial | C42: 56315.39 | D42: 57511.86 | E42: 58575.59 | F42: 58999.87 | G42: 59280.6 | H42: 59493.12 | I42: 59678.03 | J42: 59855.09 | K42: 60085.05 | L42: 60302.53 | M42: 60503.79 | N42: 60724.16 | O42: 60955.3 | P42: 61202.24 | Q42: 61442.78 | R42: 61796.18 | S42: 62255.21 | T42: 62782.32 | U42: 63280.04
A43: NorthWest | B43: Industrial | C43: 39082.45 | D43: 37933.54 | E43: 37828.54 | F43: 37430.5 | G43: 37858.45 | H43: 38351.7 | I43: 38274.37 | J43: 37587.2 | K43: 36058.23 | L43: 36099.55 | M43: 36591.72 | N43: 37139.69 | O43: 37557.33 | P43: 37962.97 | Q43: 38252.54 | R43: 38588.54 | S43: 39018.8 | T43: 39490.58 | U43: 40001.75
A44: NorthWest | B44: Transportation | C44: 668.5781 | D44: 681.5479 | E44: 692.4318 | F44: 703.6261 | G44: 714.4595 | H44: 725.8078 | I44: 738.6101 | J44: 752.0757 | K44: 766.1506 | L44: 779.5845 | M44: 795.1193 | N44: 812.4273 | O44: 833.3174 | P44: 856.6175 | Q44: 881.8494 | R44: 907.9629 | S44: 934.8781 | T44: 963.033 | U44: 992.6664
A45: NorthWest | B45: Irrigation | C45: 5458.365 | D45: 5551.756 | E45: 5647.514 | F45: 5584.336 | G45: 5556.374 | H45: 5549.718 | I45: 5562.026 | J45: 5586.772 | K45: 5635.864 | L45: 5707.64 | M45: 5802.977 | N45: 5907.243 | O45: 6020.451 | P45: 6150.038 | Q45: 6284.59 | R45: 6427.621 | S45: 6581.153 | T45: 6746.252 | U45: 6926.2
A46: NorthWest | B46: SL&PF | C46: 4859.781 | D46: 4917.701 | E46: 4975.114 | F46: 5032.002 | G46: 5088.344 | H46: 5144.135 | I46: 5199.47 | J46: 5254.571 | K46: 5309.572 | L46: 5364.361 | M46: 5418.925 | N46: 5473.154 | O46: 5527.066 | P46: 5580.839 | Q46: 5634.299 | R46: 5687.442 | S46: 5740.279 | T46: 5792.734 | U46: 5844.782
A47: Total Class Electric Sales (MWa/Year) | C47: =C40/8.76 -> 19436.63242 | D47: 19380.44521 | E47: 19423.72146 | F47: 19389.89726 | G47: 19434.41781 | H47: 19476.96347 | I47: 19429.05251 | J47: 19311.25571 | K47: 19109.34932 | L47: 19090.879 | M47: 19133.49315 | N47: 19194.92009 | O47: 19256.56393 | P47: 19372.15753 | Q47: 19485.12557 | R47: 19626.51826 | S47: 19800.07991 | T47: 19995.84475 | U47: 20348.15068
A49: ERIC, above table shows the data for forecast period as of the 6th plan.
A51: ROLLUP (kWh per Year)
A52: Year | B52: Residential | C52: Commercial | D52: Industrial | E52: Commercial + Industrial | F52: Total | G52: Notes | H52: Frozen Commercial Market Share | I52: Frozen Industrial Market Share | J52: % Total Com + Ind Sector Growth from Prior Year | K52: ="% Total Growth from "&A54&" Base Year" -> % Total Growth from 1980 Base Year
B53: kWh per Year
A54: 1980 | B54: =IF($A54<=2011, HLOOKUP($A54,$27:$32, 3, FALSE), HLOOKUP($A54,$39:$43, 3, FALSE))*(10^6) -> 4.772049425e+10 | C54: =IF($A54<=2011, HLOOKUP($A54,$27:$32, 2, FALSE), HLOOKUP($A54,$39:$43, 4, FALSE))*(10^6) -> 2.474546438e+10 | D54: =IF($A54<=2011, HLOOKUP($A54,$27:$32, 6, FALSE), HLOOKUP($A54,$39:$43, 5, FALSE))*(10^6) -> 3.290256e+10 | E54: =SUM(C54:D54) -> 5.764802438e+10 | F54: =SUM(B54:D54) -> 1.053685186e+11 | H54: =C54/$E54 -> 0.4292508658 | I54: =D54/$E54 -> 0.5707491342 | J54: 0 | K54: 0
A55: 1981 | B55: 4.722896343e+10 | C55: 2.572582878e+10 | D55: 34549440000 | E55: =SUM(C55:D55) -> 6.027526878e+10 | F55: =SUM(B55:D55) -> 1.075042322e+11 | H55: =C55/$E55 -> 0.4268057083 | I55: 0.5731942917 | J55: =(E55/E54)-1 -> 0.04557388456 | K55: =(E55/$E$54)-1 -> 0.04557388456
A56: 1982 | B56: 4.740639036e+10 | C56: 2.51439031e+10 | D56: 3.263976e+10 | E56: 5.77836631e+10 | F56: 1.051900535e+11 | H56: 0.4351386145 | I56: 0.5648613855 | J56: =(E56/E55)-1 -> -0.04133711436 | K56: =(E56/$E$54)-1 -> 0.002352877327
A57: 1983 | B57: 4.569108424e+10 | C57: 2.601020777e+10 | D57: 32473320000 | E57: 5.848352777e+10 | F57: 1.04174612e+11 | H57: 0.4447441657 | I57: 0.5552558343 | J57: 0.01211180849 | K57: 0.01449318342
A58: 1984 | B58: 4.687069575e+10 | C58: 2.718733276e+10 | D58: 3.374352e+10 | E58: 6.093085276e+10 | F58: 1.078015485e+11 | H58: 0.4461997744 | I58: 0.5538002256 | J58: 0.04184639819 | K58: 0.05694606913
A59: 1985 | B59: 4.655968157e+10 | C59: 2.743704904e+10 | D59: 33945000000 | E59: 6.138204904e+10 | F59: 1.079417306e+11 | H59: 0.4469881581 | I59: 0.5530118419 | J59: 0.007405054493 | K59: 0.06477281236
A60: 1986 | B60: 4.76567799e+10 | C60: 2.927352687e+10 | D60: 34558200000 | E60: 6.383172687e+10 | F60: 1.114885068e+11 | H60: 0.4586046517 | I60: 0.5413953483 | J60: 0.03990870071 | K60: 0.1072665119
A61: 1987 | B61: 4.751777346e+10 | C61: 3.042611861e+10 | D61: 36003600000 | E61: 6.642971861e+10 | F61: 1.139474921e+11 | H61: 0.4580196822 | I61: 0.5419803178 | J61: 0.04070063384 | K61: 0.1523329607
A62: 1988 | B62: 4.896128768e+10 | C62: 3.141997842e+10 | D62: 37124880000 | E62: 6.854485842e+10 | F62: 1.175061461e+11 | H62: 0.4583856345 | I62: 0.5416143655 | J62: 0.03184026448 | K62: 0.189023547
A63: 1989 | B63: 5.098139682e+10 | C63: 3.283636789e+10 | D63: 38815560000 | E63: 7.165192789e+10 | F63: 1.226333247e+11 | H63: 0.4582761254 | I63: 0.5417238746 | J63: 0.04532899401 | K63: 0.2429207882
A64: 1990 | B64: 5.12880377e+10 | C64: 3.37946654e+10 | D64: 39472560000 | E64: 7.32672254e+10 | F64: 1.245552631e+11 | H64: 0.4612521522 | I64: 0.5387478478 | J64: 0.02254367118 | K64: 0.2709407857
A65: 1991 | B65: 5.401969771e+10 | C65: 3.550669754e+10 | D65: 38868120000 | E65: 7.437481754e+10 | F65: 1.283945152e+11 | H65: 0.4774021465 | I65: 0.5225978535 | J65: 0.01511715691 | K65: 0.290153797
A66: 1992 | B66: 5.288625751e+10 | C66: 3.649593064e+10 | D66: 39674040000 | E66: 7.616997064e+10 | F66: 1.290562282e+11 | H66: 0.4791380426 | I66: 0.5208619574 | J66: 0.02413657149 | K66: 0.3212936864
A67: 1993 | B67: 5.471610397e+10 | C67: 3.73649792e+10 | D67: 39314880000 | E67: 7.66798592e+10 | F67: 1.313959632e+11 | H67: 0.4872854435 | I67: 0.5127145565 | J67: 0.006694088953 | K67: 0.3301385438
A68: 1994 | B68: 5.600376161e+10 | C68: 3.869230161e+10 | D68: 40287240000 | E68: 7.897954161e+10 | F68: 1.349833032e+11 | H68: 0.4899028384 | I68: 0.5100971616 | J68: 0.02999069679 | K68: 0.3700303256
A69: 1995 | B69: 5.681366193e+10 | C69: 4.050512265e+10 | D69: 40935480000 | E69: 8.144060265e+10 | F69: 1.382542646e+11 | H69: 0.4973578453 | I69: 0.5026421547 | J69: 0.0311607411 | K69: 0.4127214859
A70: 1996 | B70: 5.737198134e+10 | C70: 3.947607237e+10 | D70: 40628880000 | E70: 8.010495237e+10 | F70: 1.374769337e+11 | H70: 0.4928043923 | I70: 0.5071956077 | J70: -0.01640029955 | K70: 0.3895524303
A71: 1997 | B71: 5.716094487e+10 | C71: 4.101990962e+10 | D71: 42214440000 | E71: 8.323434962e+10 | F71: 1.403952945e+11 | H71: 0.4928242944 | I71: 0.5071757056 | J71: 0.03906621441 | K71: 0.4438369835
A72: 1998 | B72: 5.749474458e+10 | C72: 4.137067801e+10 | D72: 4.39752e+10 | E72: 8.534587801e+10 | F72: 1.428406226e+11 | H72: 0.4847413721 | I72: 0.5152586279 | J72: 0.02536847347 | K72: 0.4804649237
A73: 1999 | B73: 5.99267946e+10 | C73: 4.394583683e+10 | D73: 4.11282e+10 | E73: 8.507403683e+10 | F73: 1.450008314e+11 | H73: 0.5165599103 | I73: 0.4834400897 | J73: -0.003185170551 | K73: 0.4757493905
A74: 2000 | B74: 5.889893254e+10 | C74: 4.572018708e+10 | D74: 42380880000 | E74: 8.810106708e+10 | F74: 1.469999996e+11 | H74: 0.51895157 | I74: 0.48104843 | J74: 0.03558112865 | K74: 0.5282582194
A75: 2001 | B75: 5.756511042e+10 | C75: 4.430759621e+10 | D75: 38552760000 | E75: 8.286035621e+10 | F75: 1.404254666e+11 | H75: 0.5347261131 | I75: 0.4652738869 | J75: -0.05948521449 | K75: 0.4373494514
A76: 2002 | B76: 5.839131342e+10 | C76: 4.402342137e+10 | D76: 32648520000 | E76: 7.667194137e+10 | F76: 1.350632548e+11 | H76: 0.5741790358 | I76: 0.4258209642 | J76: -0.07468486884 | K76: 0.3300011961
A77: 2003 | B77: 6.075836906e+10 | C77: 4.644048318e+10 | D77: 32762400000 | E77: 7.920288318e+10 | F77: 1.399612522e+11 | H77: 0.5863483918 | I77: 0.4136516082 | J77: 0.03301001328 | K77: 0.3739045533
A78: 2004 | B78: 5.76220157e+10 | C78: 4.598420539e+10 | D78: 32199305179 | E78: 7.818351057e+10 | F78: 1.358055263e+11 | H78: 0.5881573372 | I78: 0.4118426628 | J78: -0.01287039775 | K78: 0.3562218552
A79: 2005 | B79: 61144800000 | C79: 51009480000 | D79: 41058120000 | E79: 92067600000 | F79: 153212400000 | H79: 0.5540437678 | I79: 0.4459562322 | J79: 0.1775833463 | K79: 0.5970642706
A80: 2006 | B80: 6.353988006e+10 | C80: 5.038724993e+10 | D80: 4.04788051e+10 | E80: 9.086605503e+10 | F80: 1.544059351e+11 | H80: 0.5545222571 | I80: 0.4454777429 | J80: -0.01305068202 | K80: 0.5762214926
A81: 2007 | B81: 6.474559448e+10 | C81: 5.369029903e+10 | D81: 3.924399237e+10 | E81: 9.29342914e+10 | F81: 1.576798859e+11 | H81: 0.5777232303 | I81: 0.4222767697 | J81: 0.02276137518 | K81: 0.6120984614
A82: 2008 | B82: 6.518197516e+10 | C82: 5.618206987e+10 | D82: 3.968883891e+10 | E82: 9.587090878e+10 | F82: 1.610528839e+11 | H82: 0.5860179129 | I82: 0.4139820871 | J82: 0.03159885698 | K82: 0.6630389301
A83: 2009 | B83: 6.596532986e+10 | C83: 5.168779422e+10 | D83: 4.372575007e+10 | E83: 9.541354429e+10 | F83: 1.613788742e+11 | H83: =C83/$E83 -> 0.5417238675 | I83: =D83/$E83 -> 0.4582761325 | J83: -0.004770628499 | K83: 0.6551051892
A84: 2010 | B84: 6.456196467e+10 | C84: 5.480377534e+10 | D84: 4.325859166e+10 | E84: 9.8062367e+10 | F84: 1.626243317e+11 | H84: =C84/$E84 -> 0.5588665358 | I84: =D84/$E84 -> 0.4411334642 | J84: 0.02776149578 | K84: 0.7010533849
A85: 2011 | B85: 6.47897534e+10 | C85: 5.449835456e+10 | D85: 4.440532798e+10 | E85: 9.890368254e+10 | F85: 1.636934359e+11 | H85: 0.5510245237 | I85: 0.4489754763 | J85: 0.008579392559 | K85: 0.7156473897
A86: 2012 | B86: =IF($A86<=2011, HLOOKUP($A86,$27:$32, 3, FALSE), HLOOKUP($A86,$39:$43, 3, FALSE))*(10^6) -> 63880330000 | C86: =IF($A86<=2011, HLOOKUP($A86,$27:$32, 2, FALSE), HLOOKUP($A86,$39:$43, 4, FALSE))*(10^6) -> 56315390000 | D86: =IF($A86<=2011, HLOOKUP($A86,$27:$32, 6, FALSE), HLOOKUP($A86,$39:$43, 5, FALSE))*(10^6) -> 39082450000 | E86: 95397840000 | F86: 159278170000 | H86: 0.590321437 | I86: 0.409678563 | J86: -0.03544703745 | K86: 0.6548327724
A87: 2013 | B87: 63176320000 | C87: 57511860000 | D87: 37933540000 | E87: 95445400000 | F87: 158621720000 | H87: 0.6025629313 | I87: 0.3974370687 | J87: 0.0004985437825 | K87: 0.655657779
A88: 2014 | B88: 62432570000 | C88: 58575590000 | D88: 37828540000 | E88: 96404130000 | F88: 158836700000 | H88: 0.6076045705 | I88: 0.3923954295 | J88: 0.01004480048 | K88: 0.672288531
A89: 2015 | B89: 62105180000 | C89: 58999870000 | D89: 37430500000 | E89: 96430370000 | F89: 158535550000 | H89: 0.6118390918 | I89: 0.3881609082 | J89: 0.000272187509 | K89: 0.6727437071
A90: 2016 | B90: 61747320000 | C90: 59280600000 | D90: 37858450000 | E90: 97139050000 | F90: 158886370000 | H90: 0.6102653876 | I90: 0.3897346124 | J90: 0.007349136999 | K90: 0.6850369298
A91: 2017 | B91: 61353710000 | C91: 59493120000 | D91: 3.83517e+10 | E91: 97844820000 | F91: 159198530000 | H91: 0.6080354586 | I91: 0.3919645414 | J91: 0.007265564158 | K91: 0.6972796737
A92: 2018 | B92: 60745950000 | C92: 59678030000 | D92: 38274370000 | E92: 97952400000 | F92: 158698350000 | H92: 0.6092554139 | I92: 0.3907445861 | J92: 0.00109949612 | K92: 0.6991458261
A93: 2019 | B93: 60130910000 | C93: 59855090000 | D93: 37587200000 | E93: 97442290000 | F93: 157573200000 | H93: 0.614261939 | I93: 0.385738061 | J93: -0.005207733552 | K93: 0.6902971274
A94: 2020 | B94: 59542990000 | C94: 60085050000 | D94: 36058230000 | E94: 96143280000 | F94: 155686270000 | H94: 0.6249531949 | I94: 0.3750468051 | J94: -0.01333107011 | K94: 0.6677636579
A95: 2021 | B95: 58982460000 | C95: 60302530000 | D95: 36099550000 | E95: 96402080000 | F95: 155384540000 | H95: 0.6255314201 | I95: 0.3744685799 | J95: 0.002691815798 | K95: 0.6722529704
A96: 2022 | B96: 58496870000 | C96: 6.050379e+10 | D96: 36591720000 | E96: 97095510000 | F96: 155592380000 | H96: 0.6231368474 | I96: 0.3768631526 | J96: 0.007193102058 | K96: 0.6842816567
A97: 2023 | B97: 58090810000 | C97: 60724160000 | D97: 37139690000 | E97: 97863850000 | F97: 155954660000 | H97: 0.6204963324 | I97: 0.3795036676 | J97: 0.007913239242 | K97: 0.6976097804
A98: 2024 | B98: 57794010000 | C98: 60955300000 | D98: 37557330000 | E98: 98512630000 | F98: 156306640000 | H98: 0.618756194 | I98: 0.381243806 | J98: 0.006629414232 | K98: 0.7088639388
A99: 2025 | B99: 57947390000 | C99: 61202240000 | D99: 37962970000 | E99: 99165210000 | F99: 157112600000 | H99: 0.6171745111 | I99: 0.3828254889 | J99: 0.006624328271 | K99: 0.7201840145
A100: 2026 | B100: 58193610000 | C100: 61442780000 | D100: 38252540000 | E100: 99695320000 | F100: 157888930000 | H100: 0.6163055598 | I100: 0.3836944402 | J100: 0.005345725583 | K100: 0.7293796462
A101: 2027 | B101: 58520540000 | C101: 61796180000 | D101: 38588540000 | E101: 100384720000 | F101: 158905260000 | H101: 0.6155934887 | I101: 0.3844065113 | J101: 0.006915068832 | K101: 0.7413384255
A102: 2028 | B102: 58918370000 | C102: 62255210000 | D102: 39018800000 | E102: 101274010000 | F102: 160192380000 | H102: 0.6147204994 | I102: 0.3852795006 | J102: 0.008858818354 | K102: 0.7567646263
A103: 2029 | B103: 59388660000 | C103: 62782320000 | D103: 39490580000 | E103: 102272900000 | F103: 161661560000 | H103: 0.6138705366 | I103: 0.3861294634 | J103: 0.009863241319 | K103: 0.7740920198
A104: 2030 | B104: 61204360000 | C104: 63280040000 | D104: 40001750000 | E104: 103281790000 | F104: 164486150000 | H104: 0.6126930991 | I104: 0.3873069009 | J104: 0.009864685562 | K104: 0.7915928797
A105: 2031 | B105: =(SLOPE(B$100:B$104, $A$100:$A$104)*$A105)+INTERCEPT(B$100:B$104, $A$100:$A$104) -> 61311994000 | C105: =(SLOPE(C$100:C$104, $A$100:$A$104)*$A105)+INTERCEPT(C$100:C$104, $A$100:$A$104) -> 63709504000 | D105: =(SLOPE(D$100:D$104, $A$100:$A$104)*$A105)+INTERCEPT(D$100:D$104, $A$100:$A$104) -> 40390580000 | E105: =(SLOPE(E$100:E$104, $A$100:$A$104)*$A105)+INTERCEPT(E$100:E$104, $A$100:$A$104) -> 104100084000 | F105: =(SLOPE(F$100:F$104, $A$100:$A$104)*$A105)+INTERCEPT(F$100:F$104, $A$100:$A$104) -> 165412078000 | G105: Linearly Extrapolated from Prior 5 Years | H105: 0.6120024264 | I105: 0.3879975736 | J105: 0.0079229262 | K105: 0.8057875379
A106: 2032 | B106: =(SLOPE(B$100:B$104, $A$100:$A$104)*$A106)+INTERCEPT(B$100:B$104, $A$100:$A$104) -> 62000956000 | C106: 64175570000 | D106: 40830626000 | E106: 105006196000 | F106: 167007152000 | H106: 0.6111598405 | I106: 0.3888401595 | J106: 0.008704238894 | K106: 0.821505544
A107: 2033 | B107: 62689918000 | C107: 64641636000 | D107: 41270672000 | E107: 105912308000 | F107: 168602226000 | H107: 0.6103316717 | I107: 0.3896683283 | J107: 0.008629128894 | K107: 0.8372235501
A108: 2034 | B108: 63378880000 | C108: 65107702000 | D108: 41710718000 | E108: 106818420000 | F108: 170197300000 | H108: 0.6095175532 | I108: 0.3904824468 | J108: 0.008555304073 | K108: 0.8529415562
A130: Updated information from Massoud
A131: Sales Net of Conservation targers GWH | C131: 2012 | D131: 2013 | E131: 2014 | F131: 2015 | G131: 2016 | H131: 2017 | I131: 2018 | J131: 2019 | K131: 2020 | L131: 2021 | M131: 2022 | N131: 2023 | O131: 2024 | P131: 2025 | Q131: 2026 | R131: 2027 | S131: 2028 | T131: 2029 | U131: 2030
A132: NorthWest | B132: Total | C132: 170264.9 | D132: 169772.7 | E132: 170151.8 | F132: 169855.5 | G132: 170245.5 | H132: 170618.2 | I132: 170198.5 | J132: 169166.6 | K132: 167397.9 | L132: 167236.1 | M132: 167609.4 | N132: 168147.5 | O132: 168687.5 | P132: 169700.1 | Q132: 170689.7 | R132: 171928.3 | S132: 173448.7 | T132: 175163.6 | U132: 178249.8
A133: NorthWest | B133: Residential | C133: 63880.33 | D133: 63176.32 | E133: 62432.57 | F133: 62105.18 | G133: 61747.32 | H133: 61353.71 | I133: 60745.95 | J133: 60130.91 | K133: 59542.99 | L133: 58982.46 | M133: 58496.87 | N133: 58090.81 | O133: 57794.01 | P133: 57947.39 | Q133: 58193.61 | R133: 58520.54 | S133: 58918.37 | T133: 59388.66 | U133: 61204.36
A134: NorthWest | B134: Commercial | C134: 56315.39 | D134: 57511.86 | E134: 58575.59 | F134: 58999.87 | G134: 59280.6 | H134: 59493.12 | I134: 59678.03 | J134: 59855.09 | K134: 60085.05 | L134: 60302.53 | M134: 60503.79 | N134: 60724.16 | O134: 60955.3 | P134: 61202.24 | Q134: 61442.78 | R134: 61796.18 | S134: 62255.21 | T134: 62782.32 | U134: 63280.04
A135: NorthWest | B135: Industrial | C135: 39082.45 | D135: 37933.54 | E135: 37828.54 | F135: 37430.5 | G135: 37858.45 | H135: 38351.7 | I135: 38274.37 | J135: 37587.2 | K135: 36058.23 | L135: 36099.55 | M135: 36591.72 | N135: 37139.69 | O135: 37557.33 | P135: 37962.97 | Q135: 38252.54 | R135: 38588.54 | S135: 39018.8 | T135: 39490.58 | U135: 40001.75
A136: NorthWest | B136: Transportation | C136: 668.5781 | D136: 681.5479 | E136: 692.4318 | F136: 703.6261 | G136: 714.4595 | H136: 725.8078 | I136: 738.6101 | J136: 752.0757 | K136: 766.1506 | L136: 779.5845 | M136: 795.1193 | N136: 812.4273 | O136: 833.3174 | P136: 856.6175 | Q136: 881.8494 | R136: 907.9629 | S136: 934.8781 | T136: 963.033 | U136: 992.6664
A137: NorthWest | B137: Irrigation | C137: 5458.365 | D137: 5551.756 | E137: 5647.514 | F137: 5584.336 | G137: 5556.374 | H137: 5549.718 | I137: 5562.026 | J137: 5586.772 | K137: 5635.864 | L137: 5707.64 | M137: 5802.977 | N137: 5907.243 | O137: 6020.451 | P137: 6150.038 | Q137: 6284.59 | R137: 6427.621 | S137: 6581.153 | T137: 6746.252 | U137: 6926.2
A138: NorthWest | B138: SL&PF | C138: 4859.781 | D138: 4917.701 | E138: 4975.114 | F138: 5032.002 | G138: 5088.344 | H138: 5144.135 | I138: 5199.47 | J138: 5254.571 | K138: 5309.572 | L138: 5364.361 | M138: 5418.925 | N138: 5473.154 | O138: 5527.066 | P138: 5580.839 | Q138: 5634.299 | R138: 5687.442 | S138: 5740.279 | T138: 5792.734 | U138: 5844.782
A141: Previous information
A142: Frozen Efficiency forecast
A143: Total Class Electric Sales (GWh/Year) | C143: 2012 | D143: 2013 | E143: 2014 | F143: 2015 | G143: 2016 | H143: 2017 | I143: 2018 | J143: 2019 | K143: 2020 | L143: 2021 | M143: 2022 | N143: 2023 | O143: 2024 | P143: 2025 | Q143: 2026 | R143: 2027 | S143: 2028 | T143: 2029 | U143: 2030
A144: NorthWest | B144: Total | C144: 175497.8 | D144: 177215.3 | E144: 180019.6 | F144: 181979.8 | G144: 184741.8 | H144: 187609.3 | I144: 189974.8 | J144: 191802.4 | K144: 192747.8 | L144: 195295.7 | M144: 198286 | N144: 201392.1 | O144: 204447.4 | P144: 207562 | Q144: 210609.3 | R144: 213809 | S144: 217219.1 | T144: 220755.5 | U144: 224393.5
A145: NorthWest | B145: Residential | C145: 66839.59 | D145: 67369.62 | E145: 67984.43 | F145: 68790.22 | G145: 69677.61 | H145: 70631.41 | I145: 71655 | J145: 72745.21 | K145: 73902.12 | L145: 75097.77 | M145: 76360.91 | N145: 77694.38 | O145: 79109.68 | P145: 80604.34 | Q145: 82175.17 | R145: 83817.02 | S145: 85525.48 | T145: 87305.13 | U145: 89163.91
A146: NorthWest | B146: Commercial | C146: 57750.3 | D146: 59571.73 | E146: 61312.32 | F146: 62456.93 | G146: 63452.31 | H146: 64394.11 | I146: 65320.22 | J146: 66248.09 | K146: 67203.13 | L146: 68106.24 | M146: 68957.57 | N146: 69788.82 | O146: 70613.05 | P146: 71414.01 | Q146: 72185.5 | R146: 72984.45 | S146: 73821.08 | T146: 74659.39 | U146: 75464.56
A147: NorthWest | B147: Industrial | C147: 39827.4 | D147: 38984.87 | E147: 39222.26 | F147: 39179.95 | G147: 39976.54 | H147: 40846.33 | I147: 41135.73 | J147: 40798.64 | K147: 39465.78 | L147: 39742.06 | M147: 40431.46 | N147: 41176.19 | O147: 41780.59 | P147: 42368.29 | Q147: 42833.38 | R147: 43343.15 | S147: 43948.29 | T147: 44593.84 | U147: 45278.52
A148: NorthWest | B148: Transportation | C148: 668.5781 | D148: 681.5479 | E148: 692.4318 | F148: 703.6261 | G148: 714.4595 | H148: 725.8078 | I148: 738.6101 | J148: 752.0757 | K148: 766.1506 | L148: 779.5845 | M148: 795.1193 | N148: 812.4273 | O148: 833.3174 | P148: 856.6175 | Q148: 881.8494 | R148: 907.9629 | S148: 934.8781 | T148: 963.033 | U148: 992.6664
A149: NorthWest | B149: Irrigation | C149: 5552.162 | D149: 5689.809 | E149: 5833.024 | F149: 5817.061 | G149: 5832.512 | H149: 5867.496 | I149: 5925.765 | J149: 6003.767 | K149: 6101.014 | L149: 6205.658 | M149: 6322.068 | N149: 6447.156 | O149: 6583.698 | P149: 6737.895 | Q149: 6899.081 | R149: 7069.028 | S149: 7249.107 | T149: 7441.344 | U149: 7649.058
A150: NorthWest | B150: SL&PF | C150: 4859.781 | D150: 4917.701 | E150: 4975.114 | F150: 5032.002 | G150: 5088.344 | H150: 5144.135 | I150: 5199.47 | J150: 5254.571 | K150: 5309.572 | L150: 5364.361 | M150: 5418.925 | N150: 5473.154 | O150: 5527.066 | P150: 5580.839 | Q150: 5634.299 | R150: 5687.442 | S150: 5740.279 | T150: 5792.734 | U150: 5844.782

Sheet 2012 NIA Shipments Data
B1: Shipments/Sales Data
B2: Source: Adapted from 2012 Distribution Transformers NIA
K3: DryDTMS(year)=C*CIElec(year)/(AllElec(year)+F*CIElec(year))
C4: 2001 Shipments (LT) | E4: 79520 | F4: 2001 Shipments (DT) | H4: 28923 | K4: C=F=CD/CL
C5: 2009 Shipments (LT) | E5: 54259.87612 | F5: 2009 Shipments (DT) | H5: 22597.7245 | I5: Coeff post 2009 | K5: CD=DryShip(2001)/CIElec(2001) | N5: CL=LiqShip(2001)/AllElec(2001)
G6: CD= | H6: =+$H$4/'2011 EIA Electricity Sales Data'!D62 -> 0.01391117631 | I6: =H5/'2011 EIA Electricity Sales Data'!D70 -> 0.01024942375 | K6: LiqDTMS(year)=1-DryDTMS(year)
G7: CL= | H7: =+$E$4/'2011 EIA Electricity Sales Data'!C62 -> 0.02359797402 | I7: =E5/'2011 EIA Electricity Sales Data'!C70 -> 0.01518000803 | K7: LiqShip(year) = LiqDTMS(year)*TotShip(year) | O7: DryShip(year)=DryDTMS(year)*TotShip(year)
G8: C= | H8: =+H6/H7 -> 0.5895072302 | I8: =+I6/I7 -> 0.6751922481
B10: Same calibration methodology as DOE NIA. Regioinal shipment data scaled via C/I regional 6P forecast electricity sales versus national electricity sales per year.
B11: Year | D11: Sales | E11: Quantity | K11: Price Index | L11: Est. Shipments | Q11: REGIONALY SCALED
E12: BEA 87-00 | F12: BEA 77-87 | G12: BEA 77-01 | H12: BEA 77-03 | I12: BEA 98-2008 | J12: BEA 1998-2000 | L12: MVA/year All | M12: LiqDTMS | N12: DryDTMS | O12: Shipments MVA/year Liquid-Immersed Type | P12: Shipments MVA/year Dry-Type | Q12: Shipments MVA/year Liquid-Immersed Type | R12: Shipments MVA/year Dry-Type
L13: Total Shipments | M13: LiqDTMS | N13: DryDTMS | O13: LiqShip | P13: DryShip | Q13: LiqShip | R13: DryShip
B14: 1950 | L14: =L15/(1+'2011 EIA Electricity Sales Data'!$E$4) -> 16012.25843 | M14: =1-N14 -> 0.7149447741 | N14: =+$H$8*'2011 EIA Electricity Sales Data'!D11/('2011 EIA Electricity Sales Data'!C11+$H$8*'2011 EIA Electricity Sales Data'!D11) -> 0.2850552259 | O14: =+M14*L14 -> 11447.88049 | P14: =+N14*L14 -> 4564.377946 | Q14: =O14*AVERAGE('2011 EIA Electricity Sales Data'!$H$41:$H$95) -> 460.8806526 | R14: =P14*AVERAGE('2011 EIA Electricity Sales Data'!$H$41:$H$95) -> 183.757464
B15: 1951 | L15: =L16/(1+'2011 EIA Electricity Sales Data'!$E$4) -> 17179.57513 | M15: =1-N15 -> 0.7152879636 | N15: =+$H$8*'2011 EIA Electricity Sales Data'!D12/('2011 EIA Electricity Sales Data'!C12+$H$8*'2011 EIA Electricity Sales Data'!D12) -> 0.2847120364 | O15: 12288.34331 | P15: 4891.23182 | Q15: =O15*AVERAGE('2011 EIA Electricity Sales Data'!$H$41:$H$95) -> 494.7168771 | R15: =P15*AVERAGE('2011 EIA Electricity Sales Data'!$H$41:$H$95) -> 196.9162865
B16: 1952 | L16: =L17/(1+'2011 EIA Electricity Sales Data'!$E$4) -> 18431.9909 | M16: 0.71714178 | N16: =+$H$8*'2011 EIA Electricity Sales Data'!D13/('2011 EIA Electricity Sales Data'!C13+$H$8*'2011 EIA Electricity Sales Data'!D13) -> 0.28285822 | O16: 13218.35076 | P16: 5213.640136 | Q16: =O16*AVERAGE('2011 EIA Electricity Sales Data'!$H$41:$H$95) -> 532.1580821 | R16: =P16*AVERAGE('2011 EIA Electricity Sales Data'!$H$41:$H$95) -> 209.896135
B17: 1953 | L17: =L18/(1+'2011 EIA Electricity Sales Data'!$E$4) -> 19775.70957 | M17: 0.7166618611 | N17: =+$H$8*'2011 EIA Electricity Sales Data'!D14/('2011 EIA Electricity Sales Data'!C14+$H$8*'2011 EIA Electricity Sales Data'!D14) -> 0.2833381389 | O17: 14172.49683 | P17: 5603.212747 | Q17: =O17*AVERAGE('2011 EIA Electricity Sales Data'!$H$41:$H$95) -> 570.5710846 | R17: =P17*AVERAGE('2011 EIA Electricity Sales Data'!$H$41:$H$95) -> 225.5799534
B18: 1954 | L18: =L19/(1+'2011 EIA Electricity Sales Data'!$E$4) -> 21217.38728 | M18: 0.7194302016 | N18: =+$H$8*'2011 EIA Electricity Sales Data'!D15/('2011 EIA Electricity Sales Data'!C15+$H$8*'2011 EIA Electricity Sales Data'!D15) -> 0.2805697984 | O18: 15264.42921 | P18: 5952.958072 | Q18: =O18*AVERAGE('2011 EIA Electricity Sales Data'!$H$41:$H$95) -> 614.5312315 | R18: =P18*AVERAGE('2011 EIA Electricity Sales Data'!$H$41:$H$95) -> 239.6603637
B19: 1955 | L19: =L20/(1+'2011 EIA Electricity Sales Data'!$E$4) -> 22764.16536 | M19: 0.7128935203 | N19: =+$H$8*'2011 EIA Electricity Sales Data'!D16/('2011 EIA Electricity Sales Data'!C16+$H$8*'2011 EIA Electricity Sales Data'!D16) -> 0.2871064797 | O19: 16228.42598 | P19: 6535.739381 | Q19: =O19*AVERAGE('2011 EIA Electricity Sales Data'!$H$41:$H$95) -> 653.3408141 | R19: =P19*AVERAGE('2011 EIA Electricity Sales Data'!$H$41:$H$95) -> 263.1225784
B20: 1956 | L20: =L21/(1+'2011 EIA Electricity Sales Data'!$E$4) -> 24423.7058 | M20: 0.7131212467 | N20: =+$H$8*'2011 EIA Electricity Sales Data'!D17/('2011 EIA Electricity Sales Data'!C17+$H$8*'2011 EIA Electricity Sales Data'!D17) -> 0.2868787533 | O20: 17417.06353 | P20: 7006.642271 | Q20: =O20*AVERAGE('2011 EIA Electricity Sales Data'!$H$41:$H$95) -> 701.1942178 | R20: =P20*AVERAGE('2011 EIA Electricity Sales Data'!$H$41:$H$95) -> 282.0806756
B21: 1957 | L21: =L22/(1+'2011 EIA Electricity Sales Data'!$E$4) -> 26204.22912 | M21: 0.7156584221 | N21: =+$H$8*'2011 EIA Electricity Sales Data'!D18/('2011 EIA Electricity Sales Data'!C18+$H$8*'2011 EIA Electricity Sales Data'!D18) -> 0.2843415779 | O21: 18753.27727 | P21: 7450.951855 | Q21: =O21*AVERAGE('2011 EIA Electricity Sales Data'!$H$41:$H$95) -> 754.9888972 | R21: =P21*AVERAGE('2011 EIA Electricity Sales Data'!$H$41:$H$95) -> 299.9681519
B22: 1958 | L22: =L23/(1+'2011 EIA Electricity Sales Data'!$E$4) -> 28114.55516 | M22: 0.7204941598 | N22: =+$H$8*'2011 EIA Electricity Sales Data'!D19/('2011 EIA Electricity Sales Data'!C19+$H$8*'2011 EIA Electricity Sales Data'!D19) -> 0.2795058402 | O22: 20256.37279 | P22: 7858.182361 | Q22: =O22*AVERAGE('2011 EIA Electricity Sales Data'!$H$41:$H$95) -> 815.5020768 | R22: =P22*AVERAGE('2011 EIA Electricity Sales Data'!$H$41:$H$95) -> 316.3628603
B23: 1959 | L23: =L24/(1+'2011 EIA Electricity Sales Data'!$E$4) -> 30164.14671 | M23: 0.7199571381 | N23: =+$H$8*'2011 EIA Electricity Sales Data'!D20/('2011 EIA Electricity Sales Data'!C20+$H$8*'2011 EIA Electricity Sales Data'!D20) -> 0.2800428619 | O23: 21716.89274 | P23: 8447.253972 | Q23: =O23*AVERAGE('2011 EIA Electricity Sales Data'!$H$41:$H$95) -> 874.3012044 | R23: =P23*AVERAGE('2011 EIA Electricity Sales Data'!$H$41:$H$95) -> 340.0783165
B24: 1960 | L24: =L25/(1+'2011 EIA Electricity Sales Data'!$E$4) -> 32363.15644 | M24: 0.7194712293 | N24: =+$H$8*'2011 EIA Electricity Sales Data'!D21/('2011 EIA Electricity Sales Data'!C21+$H$8*'2011 EIA Electricity Sales Data'!D21) -> 0.2805287707 | O24: 23284.35995 | P24: 9078.796493 | Q24: =O24*AVERAGE('2011 EIA Electricity Sales Data'!$H$41:$H$95) -> 937.4059259 | R24: =P24*AVERAGE('2011 EIA Electricity Sales Data'!$H$41:$H$95) -> 365.5036106
B25: 1961 | L25: =L26/(1+'2011 EIA Electricity Sales Data'!$E$4) -> 34722.47715 | M25: 0.7205041993 | N25: =+$H$8*'2011 EIA Electricity Sales Data'!D22/('2011 EIA Electricity Sales Data'!C22+$H$8*'2011 EIA Electricity Sales Data'!D22) -> 0.2794958007 | O25: 25017.69059 | P25: 9704.786554 | Q25: =O25*AVERAGE('2011 EIA Electricity Sales Data'!$H$41:$H$95) -> 1007.18815 | R25: =P25*AVERAGE('2011 EIA Electricity Sales Data'!$H$41:$H$95) -> 390.7053681
B26: 1962 | L26: =L27/(1+'2011 EIA Electricity Sales Data'!$E$4) -> 37253.79573 | M26: 0.7199918829 | N26: =+$H$8*'2011 EIA Electricity Sales Data'!D23/('2011 EIA Electricity Sales Data'!C23+$H$8*'2011 EIA Electricity Sales Data'!D23) -> 0.2800081171 | O26: 26822.43053 | P26: 10431.3652 | Q26: =O26*AVERAGE('2011 EIA Electricity Sales Data'!$H$41:$H$95) -> 1079.845243 | R26: =P26*AVERAGE('2011 EIA Electricity Sales Data'!$H$41:$H$95) -> 419.9567251
B27: 1963 | L27: =L28/(1+'2011 EIA Electricity Sales Data'!$E$4) -> 39969.65108 | M27: 0.7204022475 | N27: =+$H$8*'2011 EIA Electricity Sales Data'!D24/('2011 EIA Electricity Sales Data'!C24+$H$8*'2011 EIA Electricity Sales Data'!D24) -> 0.2795977525 | O27: 28794.22647 | P27: 11175.42461 | Q27: =O27*AVERAGE('2011 EIA Electricity Sales Data'!$H$41:$H$95) -> 1159.22785 | R27: =P27*AVERAGE('2011 EIA Electricity Sales Data'!$H$41:$H$95) -> 449.9118412
B28: 1964 | L28: =L29/(1+'2011 EIA Electricity Sales Data'!$E$4) -> 42883.4962 | M28: 0.7197216091 | N28: =+$H$8*'2011 EIA Electricity Sales Data'!D25/('2011 EIA Electricity Sales Data'!C25+$H$8*'2011 EIA Electricity Sales Data'!D25) -> 0.2802783909 | O28: 30864.17889 | P28: 12019.31731 | Q28: =O28*AVERAGE('2011 EIA Electricity Sales Data'!$H$41:$H$95) -> 1242.562143 | R28: =P28*AVERAGE('2011 EIA Electricity Sales Data'!$H$41:$H$95) -> 483.8861492
B29: 1965 | L29: =L30/(1+'2011 EIA Electricity Sales Data'!$E$4) -> 46009.76483 | M29: 0.7200010187 | N29: =+$H$8*'2011 EIA Electricity Sales Data'!D26/('2011 EIA Electricity Sales Data'!C26+$H$8*'2011 EIA Electricity Sales Data'!D26) -> 0.2799989813 | O29: 33127.07754 | P29: 12882.68728 | Q29: =O29*AVERAGE('2011 EIA Electricity Sales Data'!$H$41:$H$95) -> 1333.664265 | R29: =P29*AVERAGE('2011 EIA Electricity Sales Data'!$H$41:$H$95) -> 518.6445935
B30: 1966 | L30: =L31/(1+'2011 EIA Electricity Sales Data'!$E$4) -> 49363.94294 | M30: 0.7204062815 | N30: =+$H$8*'2011 EIA Electricity Sales Data'!D27/('2011 EIA Electricity Sales Data'!C27+$H$8*'2011 EIA Electricity Sales Data'!D27) -> 0.2795937185 | O30: 35562.09457 | P30: 13801.84836 | Q30: =O30*AVERAGE('2011 EIA Electricity Sales Data'!$H$41:$H$95) -> 1431.695707 | R30: =P30*AVERAGE('2011 EIA Electricity Sales Data'!$H$41:$H$95) -> 555.6491342
B31: 1967 | L31: =L32/(1+'2011 EIA Electricity Sales Data'!$E$4) -> 52962.64546 | M31: 0.7215900846 | N31: =+$H$8*'2011 EIA Electricity Sales Data'!D28/('2011 EIA Electricity Sales Data'!C28+$H$8*'2011 EIA Electricity Sales Data'!D28) -> 0.2784099154 | O31: 38217.31982 | P31: 14745.32564 | Q31: =O31*AVERAGE('2011 EIA Electricity Sales Data'!$H$41:$H$95) -> 1538.592521 | R31: =P31*AVERAGE('2011 EIA Electricity Sales Data'!$H$41:$H$95) -> 593.6326214
B32: 1968 | L32: =L33/(1+'2011 EIA Electricity Sales Data'!$E$4) -> 56823.69858 | M32: 0.7236478096 | N32: =+$H$8*'2011 EIA Electricity Sales Data'!D29/('2011 EIA Electricity Sales Data'!C29+$H$8*'2011 EIA Electricity Sales Data'!D29) -> 0.2763521904 | O32: 41120.34501 | P32: 15703.35357 | Q32: =O32*AVERAGE('2011 EIA Electricity Sales Data'!$H$41:$H$95) -> 1655.465521 | R32: =P32*AVERAGE('2011 EIA Electricity Sales Data'!$H$41:$H$95) -> 632.201904
B33: 1969 | L33: =L34/(1+'2011 EIA Electricity Sales Data'!$E$4) -> 60966.22803 | M33: 0.7259746874 | N33: =+$H$8*'2011 EIA Electricity Sales Data'!D30/('2011 EIA Electricity Sales Data'!C30+$H$8*'2011 EIA Electricity Sales Data'!D30) -> 0.2740253126 | O33: 44259.93833 | P33: 16706.2897 | Q33: =O33*AVERAGE('2011 EIA Electricity Sales Data'!$H$41:$H$95) -> 1781.862528 | R33: =P33*AVERAGE('2011 EIA Electricity Sales Data'!$H$41:$H$95) -> 672.5791473
B34: 1970 | L34: =L35/(1+'2011 EIA Electricity Sales Data'!$E$4) -> 65410.75384 | M34: 0.7290955884 | N34: =+$H$8*'2011 EIA Electricity Sales Data'!D31/('2011 EIA Electricity Sales Data'!C31+$H$8*'2011 EIA Electricity Sales Data'!D31) -> 0.2709044116 | O34: 47690.69206 | P34: 17720.06178 | Q34: =O34*AVERAGE('2011 EIA Electricity Sales Data'!$H$41:$H$95) -> 1919.981371 | R34: =P34*AVERAGE('2011 EIA Electricity Sales Data'!$H$41:$H$95) -> 713.3926361
B35: 1971 | L35: =L36/(1+'2011 EIA Electricity Sales Data'!$E$4) -> 70179.29198 | M35: 0.7306729853 | N35: =+$H$8*'2011 EIA Electricity Sales Data'!D32/('2011 EIA Electricity Sales Data'!C32+$H$8*'2011 EIA Electricity Sales Data'!D32) -> 0.2693270147 | O35: 51278.11278 | P35: 18901.17921 | Q35: =O35*AVERAGE('2011 EIA Electricity Sales Data'!$H$41:$H$95) -> 2064.407478 | R35: =P35*AVERAGE('2011 EIA Electricity Sales Data'!$H$41:$H$95) -> 760.943287
B36: 1972 | L36: =L37/(1+'2011 EIA Electricity Sales Data'!$E$4) -> 75295.46343 | M36: 0.7301137696 | N36: =+$H$8*'2011 EIA Electricity Sales Data'!D33/('2011 EIA Electricity Sales Data'!C33+$H$8*'2011 EIA Electricity Sales Data'!D33) -> 0.2698862304 | O36: 54974.25463 | P36: 20321.20879 | Q36: =O36*AVERAGE('2011 EIA Electricity Sales Data'!$H$41:$H$95) -> 2213.210592 | R36: =P36*AVERAGE('2011 EIA Electricity Sales Data'!$H$41:$H$95) -> 818.1123116
B37: 1973 | L37: =L38/(1+'2011 EIA Electricity Sales Data'!$E$4) -> 80784.61113 | M37: 0.7300634384 | N37: =+$H$8*'2011 EIA Electricity Sales Data'!D34/('2011 EIA Electricity Sales Data'!C34+$H$8*'2011 EIA Electricity Sales Data'!D34) -> 0.2699365616 | O37: 58977.89097 | P37: 21806.72016 | Q37: =O37*AVERAGE('2011 EIA Electricity Sales Data'!$H$41:$H$95) -> 2374.393138 | R37: =P37*AVERAGE('2011 EIA Electricity Sales Data'!$H$41:$H$95) -> 877.9175699
B38: 1974 | L38: =L39/(1+'2011 EIA Electricity Sales Data'!$E$4) -> 86673.92561 | M38: 0.730113053 | N38: =+$H$8*'2011 EIA Electricity Sales Data'!D35/('2011 EIA Electricity Sales Data'!C35+$H$8*'2011 EIA Electricity Sales Data'!D35) -> 0.269886947 | O38: 63281.76444 | P38: 23392.16117 | Q38: =O38*AVERAGE('2011 EIA Electricity Sales Data'!$H$41:$H$95) -> 2547.662943 | R38: =P38*AVERAGE('2011 EIA Electricity Sales Data'!$H$41:$H$95) -> 941.7458992
B39: 1975 | L39: =L40/(1+'2011 EIA Electricity Sales Data'!$E$4) -> 92992.5796 | M39: 0.7309749461 | N39: =+$H$8*'2011 EIA Electricity Sales Data'!D36/('2011 EIA Electricity Sales Data'!C36+$H$8*'2011 EIA Electricity Sales Data'!D36) -> 0.2690250539 | O39: 67975.24586 | P39: 25017.33374 | Q39: =O39*AVERAGE('2011 EIA Electricity Sales Data'!$H$41:$H$95) -> 2736.617988 | R39: =P39*AVERAGE('2011 EIA Electricity Sales Data'!$H$41:$H$95) -> 1007.173783
B40: 1976 | L40: =L41/(1+'2011 EIA Electricity Sales Data'!$E$4) -> 99771.87255 | M40: 0.7274415992 | N40: =+$H$8*'2011 EIA Electricity Sales Data'!D37/('2011 EIA Electricity Sales Data'!C37+$H$8*'2011 EIA Electricity Sales Data'!D37) -> 0.2725584008 | O40: 72578.21053 | P40: 27193.66202 | Q40: =O40*AVERAGE('2011 EIA Electricity Sales Data'!$H$41:$H$95) -> 2921.928917 | R40: =P40*AVERAGE('2011 EIA Electricity Sales Data'!$H$41:$H$95) -> 1094.790666
B41: 1977 | D41: 2202 | F41: 112.594 | G41: =$E$51*F41*0.01 -> 91.43420958 | H41: =+G41/$G$65*100 -> 98.71119918 | L41: =($E$4+$H$4)*$H41*0.01 -> 107045.3857 | M41: =1-N41 -> 0.7283704732 | N41: =+$H$8*'2011 EIA Electricity Sales Data'!D38/('2011 EIA Electricity Sales Data'!C38+'2012 NIA Shipments Data'!$H$8*'2011 EIA Electricity Sales Data'!D38) -> 0.2716295268 | O41: =+M41*L41 -> 77968.69826 | P41: =+N41*L41 -> 29076.68747 | Q41: =O41*AVERAGE('2011 EIA Electricity Sales Data'!$H$41:$H$95) -> 3138.944766 | R41: =P41*AVERAGE('2011 EIA Electricity Sales Data'!$H$41:$H$95) -> 1170.599458
B42: 1978 | D42: 2452 | F42: 119.232 | G42: 96.82473024 | H42: 104.5307361 | L42: =($E$4+$H$4)*$H42*0.01 -> 113356.2662 | M42: =1-N42 -> 0.7293505258 | N42: =+$H$8*'2011 EIA Electricity Sales Data'!D39/('2011 EIA Electricity Sales Data'!C39+'2012 NIA Shipments Data'!$H$8*'2011 EIA Electricity Sales Data'!D39) -> 0.2706494742 | O42: =+M42*L42 -> 82676.45232 | P42: =+N42*L42 -> 30679.81383 | Q42: =O42*AVERAGE('2011 EIA Electricity Sales Data'!$H$41:$H$95) -> 3328.474414 | R42: =P42*AVERAGE('2011 EIA Electricity Sales Data'!$H$41:$H$95) -> 1235.139783
B43: 1979 | D43: 2729 | F43: 124.992 | G43: 101.5022534 | H43: 109.5805301 | L43: 118832.4143 | M43: 0.7276141625 | N43: =+$H$8*'2011 EIA Electricity Sales Data'!D40/('2011 EIA Electricity Sales Data'!C40+'2012 NIA Shipments Data'!$H$8*'2011 EIA Electricity Sales Data'!D40) -> 0.2723858375 | O43: 86464.14759 | P43: 32368.26669 | Q43: =O43*AVERAGE('2011 EIA Electricity Sales Data'!$H$41:$H$95) -> 3480.963381 | R43: =P43*AVERAGE('2011 EIA Electricity Sales Data'!$H$41:$H$95) -> 1303.11527
B44: 1980 | D44: 2957 | F44: 123.779 | G44: =$E$51*F44*0.01 -> 100.5172125 | H44: =+G44/$G$65*100 -> 108.5170926 | L44: 117679.1907 | M44: 0.7316321303 | N44: =+$H$8*'2011 EIA Electricity Sales Data'!D41/('2011 EIA Electricity Sales Data'!C41+'2012 NIA Shipments Data'!$H$8*'2011 EIA Electricity Sales Data'!D41) -> 0.2683678697 | O44: 86097.877 | P44: 31581.31372 | Q44: =O44*'2011 EIA Electricity Sales Data'!$H41 -> 3808.539537 | R44: =P44*'2011 EIA Electricity Sales Data'!$H41 -> 1396.999393
B45: 1981 | D45: 3209 | F45: 118.419 | G45: 96.16451733 | H45: 103.8179787 | L45: =($E$4+$H$4)*$H45*0.01 -> 112583.3307 | M45: =1-N45 -> 0.731030494 | N45: =+$H$8*'2011 EIA Electricity Sales Data'!D42/('2011 EIA Electricity Sales Data'!C42+'2012 NIA Shipments Data'!$H$8*'2011 EIA Electricity Sales Data'!D42) -> 0.268969506 | O45: =+M45*L45 -> 82301.84783 | P45: =+N45*L45 -> 30281.48284 | Q45: =O45*'2011 EIA Electricity Sales Data'!$H42 -> 3701.838565 | R45: =P45*'2011 EIA Electricity Sales Data'!$H42 -> 1362.024838
B46: 1982 | D46: 2916 | F46: 100.754 | G46: 81.81930078 | H46: 88.33106704 | L46: 95788.85903 | M46: 0.7357221959 | N46: =+$H$8*'2011 EIA Electricity Sales Data'!D43/('2011 EIA Electricity Sales Data'!C43+'2012 NIA Shipments Data'!$H$8*'2011 EIA Electricity Sales Data'!D43) -> 0.2642778041 | O46: 70473.98971 | P46: 25314.86932 | Q46: =O46*'2011 EIA Electricity Sales Data'!$H43 -> 3203.09671 | R46: =P46*'2011 EIA Electricity Sales Data'!$H43 -> 1150.580164
B47: 1983 | D47: 2887 | F47: 97.696 | G47: 79.33599072 | H47: 85.65011737 | L47: 92881.55678 | M47: 0.7343702113 | N47: =+$H$8*'2011 EIA Electricity Sales Data'!D44/('2011 EIA Electricity Sales Data'!C44+'2012 NIA Shipments Data'!$H$8*'2011 EIA Electricity Sales Data'!D44) -> 0.2656297887 | O47: 68209.44848 | P47: 24672.1083 | Q47: =O47*'2011 EIA Electricity Sales Data'!$H44 -> 3022.555388 | R47: =P47*'2011 EIA Electricity Sales Data'!$H44 -> 1093.291553
B48: 1984 | D48: 3213 | F48: 106.535 | G48: 86.51387745 | H48: 93.39927176 | L48: 101284.9723 | M48: 0.7318843557 | N48: =+$H$8*'2011 EIA Electricity Sales Data'!D45/('2011 EIA Electricity Sales Data'!C45+'2012 NIA Shipments Data'!$H$8*'2011 EIA Electricity Sales Data'!D45) -> 0.2681156443 | O48: 74128.88667 | P48: 27156.0856 | Q48: =O48*'2011 EIA Electricity Sales Data'!$H45 -> 3179.776792 | R48: =P48*'2011 EIA Electricity Sales Data'!$H45 -> 1164.866959
B49: 1985 | D49: 3356 | F49: 107.837 | G49: 87.57119259 | H49: 94.54073562 | L49: 102522.8099 | M49: 0.7320774107 | N49: =+$H$8*'2011 EIA Electricity Sales Data'!D46/('2011 EIA Electricity Sales Data'!C46+'2012 NIA Shipments Data'!$H$8*'2011 EIA Electricity Sales Data'!D46) -> 0.2679225893 | O49: 75054.63323 | P49: 27468.1767 | Q49: =O49*'2011 EIA Electricity Sales Data'!$H46 -> 3193.187807 | R49: =P49*'2011 EIA Electricity Sales Data'!$H46 -> 1168.629345
B50: 1986 | D50: 3388 | F50: 107.739 | G50: 87.49160973 | H50: 94.45481899 | L50: 102429.6394 | M50: 0.7333481224 | N50: =+$H$8*'2011 EIA Electricity Sales Data'!D47/('2011 EIA Electricity Sales Data'!C47+'2012 NIA Shipments Data'!$H$8*'2011 EIA Electricity Sales Data'!D47) -> 0.2666518776 | O50: 75116.5837 | P50: 27313.05565 | Q50: =O50*'2011 EIA Electricity Sales Data'!$H47 -> 3281.763718 | R50: =P50*'2011 EIA Electricity Sales Data'!$H47 -> 1193.278377
B51: 1987 | D51: 3290 | E51: 81.207 | F51: 100 | G51: =E51 -> 81.207 | H51: 87.67003498 | K51: 76.51381855 | L51: 95072.01603 | M51: 0.7329590179 | N51: =+$H$8*'2011 EIA Electricity Sales Data'!D48/('2011 EIA Electricity Sales Data'!C48+'2012 NIA Shipments Data'!$H$8*'2011 EIA Electricity Sales Data'!D48) -> 0.2670409821 | O51: 69683.8915 | P51: 25388.12453 | Q51: =O51*'2011 EIA Electricity Sales Data'!$H48 -> 3048.122733 | R51: =P51*'2011 EIA Electricity Sales Data'!$H48 -> 1110.530969
B52: 1988 | D52: 3660 | E52: 88.117 | G52: 88.117 | H52: 95.12998229 | K52: 78.44928987 | L52: 103161.8067 | M52: 0.7326790349 | N52: =+$H$8*'2011 EIA Electricity Sales Data'!D49/('2011 EIA Electricity Sales Data'!C49+'2012 NIA Shipments Data'!$H$8*'2011 EIA Electricity Sales Data'!D49) -> 0.2673209651 | O52: 75584.49297 | P52: 27577.31373 | Q52: =O52*'2011 EIA Electricity Sales Data'!$H49 -> 3247.012999 | R52: =P52*'2011 EIA Electricity Sales Data'!$H49 -> 1184.686073
B53: 1989 | D53: 3940 | E53: 88.24 | G53: 88.24 | H53: 95.26277152 | K53: 84.33250056 | L53: 103305.8073 | M53: 0.7310836048 | N53: =+$H$8*'2011 EIA Electricity Sales Data'!D50/('2011 EIA Electricity Sales Data'!C50+'2012 NIA Shipments Data'!$H$8*'2011 EIA Electricity Sales Data'!D50) -> 0.2689163952 | O53: 75525.18201 | P53: 27780.6253 | Q53: =O53*'2011 EIA Electricity Sales Data'!$H50 -> 3276.694131 | R53: =P53*'2011 EIA Electricity Sales Data'!$H50 -> 1205.274975
B54: 1990 | D54: 4143 | E54: 87.728 | G54: 87.728 | H54: 94.71002289 | K54: 89.21152145 | L54: 102706.3901 | M54: 0.7306186123 | N54: =+$H$8*'2011 EIA Electricity Sales Data'!D51/('2011 EIA Electricity Sales Data'!C51+'2012 NIA Shipments Data'!$H$8*'2011 EIA Electricity Sales Data'!D51) -> 0.2693813877 | O54: 75039.20022 | P54: 27667.1899 | Q54: =O54*'2011 EIA Electricity Sales Data'!$H51 -> 3240.646986 | R54: =P54*'2011 EIA Electricity Sales Data'!$H51 -> 1194.836769
B55: 1991 | D55: 3952 | E55: 80.823 | G55: 80.823 | H55: 87.25547351 | K55: 92.35629782 | L55: 94622.45314 | M55: 0.7323577463 | N55: =+$H$8*'2011 EIA Electricity Sales Data'!D52/('2011 EIA Electricity Sales Data'!C52+'2012 NIA Shipments Data'!$H$8*'2011 EIA Electricity Sales Data'!D52) -> 0.2676422537 | O55: 69297.48652 | P55: 25324.96661 | Q55: =O55*'2011 EIA Electricity Sales Data'!$H52 -> 3010.072673 | R55: =P55*'2011 EIA Electricity Sales Data'!$H52 -> 1100.039753
B56: 1992 | D56: 4096 | E56: 84.334 | G56: 84.334 | H56: 91.04590405 | K56: 91.74678475 | L56: 98732.90972 | M56: 0.7299749798 | N56: =+$H$8*'2011 EIA Electricity Sales Data'!D53/('2011 EIA Electricity Sales Data'!C53+'2012 NIA Shipments Data'!$H$8*'2011 EIA Electricity Sales Data'!D53) -> 0.2700250202 | O56: 72072.55378 | P56: 26660.35595 | Q56: =O56*'2011 EIA Electricity Sales Data'!$H53 -> 3165.98228 | R56: =P56*'2011 EIA Electricity Sales Data'!$H53 -> 1171.128399
